Workbook

Sheet List
B3: 1 | C3: ="List!"&ADDRESS(ROW(C3),COLUMN(D3)) -> List!$D$3 | E3: Ciel dégagé
B4: 2 | C4: ="List!"&ADDRESS(ROW(C4),COLUMN(D4)) -> List!$D$4 | E4: Ciel voilé
B5: 3 | C5: List!$D$5 | E5: Rares éclaircies
B6: 4 | C6: List!$D$6 | E6: Soleil nuageux et averses
B7: 5 | C7: List!$D$7 | E7: Variable
B8: 6 | C8: List!$D$8 | E8: Nuageux avec éclaircies
B9: 7 | C9: List!$D$9 | E9: Brouillard dense
B10: 8 | C10: List!$D$10 | E10: Brume ou brouillard légé
B11: 9 | C11: List!$D$11 | E11: Brume ou léger brouillard givrant
B12: 10 | C12: List!$D$12 | E12: Nuageux
B13: 11 | C13: List!$D$13 | E13: Couvert
B14: 12 | C14: List!$D$14 | E14: Couvert rares averses
B15: 13 | C15: List!$D$15 | E15: Pluies et éclaircies
B16: 14 | C16: List!$D$16 | E16: Pluies éparses
B17: 15 | C17: List!$D$17 | E17: Bruines
B18: 16 | C18: List!$D$18 | E18: Averses ou fortes pluies
B19: 17 | C19: List!$D$19 | E19: Pluies mêlées de neiges
B20: 18 | C20: List!$D$20 | E20: Soleil , orage
B21: 19 | C21: List!$D$21 | E21: Soleil averses orageuses
B22: 20 | C22: List!$D$22 | E22: Pluies orageuses
B23: 21 | C23: List!$D$23 | E23: Orages
B24: 22 | C24: List!$D$24 | E24: Orages et grèles
B25: 23 | C25: List!$D$25 | E25: Orages violents
B26: 24 | C26: List!$D$26 | E26: Giboulées
B27: 25 | C27: List!$D$27 | E27: Grèles
B28: 26 | C28: List!$D$28 | E28: Neiges
B29: 27 | C29: List!$D$29 | E29: Fortes neiges

Sheet Relevé du jour
A4: NO, | B4: Heure | C4: Intervalle | D4: T° int. (°C) | E4: Hum int. (%) | F4: T° ext. (°C) | G4: Hum ext. (%) | H4: Press. rel. (hpa) | I4: Press. abs. (hpa) | J4: Vit. du vent(km/h) | K4: Rafale (km/h) | L4: Direction du vent | N4: Pt. de rosée(°C) | O4: Facteur vent(°C) | P4: Précipi. dern. 24 h(mm) | Q4: Précipi.s de la sem. (mm) | R4: Précipi. du mois (mm) | S4: Précipi. An (mm) | T4: Précipi. totale (mm) | U4: Lumière (W/M2) | V4: UV (uW/m2) | W4: UVI
A5: =IF(B5="","",1) -> 1 | B5: 06/04/2018 00:01:29 | C5: 5 M | D5: 22.5 | E5: 49 | F5: 4.8 | G5: 82 | H5: 1011.3 | I5: 1024.9 | J5: 1.1 | K5: 1.1 | L5: 45 | M5: 2.0 | N5: 4.8 | O5: 0.0 | P5: 29.7 | Q5: 29.7 | R5: 274.8 | S5: 694.8 | T5: 0.09 | U5: 0 | V5: 0
A6: =IF(B6="","",1) -> 1 | B6: 06/04/2018 00:06:29 | C6: 5 M | D6: 22.5 | E6: 49 | F6: 4.6 | G6: 81 | H6: 1011.2 | I6: 1024.8 | J6: 0.0 | K6: 0.0 | L6: 45 | M6: 1.6 | N6: 4.6 | O6: 0.0 | P6: 29.7 | Q6: 29.7 | R6: 274.8 | S6: 694.8 | T6: 0.09 | U6: 0 | V6: 0
A7: 1 | B7: 06/04/2018 00:11:29 | C7: 5 M | D7: 22.4 | E7: 49 | F7: 4.4 | G7: 81 | H7: 1011.3 | I7: 1024.9 | J7: 0.0 | K7: 0.0 | L7: 45 | M7: 1.4 | N7: 4.4 | O7: 0.0 | P7: 29.7 | Q7: 29.7 | R7: 274.8 | S7: 694.8 | T7: 0.00 | U7: 0 | V7: 0
A8: 1 | B8: 06/04/2018 00:16:29 | C8: 5 M | D8: 22.4 | E8: 49 | F8: 4.4 | G8: 82 | H8: 1011.4 | I8: 1025.0 | J8: 0.0 | K8: 0.0 | L8: 90 | M8: 1.6 | N8: 4.4 | O8: 0.0 | P8: 29.7 | Q8: 29.7 | R8: 274.8 | S8: 694.8 | T8: 0.09 | U8: 0 | V8: 0
A9: 1 | B9: 06/04/2018 00:21:29 | C9: 5 M | D9: 22.3 | E9: 49 | F9: 4.4 | G9: 82 | H9: 1011.5 | I9: 1025.1 | J9: 0.0 | K9: 0.0 | L9: 90 | M9: 1.6 | N9: 4.4 | O9: 0.0 | P9: 29.7 | Q9: 29.7 | R9: 274.8 | S9: 694.8 | T9: 0.00 | U9: 0 | V9: 0
A10: 1 | B10: 06/04/2018 00:26:29 | C10: 5 M | D10: 22.3 | E10: 49 | F10: 4.3 | G10: 82 | H10: 1011.3 | I10: 1024.9 | J10: 0.0 | K10: 0.0 | L10: 45 | M10: 1.5 | N10: 4.3 | O10: 0.0 | P10: 29.7 | Q10: 29.7 | R10: 274.8 | S10: 694.8 | T10: 0.09 | U10: 0 | V10: 0
A11: 1 | B11: 06/04/2018 00:31:29 | C11: 5 M | D11: 22.3 | E11: 49 | F11: 4.1 | G11: 82 | H11: 1011.3 | I11: 1024.9 | J11: 0.0 | K11: 0.0 | L11: 45 | M11: 1.3 | N11: 4.1 | O11: 0.0 | P11: 29.7 | Q11: 29.7 | R11: 274.8 | S11: 694.8 | T11: 0.00 | U11: 0 | V11: 0
A12: 1 | B12: 06/04/2018 00:36:29 | C12: 5 M | D12: 22.3 | E12: 49 | F12: 4.0 | G12: 82 | H12: 1011.2 | I12: 1024.8 | J12: 0.0 | K12: 0.0 | L12: 45 | M12: 1.2 | N12: 4.0 | O12: 0.0 | P12: 29.7 | Q12: 29.7 | R12: 274.8 | S12: 694.8 | T12: 0.09 | U12: 0 | V12: 0
A13: 1 | B13: 06/04/2018 00:41:29 | C13: 5 M | D13: 22.3 | E13: 49 | F13: 3.9 | G13: 82 | H13: 1011.3 | I13: 1024.9 | J13: 0.0 | K13: 0.0 | L13: 90 | M13: 1.1 | N13: 3.9 | O13: 0.0 | P13: 29.7 | Q13: 29.7 | R13: 274.8 | S13: 694.8 | T13: 0.00 | U13: 0 | V13: 0
A14: 1 | B14: 06/04/2018 00:46:29 | C14: 5 M | D14: 22.3 | E14: 49 | F14: 3.8 | G14: 82 | H14: 1011.2 | I14: 1024.8 | J14: 0.0 | K14: 0.0 | L14: 90 | M14: 1.0 | N14: 3.8 | O14: 0.0 | P14: 29.7 | Q14: 29.7 | R14: 274.8 | S14: 694.8 | T14: 0.09 | U14: 0 | V14: 0
A15: 1 | B15: 06/04/2018 00:51:29 | C15: 5 M | D15: 22.2 | E15: 49 | F15: 3.9 | G15: 82 | H15: 1011.2 | I15: 1024.8 | J15: 0.0 | K15: 1.1 | L15: 90 | M15: 1.1 | N15: 3.9 | O15: 0.0 | P15: 29.7 | Q15: 29.7 | R15: 274.8 | S15: 694.8 | T15: 0.00 | U15: 0 | V15: 0
A16: 1 | B16: 06/04/2018 00:56:29 | C16: 5 M | D16: 22.2 | E16: 49 | F16: 3.9 | G16: 82 | H16: 1011.1 | I16: 1024.7 | J16: 0.0 | K16: 0.0 | L16: 45 | M16: 1.1 | N16: 3.9 | O16: 0.0 | P16: 29.7 | Q16: 29.7 | R16: 274.8 | S16: 694.8 | T16: 0.09 | U16: 0 | V16: 0
A17: 1 | B17: 06/04/2018 01:01:29 | C17: 5 M | D17: 22.2 | E17: 49 | F17: 3.9 | G17: 82 | H17: 1011.2 | I17: 1024.8 | J17: 0.0 | K17: 0.0 | L17: 45 | M17: 1.1 | N17: 3.9 | O17: 0.0 | P17: 29.7 | Q17: 29.7 | R17: 274.8 | S17: 694.8 | T17: 0.00 | U17: 0 | V17: 0
A18: 1 | B18: 06/04/2018 01:06:29 | C18: 5 M | D18: 22.2 | E18: 49 | F18: 3.9 | G18: 83 | H18: 1011.0 | I18: 1024.6 | J18: 0.0 | K18: 0.0 | L18: 90 | M18: 1.3 | N18: 3.9 | O18: 0.0 | P18: 29.7 | Q18: 29.7 | R18: 274.8 | S18: 694.8 | T18: 0.09 | U18: 0 | V18: 0
A19: 1 | B19: 06/04/2018 01:11:29 | C19: 5 M | D19: 22.2 | E19: 49 | F19: 4.0 | G19: 83 | H19: 1010.9 | I19: 1024.5 | J19: 0.0 | K19: 0.0 | L19: 90 | M19: 1.4 | N19: 4.0 | O19: 0.0 | P19: 29.7 | Q19: 29.7 | R19: 274.8 | S19: 694.8 | T19: 0.00 | U19: 0 | V19: 0
A20: 1 | B20: 06/04/2018 01:16:29 | C20: 5 M | D20: 22.2 | E20: 49 | F20: 4.4 | G20: 84 | H20: 1010.5 | I20: 1024.1 | J20: 0.0 | K20: 0.0 | L20: 90 | M20: 1.9 | N20: 4.4 | O20: 0.0 | P20: 29.7 | Q20: 29.7 | R20: 274.8 | S20: 694.8 | T20: 0.00 | U20: 0 | V20: 0
A21: 1 | B21: 06/04/2018 01:21:29 | C21: 5 M | D21: 22.2 | E21: 49 | F21: 4.7 | G21: 84 | H21: 1010.6 | I21: 1024.2 | J21: 0.0 | K21: 0.0 | L21: 45 | M21: 2.2 | N21: 4.7 | O21: 0.0 | P21: 29.7 | Q21: 29.7 | R21: 274.8 | S21: 694.8 | T21: 0.09 | U21: 0 | V21: 0
A22: 1 | B22: 06/04/2018 01:26:29 | C22: 5 M | D22: 22.2 | E22: 49 | F22: 4.8 | G22: 85 | H22: 1010.6 | I22: 1024.2 | J22: 0.0 | K22: 1.1 | L22: 90 | M22: 2.5 | N22: 4.8 | O22: 0.0 | P22: 29.7 | Q22: 29.7 | R22: 274.8 | S22: 694.8 | T22: 0.00 | U22: 0 | V22: 0
A23: 1 | B23: 06/04/2018 01:31:29 | C23: 5 M | D23: 22.1 | E23: 49 | F23: 4.7 | G23: 85 | H23: 1010.6 | I23: 1024.2 | J23: 0.0 | K23: 1.1 | L23: 90 | M23: 2.4 | N23: 4.7 | O23: 0.0 | P23: 29.7 | Q23: 29.7 | R23: 274.8 | S23: 694.8 | T23: 0.09 | U23: 0 | V23: 0
A24: 1 | B24: 06/04/2018 01:36:29 | C24: 5 M | D24: 22.1 | E24: 49 | F24: 4.7 | G24: 85 | H24: 1010.6 | I24: 1024.2 | J24: 0.0 | K24: 1.1 | L24: 45 | M24: 2.4 | N24: 4.7 | O24: 0.0 | P24: 29.7 | Q24: 29.7 | R24: 274.8 | S24: 694.8 | T24: 0.00 | U24: 0 | V24: 0
A25: 1 | B25: 06/04/2018 01:41:29 | C25: 5 M | D25: 22.1 | E25: 49 | F25: 4.8 | G25: 85 | H25: 1010.4 | I25: 1024.0 | J25: 0.0 | K25: 0.0 | L25: 90 | M25: 2.5 | N25: 4.8 | O25: 0.0 | P25: 29.7 | Q25: 29.7 | R25: 274.8 | S25: 694.8 | T25: 0.05 | U25: 0 | V25: 0
A26: 1 | B26: 06/04/2018 01:46:29 | C26: 5 M | D26: 22.1 | E26: 49 | F26: 4.6 | G26: 84 | H26: 1010.5 | I26: 1024.1 | J26: 0.0 | K26: 1.1 | L26: 90 | M26: 2.1 | N26: 4.6 | O26: 0.0 | P26: 29.7 | Q26: 29.7 | R26: 274.8 | S26: 694.8 | T26: 0.00 | U26: 0 | V26: 0
A27: 1 | B27: 06/04/2018 01:51:29 | C27: 5 M | D27: 22.0 | E27: 49 | F27: 4.3 | G27: 84 | H27: 1010.3 | I27: 1023.9 | J27: 0.0 | K27: 1.1 | L27: 90 | M27: 1.8 | N27: 4.3 | O27: 0.0 | P27: 29.7 | Q27: 29.7 | R27: 274.8 | S27: 694.8 | T27: 0.00 | U27: 0 | V27: 0
A28: 1 | B28: 06/04/2018 01:56:29 | C28: 5 M | D28: 22.0 | E28: 49 | F28: 4.2 | G28: 84 | H28: 1010.2 | I28: 1023.8 | J28: 0.0 | K28: 1.1 | L28: 90 | M28: 1.7 | N28: 4.2 | O28: 0.0 | P28: 29.7 | Q28: 29.7 | R28: 274.8 | S28: 694.8 | T28: 0.09 | U28: 0 | V28: 0
A29: 1 | B29: 06/04/2018 02:01:29 | C29: 5 M | D29: 22.0 | E29: 49 | F29: 4.1 | G29: 84 | H29: 1010.0 | I29: 1023.6 | J29: 0.0 | K29: 1.1 | L29: 90 | M29: 1.6 | N29: 4.1 | O29: 0.0 | P29: 29.7 | Q29: 29.7 | R29: 274.8 | S29: 694.8 | T29: 0.00 | U29: 0 | V29: 0
A30: 1 | B30: 06/04/2018 02:06:29 | C30: 5 M | D30: 22.0 | E30: 49 | F30: 4.0 | G30: 83 | H30: 1010.1 | I30: 1023.7 | J30: 0.0 | K30: 1.1 | L30: 90 | M30: 1.4 | N30: 4.0 | O30: 0.0 | P30: 29.7 | Q30: 29.7 | R30: 274.8 | S30: 694.8 | T30: 0.05 | U30: 0 | V30: 0
A31: 1 | B31: 06/04/2018 02:11:29 | C31: 5 M | D31: 22.0 | E31: 49 | F31: 4.2 | G31: 84 | H31: 1009.9 | I31: 1023.5 | J31: 0.0 | K31: 0.0 | L31: 90 | M31: 1.7 | N31: 4.2 | O31: 0.0 | P31: 29.7 | Q31: 29.7 | R31: 274.8 | S31: 694.8 | T31: 0.00 | U31: 0 | V31: 0
A32: 1 | B32: 06/04/2018 02:16:29 | C32: 5 M | D32: 22.0 | E32: 49 | F32: 4.2 | G32: 84 | H32: 1010.0 | I32: 1023.6 | J32: 0.0 | K32: 0.0 | L32: 90 | M32: 1.7 | N32: 4.2 | O32: 0.0 | P32: 29.7 | Q32: 29.7 | R32: 274.8 | S32: 694.8 | T32: 0.00 | U32: 0 | V32: 0
A33: 1 | B33: 06/04/2018 02:21:29 | C33: 5 M | D33: 22.0 | E33: 49 | F33: 4.2 | G33: 84 | H33: 1009.9 | I33: 1023.5 | J33: 0.0 | K33: 0.0 | L33: 90 | M33: 1.7 | N33: 4.2 | O33: 0.0 | P33: 29.7 | Q33: 29.7 | R33: 274.8 | S33: 694.8 | T33: 0.00 | U33: 0 | V33: 0
A34: 1 | B34: 06/04/2018 02:26:29 | C34: 5 M | D34: 21.9 | E34: 50 | F34: 3.7 | G34: 83 | H34: 1009.7 | I34: 1023.3 | J34: 0.0 | K34: 0.0 | L34: 90 | M34: 1.1 | N34: 3.7 | O34: 0.0 | P34: 29.7 | Q34: 29.7 | R34: 274.8 | S34: 694.8 | T34: 0.05 | U34: 0 | V34: 0
A35: 1 | B35: 06/04/2018 02:31:29 | C35: 5 M | D35: 21.9 | E35: 50 | F35: 3.5 | G35: 83 | H35: 1009.8 | I35: 1023.4 | J35: 0.0 | K35: 0.0 | L35: 90 | M35: 0.9 | N35: 3.5 | O35: 0.0 | P35: 29.7 | Q35: 29.7 | R35: 274.8 | S35: 694.8 | T35: 0.05 | U35: 0 | V35: 0
A36: 1 | B36: 06/04/2018 02:36:29 | C36: 5 M | D36: 21.8 | E36: 50 | F36: 3.2 | G36: 82 | H36: 1009.6 | I36: 1023.2 | J36: 0.0 | K36: 0.0 | L36: 90 | M36: 0.4 | N36: 3.2 | O36: 0.0 | P36: 29.7 | Q36: 29.7 | R36: 274.8 | S36: 694.8 | T36: 0.09 | U36: 0 | V36: 0
A37: 1 | B37: 06/04/2018 02:41:29 | C37: 5 M | D37: 21.8 | E37: 50 | F37: 3.1 | G37: 82 | H37: 1009.5 | I37: 1023.1 | J37: 0.0 | K37: 0.0 | L37: 90 | M37: 0.3 | N37: 3.1 | O37: 0.0 | P37: 29.7 | Q37: 29.7 | R37: 274.8 | S37: 694.8 | T37: 0.05 | U37: 0 | V37: 0
A38: 1 | B38: 06/04/2018 02:46:29 | C38: 5 M | D38: 21.8 | E38: 50 | F38: 3.1 | G38: 82 | H38: 1009.4 | I38: 1023.0 | J38: 0.0 | K38: 1.1 | L38: 90 | M38: 0.3 | N38: 3.1 | O38: 0.0 | P38: 29.7 | Q38: 29.7 | R38: 274.8 | S38: 694.8 | T38: 0.09 | U38: 0 | V38: 0
A39: 1 | B39: 06/04/2018 02:51:29 | C39: 5 M | D39: 21.8 | E39: 50 | F39: 3.1 | G39: 83 | H39: 1009.6 | I39: 1023.2 | J39: 0.0 | K39: 1.1 | L39: 90 | M39: 0.5 | N39: 3.1 | O39: 0.0 | P39: 29.7 | Q39: 29.7 | R39: 274.8 | S39: 694.8 | T39: 0.05 | U39: 0 | V39: 0
A40: 1 | B40: 06/04/2018 02:56:29 | C40: 5 M | D40: 21.8 | E40: 50 | F40: 3.7 | G40: 83 | H40: 1009.3 | I40: 1022.9 | J40: 2.5 | K40: 5.0 | L40: 90 | M40: 1.1 | N40: 3.7 | O40: 0.0 | P40: 29.7 | Q40: 29.7 | R40: 274.8 | S40: 694.8 | T40: 0.00 | U40: 0 | V40: 0
A41: 1 | B41: 06/04/2018 03:01:29 | C41: 5 M | D41: 21.8 | E41: 50 | F41: 4.1 | G41: 84 | H41: 1009.0 | I41: 1022.6 | J41: 0.0 | K41: 1.1 | L41: 90 | M41: 1.6 | N41: 4.1 | O41: 0.0 | P41: 29.7 | Q41: 29.7 | R41: 274.8 | S41: 694.8 | T41: 0.00 | U41: 0 | V41: 0
A42: 1 | B42: 06/04/2018 03:06:29 | C42: 5 M | D42: 21.8 | E42: 50 | F42: 4.3 | G42: 84 | H42: 1009.1 | I42: 1022.7 | J42: 1.1 | K42: 1.1 | L42: 45 | M42: 1.8 | N42: 4.3 | O42: 0.0 | P42: 29.7 | Q42: 29.7 | R42: 274.8 | S42: 694.8 | T42: 0.00 | U42: 0 | V42: 0
A43: 1 | B43: 06/04/2018 03:11:29 | C43: 5 M | D43: 21.8 | E43: 50 | F43: 4.4 | G43: 84 | H43: 1009.1 | I43: 1022.7 | J43: 0.0 | K43: 1.1 | L43: 90 | M43: 1.9 | N43: 4.4 | O43: 0.0 | P43: 29.7 | Q43: 29.7 | R43: 274.8 | S43: 694.8 | T43: 0.05 | U43: 0 | V43: 0
A44: 1 | B44: 06/04/2018 03:16:29 | C44: 5 M | D44: 21.7 | E44: 50 | F44: 4.9 | G44: 85 | H44: 1008.8 | I44: 1022.4 | J44: 3.6 | K44: 7.2 | L44: 90 | M44: 2.6 | N44: 4.9 | O44: 0.0 | P44: 29.7 | Q44: 29.7 | R44: 274.8 | S44: 694.8 | T44: 0.00 | U44: 0 | V44: 0
A45: 1 | B45: 06/04/2018 03:21:29 | C45: 5 M | D45: 21.7 | E45: 50 | F45: 5.2 | G45: 85 | H45: 1008.8 | I45: 1022.4 | J45: 7.2 | K45: 9.7 | L45: 135 | M45: 2.9 | N45: 3.8 | O45: 0.0 | P45: 29.7 | Q45: 29.7 | R45: 274.8 | S45: 694.8 | T45: 0.09 | U45: 0 | V45: 0
A46: 1 | B46: 06/04/2018 03:26:29 | C46: 5 M | D46: 21.7 | E46: 50 | F46: 5.3 | G46: 85 | H46: 1008.6 | I46: 1022.2 | J46: 2.5 | K46: 3.6 | L46: 135 | M46: 3.0 | N46: 5.3 | O46: 0.0 | P46: 29.7 | Q46: 29.7 | R46: 274.8 | S46: 694.8 | T46: 0.00 | U46: 0 | V46: 0
A47: 1 | B47: 06/04/2018 03:31:29 | C47: 5 M | D47: 21.7 | E47: 50 | F47: 5.5 | G47: 85 | H47: 1008.7 | I47: 1022.3 | J47: 0.0 | K47: 1.1 | L47: 90 | M47: 3.2 | N47: 5.5 | O47: 0.0 | P47: 29.7 | Q47: 29.7 | R47: 274.8 | S47: 694.8 | T47: 0.09 | U47: 0 | V47: 0
A48: 1 | B48: 06/04/2018 03:36:29 | C48: 5 M | D48: 21.7 | E48: 50 | F48: 5.5 | G48: 85 | H48: 1008.6 | I48: 1022.2 | J48: 0.0 | K48: 1.1 | L48: 90 | M48: 3.2 | N48: 5.5 | O48: 0.0 | P48: 29.7 | Q48: 29.7 | R48: 274.8 | S48: 694.8 | T48: 0.00 | U48: 0 | V48: 0
A49: 1 | B49: 06/04/2018 03:41:29 | C49: 5 M | D49: 21.7 | E49: 50 | F49: 5.4 | G49: 84 | H49: 1008.7 | I49: 1022.3 | J49: 0.0 | K49: 1.1 | L49: 45 | M49: 2.9 | N49: 5.4 | O49: 0.0 | P49: 29.7 | Q49: 29.7 | R49: 274.8 | S49: 694.8 | T49: 0.09 | U49: 0 | V49: 0
A50: 1 | B50: 06/04/2018 03:46:29 | C50: 5 M | D50: 21.6 | E50: 50 | F50: 5.5 | G50: 83 | H50: 1008.4 | I50: 1022.0 | J50: 0.0 | K50: 1.1 | L50: 90 | M50: 2.9 | N50: 5.5 | O50: 0.0 | P50: 29.7 | Q50: 29.7 | R50: 274.8 | S50: 694.8 | T50: 0.00 | U50: 0 | V50: 0
A51: 1 | B51: 06/04/2018 03:51:29 | C51: 5 M | D51: 21.6 | E51: 50 | F51: 5.5 | G51: 83 | H51: 1008.6 | I51: 1022.2 | J51: 0.0 | K51: 1.1 | L51: 90 | M51: 2.9 | N51: 5.5 | O51: 0.0 | P51: 29.7 | Q51: 29.7 | R51: 274.8 | S51: 694.8 | T51: 0.09 | U51: 0 | V51: 0
A52: 1 | B52: 06/04/2018 03:56:29 | C52: 5 M | D52: 21.6 | E52: 50 | F52: 5.7 | G52: 82 | H52: 1008.7 | I52: 1022.3 | J52: 3.6 | K52: 5.0 | L52: 135 | M52: 2.9 | N52: 5.7 | O52: 0.0 | P52: 29.7 | Q52: 29.7 | R52: 274.8 | S52: 694.8 | T52: 0.00 | U52: 0 | V52: 0
A53: 1 | B53: 06/04/2018 04:01:29 | C53: 5 M | D53: 21.6 | E53: 50 | F53: 6.0 | G53: 82 | H53: 1008.4 | I53: 1022.0 | J53: 2.5 | K53: 3.6 | L53: 135 | M53: 3.2 | N53: 6.0 | O53: 0.0 | P53: 29.7 | Q53: 29.7 | R53: 274.8 | S53: 694.8 | T53: 0.09 | U53: 0 | V53: 0
A54: 1 | B54: 06/04/2018 04:06:29 | C54: 5 M | D54: 21.6 | E54: 50 | F54: 6.1 | G54: 82 | H54: 1008.4 | I54: 1022.0 | J54: 2.5 | K54: 5.0 | L54: 135 | M54: 3.3 | N54: 6.1 | O54: 0.0 | P54: 29.7 | Q54: 29.7 | R54: 274.8 | S54: 694.8 | T54: 0.00 | U54: 0 | V54: 0
A55: 1 | B55: 06/04/2018 04:11:29 | C55: 5 M | D55: 21.6 | E55: 50 | F55: 6.3 | G55: 81 | H55: 1008.3 | I55: 1021.9 | J55: 3.6 | K55: 5.0 | L55: 180 | M55: 3.3 | N55: 6.3 | O55: 0.0 | P55: 29.7 | Q55: 29.7 | R55: 274.8 | S55: 694.8 | T55: 0.09 | U55: 0 | V55: 0
A56: 1 | B56: 06/04/2018 04:16:29 | C56: 5 M | D56: 21.6 | E56: 50 | F56: 6.4 | G56: 80 | H56: 1008.4 | I56: 1022.0 | J56: 2.5 | K56: 6.1 | L56: 180 | M56: 3.2 | N56: 6.4 | O56: 0.0 | P56: 29.7 | Q56: 29.7 | R56: 274.8 | S56: 694.8 | T56: 0.00 | U56: 0 | V56: 0
A57: 1 | B57: 06/04/2018 04:21:29 | C57: 5 M | D57: 21.6 | E57: 50 | F57: 6.3 | G57: 80 | H57: 1008.2 | I57: 1021.8 | J57: 3.6 | K57: 5.0 | L57: 23 | M57: 3.1 | N57: 6.3 | O57: 0.0 | P57: 29.7 | Q57: 29.7 | R57: 274.8 | S57: 694.8 | T57: 0.05 | U57: 0 | V57: 0
A58: 1 | B58: 06/04/2018 04:26:29 | C58: 5 M | D58: 21.5 | E58: 50 | F58: 6.4 | G58: 80 | H58: 1008.3 | I58: 1021.9 | J58: 3.6 | K58: 5.0 | L58: 90 | M58: 3.2 | N58: 6.4 | O58: 0.0 | P58: 29.7 | Q58: 29.7 | R58: 274.8 | S58: 694.8 | T58: 0.00 | U58: 0 | V58: 0
A59: 1 | B59: 06/04/2018 04:31:29 | C59: 5 M | D59: 21.5 | E59: 50 | F59: 6.4 | G59: 80 | H59: 1008.2 | I59: 1021.8 | J59: 2.5 | K59: 3.6 | L59: 135 | M59: 3.2 | N59: 6.4 | O59: 0.0 | P59: 29.7 | Q59: 29.7 | R59: 274.8 | S59: 694.8 | T59: 0.09 | U59: 0 | V59: 0
A60: 1 | B60: 06/04/2018 04:36:29 | C60: 5 M | D60: 21.5 | E60: 50 | F60: 6.3 | G60: 80 | H60: 1008.1 | I60: 1021.7 | J60: 1.1 | K60: 2.5 | L60: 135 | M60: 3.1 | N60: 6.3 | O60: 0.0 | P60: 29.7 | Q60: 29.7 | R60: 274.8 | S60: 694.8 | T60: 0.00 | U60: 0 | V60: 0
A61: 1 | B61: 06/04/2018 04:41:29 | C61: 5 M | D61: 21.5 | E61: 50 | F61: 6.1 | G61: 80 | H61: 1008.3 | I61: 1021.9 | J61: 2.5 | K61: 3.6 | L61: 45 | M61: 2.9 | N61: 6.1 | O61: 0.0 | P61: 29.7 | Q61: 29.7 | R61: 274.8 | S61: 694.8 | T61: 0.09 | U61: 0 | V61: 0
A62: 1 | B62: 06/04/2018 04:46:29 | C62: 5 M | D62: 21.5 | E62: 50 | F62: 6.0 | G62: 80 | H62: 1008.0 | I62: 1021.6 | J62: 1.1 | K62: 2.5 | L62: 90 | M62: 2.8 | N62: 6.0 | O62: 0.0 | P62: 29.7 | Q62: 29.7 | R62: 274.8 | S62: 694.8 | T62: 0.00 | U62: 0 | V62: 0
A63: 1 | B63: 06/04/2018 04:51:29 | C63: 5 M | D63: 21.5 | E63: 50 | F63: 5.9 | G63: 80 | H63: 1007.9 | I63: 1021.5 | J63: 1.1 | K63: 2.5 | L63: 90 | M63: 2.7 | N63: 5.9 | O63: 0.0 | P63: 29.7 | Q63: 29.7 | R63: 274.8 | S63: 694.8 | T63: 0.09 | U63: 0 | V63: 0
A64: 1 | B64: 06/04/2018 04:56:29 | C64: 5 M | D64: 21.4 | E64: 50 | F64: 5.8 | G64: 80 | H64: 1008.1 | I64: 1021.7 | J64: 2.5 | K64: 3.6 | L64: 135 | M64: 2.6 | N64: 5.8 | O64: 0.0 | P64: 29.7 | Q64: 29.7 | R64: 274.8 | S64: 694.8 | T64: 0.00 | U64: 0 | V64: 0
A65: 1 | B65: 06/04/2018 05:01:29 | C65: 5 M | D65: 21.3 | E65: 50 | F65: 5.7 | G65: 80 | H65: 1008.2 | I65: 1021.8 | J65: 1.1 | K65: 2.5 | L65: 90 | M65: 2.5 | N65: 5.7 | O65: 0.0 | P65: 29.7 | Q65: 29.7 | R65: 274.8 | S65: 694.8 | T65: 0.09 | U65: 0 | V65: 0
A66: 1 | B66: 06/04/2018 05:06:29 | C66: 5 M | D66: 21.4 | E66: 50 | F66: 5.6 | G66: 80 | H66: 1007.9 | I66: 1021.5 | J66: 0.0 | K66: 1.1 | L66: 90 | M66: 2.4 | N66: 5.6 | O66: 0.0 | P66: 29.7 | Q66: 29.7 | R66: 274.8 | S66: 694.8 | T66: 0.00 | U66: 0 | V66: 0
A67: 1 | B67: 06/04/2018 05:11:29 | C67: 5 M | D67: 21.3 | E67: 50 | F67: 5.5 | G67: 80 | H67: 1007.8 | I67: 1021.4 | J67: 5.0 | K67: 6.1 | L67: 90 | M67: 2.3 | N67: 5.5 | O67: 0.0 | P67: 29.7 | Q67: 29.7 | R67: 274.8 | S67: 694.8 | T67: 0.09 | U67: 0 | V67: 0
A68: 1 | B68: 06/04/2018 05:16:29 | C68: 5 M | D68: 21.3 | E68: 50 | F68: 5.6 | G68: 80 | H68: 1007.7 | I68: 1021.3 | J68: 1.1 | K68: 2.5 | L68: 90 | M68: 2.4 | N68: 5.6 | O68: 0.0 | P68: 29.7 | Q68: 29.7 | R68: 274.8 | S68: 694.8 | T68: 0.00 | U68: 0 | V68: 0
A69: 1 | B69: 06/04/2018 05:21:29 | C69: 5 M | D69: 21.4 | E69: 50 | F69: 5.6 | G69: 80 | H69: 1007.6 | I69: 1021.2 | J69: 1.1 | K69: 2.5 | L69: 45 | M69: 2.4 | N69: 5.6 | O69: 0.0 | P69: 29.7 | Q69: 29.7 | R69: 274.8 | S69: 694.8 | T69: 0.05 | U69: 0 | V69: 0
A70: =IF(B70="","",1) -> 1 | B70: 06/04/2018 05:26:29 | C70: 5 M | D70: 21.3 | E70: 50 | F70: 5.6 | G70: 80 | H70: 1007.6 | I70: 1021.2 | J70: 1.1 | K70: 3.6 | L70: 90 | M70: 2.4 | N70: 5.6 | O70: 0.0 | P70: 29.7 | Q70: 29.7 | R70: 274.8 | S70: 694.8 | T70: 0.00 | U70: 0 | V70: 0
A71: 1 | B71: 06/04/2018 05:31:29 | C71: 5 M | D71: 21.4 | E71: 50 | F71: 5.6 | G71: 80 | H71: 1007.5 | I71: 1021.1 | J71: 0.0 | K71: 1.1 | L71: 90 | M71: 2.4 | N71: 5.6 | O71: 0.0 | P71: 29.7 | Q71: 29.7 | R71: 274.8 | S71: 694.8 | T71: 0.09 | U71: 0 | V71: 0
A72: 1 | B72: 06/04/2018 05:36:29 | C72: 5 M | D72: 21.2 | E72: 50 | F72: 5.4 | G72: 80 | H72: 1007.6 | I72: 1021.2 | J72: 1.1 | K72: 2.5 | L72: 45 | M72: 2.2 | N72: 5.4 | O72: 0.0 | P72: 29.7 | Q72: 29.7 | R72: 274.8 | S72: 694.8 | T72: 0.00 | U72: 0 | V72: 0
A73: 1 | B73: 06/04/2018 05:41:29 | C73: 5 M | D73: 21.2 | E73: 50 | F73: 5.4 | G73: 80 | H73: 1007.4 | I73: 1021.0 | J73: 0.0 | K73: 1.1 | L73: 90 | M73: 2.2 | N73: 5.4 | O73: 0.0 | P73: 29.7 | Q73: 29.7 | R73: 274.8 | S73: 694.8 | T73: 0.05 | U73: 0 | V73: 0
A74: 1 | B74: 06/04/2018 05:46:29 | C74: 5 M | D74: 21.2 | E74: 50 | F74: 5.3 | G74: 80 | H74: 1007.6 | I74: 1021.2 | J74: 1.1 | K74: 2.5 | L74: 270 | M74: 2.1 | N74: 5.3 | O74: 0.0 | P74: 29.7 | Q74: 29.7 | R74: 274.8 | S74: 694.8 | T74: 0.00 | U74: 0 | V74: 0
A75: 1 | B75: 06/04/2018 05:51:29 | C75: 5 M | D75: 21.2 | E75: 50 | F75: 5.3 | G75: 80 | H75: 1007.3 | I75: 1020.9 | J75: 1.1 | K75: 2.5 | L75: 90 | M75: 2.1 | N75: 5.3 | O75: 0.0 | P75: 29.7 | Q75: 29.7 | R75: 274.8 | S75: 694.8 | T75: 0.09 | U75: 0 | V75: 0
A76: 1 | B76: 06/04/2018 05:56:29 | C76: 5 M | D76: 21.2 | E76: 50 | F76: 5.3 | G76: 80 | H76: 1007.5 | I76: 1021.1 | J76: 1.1 | K76: 2.5 | L76: 90 | M76: 2.1 | N76: 5.3 | O76: 0.0 | P76: 29.7 | Q76: 29.7 | R76: 274.8 | S76: 694.8 | T76: 0.00 | U76: 0 | V76: 0
A77: 1 | B77: 06/04/2018 06:01:29 | C77: 5 M | D77: 21.2 | E77: 50 | F77: 5.2 | G77: 80 | H77: 1007.2 | I77: 1020.8 | J77: 1.1 | K77: 2.5 | L77: 90 | M77: 2.0 | N77: 5.2 | O77: 0.0 | P77: 29.7 | Q77: 29.7 | R77: 274.8 | S77: 694.8 | T77: 0.09 | U77: 0 | V77: 0
A78: 1 | B78: 06/04/2018 06:06:29 | C78: 5 M | D78: 21.2 | E78: 50 | F78: 5.2 | G78: 80 | H78: 1007.0 | I78: 1020.6 | J78: 2.5 | K78: 3.6 | L78: 135 | M78: 2.0 | N78: 5.2 | O78: 0.0 | P78: 29.7 | Q78: 29.7 | R78: 274.8 | S78: 694.8 | T78: 0.00 | U78: 0 | V78: 0
A79: 1 | B79: 06/04/2018 06:11:29 | C79: 5 M | D79: 21.2 | E79: 50 | F79: 5.4 | G79: 80 | H79: 1007.0 | I79: 1020.6 | J79: 2.5 | K79: 3.6 | L79: 135 | M79: 2.2 | N79: 5.4 | O79: 0.0 | P79: 29.7 | Q79: 29.7 | R79: 274.8 | S79: 694.8 | T79: 0.09 | U79: 0 | V79: 0
A80: 1 | B80: 06/04/2018 06:16:29 | C80: 5 M | D80: 21.2 | E80: 50 | F80: 5.4 | G80: 81 | H80: 1006.9 | I80: 1020.5 | J80: 1.1 | K80: 2.5 | L80: 90 | M80: 2.4 | N80: 5.4 | O80: 0.0 | P80: 29.7 | Q80: 29.7 | R80: 274.8 | S80: 694.8 | T80: 0.00 | U80: 0 | V80: 0
A81: 1 | B81: 06/04/2018 06:21:29 | C81: 5 M | D81: 21.1 | E81: 50 | F81: 5.5 | G81: 80 | H81: 1006.8 | I81: 1020.4 | J81: 3.6 | K81: 5.0 | L81: 135 | M81: 2.3 | N81: 5.5 | O81: 0.0 | P81: 29.7 | Q81: 29.7 | R81: 274.8 | S81: 694.8 | T81: 0.09 | U81: 0 | V81: 0
A82: 1 | B82: 06/04/2018 06:26:29 | C82: 5 M | D82: 21.1 | E82: 50 | F82: 5.6 | G82: 80 | H82: 1006.8 | I82: 1020.4 | J82: 1.1 | K82: 3.6 | L82: 68 | M82: 2.4 | N82: 5.6 | O82: 0.0 | P82: 29.7 | Q82: 29.7 | R82: 274.8 | S82: 694.8 | T82: 0.00 | U82: 0 | V82: 0
A83: 1 | B83: 06/04/2018 06:31:29 | C83: 5 M | D83: 21.0 | E83: 50 | F83: 5.6 | G83: 80 | H83: 1006.7 | I83: 1020.3 | J83: 5.0 | K83: 7.2 | L83: 90 | M83: 2.4 | N83: 5.6 | O83: 0.0 | P83: 29.7 | Q83: 29.7 | R83: 274.8 | S83: 694.8 | T83: 0.05 | U83: 0 | V83: 0
A84: 1 | B84: 06/04/2018 06:36:29 | C84: 5 M | D84: 21.0 | E84: 50 | F84: 5.7 | G84: 80 | H84: 1006.7 | I84: 1020.3 | J84: 1.1 | K84: 3.6 | L84: 45 | M84: 2.5 | N84: 5.7 | O84: 0.0 | P84: 29.7 | Q84: 29.7 | R84: 274.8 | S84: 694.8 | T84: 0.00 | U84: 0 | V84: 0
A85: 1 | B85: 06/04/2018 06:41:29 | C85: 5 M | D85: 21.0 | E85: 50 | F85: 5.7 | G85: 80 | H85: 1006.6 | I85: 1020.2 | J85: 3.6 | K85: 5.0 | L85: 45 | M85: 2.5 | N85: 5.7 | O85: 0.0 | P85: 29.7 | Q85: 29.7 | R85: 274.8 | S85: 694.8 | T85: 0.05 | U85: 0 | V85: 0
A86: 1 | B86: 06/04/2018 06:46:29 | C86: 5 M | D86: 21.0 | E86: 50 | F86: 5.7 | G86: 80 | H86: 1006.5 | I86: 1020.1 | J86: 1.1 | K86: 2.5 | L86: 90 | M86: 2.5 | N86: 5.7 | O86: 0.0 | P86: 29.7 | Q86: 29.7 | R86: 274.8 | S86: 694.8 | T86: 0.00 | U86: 0 | V86: 0
A87: 1 | B87: 06/04/2018 06:51:29 | C87: 5 M | D87: 21.0 | E87: 50 | F87: 5.7 | G87: 80 | H87: 1006.4 | I87: 1020.0 | J87: 1.1 | K87: 2.5 | L87: 90 | M87: 2.5 | N87: 5.7 | O87: 0.0 | P87: 29.7 | Q87: 29.7 | R87: 274.8 | S87: 694.8 | T87: 0.09 | U87: 0 | V87: 0
A88: 1 | B88: 06/04/2018 06:56:29 | C88: 5 M | D88: 21.0 | E88: 50 | F88: 5.7 | G88: 80 | H88: 1006.4 | I88: 1020.0 | J88: 2.5 | K88: 3.6 | L88: 135 | M88: 2.5 | N88: 5.7 | O88: 0.0 | P88: 29.7 | Q88: 29.7 | R88: 274.8 | S88: 694.8 | T88: 0.00 | U88: 0 | V88: 0
A89: 1 | B89: 06/04/2018 07:01:29 | C89: 5 M | D89: 21.0 | E89: 50 | F89: 5.7 | G89: 80 | H89: 1006.5 | I89: 1020.1 | J89: 0.0 | K89: 1.1 | L89: 90 | M89: 2.5 | N89: 5.7 | O89: 0.0 | P89: 29.7 | Q89: 29.7 | R89: 274.8 | S89: 694.8 | T89: 0.05 | U89: 0 | V89: 0
A90: 1 | B90: 06/04/2018 07:06:29 | C90: 5 M | D90: 21.0 | E90: 50 | F90: 5.6 | G90: 80 | H90: 1006.4 | I90: 1020.0 | J90: 1.1 | K90: 2.5 | L90: 180 | M90: 2.4 | N90: 5.6 | O90: 0.0 | P90: 29.7 | Q90: 29.7 | R90: 274.8 | S90: 694.8 | T90: 0.00 | U90: 0 | V90: 0
A91: 1 | B91: 06/04/2018 07:11:29 | C91: 5 M | D91: 21.0 | E91: 50 | F91: 5.6 | G91: 80 | H91: 1006.4 | I91: 1020.0 | J91: 0.0 | K91: 1.1 | L91: 90 | M91: 2.4 | N91: 5.6 | O91: 0.0 | P91: 29.7 | Q91: 29.7 | R91: 274.8 | S91: 694.8 | T91: 0.00 | U91: 0 | V91: 0
A92: 1 | B92: 06/04/2018 07:16:29 | C92: 5 M | D92: 21.0 | E92: 50 | F92: 5.5 | G92: 80 | H92: 1006.3 | I92: 1019.9 | J92: 1.1 | K92: 2.5 | L92: 90 | M92: 2.3 | N92: 5.5 | O92: 0.0 | P92: 29.7 | Q92: 29.7 | R92: 274.8 | S92: 694.8 | T92: 0.09 | U92: 0 | V92: 0
A93: 1 | B93: 06/04/2018 07:21:29 | C93: 5 M | D93: 20.9 | E93: 51 | F93: 5.4 | G93: 80 | H93: 1006.3 | I93: 1019.9 | J93: 1.1 | K93: 3.6 | L93: 90 | M93: 2.2 | N93: 5.4 | O93: 0.0 | P93: 29.7 | Q93: 29.7 | R93: 274.8 | S93: 694.8 | T93: 0.24 | U93: 0 | V93: 0
A94: 1 | B94: 06/04/2018 07:26:29 | C94: 5 M | D94: 20.9 | E94: 51 | F94: 5.5 | G94: 80 | H94: 1006.1 | I94: 1019.7 | J94: 0.0 | K94: 1.1 | L94: 90 | M94: 2.3 | N94: 5.5 | O94: 0.0 | P94: 29.7 | Q94: 29.7 | R94: 274.8 | S94: 694.8 | T94: 0.47 | U94: 0 | V94: 0
A95: 1 | B95: 06/04/2018 07:31:29 | C95: 5 M | D95: 20.9 | E95: 51 | F95: 5.5 | G95: 80 | H95: 1006.2 | I95: 1019.8 | J95: 2.5 | K95: 3.6 | L95: 90 | M95: 2.3 | N95: 5.5 | O95: 0.0 | P95: 29.7 | Q95: 29.7 | R95: 274.8 | S95: 694.8 | T95: 0.81 | U95: 0 | V95: 0
A96: 1 | B96: 06/04/2018 07:36:29 | C96: 5 M | D96: 20.9 | E96: 51 | F96: 5.4 | G96: 80 | H96: 1006.1 | I96: 1019.7 | J96: 1.1 | K96: 2.5 | L96: 90 | M96: 2.2 | N96: 5.4 | O96: 0.0 | P96: 29.7 | Q96: 29.7 | R96: 274.8 | S96: 694.8 | T96: 1.18 | U96: 0 | V96: 0
A97: 1 | B97: 06/04/2018 07:41:29 | C97: 5 M | D97: 20.9 | E97: 51 | F97: 5.5 | G97: 80 | H97: 1006.0 | I97: 1019.6 | J97: 2.5 | K97: 5.0 | L97: 90 | M97: 2.3 | N97: 5.5 | O97: 0.0 | P97: 29.7 | Q97: 29.7 | R97: 274.8 | S97: 694.8 | T97: 2.04 | U97: 0 | V97: 0
A98: 1 | B98: 06/04/2018 07:46:29 | C98: 5 M | D98: 20.9 | E98: 51 | F98: 5.5 | G98: 80 | H98: 1005.9 | I98: 1019.5 | J98: 2.5 | K98: 5.0 | L98: 45 | M98: 2.3 | N98: 5.5 | O98: 0.0 | P98: 29.7 | Q98: 29.7 | R98: 274.8 | S98: 694.8 | T98: 3.55 | U98: 0 | V98: 0
A99: 1 | B99: 06/04/2018 07:51:29 | C99: 5 M | D99: 20.9 | E99: 51 | F99: 5.6 | G99: 80 | H99: 1006.0 | I99: 1019.6 | J99: 5.0 | K99: 7.2 | L99: 45 | M99: 2.4 | N99: 5.6 | O99: 0.0 | P99: 29.7 | Q99: 29.7 | R99: 274.8 | S99: 694.8 | T99: 5.11 | U99: 0 | V99: 0
A100: 1 | B100: 06/04/2018 07:56:29 | C100: 5 M | D100: 20.9 | E100: 51 | F100: 5.8 | G100: 80 | H100: 1006.0 | I100: 1019.6 | J100: 2.5 | K100: 5.0 | L100: 135 | M100: 2.6 | N100: 5.8 | O100: 0.0 | P100: 29.7 | Q100: 29.7 | R100: 274.8 | S100: 694.8 | T100: 7.25 | U100: 0 | V100: 0
A101: 1 | B101: 06/04/2018 08:01:29 | C101: 5 M | D101: 20.9 | E101: 51 | F101: 5.9 | G101: 80 | H101: 1005.8 | I101: 1019.4 | J101: 3.6 | K101: 5.0 | L101: 90 | M101: 2.7 | N101: 5.9 | O101: 0.0 | P101: 29.7 | Q101: 29.7 | R101: 274.8 | S101: 694.8 | T101: 10.36 | U101: 0 | V101: 0
A102: 1 | B102: 06/04/2018 08:06:29 | C102: 5 M | D102: 20.8 | E102: 51 | F102: 6.0 | G102: 80 | H102: 1005.9 | I102: 1019.5 | J102: 3.6 | K102: 5.0 | L102: 90 | M102: 2.8 | N102: 6.0 | O102: 0.0 | P102: 29.7 | Q102: 29.7 | R102: 274.8 | S102: 694.8 | T102: 14.11 | U102: 99 | V102: 1
A103: 1 | B103: 06/04/2018 08:11:29 | C103: 5 M | D103: 20.8 | E103: 51 | F103: 6.0 | G103: 80 | H103: 1005.7 | I103: 1019.3 | J103: 1.1 | K103: 2.5 | L103: 68 | M103: 2.8 | N103: 6.0 | O103: 0.0 | P103: 29.7 | Q103: 29.7 | R103: 274.8 | S103: 694.8 | T103: 17.72 | U103: 99 | V103: 1
A104: 1 | B104: 06/04/2018 08:16:29 | C104: 5 M | D104: 20.8 | E104: 51 | F104: 6.2 | G104: 80 | H104: 1005.7 | I104: 1019.3 | J104: 1.1 | K104: 2.5 | L104: 135 | M104: 3.0 | N104: 6.2 | O104: 0.0 | P104: 29.7 | Q104: 29.7 | R104: 274.8 | S104: 694.8 | T104: 22.38 | U104: 99 | V104: 1
A105: 1 | B105: 06/04/2018 08:21:29 | C105: 5 M | D105: 20.8 | E105: 51 | F105: 6.3 | G105: 79 | H105: 1005.7 | I105: 1019.3 | J105: 3.6 | K105: 6.1 | L105: 90 | M105: 2.9 | N105: 6.3 | O105: 0.0 | P105: 29.7 | Q105: 29.7 | R105: 274.8 | S105: 694.8 | T105: 27.34 | U105: 99 | V105: 1
A106: 1 | B106: 06/04/2018 08:26:29 | C106: 5 M | D106: 20.8 | E106: 51 | F106: 6.4 | G106: 79 | H106: 1005.7 | I106: 1019.3 | J106: 2.5 | K106: 3.6 | L106: 135 | M106: 3.0 | N106: 6.4 | O106: 0.0 | P106: 29.7 | Q106: 29.7 | R106: 274.8 | S106: 694.8 | T106: 33.74 | U106: 99 | V106: 1
A107: 1 | B107: 06/04/2018 08:31:29 | C107: 5 M | D107: 20.8 | E107: 51 | F107: 6.6 | G107: 79 | H107: 1005.8 | I107: 1019.4 | J107: 2.5 | K107: 5.0 | L107: 180 | M107: 3.2 | N107: 6.6 | O107: 0.0 | P107: 29.7 | Q107: 29.7 | R107: 274.8 | S107: 694.8 | T107: 36.55 | U107: 99 | V107: 1
A108: 1 | B108: 06/04/2018 08:36:29 | C108: 5 M | D108: 20.8 | E108: 51 | F108: 6.8 | G108: 78 | H108: 1005.7 | I108: 1019.3 | J108: 2.5 | K108: 6.1 | L108: 90 | M108: 3.2 | N108: 6.8 | O108: 0.0 | P108: 29.7 | Q108: 29.7 | R108: 274.8 | S108: 694.8 | T108: 43.44 | U108: 99 | V108: 1
A109: 1 | B109: 06/04/2018 08:41:29 | C109: 5 M | D109: 20.8 | E109: 51 | F109: 7.0 | G109: 78 | H109: 1005.6 | I109: 1019.2 | J109: 3.6 | K109: 5.0 | L109: 90 | M109: 3.4 | N109: 7.0 | O109: 0.0 | P109: 29.7 | Q109: 29.7 | R109: 274.8 | S109: 694.8 | T109: 46.85 | U109: 99 | V109: 1
A110: 1 | B110: 06/04/2018 08:46:29 | C110: 5 M | D110: 20.8 | E110: 50 | F110: 7.1 | G110: 78 | H110: 1005.5 | I110: 1019.1 | J110: 5.0 | K110: 7.2 | L110: 135 | M110: 3.5 | N110: 7.1 | O110: 0.0 | P110: 29.7 | Q110: 29.7 | R110: 274.8 | S110: 694.8 | T110: 49.01 | U110: 99 | V110: 1
A111: 1 | B111: 06/04/2018 08:51:29 | C111: 5 M | D111: 20.8 | E111: 50 | F111: 7.3 | G111: 76 | H111: 1005.6 | I111: 1019.2 | J111: 9.7 | K111: 15.8 | L111: 180 | M111: 3.4 | N111: 4.4 | O111: 0.0 | P111: 29.7 | Q111: 29.7 | R111: 274.8 | S111: 694.8 | T111: 51.97 | U111: 99 | V111: 1
A112: 1 | B112: 06/04/2018 08:56:29 | C112: 5 M | D112: 20.7 | E112: 51 | F112: 7.4 | G112: 76 | H112: 1005.9 | I112: 1019.5 | J112: 5.0 | K112: 6.1 | L112: 90 | M112: 3.5 | N112: 7.4 | O112: 0.0 | P112: 29.7 | Q112: 29.7 | R112: 274.8 | S112: 694.8 | T112: 58.52 | U112: 99 | V112: 1
A113: 1 | B113: 06/04/2018 09:01:29 | C113: 5 M | D113: 20.7 | E113: 50 | F113: 7.5 | G113: 71 | H113: 1005.8 | I113: 1019.4 | J113: 3.6 | K113: 5.0 | L113: 180 | M113: 2.6 | N113: 7.5 | O113: 0.0 | P113: 29.7 | Q113: 29.7 | R113: 274.8 | S113: 694.8 | T113: 63.44 | U113: 99 | V113: 1
A114: 1 | B114: 06/04/2018 09:06:29 | C114: 5 M | D114: 20.7 | E114: 50 | F114: 7.6 | G114: 70 | H114: 1006.2 | I114: 1019.8 | J114: 7.2 | K114: 8.6 | L114: 90 | M114: 2.5 | N114: 6.4 | O114: 0.0 | P114: 29.7 | Q114: 29.7 | R114: 274.8 | S114: 694.8 | T114: 68.60 | U114: 99 | V114: 1
A115: 1 | B115: 06/04/2018 09:11:29 | C115: 5 M | D115: 20.7 | E115: 50 | F115: 7.7 | G115: 70 | H115: 1006.3 | I115: 1019.9 | J115: 6.1 | K115: 9.7 | L115: 180 | M115: 2.6 | N115: 7.7 | O115: 0.0 | P115: 29.7 | Q115: 29.7 | R115: 274.8 | S115: 694.8 | T115: 72.57 | U115: 99 | V115: 1
A116: 1 | B116: 06/04/2018 09:16:29 | C116: 5 M | D116: 20.7 | E116: 50 | F116: 7.9 | G116: 70 | H116: 1006.4 | I116: 1020.0 | J116: 3.6 | K116: 5.0 | L116: 90 | M116: 2.8 | N116: 7.9 | O116: 0.0 | P116: 29.7 | Q116: 29.7 | R116: 274.8 | S116: 694.8 | T116: 74.58 | U116: 540 | V116: 2
A117: 1 | B117: 06/04/2018 09:21:29 | C117: 5 M | D117: 20.7 | E117: 50 | F117: 7.9 | G117: 70 | H117: 1006.3 | I117: 1019.9 | J117: 5.0 | K117: 7.2 | L117: 45 | M117: 2.8 | N117: 7.9 | O117: 0.0 | P117: 29.7 | Q117: 29.7 | R117: 274.8 | S117: 694.8 | T117: 76.44 | U117: 540 | V117: 2
A118: 1 | B118: 06/04/2018 09:26:29 | C118: 5 M | D118: 20.7 | E118: 50 | F118: 8.0 | G118: 70 | H118: 1006.3 | I118: 1019.9 | J118: 8.6 | K118: 11.2 | L118: 180 | M118: 2.9 | N118: 5.8 | O118: 0.0 | P118: 29.7 | Q118: 29.7 | R118: 274.8 | S118: 694.8 | T118: 89.33 | U118: 540 | V118: 2
A119: 1 | B119: 06/04/2018 09:31:29 | C119: 5 M | D119: 20.7 | E119: 50 | F119: 8.1 | G119: 70 | H119: 1006.3 | I119: 1019.9 | J119: 1.1 | K119: 2.5 | L119: 315 | M119: 3.0 | N119: 8.1 | O119: 0.0 | P119: 29.7 | Q119: 29.7 | R119: 274.8 | S119: 694.8 | T119: 100.04 | U119: 540 | V119: 2
A120: 1 | B120: 06/04/2018 09:36:29 | C120: 5 M | D120: 20.7 | E120: 51 | F120: 8.3 | G120: 70 | H120: 1006.1 | I120: 1019.7 | J120: 5.0 | K120: 8.6 | L120: 68 | M120: 3.2 | N120: 8.3 | O120: 0.0 | P120: 29.7 | Q120: 29.7 | R120: 274.8 | S120: 694.8 | T120: 98.88 | U120: 540 | V120: 2
A121: 1 | B121: 06/04/2018 09:41:29 | C121: 5 M | D121: 20.6 | E121: 51 | F121: 8.4 | G121: 69 | H121: 1006.2 | I121: 1019.8 | J121: 3.6 | K121: 5.0 | L121: 90 | M121: 3.1 | N121: 8.4 | O121: 0.0 | P121: 29.7 | Q121: 29.7 | R121: 274.8 | S121: 694.8 | T121: 88.56 | U121: 540 | V121: 2
A122: 1 | B122: 06/04/2018 09:46:29 | C122: 5 M | D122: 20.8 | E122: 51 | F122: 8.4 | G122: 69 | H122: 1006.2 | I122: 1019.8 | J122: 5.0 | K122: 6.1 | L122: 135 | M122: 3.1 | N122: 8.4 | O122: 0.0 | P122: 29.7 | Q122: 29.7 | R122: 274.8 | S122: 694.8 | T122: 92.46 | U122: 540 | V122: 2
A123: 1 | B123: 06/04/2018 09:51:29 | C123: 5 M | D123: 20.9 | E123: 51 | F123: 8.5 | G123: 69 | H123: 1006.5 | I123: 1020.1 | J123: 7.2 | K123: 9.7 | L123: 180 | M123: 3.1 | N123: 7.3 | O123: 0.0 | P123: 29.7 | Q123: 29.7 | R123: 274.8 | S123: 694.8 | T123: 101.71 | U123: 540 | V123: 2
A124: 1 | B124: 06/04/2018 09:56:29 | C124: 5 M | D124: 21.0 | E124: 50 | F124: 8.5 | G124: 68 | H124: 1006.2 | I124: 1019.8 | J124: 3.6 | K124: 6.1 | L124: 90 | M124: 2.9 | N124: 8.5 | O124: 0.0 | P124: 29.7 | Q124: 29.7 | R124: 274.8 | S124: 694.8 | T124: 108.55 | U124: 540 | V124: 2
A125: 1 | B125: 06/04/2018 10:01:29 | C125: 5 M | D125: 20.9 | E125: 51 | F125: 8.8 | G125: 68 | H125: 1006.3 | I125: 1019.9 | J125: 5.0 | K125: 7.2 | L125: 135 | M125: 3.2 | N125: 8.8 | O125: 0.0 | P125: 29.7 | Q125: 29.7 | R125: 274.8 | S125: 694.8 | T125: 119.73 | U125: 540 | V125: 2
A126: 1 | B126: 06/04/2018 10:06:29 | C126: 5 M | D126: 20.9 | E126: 51 | F126: 8.9 | G126: 67 | H126: 1006.2 | I126: 1019.8 | J126: 2.5 | K126: 5.0 | L126: 135 | M126: 3.1 | N126: 8.9 | O126: 0.0 | P126: 29.7 | Q126: 29.7 | R126: 274.8 | S126: 694.8 | T126: 108.78 | U126: 540 | V126: 2
A127: 1 | B127: 06/04/2018 10:11:29 | C127: 5 M | D127: 20.9 | E127: 51 | F127: 8.9 | G127: 67 | H127: 1006.0 | I127: 1019.6 | J127: 5.0 | K127: 9.7 | L127: 23 | M127: 3.1 | N127: 8.9 | O127: 0.0 | P127: 29.7 | Q127: 29.7 | R127: 274.8 | S127: 694.8 | T127: 107.58 | U127: 540 | V127: 2
A128: 1 | B128: 06/04/2018 10:16:30 | C128: 5 M | D128: 20.9 | E128: 51 | F128: 9.0 | G128: 67 | H128: 1006.2 | I128: 1019.8 | J128: 5.0 | K128: 7.2 | L128: 135 | M128: 3.2 | N128: 9.0 | O128: 0.0 | P128: 29.7 | Q128: 29.7 | R128: 274.8 | S128: 694.8 | T128: 96.95 | U128: 540 | V128: 2
A129: 1 | B129: 06/04/2018 10:21:30 | C129: 5 M | D129: 20.9 | E129: 51 | F129: 9.2 | G129: 67 | H129: 1006.0 | I129: 1019.6 | J129: 1.1 | K129: 2.5 | L129: 45 | M129: 3.4 | N129: 9.2 | O129: 0.0 | P129: 29.7 | Q129: 29.7 | R129: 274.8 | S129: 694.8 | T129: 160.68 | U129: 1000 | V129: 3
A130: 1 | B130: 06/04/2018 10:26:30 | C130: 5 M | D130: 20.9 | E130: 51 | F130: 9.7 | G130: 67 | H130: 1005.9 | I130: 1019.5 | J130: 1.1 | K130: 2.5 | L130: 135 | M130: 3.9 | N130: 9.7 | O130: 0.0 | P130: 29.7 | Q130: 29.7 | R130: 274.8 | S130: 694.8 | T130: 159.33 | U130: 1000 | V130: 3
A131: 1 | B131: 06/04/2018 10:31:30 | C131: 5 M | D131: 20.9 | E131: 51 | F131: 10.2 | G131: 66 | H131: 1006.0 | I131: 1019.6 | J131: 5.0 | K131: 7.2 | L131: 180 | M131: 4.1 | N131: 10.2 | O131: 0.0 | P131: 29.7 | Q131: 29.7 | R131: 274.8 | S131: 694.8 | T131: 271.64 | U131: 1000 | V131: 3
A132: 1 | B132: 06/04/2018 10:36:30 | C132: 5 M | D132: 20.8 | E132: 51 | F132: 10.8 | G132: 63 | H132: 1005.8 | I132: 1019.4 | J132: 3.6 | K132: 6.1 | L132: 90 | M132: 4.1 | N132: 10.8 | O132: 0.0 | P132: 29.7 | Q132: 29.7 | R132: 274.8 | S132: 694.8 | T132: 299.64 | U132: 1400 | V132: 4
A133: 1 | B133: 06/04/2018 10:41:30 | C133: 5 M | D133: 20.8 | E133: 51 | F133: 11.1 | G133: 62 | H133: 1005.8 | I133: 1019.4 | J133: 6.1 | K133: 8.6 | L133: 135 | M133: 4.1 | N133: 11.1 | O133: 0.0 | P133: 29.7 | Q133: 29.7 | R133: 274.8 | S133: 694.8 | T133: 324.55 | U133: 1400 | V133: 4
A134: =IF(B134="","",1) -> 1 | B134: 06/04/2018 10:46:30 | C134: 5 M | D134: 20.8 | E134: 51 | F134: 11.4 | G134: 62 | H134: 1005.8 | I134: 1019.4 | J134: 7.2 | K134: 12.2 | L134: 135 | M134: 4.4 | N134: 10.3 | O134: 0.0 | P134: 29.7 | Q134: 29.7 | R134: 274.8 | S134: 694.8 | T134: 371.92 | U134: 1400 | V134: 4
A135: 1 | B135: 06/04/2018 10:51:30 | C135: 5 M | D135: 20.8 | E135: 51 | F135: 11.5 | G135: 61 | H135: 1005.9 | I135: 1019.5 | J135: 3.6 | K135: 6.1 | L135: 45 | M135: 4.3 | N135: 11.5 | O135: 0.0 | P135: 29.7 | Q135: 29.7 | R135: 274.8 | S135: 694.8 | T135: 379.46 | U135: 1400 | V135: 4
A136: 1 | B136: 06/04/2018 10:56:30 | C136: 5 M | D136: 20.8 | E136: 51 | F136: 12.0 | G136: 62 | H136: 1005.7 | I136: 1019.3 | J136: 3.6 | K136: 7.2 | L136: 180 | M136: 5.0 | N136: 12.0 | O136: 0.0 | P136: 29.7 | Q136: 29.7 | R136: 274.8 | S136: 694.8 | T136: 394.51 | U136: 1400 | V136: 4
A137: 1 | B137: 06/04/2018 11:01:30 | C137: 5 M | D137: 20.8 | E137: 51 | F137: 12.5 | G137: 59 | H137: 1005.8 | I137: 1019.4 | J137: 7.2 | K137: 11.2 | L137: 90 | M137: 4.7 | N137: 11.5 | O137: 0.0 | P137: 29.7 | Q137: 29.7 | R137: 274.8 | S137: 694.8 | T137: 424.32 | U137: 1400 | V137: 4
A138: 1 | B138: 06/04/2018 11:06:30 | C138: 5 M | D138: 20.8 | E138: 51 | F138: 12.9 | G138: 57 | H138: 1005.8 | I138: 1019.4 | J138: 5.0 | K138: 6.1 | L138: 158 | M138: 4.6 | N138: 12.9 | O138: 0.0 | P138: 29.7 | Q138: 29.7 | R138: 274.8 | S138: 694.8 | T138: 449.39 | U138: 1400 | V138: 4
A139: 1 | B139: 06/04/2018 11:11:30 | C139: 5 M | D139: 20.8 | E139: 51 | F139: 13.0 | G139: 56 | H139: 1005.7 | I139: 1019.3 | J139: 7.2 | K139: 14.8 | L139: 135 | M139: 4.4 | N139: 12.0 | O139: 0.0 | P139: 29.7 | Q139: 29.7 | R139: 274.8 | S139: 694.8 | T139: 433.72 | U139: 1400 | V139: 4
A140: 1 | B140: 06/04/2018 11:16:30 | C140: 5 M | D140: 20.8 | E140: 51 | F140: 13.0 | G140: 55 | H140: 1005.7 | I140: 1019.3 | J140: 7.2 | K140: 11.2 | L140: 135 | M140: 4.2 | N140: 12.0 | O140: 0.0 | P140: 29.7 | Q140: 29.7 | R140: 274.8 | S140: 694.8 | T140: 478.78 | U140: 1400 | V140: 4
A141: 1 | B141: 06/04/2018 11:21:30 | C141: 5 M | D141: 20.8 | E141: 51 | F141: 13.0 | G141: 56 | H141: 1005.6 | I141: 1019.2 | J141: 9.7 | K141: 12.2 | L141: 225 | M141: 4.4 | N141: 10.7 | O141: 0.0 | P141: 29.7 | Q141: 29.7 | R141: 274.8 | S141: 694.8 | T141: 382.87 | U141: 1400 | V141: 4
A142: 1 | B142: 06/04/2018 11:26:30 | C142: 5 M | D142: 20.8 | E142: 50 | F142: 13.4 | G142: 56 | H142: 1005.6 | I142: 1019.2 | J142: 6.1 | K142: 8.6 | L142: 135 | M142: 4.8 | N142: 13.4 | O142: 0.0 | P142: 29.7 | Q142: 29.7 | R142: 274.8 | S142: 694.8 | T142: 495.14 | U142: 1843 | V142: 5
A143: 1 | B143: 06/04/2018 11:31:30 | C143: 5 M | D143: 20.8 | E143: 50 | F143: 13.4 | G143: 54 | H143: 1005.4 | I143: 1019.0 | J143: 7.2 | K143: 9.7 | L143: 180 | M143: 4.3 | N143: 12.4 | O143: 0.0 | P143: 29.7 | Q143: 29.7 | R143: 274.8 | S143: 694.8 | T143: 431.48 | U143: 1400 | V143: 4
A144: 1 | B144: 06/04/2018 11:36:30 | C144: 5 M | D144: 20.8 | E144: 50 | F144: 13.9 | G144: 56 | H144: 1005.4 | I144: 1019.0 | J144: 6.1 | K144: 7.2 | L144: 135 | M144: 5.3 | N144: 13.9 | O144: 0.0 | P144: 29.7 | Q144: 29.7 | R144: 274.8 | S144: 694.8 | T144: 451.98 | U144: 1400 | V144: 4
A145: 1 | B145: 06/04/2018 11:41:30 | C145: 5 M | D145: 20.8 | E145: 50 | F145: 14.2 | G145: 54 | H145: 1005.6 | I145: 1019.2 | J145: 8.6 | K145: 12.2 | L145: 135 | M145: 5.0 | N145: 12.6 | O145: 0.0 | P145: 29.7 | Q145: 29.7 | R145: 274.8 | S145: 694.8 | T145: 246.73 | U145: 1400 | V145: 4
A146: 1 | B146: 06/04/2018 11:46:30 | C146: 5 M | D146: 20.8 | E146: 50 | F146: 14.2 | G146: 54 | H146: 1005.6 | I146: 1019.2 | J146: 11.2 | K146: 14.8 | L146: 158 | M146: 5.0 | N146: 11.5 | O146: 0.0 | P146: 29.7 | Q146: 29.7 | R146: 274.8 | S146: 694.8 | T146: 275.97 | U146: 1400 | V146: 4
A147: 1 | B147: 06/04/2018 11:51:30 | C147: 5 M | D147: 20.8 | E147: 50 | F147: 14.3 | G147: 54 | H147: 1005.6 | I147: 1019.2 | J147: 12.2 | K147: 15.8 | L147: 180 | M147: 5.1 | N147: 11.2 | O147: 0.0 | P147: 29.7 | Q147: 29.7 | R147: 274.8 | S147: 694.8 | T147: 598.82 | U147: 1843 | V147: 5
A148: 1 | B148: 06/04/2018 11:56:30 | C148: 5 M | D148: 20.9 | E148: 50 | F148: 15.1 | G148: 54 | H148: 1005.6 | I148: 1019.2 | J148: 5.0 | K148: 8.6 | L148: 180 | M148: 5.9 | N148: 15.1 | O148: 0.0 | P148: 29.7 | Q148: 29.7 | R148: 274.8 | S148: 694.8 | T148: 499.04 | U148: 1843 | V148: 5
A149: 1 | B149: 06/04/2018 12:01:30 | C149: 5 M | D149: 21.0 | E149: 49 | F149: 15.5 | G149: 53 | H149: 1005.5 | I149: 1019.1 | J149: 9.7 | K149: 12.2 | L149: 135 | M149: 6.0 | N149: 13.5 | O149: 0.0 | P149: 29.7 | Q149: 29.7 | R149: 274.8 | S149: 694.8 | T149: 560.57 | U149: 1843 | V149: 5
A150: 1 | B150: 06/04/2018 12:06:30 | C150: 5 M | D150: 21.0 | E150: 49 | F150: 15.5 | G150: 52 | H150: 1005.5 | I150: 1019.1 | J150: 18.4 | K150: 23.4 | L150: 180 | M150: 5.7 | N150: 10.9 | O150: 0.0 | P150: 29.7 | Q150: 29.7 | R150: 274.8 | S150: 694.8 | T150: 537.64 | U150: 1843 | V150: 5
A151: 1 | B151: 06/04/2018 12:11:30 | C151: 5 M | D151: 21.1 | E151: 49 | F151: 15.2 | G151: 53 | H151: 1005.4 | I151: 1019.0 | J151: 11.2 | K151: 15.8 | L151: 180 | M151: 5.7 | N151: 12.6 | O151: 0.0 | P151: 29.7 | Q151: 29.7 | R151: 274.8 | S151: 694.8 | T151: 476.26 | U151: 1843 | V151: 5
A152: 1 | B152: 06/04/2018 12:16:30 | C152: 5 M | D152: 21.0 | E152: 49 | F152: 15.4 | G152: 53 | H152: 1005.3 | I152: 1018.9 | J152: 12.2 | K152: 14.8 | L152: 180 | M152: 5.9 | N152: 12.5 | O152: 0.0 | P152: 29.7 | Q152: 29.7 | R152: 274.8 | S152: 694.8 | T152: 470.89 | U152: 1843 | V152: 5
A153: 1 | B153: 06/04/2018 12:21:30 | C153: 5 M | D153: 21.0 | E153: 49 | F153: 15.3 | G153: 53 | H153: 1005.2 | I153: 1018.8 | J153: 13.3 | K153: 17.3 | L153: 180 | M153: 5.8 | N153: 12.0 | O153: 0.0 | P153: 29.7 | Q153: 29.7 | R153: 274.8 | S153: 694.8 | T153: 519.66 | U153: 1843 | V153: 5
A154: 1 | B154: 06/04/2018 12:26:30 | C154: 5 M | D154: 21.0 | E154: 49 | F154: 15.7 | G154: 54 | H154: 1005.1 | I154: 1018.7 | J154: 13.3 | K154: 18.4 | L154: 180 | M154: 6.4 | N154: 12.5 | O154: 0.0 | P154: 29.7 | Q154: 29.7 | R154: 274.8 | S154: 694.8 | T154: 640.28 | U154: 2292 | V154: 6
A155: 1 | B155: 06/04/2018 12:31:30 | C155: 5 M | D155: 21.0 | E155: 49 | F155: 15.8 | G155: 54 | H155: 1005.1 | I155: 1018.7 | J155: 12.2 | K155: 15.8 | L155: 180 | M155: 6.5 | N155: 13.0 | O155: 0.0 | P155: 29.7 | Q155: 29.7 | R155: 274.8 | S155: 694.8 | T155: 648.52 | U155: 2292 | V155: 6
A156: 1 | B156: 06/04/2018 12:36:30 | C156: 5 M | D156: 21.0 | E156: 50 | F156: 16.1 | G156: 54 | H156: 1004.9 | I156: 1018.5 | J156: 17.3 | K156: 20.9 | L156: 135 | M156: 6.8 | N156: 11.9 | O156: 0.0 | P156: 29.7 | Q156: 29.7 | R156: 274.8 | S156: 694.8 | T156: 555.78 | U156: 2292 | V156: 6
A157: 1 | B157: 06/04/2018 12:41:30 | C157: 5 M | D157: 21.0 | E157: 50 | F157: 15.9 | G157: 53 | H157: 1004.8 | I157: 1018.4 | J157: 13.3 | K157: 17.3 | L157: 180 | M157: 6.4 | N157: 12.8 | O157: 0.0 | P157: 29.7 | Q157: 29.7 | R157: 274.8 | S157: 694.8 | T157: 529.13 | U157: 2292 | V157: 6
A158: 1 | B158: 06/04/2018 12:46:30 | C158: 5 M | D158: 21.0 | E158: 50 | F158: 16.2 | G158: 55 | H158: 1004.5 | I158: 1018.1 | J158: 11.2 | K158: 14.8 | L158: 180 | M158: 7.2 | N158: 13.8 | O158: 0.0 | P158: 29.7 | Q158: 29.7 | R158: 274.8 | S158: 694.8 | T158: 584.16 | U158: 2292 | V158: 6
A159: 1 | B159: 06/04/2018 12:51:30 | C159: 5 M | D159: 21.1 | E159: 50 | F159: 16.1 | G159: 54 | H159: 1004.4 | I159: 1018.0 | J159: 12.2 | K159: 17.3 | L159: 135 | M159: 6.8 | N159: 13.3 | O159: 0.0 | P159: 29.7 | Q159: 29.7 | R159: 274.8 | S159: 694.8 | T159: 488.02 | U159: 2292 | V159: 6
A160: 1 | B160: 06/04/2018 12:56:30 | C160: 5 M | D160: 21.1 | E160: 50 | F160: 16.4 | G160: 54 | H160: 1004.4 | I160: 1018.0 | J160: 8.6 | K160: 13.3 | L160: 180 | M160: 7.1 | N160: 15.0 | O160: 0.0 | P160: 29.7 | Q160: 29.7 | R160: 274.8 | S160: 694.8 | T160: 648.79 | U160: 2292 | V160: 6
A161: 1 | B161: 06/04/2018 13:01:30 | C161: 5 M | D161: 21.1 | E161: 50 | F161: 16.6 | G161: 54 | H161: 1004.4 | I161: 1018.0 | J161: 15.8 | K161: 18.4 | L161: 90 | M161: 7.3 | N161: 12.9 | O161: 0.0 | P161: 29.7 | Q161: 29.7 | R161: 274.8 | S161: 694.8 | T161: 678.10 | U161: 2734 | V161: 7
A162: 1 | B162: 06/04/2018 13:06:30 | C162: 5 M | D162: 21.1 | E162: 50 | F162: 16.3 | G162: 54 | H162: 1004.4 | I162: 1018.0 | J162: 12.2 | K162: 17.3 | L162: 180 | M162: 7.0 | N162: 13.6 | O162: 0.0 | P162: 29.7 | Q162: 29.7 | R162: 274.8 | S162: 694.8 | T162: 676.60 | U162: 2734 | V162: 7
A163: 1 | B163: 06/04/2018 13:11:30 | C163: 5 M | D163: 21.1 | E163: 50 | F163: 16.5 | G163: 54 | H163: 1004.4 | I163: 1018.0 | J163: 14.8 | K163: 18.4 | L163: 180 | M163: 7.2 | N163: 13.1 | O163: 0.0 | P163: 29.7 | Q163: 29.7 | R163: 274.8 | S163: 694.8 | T163: 306.21 | U163: 1843 | V163: 5
A164: 1 | B164: 06/04/2018 13:16:30 | C164: 5 M | D164: 21.1 | E164: 50 | F164: 17.0 | G164: 57 | H164: 1004.3 | I164: 1017.9 | J164: 13.3 | K164: 18.4 | L164: 180 | M164: 8.4 | N164: 14.1 | O164: 0.0 | P164: 29.7 | Q164: 29.7 | R164: 274.8 | S164: 694.8 | T164: 714.42 | U164: 2734 | V164: 7
A165: 1 | B165: 06/04/2018 13:21:30 | C165: 5 M | D165: 21.3 | E165: 50 | F165: 17.1 | G165: 53 | H165: 1004.2 | I165: 1017.8 | J165: 9.7 | K165: 14.8 | L165: 180 | M165: 7.5 | N165: 15.3 | O165: 0.0 | P165: 29.7 | Q165: 29.7 | R165: 274.8 | S165: 694.8 | T165: 361.52 | U165: 1843 | V165: 5
A166: 1 | B166: 06/04/2018 13:26:30 | C166: 5 M | D166: 21.4 | E166: 50 | F166: 17.5 | G166: 51 | H166: 1004.1 | I166: 1017.7 | J166: 11.2 | K166: 13.3 | L166: 180 | M166: 7.3 | N166: 15.3 | O166: 0.0 | P166: 29.7 | Q166: 29.7 | R166: 274.8 | S166: 694.8 | T166: 696.74 | U166: 2734 | V166: 7
A167: 1 | B167: 06/04/2018 13:31:30 | C167: 5 M | D167: 21.5 | E167: 50 | F167: 17.8 | G167: 50 | H167: 1004.2 | I167: 1017.8 | J167: 11.2 | K167: 14.8 | L167: 158 | M167: 7.3 | N167: 15.6 | O167: 0.0 | P167: 29.7 | Q167: 29.7 | R167: 274.8 | S167: 694.8 | T167: 725.40 | U167: 2734 | V167: 7
A168: 1 | B168: 06/04/2018 13:36:30 | C168: 5 M | D168: 21.6 | E168: 51 | F168: 17.8 | G168: 50 | H168: 1004.2 | I168: 1017.8 | J168: 8.6 | K168: 12.2 | L168: 180 | M168: 7.3 | N168: 16.5 | O168: 0.0 | P168: 29.7 | Q168: 29.7 | R168: 274.8 | S168: 694.8 | T168: 577.09 | U168: 2292 | V168: 6
A169: 1 | B169: 06/04/2018 13:41:30 | C169: 5 M | D169: 21.6 | E169: 51 | F169: 18.0 | G169: 50 | H169: 1004.0 | I169: 1017.6 | J169: 12.2 | K169: 14.8 | L169: 158 | M169: 7.4 | N169: 15.5 | O169: 0.0 | P169: 29.7 | Q169: 29.7 | R169: 274.8 | S169: 694.8 | T169: 712.72 | U169: 2734 | V169: 7
A170: 1 | B170: 06/04/2018 13:46:30 | C170: 5 M | D170: 21.7 | E170: 51 | F170: 18.1 | G170: 50 | H170: 1004.1 | I170: 1017.7 | J170: 18.4 | K170: 22.0 | L170: 180 | M170: 7.5 | N170: 14.2 | O170: 0.0 | P170: 29.7 | Q170: 29.7 | R170: 274.8 | S170: 694.8 | T170: 639.43 | U170: 2734 | V170: 7
A171: 1 | B171: 06/04/2018 13:51:30 | C171: 5 M | D171: 21.8 | E171: 51 | F171: 18.0 | G171: 50 | H171: 1004.0 | I171: 1017.6 | J171: 12.2 | K171: 15.8 | L171: 180 | M171: 7.4 | N171: 15.5 | O171: 0.0 | P171: 29.7 | Q171: 29.7 | R171: 274.8 | S171: 694.8 | T171: 567.61 | U171: 2292 | V171: 6
A172: 1 | B172: 06/04/2018 13:56:30 | C172: 5 M | D172: 21.9 | E172: 51 | F172: 18.0 | G172: 50 | H172: 1003.9 | I172: 1017.5 | J172: 12.2 | K172: 15.8 | L172: 180 | M172: 7.4 | N172: 15.5 | O172: 0.0 | P172: 29.7 | Q172: 29.7 | R172: 274.8 | S172: 694.8 | T172: 457.97 | U172: 2292 | V172: 6
A173: 1 | B173: 06/04/2018 14:01:30 | C173: 5 M | D173: 21.8 | E173: 51 | F173: 17.5 | G173: 51 | H173: 1004.0 | I173: 1017.6 | J173: 13.3 | K173: 22.0 | L173: 158 | M173: 7.3 | N173: 14.6 | O173: 0.0 | P173: 29.7 | Q173: 29.7 | R173: 274.8 | S173: 694.8 | T173: 632.35 | U173: 2734 | V173: 7
A174: 1 | B174: 06/04/2018 14:06:30 | C174: 5 M | D174: 22.0 | E174: 50 | F174: 17.6 | G174: 50 | H174: 1003.8 | I174: 1017.4 | J174: 12.2 | K174: 17.3 | L174: 180 | M174: 7.1 | N174: 15.1 | O174: 0.0 | P174: 29.7 | Q174: 29.7 | R174: 274.8 | S174: 694.8 | T174: 305.98 | U174: 1400 | V174: 4
A175: 1 | B175: 06/04/2018 14:11:30 | C175: 5 M | D175: 22.0 | E175: 50 | F175: 17.7 | G175: 52 | H175: 1003.8 | I175: 1017.4 | J175: 11.2 | K175: 13.3 | L175: 180 | M175: 7.7 | N175: 15.5 | O175: 0.0 | P175: 29.7 | Q175: 29.7 | R175: 274.8 | S175: 694.8 | T175: 610.46 | U175: 2734 | V175: 7
A176: 1 | B176: 06/04/2018 14:16:30 | C176: 5 M | D176: 21.8 | E176: 50 | F176: 18.2 | G176: 51 | H176: 1003.8 | I176: 1017.4 | J176: 9.7 | K176: 12.2 | L176: 135 | M176: 7.9 | N176: 16.5 | O176: 0.0 | P176: 29.7 | Q176: 29.7 | R176: 274.8 | S176: 694.8 | T176: 640.74 | U176: 2734 | V176: 7
A177: 1 | B177: 06/04/2018 14:21:30 | C177: 5 M | D177: 21.7 | E177: 50 | F177: 18.4 | G177: 50 | H177: 1003.8 | I177: 1017.4 | J177: 6.1 | K177: 8.6 | L177: 180 | M177: 7.8 | N177: 18.4 | O177: 0.0 | P177: 29.7 | Q177: 29.7 | R177: 274.8 | S177: 694.8 | T177: 640.82 | U177: 2734 | V177: 7
A178: 1 | B178: 06/04/2018 14:26:30 | C178: 5 M | D178: 21.6 | E178: 50 | F178: 18.3 | G178: 50 | H178: 1003.8 | I178: 1017.4 | J178: 12.2 | K178: 13.3 | L178: 270 | M178: 7.7 | N178: 15.9 | O178: 0.0 | P178: 29.7 | Q178: 29.7 | R178: 274.8 | S178: 694.8 | T178: 213.28 | U178: 1400 | V178: 4
A179: 1 | B179: 06/04/2018 14:31:30 | C179: 5 M | D179: 21.6 | E179: 50 | F179: 18.2 | G179: 51 | H179: 1003.7 | I179: 1017.3 | J179: 9.7 | K179: 12.2 | L179: 158 | M179: 7.9 | N179: 16.5 | O179: 0.0 | P179: 29.7 | Q179: 29.7 | R179: 274.8 | S179: 694.8 | T179: 588.50 | U179: 2292 | V179: 6
A180: 1 | B180: 06/04/2018 14:36:30 | C180: 5 M | D180: 21.5 | E180: 50 | F180: 18.6 | G180: 52 | H180: 1003.7 | I180: 1017.3 | J180: 11.2 | K180: 14.8 | L180: 180 | M180: 8.6 | N180: 16.5 | O180: 0.0 | P180: 29.7 | Q180: 29.7 | R180: 274.8 | S180: 694.8 | T180: 509.56 | U180: 2292 | V180: 6
A181: 1 | B181: 06/04/2018 14:41:30 | C181: 5 M | D181: 21.5 | E181: 50 | F181: 18.6 | G181: 50 | H181: 1003.7 | I181: 1017.3 | J181: 8.6 | K181: 11.2 | L181: 180 | M181: 8.0 | N181: 17.3 | O181: 0.0 | P181: 29.7 | Q181: 29.7 | R181: 274.8 | S181: 694.8 | T181: 485.39 | U181: 2292 | V181: 6
A182: 1 | B182: 06/04/2018 14:46:30 | C182: 5 M | D182: 21.4 | E182: 50 | F182: 18.8 | G182: 50 | H182: 1003.5 | I182: 1017.1 | J182: 9.7 | K182: 13.3 | L182: 225 | M182: 8.2 | N182: 17.2 | O182: 0.0 | P182: 29.7 | Q182: 29.7 | R182: 274.8 | S182: 694.8 | T182: 577.98 | U182: 2292 | V182: 6
A183: 1 | B183: 06/04/2018 14:51:30 | C183: 5 M | D183: 21.4 | E183: 50 | F183: 19.2 | G183: 49 | H183: 1003.4 | I183: 1017.0 | J183: 7.2 | K183: 9.7 | L183: 68 | M183: 8.3 | N183: 18.5 | O183: 0.0 | P183: 29.7 | Q183: 29.7 | R183: 274.8 | S183: 694.8 | T183: 607.21 | U183: 2292 | V183: 6
A184: 1 | B184: 06/04/2018 14:56:30 | C184: 5 M | D184: 21.4 | E184: 50 | F184: 19.7 | G184: 49 | H184: 1003.5 | I184: 1017.1 | J184: 12.2 | K184: 15.8 | L184: 158 | M184: 8.7 | N184: 17.5 | O184: 0.0 | P184: 29.7 | Q184: 29.7 | R184: 274.8 | S184: 694.8 | T184: 656.64 | U184: 2734 | V184: 7
A185: 1 | B185: 06/04/2018 15:01:30 | C185: 5 M | D185: 21.4 | E185: 50 | F185: 19.7 | G185: 47 | H185: 1003.3 | I185: 1016.9 | J185: 2.5 | K185: 3.6 | L185: 90 | M185: 8.1 | N185: 19.7 | O185: 0.0 | P185: 29.7 | Q185: 29.7 | R185: 274.8 | S185: 694.8 | T185: 601.45 | U185: 2292 | V185: 6
A186: 1 | B186: 06/04/2018 15:06:30 | C186: 5 M | D186: 21.4 | E186: 49 | F186: 19.6 | G186: 49 | H186: 1003.4 | I186: 1017.0 | J186: 9.7 | K186: 12.2 | L186: 158 | M186: 8.6 | N186: 18.1 | O186: 0.0 | P186: 29.7 | Q186: 29.7 | R186: 274.8 | S186: 694.8 | T186: 611.24 | U186: 2292 | V186: 6
A187: 1 | B187: 06/04/2018 15:11:30 | C187: 5 M | D187: 21.4 | E187: 49 | F187: 20.0 | G187: 47 | H187: 1003.4 | I187: 1017.0 | J187: 7.2 | K187: 9.7 | L187: 135 | M187: 8.4 | N187: 19.4 | O187: 0.0 | P187: 29.7 | Q187: 29.7 | R187: 274.8 | S187: 694.8 | T187: 627.17 | U187: 2292 | V187: 6
A188: 1 | B188: 06/04/2018 15:16:30 | C188: 5 M | D188: 21.3 | E188: 49 | F188: 20.3 | G188: 47 | H188: 1003.2 | I188: 1016.8 | J188: 8.6 | K188: 14.8 | L188: 180 | M188: 8.6 | N188: 19.2 | O188: 0.0 | P188: 29.7 | Q188: 29.7 | R188: 274.8 | S188: 694.8 | T188: 591.13 | U188: 2292 | V188: 6
A189: 1 | B189: 06/04/2018 15:21:30 | C189: 5 M | D189: 21.4 | E189: 49 | F189: 20.1 | G189: 45 | H189: 1003.3 | I189: 1016.9 | J189: 9.7 | K189: 12.2 | L189: 158 | M189: 7.8 | N189: 18.6 | O189: 0.0 | P189: 29.7 | Q189: 29.7 | R189: 274.8 | S189: 694.8 | T189: 572.64 | U189: 2292 | V189: 6
A190: 1 | B190: 06/04/2018 15:26:30 | C190: 5 M | D190: 21.5 | E190: 50 | F190: 20.1 | G190: 47 | H190: 1003.2 | I190: 1016.8 | J190: 11.2 | K190: 14.8 | L190: 203 | M190: 8.5 | N190: 18.2 | O190: 0.0 | P190: 29.7 | Q190: 29.7 | R190: 274.8 | S190: 694.8 | T190: 497.81 | U190: 1843 | V190: 5
A191: 1 | B191: 06/04/2018 15:31:30 | C191: 5 M | D191: 21.6 | E191: 50 | F191: 19.9 | G191: 47 | H191: 1003.1 | I191: 1016.7 | J191: 7.2 | K191: 8.6 | L191: 180 | M191: 8.3 | N191: 19.3 | O191: 0.0 | P191: 29.7 | Q191: 29.7 | R191: 274.8 | S191: 694.8 | T191: 501.29 | U191: 1843 | V191: 5
A192: 1 | B192: 06/04/2018 15:36:30 | C192: 5 M | D192: 21.6 | E192: 50 | F192: 20.2 | G192: 47 | H192: 1003.0 | I192: 1016.6 | J192: 11.2 | K192: 13.3 | L192: 135 | M192: 8.6 | N192: 18.4 | O192: 0.0 | P192: 29.7 | Q192: 29.7 | R192: 274.8 | S192: 694.8 | T192: 543.02 | U192: 1843 | V192: 5
A193: 1 | B193: 06/04/2018 15:41:30 | C193: 5 M | D193: 21.7 | E193: 50 | F193: 20.0 | G193: 46 | H193: 1003.0 | I193: 1016.6 | J193: 8.6 | K193: 11.2 | L193: 180 | M193: 8.1 | N193: 18.9 | O193: 0.0 | P193: 29.7 | Q193: 29.7 | R193: 274.8 | S193: 694.8 | T193: 483.92 | U193: 1843 | V193: 5
A194: 1 | B194: 06/04/2018 15:46:30 | C194: 5 M | D194: 21.8 | E194: 50 | F194: 20.2 | G194: 47 | H194: 1002.9 | I194: 1016.5 | J194: 3.6 | K194: 5.0 | L194: 180 | M194: 8.6 | N194: 20.2 | O194: 0.0 | P194: 29.7 | Q194: 29.7 | R194: 274.8 | S194: 694.8 | T194: 213.43 | U194: 1400 | V194: 4
A195: 1 | B195: 06/04/2018 15:51:30 | C195: 5 M | D195: 21.9 | E195: 50 | F195: 20.1 | G195: 46 | H195: 1002.9 | I195: 1016.5 | J195: 5.0 | K195: 6.1 | L195: 180 | M195: 8.1 | N195: 20.1 | O195: 0.0 | P195: 29.7 | Q195: 29.7 | R195: 274.8 | S195: 694.8 | T195: 586.79 | U195: 2292 | V195: 6
A196: 1 | B196: 06/04/2018 15:56:30 | C196: 5 M | D196: 21.9 | E196: 50 | F196: 20.2 | G196: 47 | H196: 1002.7 | I196: 1016.3 | J196: 9.7 | K196: 12.2 | L196: 180 | M196: 8.6 | N196: 18.8 | O196: 0.0 | P196: 29.7 | Q196: 29.7 | R196: 274.8 | S196: 694.8 | T196: 432.83 | U196: 1843 | V196: 5
A197: 1 | B197: 06/04/2018 16:01:30 | C197: 5 M | D197: 21.8 | E197: 50 | F197: 20.7 | G197: 47 | H197: 1002.7 | I197: 1016.3 | J197: 5.0 | K197: 9.7 | L197: 135 | M197: 9.0 | N197: 20.7 | O197: 0.0 | P197: 29.7 | Q197: 29.7 | R197: 274.8 | S197: 694.8 | T197: 525.84 | U197: 1843 | V197: 5
A198: =IF(B198="","",1) -> 1 | B198: 06/04/2018 16:06:30 | C198: 5 M | D198: 21.8 | E198: 50 | F198: 20.5 | G198: 47 | H198: 1002.7 | I198: 1016.3 | J198: 9.7 | K198: 13.3 | L198: 180 | M198: 8.8 | N198: 19.1 | O198: 0.0 | P198: 29.7 | Q198: 29.7 | R198: 274.8 | S198: 694.8 | T198: 471.62 | U198: 1843 | V198: 5
A199: 1 | B199: 06/04/2018 16:11:30 | C199: 5 M | D199: 21.8 | E199: 50 | F199: 20.4 | G199: 48 | H199: 1002.8 | I199: 1016.4 | J199: 11.2 | K199: 14.8 | L199: 135 | M199: 9.0 | N199: 18.6 | O199: 0.0 | P199: 29.7 | Q199: 29.7 | R199: 274.8 | S199: 694.8 | T199: 442.93 | U199: 1843 | V199: 5
A200: 1 | B200: 06/04/2018 16:16:30 | C200: 5 M | D200: 21.7 | E200: 50 | F200: 20.3 | G200: 48 | H200: 1002.6 | I200: 1016.2 | J200: 12.2 | K200: 14.8 | L200: 68 | M200: 9.0 | N200: 18.2 | O200: 0.0 | P200: 29.7 | Q200: 29.7 | R200: 274.8 | S200: 694.8 | T200: 399.88 | U200: 1400 | V200: 4
A201: 1 | B201: 06/04/2018 16:21:30 | C201: 5 M | D201: 21.7 | E201: 50 | F201: 20.1 | G201: 49 | H201: 1002.6 | I201: 1016.2 | J201: 6.1 | K201: 8.6 | L201: 135 | M201: 9.1 | N201: 20.1 | O201: 0.0 | P201: 29.7 | Q201: 29.7 | R201: 274.8 | S201: 694.8 | T201: 395.86 | U201: 1400 | V201: 4
A202: 1 | B202: 06/04/2018 16:26:30 | C202: 5 M | D202: 21.7 | E202: 50 | F202: 19.9 | G202: 49 | H202: 1002.5 | I202: 1016.1 | J202: 7.2 | K202: 8.6 | L202: 180 | M202: 8.9 | N202: 19.3 | O202: 0.0 | P202: 29.7 | Q202: 29.7 | R202: 274.8 | S202: 694.8 | T202: 324.82 | U202: 1400 | V202: 4
A203: 1 | B203: 06/04/2018 16:31:30 | C203: 5 M | D203: 21.7 | E203: 50 | F203: 19.5 | G203: 49 | H203: 1002.6 | I203: 1016.2 | J203: 8.6 | K203: 11.2 | L203: 180 | M203: 8.5 | N203: 18.3 | O203: 0.0 | P203: 29.7 | Q203: 29.7 | R203: 274.8 | S203: 694.8 | T203: 223.34 | U203: 1400 | V203: 4
... 91 more rows

Sheet Feuille Max Mini
N1: 0 | O1: =COUNTIF($O$23:$O$310,"N") -> 0 | P1: N | Q1: =MAX(N23:N310) -> 0 | R1: =IF(N23="","",VLOOKUP(Q1,N1:P16,3,FALSE)) ->  | S1: Maxi des vents
N2: 23 | O2: =COUNTIF($O$23:$O$310,"NNE") -> 0 | P2: NNE | Q2: =MIN(N23:N310) -> 0 | R2: =IF(N23="","",VLOOKUP(Q2,N1:P16,3,FALSE)) ->  | S2: Mini des vents
N3: 45 | O3: =COUNTIF($O$23:$O$310,"NE") -> 0 | P3: NE
N4: 68 | O4: =COUNTIF($O$23:$O$310,"ENE") -> 0 | P4: ENE
N5: 90 | O5: =COUNTIF($O$23:$O$310,"EST") -> 0 | P5: EST
N6: 113 | O6: =COUNTIF($O$23:$O$310,"ESE") -> 0 | P6: ESE
N7: 135 | O7: =COUNTIF($O$23:$O$310,"SE") -> 0 | P7: SE
N8: 158 | O8: =COUNTIF($O$23:$O$310,"SSE") -> 0 | P8: SSE
N9: 180 | O9: =COUNTIF($O$23:$O$310,"S") -> 0 | P9: S
N10: 203 | O10: =COUNTIF($O$23:$O$310,"SSO") -> 0 | P10: SSO
N11: 225 | O11: =COUNTIF($O$23:$O$310,"SO") -> 0 | P11: SO
N12: 248 | O12: =COUNTIF($O$23:$O$310,"OSO") -> 0 | P12: OSO
N13: 270 | O13: =COUNTIF($O$23:$O$310,"O") -> 0 | P13: O
N14: 293 | O14: =COUNTIF($O$23:$O$310,"ONO") -> 0 | P14: ONO
N15: 315 | O15: =COUNTIF($O$23:$O$310,"NO") -> 0 | P15: NO
N16: 338 | O16: =COUNTIF($O$23:$O$310,"NNO") -> 0 | P16: NNO
D17: NE RIEN INSCRIRE DANS CES CASES | F17: 1 | G17: 1 | H17: 1 | I17: 1 | J17: 1 | K17: 1 | L17: 1 | M17: 1 | N17: 1 | O17: 1 | P17: 1 | Q17: 1 | R17: 1 | S17: 1 | T17: 1 | U17: 1 | V17: 1 | W17: 1 | X17: 1 | Y17: 1
C18: =LARGE(H23:H5418,H18) ->  | F18: 1 | G18: 1 | H18: 1 | I18: 1 | J18: 1 | K18: 1 | L18: 1 | M18: 1 | N18: 1 | O18: 1 | P18: 1 | Q18: 1 | R18: 1 | S18: 1 | T18: 1 | U18: 1 | V18: 1 | W18: 1 | X18: 1 | Y18: 1 | AA18: 0 | AB18: =COUNTIF($N$23:$N$118,AA18) -> 0 | AC18: N
E19: Moyenne | F19: =AVERAGE(F23:F30) ->  | G19: =AVERAGE(G23:G30) ->  | J19: =AVERAGE(J23:J29) ->  | AA19: 0 | AB19: 0 | AC19: N
E20: Minimum | F20: =IF(F23="","",SMALL(F23:F5418,F17)) ->  | G20: =IF(G23="","",SMALL(G23:G5418,G17)) ->  | H20: =IF(H23="","",SMALL(H23:H5418,H17)) ->  | O20: =AC36 -> N | P20: =IF(P23="","",SMALL(P23:P5418,P17)) ->  | AA20: 23 | AB20: 0 | AC20: NNE
E21: - - | F21: =IF(F23="","",LARGE(F23:F5418,F18)) ->  | G21: =IF(G24="","",LARGE(G24:G5419,G18)) ->  | H21: =IF(H23="","",LARGE(H23:H5418,H18)) ->  | I21: =IF(I24="","",LARGE(I24:I5419,I18)) ->  | J21: =IF(J23="","",LARGE(J23:J5418,J18)) ->  | O21: =AC38 -> N | P21: =IF(P23="","",LARGE(P23:P5418,P18)) ->  | AA21: 45 | AB21: 0 | AC21: NE
A22: NO. | C22: Date | D22: Heure | E22: ='Relevé du jour'!C4 -> Intervalle | F22: ='Relevé du jour'!D4 -> T° int. (°C) | G22: ='Relevé du jour'!E4 -> Hum int. (%) | H22: ='Relevé du jour'!F4 -> T° ext. (°C) | I22: ='Relevé du jour'!G4 -> Hum ext. (%) | J22: ='Relevé du jour'!H4 -> Press. rel. (hpa) | K22: ='Relevé du jour'!I4 -> Press. abs. (hpa) | L22: ='Relevé du jour'!J4 -> Vit. du vent(km/h) | M22: ='Relevé du jour'!K4 -> Rafale (km/h) | N22: Direction du vent | Q22: Pt. de rosée(°C) | R22: Facteur vent(°C) | S22: Précipi. dern. 24 h(mm) | T22: Précipi.s de la sem. (mm) | U22: Précipi. du mois (mm) | V22: Précipi. An (mm) | W22: Précipi. totale (mm) | X22: Lumière (W/M2) | Y22: UV (uW/m2) | Z22: UVI | AA22: 68 | AB22: 0 | AC22: ENE
AA23: 90 | AB23: 0 | AC23: EST | AH23: 82 | AI23: =AH23/100 -> 0.82
AA24: 113 | AB24: 0 | AC24: ESE | AH24: 81 | AI24: =AH24/100 -> 0.81
AA25: 135 | AB25: 0 | AC25: SE | AH25: 81 | AI25: 0.81
AA26: 158 | AB26: 0 | AC26: SSE | AH26: 82 | AI26: 0.82
AA27: 180 | AB27: 0 | AC27: S | AH27: 82 | AI27: 0.82
AA28: 203 | AB28: 0 | AC28: SSO | AH28: 82 | AI28: 0.82
AA29: 225 | AB29: 0 | AC29: SO | AH29: 82 | AI29: 0.82
AA30: 248 | AB30: 0 | AC30: OSO | AH30: 82 | AI30: 0.82
AA31: 270 | AB31: 0 | AC31: O | AH31: 82 | AI31: 0.82
AA32: 293 | AB32: 0 | AC32: ONO | AH32: 82 | AI32: 0.82
AA33: 315 | AB33: 0 | AC33: NO | AH33: 82 | AI33: 0.82
AA34: 338 | AB34: 0 | AC34: NNO | AH34: 82 | AI34: 0.82
AA35: Min | AH35: 82 | AI35: 0.82
AB36: =MIN(IF(AB19:AB34>0,AB19:AB34)) -> 0 | AC36: =IF(AB36="","",VLOOKUP(AB36,$AB$19:$AC$34,2,FALSE)) -> N | AH36: 83 | AI36: 0.83
AA37: Max | AH37: 83 | AI37: 0.83
AB38: =MAX(IF(AB19:AB34>0,AB19:AB34)) -> 0 | AC38: =IF(AB38="","",VLOOKUP(AB38,$AB$19:$AC$34,2,FALSE)) -> N | AH38: 84 | AI38: 0.84
AH39: 84 | AI39: 0.84
AH40: 85 | AI40: 0.85
AH41: 85 | AI41: 0.85
AH42: 85 | AI42: 0.85
AH43: 85 | AI43: 0.85
AH44: 84 | AI44: 0.84
AH45: 84 | AI45: 0.84
AH46: 84 | AI46: 0.84
AH47: 84 | AI47: 0.84
AH48: 83 | AI48: 0.83
AH49: 84 | AI49: 0.84
AH50: 84 | AI50: 0.84
AH51: 84 | AI51: 0.84
AH52: 83 | AI52: 0.83
AH53: 83 | AI53: 0.83
AH54: 82 | AI54: 0.82
AH55: 82 | AI55: 0.82
AH56: 82 | AI56: 0.82
AH57: 83 | AI57: 0.83
AH58: 83 | AI58: 0.83
AH59: 84 | AI59: 0.84
AH60: 84 | AI60: 0.84
AH61: 84 | AI61: 0.84
AH62: 85 | AI62: 0.85
AH63: 85 | AI63: 0.85
AH64: 85 | AI64: 0.85
AH65: 85 | AI65: 0.85
AH66: 85 | AI66: 0.85
AH67: 84 | AI67: 0.84
AH68: 83 | AI68: 0.83
AH69: 83 | AI69: 0.83
AH70: 82 | AI70: 0.82
AH71: 82 | AI71: 0.82
AH72: 82 | AI72: 0.82
AH73: 81 | AI73: 0.81
AH74: 80 | AI74: 0.8
AH75: 80 | AI75: 0.8
AH76: 80 | AI76: 0.8
AH77: 80 | AI77: 0.8
AH78: 80 | AI78: 0.8
AH79: 80 | AI79: 0.8
AH80: 80 | AI80: 0.8
AH81: 80 | AI81: 0.8
AH82: 80 | AI82: 0.8
AH83: 80 | AI83: 0.8
AH84: 80 | AI84: 0.8
AH85: 80 | AI85: 0.8
AH86: 80 | AI86: 0.8
AH87: 80 | AI87: 0.8
AH88: 80 | AI88: =AH88/100 -> 0.8
AH89: 80 | AI89: 0.8
AH90: 80 | AI90: 0.8
AH91: 80 | AI91: 0.8
AH92: 80 | AI92: 0.8
AH93: 80 | AI93: 0.8
AH94: 80 | AI94: 0.8
AH95: 80 | AI95: 0.8
AH96: 80 | AI96: 0.8
AH97: 80 | AI97: 0.8
AH98: 81 | AI98: 0.81
AH99: 80 | AI99: 0.8
AH100: 80 | AI100: 0.8
AH101: 80 | AI101: 0.8
AH102: 80 | AI102: 0.8
AH103: 80 | AI103: 0.8
AH104: 80 | AI104: 0.8
AH105: 80 | AI105: 0.8
AH106: 80 | AI106: 0.8
AH107: 80 | AI107: 0.8
AH108: 80 | AI108: 0.8
AH109: 80 | AI109: 0.8
AH110: 80 | AI110: 0.8
AH111: 80 | AI111: 0.8
AH112: 80 | AI112: 0.8
AH113: 80 | AI113: 0.8
AH114: 80 | AI114: 0.8
AH115: 80 | AI115: 0.8
AH116: 80 | AI116: 0.8
AH117: 80 | AI117: 0.8
AH118: 80 | AI118: 0.8
AH119: 80 | AI119: 0.8
AH120: 80 | AI120: 0.8
AH121: 80 | AI121: 0.8
AH122: 80 | AI122: 0.8
AH123: 79 | AI123: 0.79
AH124: 79 | AI124: 0.79
AH125: 79 | AI125: 0.79
AH126: 78 | AI126: 0.78
AH127: 78 | AI127: 0.78
AH128: 78 | AI128: 0.78
AH129: 76 | AI129: 0.76
AH130: 76 | AI130: 0.76
AH131: 71 | AI131: 0.71
AH132: 70 | AI132: 0.7
AH133: 70 | AI133: 0.7
AH134: 70 | AI134: 0.7
AH135: 70 | AI135: 0.7
AH136: 70 | AI136: 0.7
AH137: 70 | AI137: 0.7
AH138: 70 | AI138: 0.7
AH139: 69 | AI139: 0.69
AH140: 69 | AI140: 0.69
AH141: 69 | AI141: 0.69
AH142: 68 | AI142: 0.68
AH143: 68 | AI143: 0.68
AH144: 67 | AI144: 0.67
AH145: 67 | AI145: 0.67
AH146: 67 | AI146: 0.67
AH147: 67 | AI147: 0.67
AH148: 67 | AI148: 0.67
AH149: 66 | AI149: 0.66
AH150: 63 | AI150: 0.63
AH151: 62 | AI151: 0.62
AH152: 62 | AI152: =AH152/100 -> 0.62
AH153: 61 | AI153: 0.61
AH154: 62 | AI154: 0.62
AH155: 59 | AI155: 0.59
AH156: 57 | AI156: 0.57
AH157: 56 | AI157: 0.56
AH158: 55 | AI158: 0.55
AH159: 56 | AI159: 0.56
AH160: 56 | AI160: 0.56
AH161: 54 | AI161: 0.54
AH162: 56 | AI162: 0.56
AH163: 54 | AI163: 0.54
AH164: 54 | AI164: 0.54
AH165: 54 | AI165: 0.54
AH166: 54 | AI166: 0.54
AH167: 53 | AI167: 0.53
AH168: 52 | AI168: 0.52
AH169: 53 | AI169: 0.53
AH170: 53 | AI170: 0.53
AH171: 53 | AI171: 0.53
AH172: 54 | AI172: 0.54
AH173: 54 | AI173: 0.54
AH174: 54 | AI174: 0.54
AH175: 53 | AI175: 0.53
AH176: 55 | AI176: 0.55
AH177: 54 | AI177: 0.54
AH178: 54 | AI178: 0.54
AH179: 54 | AI179: 0.54
AH180: 54 | AI180: 0.54
AH181: 54 | AI181: 0.54
AH182: 57 | AI182: 0.57
AH183: 53 | AI183: 0.53
AH184: 51 | AI184: 0.51
AH185: 50 | AI185: 0.5
AH186: 50 | AI186: 0.5
AH187: 50 | AI187: 0.5
AH188: 50 | AI188: 0.5
AH189: 50 | AI189: 0.5
AH190: 50 | AI190: 0.5
AH191: 51 | AI191: 0.51
AH192: 50 | AI192: 0.5
AH193: 52 | AI193: 0.52
AH194: 51 | AI194: 0.51
AH195: 50 | AI195: 0.5
AH196: 50 | AI196: 0.5
AH197: 51 | AI197: 0.51
AH198: 52 | AI198: 0.52
AH199: 50 | AI199: 0.5
AH200: 50 | AI200: 0.5
... 110 more rows

Sheet Feuille Tri des relevés
F4: * | H4: * | J4: * | L4: *
A5: Jour | B5: T° int. (°C) | C5: Heure | D5: Hum int. (%) | E5: Heure | F5: T° ext. Mini (°C) | G5: Heure | H5: T° ext. Maxi (°C) | I5: Heure | J5: Hum ext. (%) | K5: Heure | L5: Press. rel. (hpa) | M5: Heure | N5: Vit. Min du vent (km/h) | O5: Heure | P5: Vit.Max du vent (km/h) | Q5: Heure | R5: Rafale Min (km/h) | S5: Heure | T5: Rafale Max (km/h) | U5: Heure | V5: Direction du vent | X5: Heure | Y5: Précipi. dern. 24 h (mm) | Z5: Précipi. Totale Mois (mm) | AA5: Précipi. Totale An (mm) | AB5: Lumière (W/M2) | AD5: UVI | AE5: Heure
A6: ='Feuille Max Mini'!C23 -> 00:00:00 | B6: ='Feuille Max Mini'!F21 ->  | C6: =IF(B6="","",INDEX('Feuille Max Mini'!D23:D5418,MATCH(B6,'Feuille Max Mini'!F23:F5418,0))) ->  | D6: =IF('Feuille Max Mini'!G21="","",'Feuille Max Mini'!G21) ->  | E6: =IF(D6="","",INDEX('Feuille Max Mini'!$D$23:$D$5418,MATCH(D6,'Feuille Max Mini'!G23:G5418,0))) ->  | F6: ='Feuille Max Mini'!H20 ->  | G6: =IF(F6="","",INDEX('Feuille Max Mini'!$D$23:$D$5418,MATCH(F6,'Feuille Max Mini'!H23:H5418,0))) ->  | H6: ='Feuille Max Mini'!H21 ->  | I6: =IF(H6="","",INDEX('Feuille Max Mini'!$D$23:$D$5418,MATCH(H6,'Feuille Max Mini'!H23:H5418,0))) ->  | J6: =IF('Feuille Max Mini'!I21="","",'Feuille Max Mini'!I21) ->  | K6: =IF(J6="","",INDEX('Feuille Max Mini'!$D$23:$D$5418,MATCH(J6,'Feuille Max Mini'!I23:I5418,0))) ->  | L6: ='Feuille Max Mini'!J21 ->  | M6: =IF(L6="","",INDEX('Feuille Max Mini'!$D$23:$D$5418,MATCH(L6,'Feuille Max Mini'!J23:J5418,0))) ->  | N6: ='Feuille Max Mini'!L20 ->  | O6: =IF(N6="","",INDEX('Feuille Max Mini'!$D$23:$D$5418,MATCH(N6,'Feuille Max Mini'!L23:L5418,0))) ->  | P6: ='Feuille Max Mini'!L21 ->  | Q6: =IF(P6="","",INDEX('Feuille Max Mini'!$D$23:$D$5418,MATCH(P6,'Feuille Max Mini'!L23:L5418,0))) ->  | R6: ='Feuille Max Mini'!M20 ->  | S6: =IF(R6="","",INDEX('Feuille Max Mini'!$D$23:$D$5418,MATCH(R6,'Feuille Max Mini'!M23:M5418,0))) ->  | T6: ='Feuille Max Mini'!M21 ->  | U6: =IF(T6="","",INDEX('Feuille Max Mini'!$D$23:$D$5418,MATCH(T6,'Feuille Max Mini'!M23:M5418,0))) ->  | V6: =IF(W6="","",'Feuille Max Mini'!N21) ->  | W6: ='Feuille Max Mini'!O21 -> N | X6: =IF(W6="","",INDEX('Feuille Max Mini'!$D$23:$D$5418,MATCH(V6,'Feuille Max Mini'!N23:N5418,0))) ->  | Y6: ='Feuille Max Mini'!R21 ->  | Z6: =IF(V6="","",'Feuille Max Mini'!T23) ->  | AA6: =IF(W6="","",'Feuille Max Mini'!U21) ->  | AB6: ='Feuille Max Mini'!W21 ->  | AD6: ='Feuille Max Mini'!Y21 ->  | AE6: =IF(AD6="","",INDEX('Feuille Max Mini'!$D$23:$D$5418,MATCH(AD6,'Feuille Max Mini'!Y23:Y5418,0))) -> 

Sheet Relevés
A1: Soleil | B1: C | C1: Ciel voilé | D1: Rares éclaircies | E1: Soleil Fortes averses | F1: Variable | J1: Orageux | K1: Soleil orage | L1: Soleil averses orageuses | M1: Pluies orageuses | N1: Orage | O1: Orage et grêles | P1: Orage violent | AQ1: 30 | AR1: 51 | AS1: 299 | AT1: 700
B2: 1 | C2: 2 | D2: 3 | E2: 4 | F2: 5 | K2: 18 | L2: 19 | M2: 20 | N2: 21 | O2: 22 | P2: 23 | AY2: =COUNTIF($W$14:$W$46,AZ2) -> 0 | AZ2: N | BA2: 0
A3: Nuageux & Brumeux | B3: C | C3: Brouillard dense | D3: Brume ou Brouillard légé | E3: Brume ou léger brouillard givrant | F3: Nuageux | G3: Couvert | H3: Couvert rares averses | J3: Grèle & Neige | K3: Giboulées | L3: Grèles | M3: Neiges | N3: Fortes neiges | AY3: =COUNTIF($W$14:$W$46,AZ3) -> 0 | AZ3: NNE | BA3: 23
B4: 6 | C4: 7 | D4: 8 | E4: 9 | F4: 10 | G4: 11 | H4: 12 | K4: 24 | L4: 25 | M4: 26 | N4: 27 | AY4: 1 | AZ4: NE | BA4: 45
A5: Pluvieux | B5: Pluies et éclaircies | C5: Pluies éparses | D5: Bruines | E5: Averses ou fortes pluies | F5: Pluies mélées de neige | AY5: 0 | AZ5: ENE | BA5: 68
B6: 13 | C6: 14 | D6: 15 | E6: 16 | F6: 17 | AY6: 2 | AZ6: EST | BA6: 90
F7: =IF(F14="","",MIN(F14:F46)) -> 0.5 | H7: =IF(H14="","",MIN(H14:H46)) -> 11.3 | J7: 0.84 | L7: 994.3 | N7: 0 | P7: 13.3 | R7: 0 | T7: 18.4 | V7: =VLOOKUP(W7,$AZ$2:$BA$17,2,FALSE) -> 0 | W7: =W10 -> N | Y7: =MIN(Y14:Y46) -> 0 | AB7: 155.11 | AG7: 2 | AY7: 0 | AZ7: ESE | BA7: 113
F8: =IF(F15="","",MAX(F14:F46)) -> 8.8 | H8: =IF(H15="","",MAX(H14:H46)) -> 20.7 | J8: 84 | L8: 1016.3 | N8: 2.5 | P8: 24.5 | R8: 3.6 | T8: 34.2 | V8: =VLOOKUP(W8,$AZ$2:$BA$17,2,FALSE) -> 90 | W8: =W11 -> EST | Y8: =MAX(Y14:Y46) -> 12.9 | Z8: 26.7 | AA8: 274.8 | AB8: 829.29 | AG8: 8 | AY8: 1 | AZ8: SE | BA8: 135
AY9: 0 | AZ9: SSE | BA9: 158
V10: =SMALL($AY$2:$AY$17,1) -> 0 | W10: =VLOOKUP(V10,$AY$2:$AZ$17,2,FALSE) -> N | Z10: =MAX(Z14:Z46) -> 26.7 | AP10: 31 | AQ10: 99 | AR10: 300 | AY10: 1 | AZ10: S | BA10: 180
F11: =IF(F14="","",MIN(F14:F46)) -> 0.5 | G11: =VLOOKUP(F11,F14:G46,2,FALSE) -> 07:25:33 | H11: =IF(H14="","",MAX(H14:H46)) -> 20.7 | I11: =VLOOKUP(H11,H14:I46,2,FALSE) -> 16:01:30 | V11: =LARGE($AY$2:$AY$17,1) -> 2 | W11: =VLOOKUP(V11,$AY$2:$AZ$17,2,FALSE) -> EST | AP11: 49 | AQ11: 100 | AR11: 301 | AY11: 0 | AZ11: SSO | BA11: 203
A12: Moyenne Mensuelle | B12: =AVERAGE(B14:B46) -> 19.03333333 | D12: =AVERAGE(D14:D46) -> 41.75666667 | F12: =AVERAGE(F14:F46) -> 5.433333333 | H12: =AVERAGE(H14:H46) -> 15.03333333 | J12: =AVERAGE(J14:J46) -> 67.97333333 | L12: =AVERAGE(L14:L46) -> 1007.283333 | N12: =AVERAGE(N14:N46) -> 0.4166666667 | R12: =AVERAGE(R14:R46) -> 0.7833333333 | W12: SE | X12: 09:30:45 | Y12: =AVERAGE(Y14:Y44) -> 4.45 | Z12: =AVERAGE(Z14:Z46) -> 16.3 | AB12: =AVERAGE(AB14:AB46) -> 511.2633333 | AG12: =AVERAGE(AG14:AG46) -> 5.5 | AP12: 50 | AQ12: 101 | AR12: 699 | AY12: 0 | AZ12: SO | BA12: 225
A13: Jour | B13: T° int. (°C) | C13: Heure | D13: Hum int. (%) | E13: Heure | F13: T° Mini ext. (°C) | G13: Heure | H13: T° Maxi ext. (°C) | I13: Heure | J13: Hum ext. (%) | K13: Heure | L13: Press. rel. (hpa) | M13: Heure | N13: Vit. du vent (km/h) | O13: Heure | P13: Vit. du vent (km/h) | Q13: Heure | R13: Rafale Min (km/h) | S13: Heure | T13: Rafale Max (km/h) | U13: Heure | V13: Direction du vent | W13: - | X13: Heure | Y13: Précipi. dern. 24 h (mm) | Z13: Précipi. Tot. mois (mm) | AA13: Précipi. Tot. An (mm) | AB13: Lumière (W/M2) | AG13: UVI | AH13: Heure | AJ13: Intensité des UV | AY13: 0 | AZ13: OSO | BA13: 248
A14: 2018-04-01 | B14: 24.3 | C14: 19:10:33 | D14: 48 | E14: 23:55:33 | F14: 0.5 | G14: 07:25:33 | H14: 11.3 | I14: 13:50:33 | J14: 80 | K14: 23:55:33 | L14: 1011.9 | M14: 10:25:33 | N14: 0 | O14: 00:05:33 | P14: 15.8 | Q14: 17:45:33 | R14: 0 | S14: 00:30:33 | T14: 19.4 | U14: 17:45:33 | V14: =IF(W14="N",0,IF(W14="NNE",23,IF(W14="NE",45,IF(W14="ENE",68,IF(W14="EST",90,IF(W14="ESE",113,IF(W14="SE",135,IF(W14="SSE",158,IF(W14="S",180,IF(W14="SSO",203,IF(W14="SO",225,IF(W14="OSO",248,IF(W14="O",270,IF(W14="ONO",293,IF(W14="NO",315,IF(W14="NNO",338,"")))))))))))))))) -> 45 | W14: NE | X14: 00:25:33 | Y14: 1.2 | Z14: =Y14 -> 1.2 | AA14: 246.3 | AB14: 347.98 | AC14: =IF(Y14="","",IF(AND(Y14=0,AB14<400),5,IF(AND(Y14=0,AB14>400),1,IF(AND(Y14>0,Y14<3),4,16)))) -> 4 | AE14: =IF(AC14="","",VLOOKUP(AC14,List!$B$2:$E$29,4,FALSE)) -> Soleil nuageux et averses | AG14: 5 | AH14: 12:40:33 | AJ14: FAIBLE | AK14: <2 | AO14: Soleil | AP14: C | AQ14: Ciel voilé | AR14: Rares éclaircies | AS14: Soleil Fortes averses | AT14: Variable | AU14: 0 | AV14: 0 | AY14: 1 | AZ14: O | BA14: 270
A15: =IF(B15="","",A14+1) -> 2018-04-02 | B15: 1.5 | C15: 15:10:34 | D15: 51 | E15: 23:55:34 | F15: 7 | G15: 06:15:33 | H15: 11.9 | I15: 21:20:34 | J15: 84 | K15: 23:55:34 | L15: 1004.8 | M15: 00:00:33 | N15: 0 | O15: 00:05:33 | P15: 13.3 | Q15: 10:25:33 | R15: 0 | S15: 00:10:33 | T15: 18.4 | U15: 10:25:33 | V15: =IF(W15="N",0,IF(W15="NNE",23,IF(W15="NE",45,IF(W15="ENE",68,IF(W15="EST",90,IF(W15="ESE",113,IF(W15="SE",135,IF(W15="SSE",158,IF(W15="S",180,IF(W15="SSO",203,IF(W15="SO",225,IF(W15="OSO",248,IF(W15="O",270,IF(W15="ONO",293,IF(W15="NO",315,IF(W15="NNO",338,"")))))))))))))))) -> 90 | W15: EST | X15: 00:25:33 | Y15: 1.5 | Z15: =IF(Y15="","",Y15+Z14) -> 2.7 | AA15: 247.8 | AB15: 238.07 | AC15: =IF(Y15="","",IF(AND(Y15=0,AB15<400),5,IF(AND(Y15=0,AB15>400),1,IF(AND(Y15>0,Y15<3),4,16)))) -> 4 | AE15: =IF(AC15="","",VLOOKUP(AC15,List!$B$2:$E$29,4,FALSE)) -> Soleil nuageux et averses | AF15: =IF(AC15="","",) -> 0 | AG15: 3 | AH15: 10:35:33 | AJ15: MODEREE | AK15: 3 | AL15: à | AM15: 5 | AY15: 0 | AZ15: ONO | BA15: 293
A16: =IF(B16="","",A15+1) -> 2018-04-03 | B16: 25.4 | C16: 22:16:30 | D16: 0.54 | E16: 12:35:34 | F16: 8.8 | G16: 22:21:30 | H16: 13.9 | I16: 18:31:30 | J16: 0.84 | K16: 00:00:34 | L16: 994.3 | M16: 11:45:34 | N16: 0 | O16: 21:21:30 | P16: 15.8 | Q16: 18:16:30 | R16: 1.1 | S16: 21:21:30 | T16: 23.4 | U16: 18:16:30 | V16: =IF(W16="N",0,IF(W16="NNE",23,IF(W16="NE",45,IF(W16="ENE",68,IF(W16="EST",90,IF(W16="ESE",113,IF(W16="SE",135,IF(W16="SSE",158,IF(W16="S",180,IF(W16="SSO",203,IF(W16="SO",225,IF(W16="OSO",248,IF(W16="O",270,IF(W16="ONO",293,IF(W16="NO",315,IF(W16="NNO",338,"")))))))))))))))) -> 135 | W16: SE | X16: 22:56:30 | Y16: 11.1 | Z16: =IF(Y16="","",Y16+Z15) -> 13.8 | AA16: 258.9 | AB16: 155.11 | AC16: 16 | AE16: =IF(AC16="","",VLOOKUP(AC16,List!$B$2:$E$29,4,FALSE)) -> Averses ou fortes pluies | AF16: Averses ou fortes pluies | AG16: 2 | AH16: 18:16:30 | AJ16: FORTE | AK16: 6 | AL16: à | AM16: 7 | AO16: Nuageux & Brumeux | AP16: C | AQ16: Brouillard dense | AR16: Brume ou Brouillard légé | AS16: Brume ou léger brouillard givrant | AT16: Nuageux | AU16: Couvert | AV16: Couvert rares averses | AY16: 0 | AZ16: NO | BA16: 315
A17: 2018-04-04 | B17: 12.9 | C17: 19:11:31 | D17: 50 | E17: 23:56:31 | F17: 8.2 | G17: 12:41:31 | H17: 15.4 | I17: 16:41:31 | J17: 80 | K17: 23:56:31 | L17: 1004.9 | M17: 23:56:31 | N17: 2.5 | O17: 14:51:31 | P17: 24.5 | Q17: 04:11:30 | R17: 3.6 | S17: 14:56:31 | T17: 34.2 | U17: 04:11:30 | V17: 180 | W17: S | X17: 14:36:31 | Y17: 12.9 | Z17: 26.7 | AA17: 271.8 | AB17: 829.29 | AC17: 16 | AE17: =IF(AC17="","",VLOOKUP(AC17,List!$B$2:$E$29,4,FALSE)) -> Averses ou fortes pluies | AF17: Pluies et éclaircies | AG17: 8 | AH17: 13:21:31 | AJ17: TRES FORTE | AK17: 8 | AL17: à | AM17: 10 | AY17: 0 | AZ17: NNO | BA17: 338
A18: 2018-04-05 | B18: 25.1 | C18: 16:56:29 | D18: 49 | E18: 23:56:29 | F18: 5 | G18: 23:41:29 | H18: 17 | I18: 12:01:29 | J18: 82 | K18: 23:56:29 | L18: 1016.3 | M18: 11:31:29 | N18: 0 | O18: 06:36:31 | P18: 14.8 | Q18: 16:41:29 | R18: 0 | S18: 08:01:31 | T18: 19.4 | U18: 16:41:29 | V18: 270 | W18: O | X18: 01:16:31 | Y18: 0 | Z18: 26.7 | AA18: 274.8 | AB18: 771.73 | AC18: 1 | AE18: =IF(AC18="","",VLOOKUP(AC18,List!$B$2:$E$29,4,FALSE)) -> Ciel dégagé | AF18: C | AG18: 8 | AH18: 14:46:29 | AJ18: EXTREME | AK18: 11+ | AO18: Pluvieux | AP18: Pluies et éclaircies | AQ18: Pluies éparses | AR18: Bruines | AS18: Averses ou fortes pluies | AT18: Pluies mélées de neige
A19: 2018-04-06 | B19: 25 | C19: 21:21:30 | D19: 52 | E19: 23:56:30 | F19: 3.1 | G19: 02:41:29 | H19: 20.7 | I19: 16:01:30 | J19: 81 | K19: 23:56:30 | L19: 1011.5 | M19: 00:21:29 | N19: 0 | O19: 00:06:29 | P19: 18.4 | Q19: 12:06:30 | R19: 0 | S19: 00:06:29 | T19: 23.4 | U19: 12:06:30 | V19: 90 | W19: EST | X19: 09:31:29 | Y19: 0 | Z19: 26.7 | AA19: 274.8 | AB19: 725.4 | AC19: 1 | AE19: =IF(AC19="","",VLOOKUP(AC19,List!$B$2:$E$29,4,FALSE)) -> Ciel dégagé | AF19: C | AG19: 7 | AH19: 13:01:30
AE20: =IF(AC20="","",VLOOKUP(AC20,List!$B$2:$E$29,4,FALSE)) ->  | AF20: C | AO20: Orageux | AP20: Soleil orage | AQ20: Soleil averses orageuses | AR20: Pluies orageuses | AS20: Orage | AT20: Orage et grêles | AU20: Orage violent
V21: =IF(W21="N",0,IF(W21="NNE",23,IF(W21="NE",45,IF(W21="ENE",68,IF(W21="EST",90,IF(W21="ESE",113,IF(W21="SE",135,IF(W21="SSE",158,IF(W21="S",180,IF(W21="SSO",203,IF(W21="SO",225,IF(W21="OSO",248,IF(W21="O",270,IF(W21="ONO",293,IF(W21="NO",315,IF(W21="NNO",338,"")))))))))))))))) ->  | Z21: =IF(Y21="","",Y21+Z20) ->  | AE21: =IF(AC21="","",VLOOKUP(AC21,List!$B$2:$E$29,4,FALSE)) ->  | AF21: Averses ou fortes pluies
AE22: =IF(AC22="","",VLOOKUP(AC22,List!$B$2:$E$29,4,FALSE)) ->  | AF22: Pluies et éclaircies | AO22: Grèle & Neige | AP22: Giboulées | AQ22: Grèles | AR22: Neiges | AS22: Fortes neiges | AT22: 0 | AU22: 0
AE23: =IF(AC23="","",VLOOKUP(AC23,List!$B$2:$E$29,4,FALSE)) ->  | AF23: Pluies éparses
AE24: =IF(AC24="","",VLOOKUP(AC24,List!$B$2:$E$29,4,FALSE)) ->  | AF24: Pluies et éclaircies | AO24: Temps de nuit | AP24: Ciel dégagé de nuit | AQ24: Ciel voilé de nuit | AR24: Brume ou brouillard léger de nuit | AS24: Brume ou léger brouillard givrant de nuit | AT24: Brouillard dense de nuit | AU24: Ciel nuageux avec éclaircies de nuit
AE25: =IF(AC25="","",VLOOKUP(AC25,List!$B$2:$E$29,4,FALSE)) ->  | AF25: C
AE26: =IF(AC26="","",VLOOKUP(AC26,List!$B$2:$E$29,4,FALSE)) -> 
AE27: =IF(AC27="","",VLOOKUP(AC27,List!$B$2:$E$29,4,FALSE)) -> 
AE28: =IF(AC28="","",VLOOKUP(AC28,List!$B$2:$E$29,4,FALSE)) -> 
AE29: =IF(AC29="","",VLOOKUP(AC29,List!$B$2:$E$29,4,FALSE)) -> 
AE30: =IF(AC30="","",VLOOKUP(AC30,List!$B$2:$E$29,4,FALSE)) -> 
AE31: =IF(AC31="","",VLOOKUP(AC31,List!$B$2:$E$29,4,FALSE)) -> 
AE32: =IF(AC32="","",VLOOKUP(AC32,List!$B$2:$E$29,4,FALSE)) -> 
AE33: =IF(AC33="","",VLOOKUP(AC33,List!$B$2:$E$29,4,FALSE)) -> 
AE34: =IF(AC34="","",VLOOKUP(AC34,List!$B$2:$E$29,4,FALSE)) -> 
AE35: =IF(AC35="","",VLOOKUP(AC35,List!$B$2:$E$29,4,FALSE)) -> 
AE36: =IF(AC36="","",VLOOKUP(AC36,List!$B$2:$E$29,4,FALSE)) -> 
AE37: =IF(AC37="","",VLOOKUP(AC37,List!$B$2:$E$29,4,FALSE)) -> 
AE38: =IF(AC38="","",VLOOKUP(AC38,List!$B$2:$E$29,4,FALSE)) -> 
AE39: =IF(AC39="","",VLOOKUP(AC39,List!$B$2:$E$29,4,FALSE)) -> 
AE40: =IF(AC40="","",VLOOKUP(AC40,List!$B$2:$E$29,4,FALSE)) -> 
AE41: =IF(AC41="","",VLOOKUP(AC41,List!$B$2:$E$29,4,FALSE)) -> 
AE42: =IF(AC42="","",VLOOKUP(AC42,List!$B$2:$E$29,4,FALSE)) -> 
AE43: =IF(AC43="","",VLOOKUP(AC43,List!$B$2:$E$29,4,FALSE)) -> 
AE44: =IF(AC44="","",VLOOKUP(AC44,List!$B$2:$E$29,4,FALSE)) -> 
AE45: =IF(AC45="","",VLOOKUP(AC45,List!$B$2:$E$29,4,FALSE)) -> 
AE46: =IF(AC46="","",VLOOKUP(AC46,List!$B$2:$E$29,4,FALSE)) -> 

Sheet Récape annuelle
B1: Mois
B2: 2017-07-01 | C2: 2017-08-01 | D2: 2017-09-01 | E2: 2017-10-01 | F2: 2017-11-01 | G2: 2017-12-01 | H2: 2018-01-01 | I2: 2018-02-01 | J2: 2018-03-01 | K2: 2018-04-01 | L2: 2018-05-01 | M2: 2018-06-01 | N2: 2018-07-01 | O2: 2018-08-01 | P2: 2018-09-01 | Q2: 2018-10-01 | R2: 2018-11-01 | S2: 2018-12-01
A4: Humidité ext. Mini (%) | B4: ='Juillet 17'!J7 -> 0.5 | C4: ='Aout 17'!J7 -> 0.83 | D4: ='Septembre 17'!J7 -> 0.77 | E4: ='Octobre 17'!J7 -> 0.76 | F4: ='Novembre 17'!J7 -> 0.98 | G4: ='Décembre 17'!J7 -> 0.63 | H4: ='Janvier 18'!$J$7 -> 0.86 | I4: ='Février 18'!$J$7 -> 42 | J4: ='Mars 18'!$J$7 -> 0.92
A5: Humidité ext. Maxi(%) | B5: ='Juillet 17'!J8 -> 0.99 | C5: ='Aout 17'!J8 -> 0.97 | D5: ='Septembre 17'!J8 -> 0.99 | E5: ='Octobre 17'!J8 -> 0.99 | F5: ='Novembre 17'!J8 -> 0.96 | G5: ='Décembre 17'!J8 -> 0.91 | H5: ='Janvier 18'!$J$8 -> 0.89 | I5: ='Février 18'!$J$8 -> 90 | J5: ='Mars 18'!$J$8 -> 89
A6: T° Mini ext. (°C) | B6: ='Juillet 17'!$H$7 -> 19.3 | C6: ='Aout 17'!$H$7 -> 15.8 | D6: ='Septembre 17'!$H$7 -> 16.8 | E6: ='Octobre 17'!$H$7 -> 15.8 | F6: ='Novembre 17'!$H$7 -> 9.6 | G6: ='Décembre 17'!$H$7 -> 6.9 | H6: ='Janvier 18'!$H$7 -> 6.5 | I6: ='Février 18'!$H$7 -> 3.4 | J6: ='Mars 18'!$H$7 -> 4.1
A7: T° Maxi ext. (°C) | B7: ='Juillet 17'!$H$8 -> 39.5 | C7: ='Aout 17'!$H$8 -> 33.4 | D7: ='Septembre 17'!$H$8 -> 26 | E7: ='Octobre 17'!$H$8 -> 26 | F7: ='Novembre 17'!$H$8 -> 20.4 | G7: ='Décembre 17'!$H$8 -> 17.6 | H7: ='Janvier 18'!$H$8 -> 15.3 | I7: ='Février 18'!$H$8 -> 15 | J7: ='Mars 18'!$H$8 -> 18.8
A8: Press. relative Mini (hpa) | B8: ='Juillet 17'!$L$7 -> 1010.4 | C8: ='Aout 17'!$L$7 -> 1012.6 | D8: ='Septembre 17'!$L$7 -> 1002.9 | E8: ='Octobre 17'!$L$7 -> 1006.3 | F8: ='Novembre 17'!$L$7 -> 1006 | G8: ='Décembre 17'!$L$7 -> 999.6 | H8: ='Janvier 18'!$L$7 -> 999.4 | I8: ='Février 18'!$L$7 -> 1007.8 | J8: ='Mars 18'!$L$7 -> 985.1
A9: Press. relative Maxi (hpa) | B9: ='Juillet 17'!$L$8 -> 1039.2 | C9: ='Aout 17'!$L$8 -> 1024.2 | D9: ='Septembre 17'!$L$8 -> 1023.7 | E9: ='Octobre 17'!$L$8 -> 1032.8 | F9: ='Novembre 17'!$L$8 -> 1028.4 | G9: ='Décembre 17'!$L$8 -> 1038.5 | H9: ='Janvier 18'!$L$8 -> 1036.2 | I9: ='Février 18'!$L$8 -> 1025.3 | J9: ='Mars 18'!$L$8 -> 1031.4
A10: Vit. Min. du vent (km/h) | B10: ='Juillet 17'!$N$7 -> 0 | C10: ='Aout 17'!$N$7 -> 0 | D10: ='Septembre 17'!$N$7 -> 0 | E10: ='Octobre 17'!$N$7 -> 0 | F10: ='Novembre 17'!$N$7 -> 0 | G10: ='Décembre 17'!$N$7 -> 0 | H10: ='Janvier 18'!$N$7 -> 0 | I10: ='Février 18'!$N$7 -> 0 | J10: ='Mars 18'!$N$7 -> 0
A11: Vit. Max. du vent (km/h) | B11: ='Juillet 17'!$N$8 -> 3.6 | C11: ='Aout 17'!$N$8 -> 2.5 | D11: ='Septembre 17'!$N$8 -> 1.1 | E11: ='Octobre 17'!$N$8 -> 2.5 | F11: ='Novembre 17'!$N$8 -> 1.1 | G11: ='Décembre 17'!$N$8 -> 6.1 | H11: ='Janvier 18'!$N$8 -> 5 | I11: ='Février 18'!$N$8 -> 3.6 | J11: ='Mars 18'!$N$8 -> 2.5
A12: Rafale Mini (km/h) | B12: ='Juillet 17'!$R$7 -> 0 | C12: ='Aout 17'!$R$7 -> 0 | D12: ='Septembre 17'!$R$7 -> 0 | E12: ='Octobre 17'!$R$7 -> 0 | F12: ='Novembre 17'!$R$7 -> 0 | G12: ='Décembre 17'!$R$7 -> 0 | H12: ='Janvier 18'!$R$7 -> 0 | I12: ='Février 18'!$R$7 -> 0 | J12: ='Mars 18'!$R$7 -> 0
A13: Rafale Maxi (km/h) | B13: ='Juillet 17'!$R$8 -> 5 | C13: ='Aout 17'!$R$8 -> 3.6 | D13: ='Septembre 17'!$R$8 -> 2.5 | E13: ='Octobre 17'!$R$8 -> 3.6 | F13: ='Novembre 17'!$R$8 -> 3.6 | G13: ='Décembre 17'!$R$8 -> 9.7 | H13: ='Janvier 18'!$R$8 -> 7.2 | I13: ='Février 18'!$R$8 -> 5 | J13: ='Mars 18'!$R$8 -> 2.5
A14: Direction Mini du vent | B14: ='Juillet 17'!$W$7 -> NNE | C14: ='Aout 17'!$W$7 -> NNE | D14: ='Septembre 17'!$W$7 -> NNE | E14: ='Octobre 17'!$W$7 -> NNE | F14: ='Novembre 17'!$W$7 -> NNE | G14: ='Décembre 17'!$W$7 -> ENE | H14: ='Janvier 18'!$W$7 -> N | I14: ='Février 18'!$W$7 -> NNE | J14: ='Mars 18'!$W$7 -> NNE
A15: Direction Maxi du vent | B15: ='Juillet 17'!$W$8 -> NO | C15: ='Aout 17'!$W$8 -> N | D15: ='Septembre 17'!$W$8 -> EST | E15: ='Octobre 17'!$W$8 -> EST | F15: ='Novembre 17'!$W$8 -> NO | G15: ='Décembre 17'!$W$8 -> EST | H15: ='Janvier 18'!$W$8 -> EST | I15: ='Février 18'!$W$8 -> NO | J15: ='Mars 18'!$W$8 -> NO
A16: Précipi. Mini dern. 24 h (mm) | B16: ='Juillet 17'!$Y$7 -> 0 | C16: ='Aout 17'!$Y$7 -> 0 | D16: ='Septembre 17'!$Y$7 -> 0 | E16: ='Octobre 17'!$Y$7 -> 0 | F16: ='Novembre 17'!$Y$7 -> 0 | G16: ='Décembre 17'!$Y$7 -> 0 | H16: ='Janvier 18'!$Y$7 -> 0 | I16: ='Février 18'!$Y$7 -> 0 | J16: ='Mars 18'!$Y$7 -> 0
A17: Précipi. Maxi dern. 24 h (mm) | B17: ='Juillet 17'!$Y$8 -> 12.3 | C17: ='Aout 17'!$Y$8 -> 18.3 | D17: ='Septembre 17'!$Y$8 -> 13.8 | E17: ='Octobre 17'!$Y$8 -> 10.8 | F17: ='Novembre 17'!$Y$8 -> 13.5 | G17: ='Décembre 17'!$Y$8 -> 29.4 | H17: ='Janvier 18'!$Y$8 -> 21 | I17: ='Février 18'!$Y$8 -> 15 | J17: ='Mars 18'!$Y$8 -> 11.4
A18: Précipi. Tot. mois (mm) | B18: ='Juillet 17'!$Z$8 -> 52.8 | C18: ='Aout 17'!$Z$8 -> 53.4 | D18: ='Septembre 17'!$Z$8 -> 75 | E18: ='Octobre 17'!$Z$8 -> 22.2 | F18: ='Novembre 17'!$Z$8 -> 66.6 | G18: ='Décembre 17'!$Z$8 -> 128.1 | H18: ='Janvier 18'!$Z$8 -> 70.2 | I18: ='Février 18'!$Z$8 -> 76.8 | J18: ='Mars 18'!$Z$8 -> 86.7
A19: Moyenne journalière des précipitations | B19: ='Juillet 17'!$Y$12 -> 2.030769231 | C19: ='Aout 17'!$Y$12 -> 2.810526316 | D19: ='Septembre 17'!$Y$12 -> 2.51 | E19: ='Octobre 17'!$Y$12 -> 0.7451612903 | F19: ='Novembre 17'!$Y$12 -> 2.22 | G19: ='Décembre 17'!$Y$12 -> 3.3 | H19: ='Janvier 18'!$Y$12 -> 2.264516129 | I19: ='Février 18'!$Y$12 -> 2.742857143 | J19: ='Mars 18'!$Y$12 -> 3.164516129
A20: Précipi. Tot. An (mm) | B20: ='Juillet 17'!$AA$8 -> 52.8 | C20: ='Aout 17'!$AA$8 -> 154.2 | D20: ='Septembre 17'!$AA$8 -> 187.2 | E20: ='Octobre 17'!$AA$8 -> 210.3 | F20: ='Novembre 17'!$AA$8 -> 290.7 | G20: ='Décembre 17'!$AA$8 -> 418.8 | H20: ='Janvier 18'!$AA$8 -> 70.2 | I20: ='Février 18'!$AA$8 -> 147 | J20: ='Mars 18'!$AA$8 -> 245.1
A21: Lumière Mini(W/M2) | B21: ='Juillet 17'!$AB$7 -> 0 | C21: ='Aout 17'!$AB$7 -> 0.43 | D21: ='Septembre 17'!$AB$7 -> 162.85 | E21: ='Octobre 17'!$AB$7 -> 59.58 | F21: ='Novembre 17'!$AB$7 -> 138.72 | G21: ='Décembre 17'!$AB$7 -> 62.38 | H21: ='Janvier 18'!$AB$7 -> 28.29 | I21: ='Février 18'!$AB$7 -> 66.85 | J21: ='Mars 18'!$AB$7 -> 71.55
A22: Lumière Maxi(W/M2) | B22: ='Juillet 17'!$AB$8 -> 1086.75 | C22: ='Aout 17'!$AB$8 -> 1048.73 | D22: ='Septembre 17'!$AB$8 -> 853.43 | E22: ='Octobre 17'!$AB$8 -> 603.15 | F22: ='Novembre 17'!$AB$8 -> 457.89 | G22: ='Décembre 17'!$AB$8 -> 378.84 | H22: ='Janvier 18'!$AB$8 -> 435.46 | I22: ='Février 18'!$AB$8 -> 434.42 | J22: ='Mars 18'!$AB$8 -> 684.52
A23: Moyenne lumière | B23: ='Juillet 17'!$AB$12 -> 785.5688462 | C23: ='Aout 17'!$AB$12 -> 717.2547368 | D23: ='Septembre 17'!$AB$12 -> 567.81 | E23: ='Octobre 17'!$AB$12 -> 379.2106452 | F23: ='Novembre 17'!$AB$12 -> 314.7146667 | G23: ='Décembre 17'!$AB$12 -> 203.6748387 | H23: ='Janvier 18'!$AB$12 -> 236.1393548 | I23: ='Février 18'!$AB$12 -> 311.2925 | J23: ='Mars 18'!$AB$12 -> 469.6509677
A24: UVI Mini | B24: ='Juillet 17'!$AG$7 -> 0 | C24: ='Aout 17'!$AG$7 -> 0 | D24: ='Septembre 17'!$AG$7 -> 3 | E24: ='Octobre 17'!$AG$7 -> 1 | F24: ='Novembre 17'!$AG$7 -> 2 | G24: ='Décembre 17'!$AG$7 -> 1 | H24: ='Janvier 18'!$AG$7 -> 1 | I24: ='Février 18'!$AG$7 -> 1 | J24: ='Mars 18'!$AG$7 -> 1
A25: UVI Maxi | B25: ='Juillet 17'!$AG$8 -> 10 | C25: ='Aout 17'!$AG$8 -> 9 | D25: ='Septembre 17'!$AG$8 -> 8 | E25: ='Octobre 17'!$AG$8 -> 5 | F25: ='Novembre 17'!$AG$8 -> 3 | G25: ='Décembre 17'!$AG$8 -> 3 | H25: ='Janvier 18'!$AG$8 -> 3 | I25: ='Février 18'!$AG$8 -> 4 | J25: ='Mars 18'!$AG$8 -> 7

Sheet Juillet 17 (hidden)
A1: Soleil | B1: C | C1: Ciel voilé | D1: Rares éclaircies | E1: Soleil Fortes averses | F1: Variable | J1: Orageux | K1: Soleil orage | L1: Soleil averses orageuses | M1: Pluies orageuses | N1: Orage | O1: Orage et grêles | P1: Orage violent | AQ1: 30 | AR1: 51 | AS1: 299 | AT1: 700
B2: 1 | C2: 2 | D2: 0.03 | E2: 4 | F2: 5 | K2: 18 | L2: 19 | M2: 20 | N2: 21 | O2: 22 | P2: 23 | AY2: =COUNTIF($W$14:$W$46,AZ2) -> 6 | AZ2: N | BA2: 0
A3: Nuageux & Brumeux | B3: C | C3: Brouillard dense | D3: Brume ou Brouillard légé | E3: Brume ou léger brouillard givrant | F3: Nuageux | G3: Couvert | H3: Couvert rares averses | J3: Grèle & Neige | K3: Giboulées | L3: Grèles | M3: Neiges | N3: Fortes neiges | AY3: =COUNTIF($W$14:$W$46,AZ3) -> 0 | AZ3: NNE | BA3: 23
B4: 6 | C4: 7 | D4: 0.08 | E4: 9 | F4: 10 | G4: 11 | H4: 12 | K4: 24 | L4: 25 | M4: 26 | N4: 27 | AY4: 1 | AZ4: NE | BA4: 45
A5: Pluvieux | B5: Pluies et éclaircies | C5: Pluies éparses | D5: Bruines | E5: Averses ou fortes pluies | F5: Pluies mélées de neige | AY5: 0 | AZ5: ENE | BA5: 68
B6: 13 | C6: 14 | D6: 0.15 | E6: 16 | F6: 17 | AY6: 5 | AZ6: EST | BA6: 90
F7: =IF(F14="","",MIN(F14:F46)) -> 9.6 | H7: =IF(H14="","",MIN(H14:H46)) -> 19.3 | J7: 0.5 | L7: 1010.4 | N7: 0 | P7: 8.6 | R7: 0 | T7: 12.2 | V7: =VLOOKUP(W7,$AZ$2:$BA$17,2,FALSE) -> 23 | W7: =W10 -> NNE | Y7: =MIN(Y14:Y46) -> 0 | AB7: 0 | AG7: 0 | AY7: 0 | AZ7: ESE | BA7: 113
F8: =IF(F15="","",MAX(F14:F46)) -> 22.4 | H8: =IF(H15="","",MAX(H14:H46)) -> 39.5 | J8: 0.99 | L8: 1039.2 | N8: 3.6 | P8: 20.9 | R8: 5 | T8: 30.6 | V8: =VLOOKUP(W8,$AZ$2:$BA$17,2,FALSE) -> 315 | W8: =W11 -> NO | Y8: =MAX(Y14:Y46) -> 12.3 | Z8: 52.8 | AA8: 52.8 | AB8: 1086.75 | AG8: 10 | AY8: 6 | AZ8: SE | BA8: 135
AY9: 0 | AZ9: SSE | BA9: 158
V10: =SMALL($AY$2:$AY$17,1) -> 0 | W10: =VLOOKUP(V10,$AY$2:$AZ$17,2,FALSE) -> NNE | Z10: =MAX(Z14:Z46) -> 52.8 | AP10: 31 | AQ10: 99 | AR10: 300 | AY10: 1 | AZ10: S | BA10: 180
F11: =IF(F14="","",MIN(F14:F46)) -> 9.6 | G11: =VLOOKUP(F11,F14:G46,2,FALSE) -> 02:48:33 | H11: =IF(H14="","",MAX(H14:H46)) -> 39.5 | I11: =VLOOKUP(H11,H14:I46,2,FALSE) -> 16:34:24 | V11: =LARGE($AY$2:$AY$17,1) -> 7 | W11: =VLOOKUP(V11,$AY$2:$AZ$17,2,FALSE) -> NO | AP11: 49 | AQ11: 100 | AR11: 301 | AY11: 0 | AZ11: SSO | BA11: 203
A12: Moyenne Mensuelle | B12: =AVERAGE(B14:B46) -> 25.74615385 | D12: =AVERAGE(D14:D46) -> 0.6676923077 | F12: =AVERAGE(F14:F46) -> 13.87307692 | H12: =AVERAGE(H14:H46) -> 26.26153846 | J12: =AVERAGE(J14:J46) -> 0.8957692308 | L12: =AVERAGE(L14:L46) -> 1025.276923 | N12: =AVERAGE(N14:N46) -> 0.2769230769 | R12: =AVERAGE(R14:R46) -> 0.4692307692 | W12: SE | X12: 09:30:45 | Y12: =AVERAGE(Y14:Y44) -> 2.030769231 | Z12: =AVERAGE(Z14:Z46) -> 25.07307692 | AB12: =AVERAGE(AB14:AB46) -> 785.5688462 | AG12: =AVERAGE(AG14:AG46) -> 7.884615385 | AP12: 50 | AQ12: 101 | AR12: 699 | AY12: 0 | AZ12: SO | BA12: 225
A13: Jour | B13: T° int. (°C) | C13: Heure | D13: Hum int. (%) | E13: Heure | F13: T° Mini ext. (°C) | G13: Heure | H13: T° Maxi ext. (°C) | I13: Heure | J13: Hum ext. (%) | K13: Heure | L13: Press. rel. (hpa) | M13: Heure | N13: Vit. du vent (km/h) | O13: Heure | P13: Vit. du vent (km/h) | Q13: Heure | R13: Rafale Min (km/h) | S13: Heure | T13: Rafale Max (km/h) | U13: Heure | V13: Direction du vent | X13: Heure | Y13: Précipi. dern. 24 h (mm) | Z13: Précipi. Tot. mois (mm) | AA13: Précipi. Tot. An (mm) | AB13: Lumière (W/M2) | AG13: UVI | AH13: Heure | AJ13: Intensité des UV | AY13: 0 | AZ13: OSO | BA13: 248
A14: 2017-07-06 | B14: 27.7 | C14: 16:26:24 | D14: 0.69 | E14: 23:43:23 | F14: 22.4 | G14: 09:39:33 | H14: 39.5 | I14: 16:34:24 | J14: 0.5 | K14: 18:48:24 | L14: 1028.6 | M14: 23:29:23 | N14: 1.1 | O14: 11:26:23 | P14: 9.7 | Q14: 12:06:23 | R14: 2.5 | S14: 11:26:23 | T14: 13.3 | U14: 09:41:09 | V14: =IF(W14="N",0,IF(W14="NNE",23,IF(W14="NE",45,IF(W14="ENE",68,IF(W14="EST",90,IF(W14="ESE",113,IF(W14="SE",135,IF(W14="SSE",158,IF(W14="S",180,IF(W14="SSO",203,IF(W14="SO",225,IF(W14="OSO",248,IF(W14="O",270,IF(W14="ONO",293,IF(W14="NO",315,IF(W14="NNO",338,"")))))))))))))))) -> 135 | W14: SE | X14: 14:22:24 | Y14: 3.6 | Z14: =Y14 -> 3.6 | AA14: =IF(W14="","",'Feuille Max Mini'!U29) -> 0 | AB14: ='Feuille Max Mini'!W29 -> 0 | AC14: 13 | AE14: =IF(AC14="","",VLOOKUP(AC14,List!$B$2:$E$29,4,FALSE)) -> Pluies et éclaircies | AG14: ='Feuille Max Mini'!AB29 -> 0 | AH14: =IF(AG14="","",INDEX('Feuille Max Mini'!$D$23:$D$5418,MATCH(AG14,'Feuille Max Mini'!AB31:AB5426,0))) -> 00:00:00 | AJ14: FAIBLE | AK14: <2 | AO14: Soleil | AP14: C | AQ14: Ciel voilé | AR14: Rares éclaircies | AS14: Soleil Fortes averses | AT14: Variable | AU14: 0 | AV14: 0 | AY14: 0 | AZ14: O | BA14: 270
A15: =IF(B15="","",A14+1) -> 2017-07-07 | B15: 27.9 | C15: 15:13:34 | D15: 0.68 | E15: 09:37:23 | F15: 15.3 | G15: 23:56:15 | H15: 30.7 | I15: 15:51:27 | J15: 0.8 | K15: 23:52:15 | L15: 1032.3 | M15: 15:11:34 | N15: 0 | O15: 20:57:03 | P15: 15.8 | Q15: 15:57:51 | R15: 0 | S15: 23:29:03 | T15: 19.4 | U15: 15:57:51 | V15: 315 | W15: NO | X15: 15:19:43 | Y15: 0 | Z15: =IF(Y15="","",Y15+Z14) -> 3.6 | AA15: 3.6 | AB15: 886.84 | AC15: 1 | AE15: =IF(AC15="","",VLOOKUP(AC15,List!$B$2:$E$29,4,FALSE)) -> Ciel dégagé | AF15: =IF(AC15="","",) -> 0 | AG15: 9 | AH15: 00:03:23 | AJ15: MODEREE | AK15: 3 | AL15: à | AM15: 5 | AY15: 0 | AZ15: ONO | BA15: 293
A16: =IF(B16="","",A15+1) -> 2017-07-08 | B16: 31.8 | C16: 15:14:23 | D16: 0.63 | E16: 08:48:15 | F16: 12.9 | G16: 02:21:51 | H16: 30.5 | I16: 14:50:39 | J16: 0.99 | K16: 06:35:27 | L16: 1034.4 | M16: 09:45:19 | N16: 0 | O16: 00:00:31 | P16: 17.3 | Q16: 16:53:51 | R16: 0 | S16: 00:00:31 | T16: 20.9 | U16: 15:18:39 | V16: 0 | W16: N | X16: 08:25:03 | Y16: 2.7 | Z16: 6.3 | AA16: 6.3 | AB16: 1027.46 | AC16: 4 | AE16: =IF(AC16="","",VLOOKUP(AC16,List!$B$2:$E$29,4,FALSE)) -> Soleil nuageux et averses | AF16: Averses ou fortes pluies | AG16: 10 | AH16: 13:02:23 | AJ16: FORTE | AK16: 6 | AL16: à | AM16: 7 | AO16: Nuageux & Brumeux | AP16: C | AQ16: Brouillard dense | AR16: Brume ou Brouillard légé | AS16: Brume ou léger brouillard givrant | AT16: Nuageux | AU16: Couvert | AV16: Couvert rares averses | AY16: 7 | AZ16: NO | BA16: 315
A17: 2017-07-09 | B17: 26.4 | C17: 15:03:12 | D17: 0.64 | E17: 02:05:19 | F17: 14.1 | G17: 06:19:27 | H17: 30.6 | I17: 16:10:40 | J17: 0.99 | K17: 06:52:15 | L17: 1029.3 | M17: 00:03:27 | N17: 0 | O17: 00:00:31 | P17: 15.8 | Q17: 14:11:28 | R17: 0 | S17: 00:00:31 | T17: 22 | U17: 14:10:40 | V17: 0 | W17: N | X17: 02:59:27 | Y17: 0 | Z17: 6.3 | AA17: 6.3 | AB17: 1071.47 | AC17: 1 | AE17: =IF(AC17="","",VLOOKUP(AC17,List!$B$2:$E$29,4,FALSE)) -> Ciel dégagé | AF17: Pluies et éclaircies | AG17: 10 | AH17: 13:43:12 | AJ17: TRES FORTE | AK17: 8 | AL17: à | AM17: 10 | AY17: 0 | AZ17: NNO | BA17: 338
A18: 2017-07-10 | B18: 27.9 | C18: 15:33:20 | D18: 0.64 | E18: 01:16:49 | F18: 14.6 | G18: 07:27:29 | H18: 28.3 | I18: 15:23:28 | J18: 0.92 | K18: 05:54:41 | L18: 1026.7 | M18: 08:48:17 | N18: 0 | O18: 00:00:17 | P18: 14.8 | Q18: 15:39:28 | R18: 0 | S18: 00:02:41 | T18: 19.4 | U18: 15:38:40 | V18: 315 | W18: NO | X18: 00:14:41 | Y18: 0.6 | Z18: 6.9 | AA18: 6.9 | AB18: 1051.79 | AC18: 4 | AE18: =IF(AC18="","",VLOOKUP(AC18,List!$B$2:$E$29,4,FALSE)) -> Soleil nuageux et averses | AF18: C | AG18: 10 | AH18: 12:23:11 | AJ18: EXTREME | AK18: 11+ | AO18: Pluvieux | AP18: Pluies et éclaircies | AQ18: Pluies éparses | AR18: Bruines | AS18: Averses ou fortes pluies | AT18: Pluies mélées de neige
A19: 2017-07-11 | B19: 25.1 | C19: 12:03:30 | D19: 0.63 | E19: 08:33:30 | F19: 12.3 | G19: 06:33:30 | H19: 21.2 | I19: 13:03:30 | J19: 0.95 | K19: 22:33:31 | L19: 1026.6 | M19: 08:48:30 | N19: 0 | O19: 00:48:30 | P19: 15.8 | Q19: 17:03:31 | R19: 0 | S19: 01:18:30 | T19: 19.4 | U19: 17:03:31 | V19: 135 | W19: SE | X19: 19:03:31 | Y19: 0.3 | Z19: 7.2 | AA19: 7.2 | AB19: 348.64 | AC19: 4 | AE19: =IF(AC19="","",VLOOKUP(AC19,List!$B$2:$E$29,4,FALSE)) -> Soleil nuageux et averses | AF19: C | AG19: 5 | AH19: 12:03:30
A20: 2017-07-12 | B20: 26.1 | C20: 15:33:31 | D20: 0.66 | E20: 20:48:31 | F20: 16.5 | G20: 06:33:31 | H20: 24 | I20: 15:18:31 | J20: 0.94 | K20: 04:03:31 | L20: 1032.7 | M20: 23:48:31 | N20: 0 | O20: 22:33:31 | P20: 9.7 | Q20: 14:33:31 | R20: 0 | S20: 22:33:31 | T20: 13.3 | U20: 14:33:31 | V20: 315 | W20: NO | X20: 16:33:31 | Y20: 0.3 | Z20: 7.5 | AA20: 7.5 | AB20: 566.68 | AC20: 13 | AE20: =IF(AC20="","",VLOOKUP(AC20,List!$B$2:$E$29,4,FALSE)) -> Pluies et éclaircies | AF20: C | AG20: 8 | AH20: 14:33:31 | AO20: Orageux | AP20: Soleil orage | AQ20: Soleil averses orageuses | AR20: Pluies orageuses | AS20: Orage | AT20: Orage et grêles | AU20: Orage violent
A21: 2017-07-13 | B21: 26.3 | C21: 15:33:31 | D21: 0.68 | E21: 01:48:31 | F21: 12.5 | G21: 00:00:00 | H21: 27.1 | I21: 14:03:31 | J21: 0.99 | K21: 05:48:31 | L21: 1034.1 | M21: 09:03:31 | N21: 0 | O21: 00:18:31 | P21: 14.8 | Q21: 15:48:31 | R21: 0 | S21: 00:18:31 | T21: 19.4 | U21: 18:33:31 | V21: 315 | W21: NO | X21: 11:03:31 | Y21: 0 | Z21: 7.5 | AA21: 7.5 | AB21: 954.91 | AC21: 1 | AE21: =IF(AC21="","",VLOOKUP(AC21,List!$B$2:$E$29,4,FALSE)) -> Ciel dégagé | AF21: Averses ou fortes pluies | AG21: 9 | AH21: 13:33:31
A22: 2017-07-14 | B22: 23.5 | C22: 11:03:31 | D22: 0.66 | E22: 03:18:31 | F22: 11.4 | G22: 00:48:31 | H22: 24.9 | I22: 16:18:31 | J22: 0.94 | K22: 01:18:31 | L22: 1036.8 | M22: 00:00:00 | N22: 0 | O22: 00:18:31 | P22: 17.3 | Q22: 17:18:31 | R22: 0 | S22: 00:18:31 | T22: 22 | U22: 17:18:31 | V22: 315 | W22: NO | X22: 13:18:31 | Y22: 0 | Z22: 7.5 | AA22: 7.5 | AB22: 942.61 | AC22: 1 | AE22: =IF(AC22="","",VLOOKUP(AC22,List!$B$2:$E$29,4,FALSE)) -> Ciel dégagé | AF22: Pluies et éclaircies | AG22: 9 | AH22: 15:48:31 | AO22: Grèle & Neige | AP22: Giboulées | AQ22: Grèles | AR22: Neiges | AS22: Fortes neiges | AT22: 0 | AU22: 0
A23: 2017-07-15 | B23: 23.2 | C23: 16:18:31 | D23: 0.67 | E23: 07:48:31 | F23: 10.7 | G23: 02:48:31 | H23: 29.6 | I23: 15:03:31 | J23: 0.95 | K23: 05:48:31 | L23: 1038.5 | M23: 09:48:31 | N23: 0 | O23: 00:18:31 | P23: 12.2 | Q23: 15:48:31 | R23: 0 | S23: 00:18:31 | T23: 15.8 | U23: 15:48:31 | V23: 0 | W23: N | X23: 11:03:31 | Y23: 0 | Z23: 7.5 | AA23: 7.5 | AB23: 898.17 | AC23: 1 | AE23: =IF(AC23="","",VLOOKUP(AC23,List!$B$2:$E$29,4,FALSE)) -> Ciel dégagé | AF23: Pluies éparses | AG23: 9 | AH23: 13:03:31
A24: 2017-07-16 | B24: 23.7 | C24: 19:33:31 | D24: 0.68 | E24: 21:33:37 | F24: 10.6 | G24: 04:33:31 | H24: 26.7 | I24: 16:48:31 | J24: 0.99 | K24: 07:48:31 | L24: 1039.2 | M24: 10:03:31 | N24: 0 | O24: 00:18:31 | P24: 14.8 | Q24: 20:33:31 | R24: 0 | S24: 00:18:31 | T24: 20.9 | U24: 19:48:31 | V24: 0 | W24: N | X24: 14:03:31 | Y24: 0 | Z24: 7.5 | AA24: 7.5 | AB24: 436.55 | AC24: 5 | AE24: =IF(AC24="","",VLOOKUP(AC24,List!$B$2:$E$29,4,FALSE)) -> Variable | AF24: Pluies et éclaircies | AG24: 5 | AH24: 15:33:31 | AO24: Temps de nuit | AP24: Ciel dégagé de nuit | AQ24: Ciel voilé de nuit | AR24: Brume ou brouillard léger de nuit | AS24: Brume ou léger brouillard givrant de nuit | AT24: Brouillard dense de nuit | AU24: Ciel nuageux avec éclaircies de nuit
A25: 2017-07-17 | B25: 25.8 | C25: 22:18:32 | D25: 0.7 | E25: 10:18:37 | F25: 15.3 | G25: 00:18:37 | H25: 29.7 | I25: 16:48:32 | J25: 0.99 | K25: 04:33:37 | L25: 1036.2 | M25: 00:18:37 | N25: 0 | O25: 02:18:37 | P25: 14.8 | Q25: 18:33:32 | R25: 0 | S25: 23:18:32 | T25: 18.4 | U25: 18:03:32 | V25: 0 | W25: N | X25: 03:03:37 | Y25: 0 | Z25: 7.5 | AA25: 7.5 | AB25: 993.66 | AC25: 1 | AE25: =IF(AC25="","",VLOOKUP(AC25,List!$B$2:$E$29,4,FALSE)) -> Ciel dégagé | AF25: C | AG25: 10 | AH25: 14:03:32
A26: 2017-07-18 | B26: 27.6 | C26: 17:03:34 | D26: 0.7 | E26: 14:03:34 | F26: 14.4 | G26: 06:18:32 | H26: 30.7 | I26: 11:48:32 | J26: 0.99 | K26: 08:18:32 | L26: 1028.7 | M26: 00:18:32 | N26: 0 | O26: 00:18:32 | P26: 11.2 | Q26: 13:48:34 | R26: 0 | S26: 00:18:32 | T26: 15.8 | U26: 13:48:34 | V26: 45 | W26: NE | X26: 19:33:34 | Y26: 11.7 | Z26: 19.2 | AA26: 19.2 | AB26: 545.88 | AC26: 16 | AE26: =IF(AC26="","",VLOOKUP(AC26,List!$B$2:$E$29,4,FALSE)) -> Averses ou fortes pluies | AG26: 5 | AH26: 11:03:32
A27: 2017-07-19 | B27: 27.2 | C27: 12:48:34 | D27: 0.69 | E27: 00:18:34 | F27: 18.3 | G27: 00:00:00 | H27: 23.2 | I27: 17:48:34 | J27: 0.91 | K27: 00:33:34 | L27: 1021.1 | M27: 12:18:34 | N27: 3.6 | O27: 00:18:34 | P27: 9.7 | Q27: 00:48:34 | R27: 5 | S27: 05:18:34 | T27: 15.8 | U27: 09:48:34 | V27: 135 | W27: SE | X27: 07:18:34 | Y27: 0 | Z27: 19.2 | AA27: 19.2 | AB27: 377.41 | AC27: 5 | AE27: =IF(AC27="","",VLOOKUP(AC27,List!$B$2:$E$29,4,FALSE)) -> Variable | AG27: 4 | AH27: 12:18:34
A28: 2017-07-20 | B28: 25.4 | C28: 15:33:33 | D28: 0.68 | E28: 01:33:34 | F28: 12.7 | G28: 00:00:00 | H28: 23.5 | I28: 14:48:33 | J28: 0.91 | K28: 03:03:34 | L28: 1026.7 | M28: 14:03:33 | N28: 0 | O28: 21:33:33 | P28: 9.7 | Q28: 01:33:34 | R28: 0 | S28: 22:03:33 | T28: 13.3 | U28: 01:33:34 | V28: 90 | W28: EST | X28: 18:18:33 | Y28: 0 | Z28: 19.2 | AA28: 19.2 | AB28: 954.29 | AC28: 1 | AE28: =IF(AC28="","",VLOOKUP(AC28,List!$B$2:$E$29,4,FALSE)) -> Ciel dégagé | AG28: 10 | AH28: 14:03:33
A29: 2017-07-21 | B29: 25.7 | C29: 15:18:32 | D29: 0.64 | E29: 07:48:33 | F29: 9.6 | G29: 02:48:33 | H29: 22.6 | I29: 15:18:32 | J29: 0.95 | K29: 22:03:32 | L29: 1025.6 | M29: 00:18:33 | N29: 0 | O29: 00:18:33 | P29: 20.9 | Q29: 15:03:32 | R29: 0 | S29: 00:18:33 | T29: 30.6 | U29: 15:33:32 | V29: 180 | W29: S | X29: 01:48:33 | Y29: 12.3 | Z29: 31.5 | AA29: 31.5 | AB29: 869.01 | AC29: 16 | AE29: =IF(AC29="","",VLOOKUP(AC29,List!$B$2:$E$29,4,FALSE)) -> Averses ou fortes pluies | AG29: 9 | AH29: 14:33:32
A30: 2017-07-22 | B30: 24.5 | C30: 14:48:33 | D30: 0.65 | E30: 03:48:32 | F30: 10.7 | G30: 02:33:32 | H30: 19.3 | I30: 18:03:33 | J30: 0.99 | K30: 01:03:32 | L30: 1024.9 | M30: 00:00:00 | N30: 0 | O30: 00:18:32 | P30: 14.8 | Q30: 16:33:33 | R30: 0 | S30: 00:18:32 | T30: 18.4 | U30: 16:33:33 | V30: 90 | W30: EST | X30: 16:33:33 | Y30: 4.8 | Z30: 36.3 | AA30: 36.3 | AB30: 929.38 | AC30: 5 | AE30: =IF(AC30="","",VLOOKUP(AC30,List!$B$2:$E$29,4,FALSE)) -> Variable | AG30: 9 | AH30: 14:33:33
A31: 2017-07-23 | B31: 22.1 | C31: 11:03:34 | D31: 0.7 | E31: 20:58:54 | F31: 11.8 | G31: 06:18:34 | H31: 20 | I31: 11:03:34 | J31: 0.99 | K31: 00:00:00 | L31: 1029.4 | M31: 09:33:34 | N31: 0 | O31: 15:08:54 | P31: 8.6 | Q31: 09:48:34 | R31: 0 | S31: 19:13:54 | T31: 12.2 | U31: 12:23:54 | V31: 90 | W31: EST | X31: 17:58:54 | Y31: 7.5 | Z31: 43.8 | AA31: 43.8 | AB31: 411.72 | AC31: 16 | AE31: =IF(AC31="","",VLOOKUP(AC31,List!$B$2:$E$29,4,FALSE)) -> Averses ou fortes pluies | AG31: 5 | AH31: 11:03:34
A32: 2017-07-24 | B32: 23.3 | C32: 15:58:54 | D32: 0.67 | E32: 00:00:00 | F32: 11.8 | G32: 02:38:54 | H32: 25.7 | I32: 16:08:54 | J32: 0.84 | K32: 00:00:00 | L32: 1017.3 | M32: 23:43:54 | N32: 0 | O32: 00:08:54 | P32: 20.9 | Q32: 17:53:54 | R32: 0 | S32: 00:08:54 | T32: 27 | U32: 17:53:54 | V32: 315 | W32: NO | X32: 10:13:54 | Y32: 0.3 | Z32: 44.1 | AA32: 44.1 | AB32: 969.8 | AC32: 5 | AE32: =IF(AC32="","",VLOOKUP(AC32,List!$B$2:$E$29,4,FALSE)) -> Variable | AG32: 9 | AH32: 13:23:53
A33: 2017-07-25 | B33: 25.8 | C33: 16:13:55 | D33: 0.69 | E33: 00:00:00 | F33: 14.5 | G33: 03:38:54 | H33: 28.8 | I33: 16:48:55 | J33: 0.82 | K33: 00:00:00 | L33: 1017.5 | M33: 09:18:54 | N33: 0 | O33: 00:13:54 | P33: 14.8 | Q33: 14:28:55 | R33: 0 | S33: 00:18:54 | T33: 19.4 | U33: 14:28:55 | V33: 315 | W33: NO | X33: 05:23:54 | Y33: 0 | Z33: 44.1 | AA33: 44.1 | AB33: 979.23 | AC33: 1 | AE33: =IF(AC33="","",VLOOKUP(AC33,List!$B$2:$E$29,4,FALSE)) -> Ciel dégagé | AG33: 9 | AH33: 13:23:54
A34: 2017-07-26 | B34: 25.5 | C34: 16:18:57 | D34: 0.72 | E34: 00:00:00 | F34: 16.5 | G34: 05:08:55 | H34: 22.1 | I34: 16:23:57 | J34: 0.91 | K34: 00:00:00 | L34: 1012.6 | M34: 00:13:55 | N34: 0 | O34: 00:08:55 | P34: 12.2 | Q34: 17:58:57 | R34: 0 | S34: 00:13:55 | T34: 15.8 | U34: 15:28:57 | V34: 135 | W34: SE | X34: 13:28:57 | Y34: 8.4 | Z34: 52.5 | AA34: 52.5 | AB34: 389.56 | AC34: 16 | AE34: =IF(AC34="","",VLOOKUP(AC34,List!$B$2:$E$29,4,FALSE)) -> Averses ou fortes pluies | AG34: 6 | AH34: 12:33:57
A35: 2017-07-27 | B35: 25.5 | C35: 15:03:55 | D35: 0.63 | E35: 00:00:00 | F35: 13.8 | G35: 04:43:57 | H35: 24.5 | I35: 15:03:55 | J35: 0.74 | K35: 00:00:00 | L35: 1010.5 | M35: 10:03:57 | N35: 0 | O35: 00:08:57 | P35: 12.2 | Q35: 17:03:55 | R35: 0 | S35: 01:33:57 | T35: 17.3 | U35: 16:48:55 | V35: 135 | W35: SE | X35: 00:18:57 | Y35: 0 | Z35: 52.5 | AA35: 52.5 | AB35: 1086.75 | AC35: 1 | AE35: =IF(AC35="","",VLOOKUP(AC35,List!$B$2:$E$29,4,FALSE)) -> Ciel dégagé | AG35: 9 | AH35: 15:03:55
A36: 2017-07-28 | B36: 24.1 | C36: 14:38:56 | D36: 0.64 | E36: 00:00:00 | F36: 15.2 | G36: 01:43:55 | H36: 22.5 | I36: 14:38:56 | J36: 0.79 | K36: 00:00:00 | L36: 1013.2 | M36: 09:28:56 | N36: 0 | O36: 01:23:55 | P36: 17.3 | Q36: 18:13:56 | R36: 1.1 | S36: 01:23:55 | T36: 23.4 | U36: 17:33:56 | V36: 90 | W36: EST | X36: 21:58:56 | Y36: 0 | Z36: 52.5 | AA36: 52.5 | AB36: 635.02 | AC36: 1 | AE36: =IF(AC36="","",VLOOKUP(AC36,List!$B$2:$E$29,4,FALSE)) -> Ciel dégagé | AG36: 8 | AH36: 13:48:56
A37: 2017-07-29 | B37: 28.7 | C37: 15:18:56 | D37: 0.67 | E37: 00:00:00 | F37: 18 | G37: 03:23:56 | H37: 26.1 | I37: 13:38:56 | J37: 0.82 | K37: 00:00:00 | L37: 1010.8 | M37: 08:53:56 | N37: 2.5 | O37: 02:33:56 | P37: 17.3 | Q37: 15:03:56 | R37: 3.6 | S37: 22:13:56 | T37: 25.6 | U37: 15:03:56 | V37: 135 | W37: SE | X37: 01:08:56 | Y37: 0 | Z37: 52.5 | AA37: 52.5 | AB37: 1039.8 | AC37: 1 | AE37: =IF(AC37="","",VLOOKUP(AC37,List!$B$2:$E$29,4,FALSE)) -> Ciel dégagé | AG37: 9 | AH37: 14:08:56
A38: 2017-07-30 | B38: 23.9 | C38: 18:58:56 | D38: 0.63 | E38: 00:00:00 | F38: 14.5 | G38: 07:48:56 | H38: 24.2 | I38: 13:13:56 | J38: 0.81 | K38: 00:00:00 | L38: 1010.4 | M38: 00:00:00 | N38: 0 | O38: 07:28:56 | P38: 15.8 | Q38: 02:38:56 | R38: 0 | S38: 00:00:00 | T38: 23.4 | U38: 00:18:56 | V38: 90 | W38: EST | X38: 06:18:56 | Y38: 0.3 | Z38: 52.8 | AA38: 52.8 | AB38: 1049.5 | AC38: 1 | AE38: =IF(AC38="","",VLOOKUP(AC38,List!$B$2:$E$29,4,FALSE)) -> Ciel dégagé | AG38: 10 | AH38: 13:28:56
A39: 2017-07-31 | B39: 24.7 | C39: 14:48:57 | D39: 0.69 | E39: 00:00:00 | F39: 10.3 | G39: 05:28:57 | H39: 26.8 | I39: 15:38:57 | J39: 0.87 | K39: 00:00:00 | L39: 1013.1 | M39: 10:28:57 | N39: 0 | O39: 00:08:57 | P39: 12.2 | Q39: 18:08:57 | R39: 0 | S39: 00:08:57 | T39: 14.8 | U39: 17:43:57 | V39: 0 | W39: N | X39: 14:33:57 | Y39: 0 | Z39: 52.8 | AA39: 52.8 | AB39: 1008.66 | AC39: 1 | AE39: =IF(AC39="","",VLOOKUP(AC39,List!$B$2:$E$29,4,FALSE)) -> Ciel dégagé | AG39: 9 | AH39: 13:13:57
AE40: =IF(AC40="","",VLOOKUP(AC40,List!$B$2:$E$29,4,FALSE)) -> 
AE41: =IF(AC41="","",VLOOKUP(AC41,List!$B$2:$E$29,4,FALSE)) -> 
AE42: =IF(AC42="","",VLOOKUP(AC42,List!$B$2:$E$29,4,FALSE)) -> 
AE43: =IF(AC43="","",VLOOKUP(AC43,List!$B$2:$E$29,4,FALSE)) -> 
AE44: =IF(AC44="","",VLOOKUP(AC44,List!$B$2:$E$29,4,FALSE)) -> 
AE45: =IF(AC45="","",VLOOKUP(AC45,List!$B$2:$E$29,4,FALSE)) -> 
AE46: =IF(AC46="","",VLOOKUP(AC46,List!$B$2:$E$29,4,FALSE)) -> 

Sheet Aout 17 (hidden)
A1: Soleil | B1: C | C1: Ciel voilé | D1: Rares éclaircies | E1: Soleil Fortes averses | F1: Variable | J1: Orageux | K1: Soleil orage | L1: Soleil averses orageuses | M1: Pluies orageuses | N1: Orage | O1: Orage et grêles | P1: Orage violent | AQ1: 30 | AR1: 51 | AS1: 299 | AT1: 700
B2: 1 | C2: 2 | D2: 0.03 | E2: 4 | F2: 5 | K2: 18 | L2: 19 | M2: 20 | N2: 21 | O2: 22 | P2: 23 | AY2: =COUNTIF($W$14:$W$46,AZ2) -> 5 | AZ2: N | BA2: 0
A3: Nuageux & Brumeux | B3: C | C3: Brouillard dense | D3: Brume ou Brouillard légé | E3: Brume ou léger brouillard givrant | F3: Nuageux | G3: Couvert | H3: Couvert rares averses | J3: Grèle & Neige | K3: Giboulées | L3: Grèles | M3: Neiges | N3: Fortes neiges | AY3: =COUNTIF($W$14:$W$46,AZ3) -> 0 | AZ3: NNE | BA3: 23
B4: 6 | C4: 7 | D4: 0.08 | E4: 9 | F4: 10 | G4: 11 | H4: 12 | K4: 24 | L4: 25 | M4: 26 | N4: 27 | AY4: 1 | AZ4: NE | BA4: 45
A5: Pluvieux | B5: Pluies et éclaircies | C5: Pluies éparses | D5: Bruines | E5: Averses ou fortes pluies | F5: Pluies mélées de neige | AY5: 0 | AZ5: ENE | BA5: 68
B6: 13 | C6: 14 | D6: 0.15 | E6: 16 | F6: 17 | AY6: 5 | AZ6: EST | BA6: 90
D7: =IF(D14="","",MIN(D14:D46)) -> 0.63 | F7: =IF(F14="","",MIN(F14:F46)) -> 5.5 | H7: =IF(H14="","",MIN(H14:H46)) -> 15.8 | J7: 0.83 | L7: 1012.6 | N7: 0 | P7: 5 | R7: 0 | T7: 9.7 | V7: =VLOOKUP(W7,$AZ$2:$BA$17,2,FALSE) -> 23 | W7: =W10 -> NNE | Y7: =MIN(Y14:Y46) -> 0 | AB7: 0.43 | AG7: 0 | AY7: 0 | AZ7: ESE | BA7: 113
D8: =IF(D15="","",MAX(D14:D46)) -> 0.71 | F8: =IF(F15="","",MAX(F14:F46)) -> 16.8 | H8: =IF(H15="","",MAX(H14:H46)) -> 33.4 | J8: 0.97 | L8: 1024.2 | N8: 2.5 | P8: 22 | R8: 3.6 | T8: 33.1 | V8: =VLOOKUP(W8,$AZ$2:$BA$17,2,FALSE) -> 0 | W8: =W11 -> N | Y8: =MAX(Y14:Y46) -> 18.3 | Z8: 53.4 | AA8: 154.2 | AB8: 1048.73 | AG8: 9 | AY8: 4 | AZ8: SE | BA8: 135
AY9: 0 | AZ9: SSE | BA9: 158
V10: =SMALL($AY$2:$AY$17,1) -> 0 | W10: =VLOOKUP(V10,$AY$2:$AZ$17,2,FALSE) -> NNE | Z10: =MAX(Z14:Z46) -> 53.4 | AP10: 31 | AQ10: 99 | AR10: 300 | AY10: 0 | AZ10: S | BA10: 180
F11: =IF(F14="","",MIN(F14:F46)) -> 5.5 | G11: =VLOOKUP(F11,F14:G46,2,FALSE) -> 06:39:06 | H11: =IF(H14="","",MAX(H14:H46)) -> 33.4 | I11: =VLOOKUP(H11,H14:I46,2,FALSE) -> 16:59:12 | V11: =LARGE($AY$2:$AY$17,1) -> 5 | W11: =VLOOKUP(V11,$AY$2:$AZ$17,2,FALSE) -> N | AP11: 49 | AQ11: 100 | AR11: 301 | AY11: 0 | AZ11: SSO | BA11: 203
A12: Moyenne Mensuelle | B12: =AVERAGE(B14:B46) -> 26.41052632 | D12: =AVERAGE(D14:D46) -> 0.6763157895 | F12: =AVERAGE(F14:F46) -> 12.22105263 | H12: =AVERAGE(H14:H46) -> 25.01052632 | J12: =AVERAGE(J14:J46) -> 77.72157895 | L12: =AVERAGE(L14:L46) -> 1017.094737 | N12: =AVERAGE(N14:N46) -> 0.1894736842 | R12: =AVERAGE(R14:R46) -> 0.3210526316 | W12: SE | X12: 09:30:45 | Y12: =AVERAGE(Y14:Y44) -> 2.810526316 | Z12: =AVERAGE(Z14:Z46) -> 24.31578947 | AB12: =AVERAGE(AB14:AB46) -> 717.2547368 | AG12: =AVERAGE(AG14:AG46) -> 6.631578947 | AP12: 50 | AQ12: 101 | AR12: 699 | AY12: 0 | AZ12: SO | BA12: 225
A13: Jour | B13: T° int. (°C) | C13: Heure | D13: Hum int. (%) | E13: Heure | F13: T° Mini ext. (°C) | G13: Heure | H13: T° Maxi ext. (°C) | I13: Heure | J13: Hum ext. (%) | K13: Heure | L13: Press. rel. (hpa) | M13: Heure | N13: Vit. du vent (km/h) | O13: Heure | P13: Vit. du vent (km/h) | Q13: Heure | R13: Rafale Min (km/h) | S13: Heure | T13: Rafale Max (km/h) | U13: Heure | V13: Direction du vent | X13: Heure | Y13: Précipi. dern. 24 h (mm) | Z13: Précipi. Tot. mois (mm) | AA13: Précipi. Tot. An (mm) | AB13: Lumière (W/M2) | AG13: UVI | AH13: Heure | AJ13: Intensité des UV | AY13: 0 | AZ13: OSO | BA13: 248
A14: 2017-08-01 | B14: 24.7 | C14: 15:38:58 | D14: 0.65 | E14: 00:00:00 | F14: 9.5 | G14: 04:53:57 | H14: 28.2 | I14: 13:18:57 | J14: 76 | K14: 00:00:00 | L14: 1014.8 | M14: 23:18:58 | N14: 0 | O14: 00:08:57 | P14: 7.2 | Q14: 18:48:58 | R14: 0 | S14: 00:08:57 | T14: 11.2 | U14: 19:18:58 | V14: =IF(W14="N",0,IF(W14="NNE",23,IF(W14="NE",45,IF(W14="ENE",68,IF(W14="EST",90,IF(W14="ESE",113,IF(W14="SE",135,IF(W14="SSE",158,IF(W14="S",180,IF(W14="SSO",203,IF(W14="SO",225,IF(W14="OSO",248,IF(W14="O",270,IF(W14="ONO",293,IF(W14="NO",315,IF(W14="NNO",338,"")))))))))))))))) -> 315 | W14: NO | X14: 01:08:57 | Y14: 0 | Z14: 0 | AA14: 52.8 | AB14: 1039.53 | AC14: 1 | AE14: =IF(AC14="","",VLOOKUP(AC14,List!$B$2:$E$29,4,FALSE)) -> Ciel dégagé | AG14: 9 | AH14: 13:28:57 | AJ14: FAIBLE | AK14: <2 | AO14: Soleil | AP14: C | AQ14: Ciel voilé | AR14: Rares éclaircies | AS14: Soleil Fortes averses | AT14: Variable | AU14: 0 | AV14: 0 | AY14: 0 | AZ14: O | BA14: 270
A15: =IF(B15="","",A14+1) -> 2017-08-02 | B15: 25.4 | C15: 16:03:59 | D15: 0.68 | E15: 00:00:00 | F15: 14.4 | G15: 02:28:58 | H15: 22.5 | I15: 15:53:59 | J15: 94 | K15: 00:00:00 | L15: 1015.1 | M15: 00:28:58 | N15: 0 | O15: 00:33:58 | P15: 22 | Q15: 13:43:59 | R15: 0 | S15: 00:43:58 | T15: 33.1 | U15: 13:43:59 | V15: 135 | W15: SE | X15: 18:24:00 | Y15: 0.9 | Z15: =IF(Y15="","",Y15+Z14) -> 0.9 | AA15: 53.7 | AB15: 350.96 | AC15: 1 | AE15: =IF(AC15="","",VLOOKUP(AC15,List!$B$2:$E$29,4,FALSE)) -> Ciel dégagé | AF15: =IF(AC15="","",) -> 0 | AG15: 4 | AH15: 11:08:58 | AJ15: MODEREE | AK15: 3 | AL15: à | AM15: 5 | AY15: 0 | AZ15: ONO | BA15: 293
A16: =IF(B16="","",A15+1) -> 2017-08-03 | B16: 25.5 | C16: 15:34:02 | D16: 0.67 | E16: 00:00:00 | F16: 15.5 | G16: 06:59:00 | H16: 23.2 | I16: 15:34:02 | J16: 78 | K16: 00:00:00 | L16: 1012.9 | M16: 10:09:00 | N16: 2.5 | O16: 02:04:00 | P16: 17.3 | Q16: 15:54:02 | R16: 3.6 | S16: 04:24:00 | T16: 23.4 | U16: 15:54:02 | V16: 135 | W16: SE | X16: 06:54:00 | Y16: 1.2 | Z16: 2.1 | AA16: 54.9 | AB16: 611 | AC16: 5 | AE16: =IF(AC16="","",VLOOKUP(AC16,List!$B$2:$E$29,4,FALSE)) -> Variable | AF16: Averses ou fortes pluies | AG16: 7 | AH16: 14:09:00 | AJ16: FORTE | AK16: 6 | AL16: à | AM16: 7 | AO16: Nuageux & Brumeux | AP16: C | AQ16: Brouillard dense | AR16: Brume ou Brouillard légé | AS16: Brume ou léger brouillard givrant | AT16: Nuageux | AU16: Couvert | AV16: Couvert rares averses | AY16: 4 | AZ16: NO | BA16: 315
A17: 2017-08-04 | B17: 24.5 | C17: 12:19:02 | D17: 0.69 | E17: 00:00:00 | F17: 16.1 | G17: 06:29:02 | H17: 21.5 | I17: 14:49:04 | J17: 86 | K17: 00:00:00 | L17: 1014 | M17: 11:54:02 | N17: 0 | O17: 06:09:02 | P17: 7.2 | Q17: 05:59:02 | R17: 0 | S17: 18:44:04 | T17: 9.7 | U17: 05:59:02 | V17: 135 | W17: SE | X17: 03:29:02 | Y17: 0.3 | Z17: 2.4 | AA17: 55.2 | AB17: 464.7 | AC17: 5 | AE17: =IF(AC17="","",VLOOKUP(AC17,List!$B$2:$E$29,4,FALSE)) -> Variable | AF17: Pluies et éclaircies | AG17: 6 | AH17: 14:34:04 | AJ17: TRES FORTE | AK17: 8 | AL17: à | AM17: 10 | AY17: 0 | AZ17: NNO | BA17: 338
A18: 2017-08-05 | B18: 22.4 | C18: 00:09:04 | D18: 0.69 | E18: 00:00:00 | F18: 10.6 | G18: 00:00:00 | H18: 25.1 | I18: 14:44:06 | J18: 90 | K18: 00:00:00 | L18: 1021.8 | M18: 23:59:06 | N18: 0 | O18: 00:09:04 | P18: 17.3 | Q18: 16:44:06 | R18: 0 | S18: 00:09:04 | T18: 20.9 | U18: 14:14:06 | V18: 0 | W18: N | X18: 03:59:04 | Y18: 0 | Z18: 2.4 | AA18: 55.2 | AB18: 1048.73 | AC18: 1 | AE18: =IF(AC18="","",VLOOKUP(AC18,List!$B$2:$E$29,4,FALSE)) -> Ciel dégagé | AF18: C | AG18: 9 | AH18: 13:44:06 | AJ18: EXTREME | AK18: 11+ | AO18: Pluvieux | AP18: Pluies et éclaircies | AQ18: Pluies éparses | AR18: Bruines | AS18: Averses ou fortes pluies | AT18: Pluies mélées de neige
A19: 2017-08-06 | B19: 21.6 | C19: 16:19:06 | D19: 0.68 | E19: 00:00:00 | F19: 6.4 | G19: 07:19:06 | H19: 26 | I19: 14:54:06 | J19: 89 | K19: 00:00:00 | L19: 1024.2 | M19: 10:29:06 | N19: 0 | O19: 00:09:06 | P19: 11.2 | Q19: 18:59:06 | R19: 0 | S19: 00:09:06 | T19: 14.8 | U19: 18:14:06 | V19: 315 | W19: NO | X19: 10:49:06 | Y19: 0 | Z19: 2.4 | AA19: 55.2 | AB19: 994.7 | AC19: 1 | AE19: =IF(AC19="","",VLOOKUP(AC19,List!$B$2:$E$29,4,FALSE)) -> Ciel dégagé | AF19: C | AG19: 9 | AH19: 13:24:06
A20: 2017-08-07 | B20: 24.4 | C20: 16:29:03 | D20: 0.63 | E20: 00:00:00 | F20: 5.5 | G20: 06:39:06 | H20: 26.7 | I20: 15:49:03 | J20: 81 | K20: 00:00:00 | L20: 1020.5 | M20: 00:09:06 | N20: 0 | O20: 00:09:06 | P20: 14.8 | Q20: 17:34:03 | R20: 0 | S20: 00:09:06 | T20: 19.4 | U20: 17:34:03 | V20: 0 | W20: N | X20: 13:44:03 | Y20: 0 | Z20: 2.4 | AA20: 55.2 | AB20: 1038.95 | AC20: 1 | AE20: =IF(AC20="","",VLOOKUP(AC20,List!$B$2:$E$29,4,FALSE)) -> Ciel dégagé | AF20: C | AG20: 9 | AH20: 14:14:03 | AO20: Orageux | AP20: Soleil orage | AQ20: Soleil averses orageuses | AR20: Pluies orageuses | AS20: Orage | AT20: Orage et grêles | AU20: Orage violent
A21: 2017-08-08 | B21: 24.3 | C21: 15:49:02 | D21: 0.67 | E21: 00:00:00 | F21: 12.7 | G21: 00:00:00 | H21: 21.7 | I21: 16:44:02 | J21: 92 | K21: 00:00:00 | L21: 1012.6 | M21: 10:49:03 | N21: 0 | O21: 00:09:03 | P21: 5 | Q21: 11:54:02 | R21: 0 | S21: 00:09:03 | T21: 9.7 | U21: 12:04:02 | V21: 315 | W21: NO | X21: 09:44:03 | Y21: 18.3 | Z21: 20.7 | AA21: 73.5 | AB21: 841.13 | AC21: 16 | AE21: =IF(AC21="","",VLOOKUP(AC21,List!$B$2:$E$29,4,FALSE)) -> Averses ou fortes pluies | AF21: Averses ou fortes pluies | AG21: 7 | AH21: 11:39:03
A22: 2017-08-09 | B22: 23.6 | C22: 12:44:05 | D22: 0.7 | E22: 00:00:00 | F22: 8.5 | G22: 07:19:02 | H22: 22.7 | I22: 11:29:05 | J22: 97 | K22: 00:00:00 | L22: 1018.2 | M22: 23:59:01 | N22: 0 | O22: 00:09:02 | P22: 11.2 | Q22: 19:24:01 | R22: 0 | S22: 00:19:02 | T22: 15.8 | U22: 12:19:05 | V22: 135 | W22: SE | X22: 12:19:05 | Y22: 16.2 | Z22: 36.9 | AA22: 89.7 | AB22: 702.55 | AC22: 16 | AE22: =IF(AC22="","",VLOOKUP(AC22,List!$B$2:$E$29,4,FALSE)) -> Averses ou fortes pluies | AF22: Pluies et éclaircies | AG22: 7 | AH22: 11:54:05 | AO22: Grèle & Neige | AP22: Giboulées | AQ22: Grèles | AR22: Neiges | AS22: Fortes neiges | AT22: 0 | AU22: 0
A23: 2017-08-10 | B23: 25.3 | C23: 14:59:04 | D23: 0.68 | E23: 00:00:00 | F23: 12.2 | G23: 23:24:04 | H23: 22.3 | I23: 16:59:04 | J23: 93 | K23: 00:00:00 | L23: 1022.3 | M23: 11:29:01 | N23: 0 | O23: 02:19:01 | P23: 19.4 | Q23: 11:14:01 | R23: 0 | S23: 02:34:01 | T23: 28.1 | U23: 16:34:04 | V23: 315 | W23: NO | X23: 00:54:01 | Y23: 0.3 | Z23: 37.2 | AA23: 90 | AB23: 901.61 | AC23: 5 | AE23: =IF(AC23="","",VLOOKUP(AC23,List!$B$2:$E$29,4,FALSE)) -> Variable | AF23: Pluies éparses | AG23: 9 | AH23: 13:49:04
A24: 2017-08-11 | B24: 27.3 | C24: 15:19:06 | D24: 0.68 | E24: 00:00:00 | F24: 10 | G24: 06:19:04 | H24: 23.4 | I24: 16:04:06 | J24: 77 | K24: 00:00:00 | L24: 1022.1 | M24: 01:09:04 | N24: 0 | O24: 00:19:04 | P24: 9.7 | Q24: 12:29:06 | R24: 0 | S24: 05:04:04 | T24: 13.3 | U24: 12:29:06 | V24: 0 | W24: N | X24: 01:44:04 | Y24: 0 | Z24: 37.2 | AA24: 90 | AB24: 988.82 | AC24: 1 | AE24: =IF(AC24="","",VLOOKUP(AC24,List!$B$2:$E$29,4,FALSE)) -> Ciel dégagé | AF24: Pluies et éclaircies | AG24: 9 | AH24: 13:09:06 | AO24: Temps de nuit | AP24: Ciel dégagé de nuit | AQ24: Ciel voilé de nuit | AR24: Brume ou brouillard léger de nuit | AS24: Brume ou léger brouillard givrant de nuit | AT24: Brouillard dense de nuit | AU24: Ciel nuageux avec éclaircies de nuit
A25: 2017-08-12 | B25: 21.1 | C25: 00:09:06 | D25: 0.68 | E25: 00:09:06 | F25: 15.5 | G25: 03:14:06 | H25: 15.8 | I25: 01:29:06 | J25: 0.83 | K25: 03:34:06 | L25: 1018.6 | M25: 00:24:06 | N25: 1.1 | O25: 00:14:06 | P25: 6.1 | Q25: 03:34:06 | R25: 2.5 | S25: 00:14:06 | T25: 9.7 | U25: 03:34:06 | V25: 90 | W25: EST | X25: 00:00:00 | Y25: 0 | Z25: 37.2 | AA25: 90 | AB25: 0.43 | AC25: 5 | AE25: =IF(AC25="","",VLOOKUP(AC25,List!$B$2:$E$29,4,FALSE)) -> Variable | AF25: C | AG25: 0 | AH25: 00:09:06
A26: 2017-08-24 | B26: 23.3 | C26: 16:54:05 | D26: 0.71 | E26: 11:59:05 | F26: 13.5 | G26: 23:59:05 | H26: 27.5 | I26: 15:14:05 | J26: 0.88 | K26: 23:29:05 | L26: 1016.8 | M26: 11:59:05 | N26: 0 | O26: 12:14:05 | P26: 13.3 | Q26: 17:49:05 | R26: 0 | S26: 21:34:05 | T26: 14.8 | U26: 17:09:05 | V26: 0 | W26: N | X26: 15:19:05 | Y26: 0.6 | Z26: 37.8 | AA26: 90.6 | AB26: 855.01 | AC26: 13 | AE26: =IF(AC26="","",VLOOKUP(AC26,List!$B$2:$E$29,4,FALSE)) -> Pluies et éclaircies | AG26: 8 | AH26: 15:04:05
A27: 2017-08-25 | B27: 32.2 | C27: 12:59:05 | D27: 0.7 | E27: 00:00:00 | F27: 11.9 | G27: 05:34:05 | H27: 28 | I27: 15:24:09 | J27: 92 | K27: 00:00:00 | L27: 1015.6 | M27: 10:24:05 | N27: 0 | O27: 00:09:05 | P27: 12.2 | Q27: 18:14:09 | R27: 0 | S27: 00:09:05 | T27: 18.4 | U27: 18:14:09 | V27: 90 | W27: EST | X27: 00:09:05 | Y27: 0 | Z27: 37.8 | AA27: 90.6 | AB27: 730.7 | AC27: 5 | AE27: =IF(AC27="","",VLOOKUP(AC27,List!$B$2:$E$29,4,FALSE)) -> Variable | AG27: 6 | AH27: 12:44:05
A28: 2017-08-26 | B28: 27.9 | C28: 16:04:09 | D28: 0.66 | E28: 00:00:00 | F28: 12.1 | G28: 05:29:09 | H28: 29.1 | I28: 15:44:09 | J28: 82 | K28: 00:00:00 | L28: 1014.9 | M28: 09:54:09 | N28: 0 | O28: 00:09:09 | P28: 12.2 | Q28: 16:34:09 | R28: 0 | S28: 00:14:09 | T28: 15.8 | U28: 16:09:09 | V28: 90 | W28: EST | X28: 10:44:09 | Y28: 0 | Z28: 37.8 | AA28: 90.6 | AB28: 642.18 | AC28: 6 | AE28: =IF(AC28="","",VLOOKUP(AC28,List!$B$2:$E$29,4,FALSE)) -> Nuageux avec éclaircies | AG28: 6 | AH28: 13:34:09
A29: 2017-08-27 | B29: 38.9 | C29: 15:39:10 | D29: 0.65 | E29: 00:00:00 | F29: 15.5 | G29: 07:19:09 | H29: 31.1 | I29: 14:29:10 | J29: 82 | K29: 00:00:00 | L29: 1016.2 | M29: 12:29:10 | N29: 0 | O29: 00:09:09 | P29: 12.2 | Q29: 16:09:10 | R29: 0 | S29: 00:24:09 | T29: 15.8 | U29: 16:29:10 | V29: 90 | W29: EST | X29: 10:19:09 | Y29: 0 | Z29: 37.8 | AA29: 154.2 | AB29: 686.19 | AC29: 6 | AE29: =IF(AC29="","",VLOOKUP(AC29,List!$B$2:$E$29,4,FALSE)) -> Nuageux avec éclaircies | AG29: 6 | AH29: 13:09:10
A30: 2017-08-28 | B30: 30.4 | C30: 12:24:10 | D30: 0.69 | E30: 00:00:00 | F30: 15.3 | G30: 06:39:10 | H30: 33.4 | I30: 16:59:12 | J30: 86 | K30: 00:00:00 | L30: 1016 | M30: 10:09:10 | N30: 0 | O30: 00:09:10 | P30: 13.3 | Q30: 19:09:12 | R30: 0 | S30: 00:24:10 | T30: 17.3 | U30: 19:09:12 | V30: 45 | W30: NE | X30: 10:54:10 | Y30: 0 | Z30: 37.8 | AA30: 154.2 | AB30: 826.39 | AC30: 1 | AE30: =IF(AC30="","",VLOOKUP(AC30,List!$B$2:$E$29,4,FALSE)) -> Ciel dégagé | AG30: 7 | AH30: 13:49:10
A31: 2017-08-29 | B31: 33.1 | C31: 12:44:13 | D31: 0.66 | E31: 00:00:00 | F31: 16.8 | G31: 23:24:13 | H31: 30 | I31: 13:59:13 | J31: 83 | K31: 00:00:00 | L31: 1013.1 | M31: 09:29:12 | N31: 0 | O31: 00:09:12 | P31: 15.8 | Q31: 18:19:13 | R31: 0 | S31: 00:14:12 | T31: 22 | U31: 18:04:13 | V31: 90 | W31: EST | X31: 06:09:12 | Y31: 0 | Z31: 37.8 | AA31: 154.2 | AB31: 745.43 | AC31: 1 | AE31: =IF(AC31="","",VLOOKUP(AC31,List!$B$2:$E$29,4,FALSE)) -> Ciel dégagé | AG31: 6 | AH31: 13:04:13
A32: 2017-08-30 | B32: 25.9 | C32: 00:09:13 | D32: 0.68 | E32: 00:00:00 | F32: 10.2 | G32: 23:49:11 | H32: 17 | I32: 00:09:13 | J32: 97 | K32: 00:00:00 | L32: 1015.1 | M32: 00:00:00 | N32: 0 | O32: 02:59:13 | P32: 12.2 | Q32: 16:54:11 | R32: 0 | S32: 04:39:13 | T32: 14.8 | U32: 15:09:11 | V32: 0 | W32: N | X32: 01:34:13 | Y32: 15.6 | Z32: 53.4 | AA32: 106.2 | AB32: 158.83 | AC32: 16 | AE32: =IF(AC32="","",VLOOKUP(AC32,List!$B$2:$E$29,4,FALSE)) -> Averses ou fortes pluies | AG32: 2 | AH32: 11:49:11
AE33: =IF(AC33="","",VLOOKUP(AC33,List!$B$2:$E$29,4,FALSE)) -> 
AE34: =IF(AC34="","",VLOOKUP(AC34,List!$B$2:$E$29,4,FALSE)) -> 
AE35: =IF(AC35="","",VLOOKUP(AC35,List!$B$2:$E$29,4,FALSE)) -> 
AE36: =IF(AC36="","",VLOOKUP(AC36,List!$B$2:$E$29,4,FALSE)) -> 
AE37: =IF(AC37="","",VLOOKUP(AC37,List!$B$2:$E$29,4,FALSE)) -> 
AE38: =IF(AC38="","",VLOOKUP(AC38,List!$B$2:$E$29,4,FALSE)) -> 
AE39: =IF(AC39="","",VLOOKUP(AC39,List!$B$2:$E$29,4,FALSE)) -> 
AE40: =IF(AC40="","",VLOOKUP(AC40,List!$B$2:$E$29,4,FALSE)) -> 
AE41: =IF(AC41="","",VLOOKUP(AC41,List!$B$2:$E$29,4,FALSE)) -> 
AE42: =IF(AC42="","",VLOOKUP(AC42,List!$B$2:$E$29,4,FALSE)) -> 
AE43: =IF(AC43="","",VLOOKUP(AC43,List!$B$2:$E$29,4,FALSE)) -> 
AE44: =IF(AC44="","",VLOOKUP(AC44,List!$B$2:$E$29,4,FALSE)) -> 
AE45: =IF(AC45="","",VLOOKUP(AC45,List!$B$2:$E$29,4,FALSE)) -> 
AE46: =IF(AC46="","",VLOOKUP(AC46,List!$B$2:$E$29,4,FALSE)) -> 

Sheet Septembre 17 (hidden)
A1: Soleil | B1: C | C1: Ciel voilé | D1: Rares éclaircies | E1: Soleil Fortes averses | F1: Variable | J1: Orageux | K1: Soleil orage | L1: Soleil averses orageuses | M1: Pluies orageuses | N1: Orage | O1: Orage et grêles | P1: Orage violent | AQ1: 30 | AR1: 51 | AS1: 299 | AT1: 700
B2: 1 | C2: 2 | D2: 0.03 | E2: 4 | F2: 5 | K2: 18 | L2: 19 | M2: 20 | N2: 21 | O2: 22 | P2: 23 | AY2: =COUNTIF($W$14:$W$46,AZ2) -> 1 | AZ2: N | BA2: 0
A3: Nuageux & Brumeux | B3: C | C3: Brouillard dense | D3: Brume ou Brouillard légé | E3: Brume ou léger brouillard givrant | F3: Nuageux | G3: Couvert | H3: Couvert rares averses | J3: Grèle & Neige | K3: Giboulées | L3: Grèles | M3: Neiges | N3: Fortes neiges | AY3: =COUNTIF($W$14:$W$46,AZ3) -> 0 | AZ3: NNE | BA3: 23
B4: 6 | C4: 7 | D4: 0.08 | E4: 9 | F4: 10 | G4: 11 | H4: 12 | K4: 24 | L4: 25 | M4: 26 | N4: 27 | AY4: 2 | AZ4: NE | BA4: 45
A5: Pluvieux | B5: Pluies et éclaircies | C5: Pluies éparses | D5: Bruines | E5: Averses ou fortes pluies | F5: Pluies mélées de neige | AY5: 0 | AZ5: ENE | BA5: 68
B6: 13 | C6: 14 | D6: 0.15 | E6: 16 | F6: 17 | AY6: 20 | AZ6: EST | BA6: 90
F7: =IF(F14="","",MIN(F14:F46)) -> 3.3 | H7: =IF(H14="","",MIN(H14:H46)) -> 16.8 | J7: 0.77 | L7: 1002.9 | N7: 0 | P7: 6.1 | R7: 0 | T7: 7.2 | V7: =VLOOKUP(W7,$AZ$2:$BA$17,2,FALSE) -> 23 | W7: =W10 -> NNE | Y7: =MIN(Y14:Y46) -> 0 | AB7: 162.85 | AG7: 3 | AY7: 0 | AZ7: ESE | BA7: 113
F8: =IF(F15="","",MAX(F14:F46)) -> 15.5 | H8: =IF(H15="","",MAX(H14:H46)) -> 26 | J8: 0.99 | L8: 1023.7 | N8: 1.1 | P8: 18.4 | R8: 2.5 | T8: 28.1 | V8: =VLOOKUP(W8,$AZ$2:$BA$17,2,FALSE) -> 90 | W8: =W11 -> EST | Y8: =MAX(Y14:Y46) -> 13.8 | Z8: 75 | AA8: 187.2 | AB8: 853.43 | AG8: 8 | AY8: 2 | AZ8: SE | BA8: 135
AY9: 0 | AZ9: SSE | BA9: 158
V10: =SMALL($AY$2:$AY$17,1) -> 0 | W10: =VLOOKUP(V10,$AY$2:$AZ$17,2,FALSE) -> NNE | Z10: =MAX(Z14:Z46) -> 75 | AP10: 31 | AQ10: 99 | AR10: 300 | AY10: 0 | AZ10: S | BA10: 180
F11: =IF(F14="","",MIN(F14:F46)) -> 3.3 | G11: =VLOOKUP(F11,F14:G46,2,FALSE) -> 07:39:18 | H11: =IF(H14="","",MAX(H14:H46)) -> 26 | I11: =VLOOKUP(H11,H14:I46,2,FALSE) -> 14:54:11 | V11: =LARGE($AY$2:$AY$17,1) -> 20 | W11: =VLOOKUP(V11,$AY$2:$AZ$17,2,FALSE) -> EST | AP11: 49 | AQ11: 100 | AR11: 301 | AY11: 0 | AZ11: SSO | BA11: 203
A12: Moyenne Mensuelle | B12: =AVERAGE(B14:B46) -> 29.11 | D12: =AVERAGE(D14:D46) -> 65.73333333 | F12: =AVERAGE(F14:F46) -> 10.14 | H12: =AVERAGE(H14:H46) -> 21.66666667 | J12: =AVERAGE(J14:J46) -> 92.56666667 | L12: =AVERAGE(L14:L46) -> 1016.636667 | N12: =AVERAGE(N14:N46) -> 0.07333333333 | R12: =AVERAGE(R14:R46) -> 0.24 | W12: SE | X12: 09:30:45 | Y12: =AVERAGE(Y14:Y44) -> 2.51 | Z12: =AVERAGE(Z14:Z46) -> 42.13 | AB12: =AVERAGE(AB14:AB46) -> 567.81 | AG12: =AVERAGE(AG14:AG46) -> 5.366666667 | AP12: 50 | AQ12: 101 | AR12: 699 | AY12: 0 | AZ12: SO | BA12: 225
A13: Jour | B13: T° int. (°C) | C13: Heure | D13: Hum int. (%) | E13: Heure | F13: T° Mini ext. (°C) | G13: Heure | H13: T° Maxi ext. (°C) | I13: Heure | J13: Hum ext. (%) | K13: Heure | L13: Press. rel. (hpa) | M13: Heure | N13: Vit. du vent (km/h) | O13: Heure | P13: Vit. du vent (km/h) | Q13: Heure | R13: Rafale Min (km/h) | S13: Heure | T13: Rafale Max (km/h) | U13: Heure | V13: Direction du vent | W13: - | X13: Heure | Y13: Précipi. dern. 24 h (mm) | Z13: Précipi. Tot. mois (mm) | AA13: Précipi. Tot. An (mm) | AB13: Lumière (W/M2) | AG13: UVI | AH13: Heure | AJ13: Intensité des UV | AY13: 0 | AZ13: OSO | BA13: 248
A14: 2017-09-01 | B14: 25.8 | C14: 16:09:11 | D14: 69 | E14: 00:00:00 | F14: 10.7 | G14: 04:49:11 | H14: 21.3 | I14: 15:34:11 | J14: 93 | K14: 00:00:00 | L14: 1021.3 | M14: 23:54:11 | N14: 0 | O14: 00:09:11 | P14: 15.8 | Q14: 14:14:11 | R14: 0 | S14: 00:14:11 | T14: 23.4 | U14: 14:44:11 | V14: =IF(W14="N",0,IF(W14="NNE",23,IF(W14="NE",45,IF(W14="ENE",68,IF(W14="EST",90,IF(W14="ESE",113,IF(W14="SE",135,IF(W14="SSE",158,IF(W14="S",180,IF(W14="SSO",203,IF(W14="SO",225,IF(W14="OSO",248,IF(W14="O",270,IF(W14="ONO",293,IF(W14="NO",315,IF(W14="NNO",338,"")))))))))))))))) -> 90 | W14: EST | X14: 12:29:11 | Y14: 0.3 | Z14: 0 | AA14: 112.2 | AB14: 853.43 | AC14: 5 | AE14: =IF(AC14="","",VLOOKUP(AC14,List!$B$2:$E$29,4,FALSE)) -> Variable | AG14: 8 | AH14: 14:04:11 | AJ14: FAIBLE | AK14: <2 | AO14: Soleil | AP14: C | AQ14: Ciel voilé | AR14: Rares éclaircies | AS14: Soleil Fortes averses | AT14: Variable | AU14: 0 | AV14: 0 | AY14: 0 | AZ14: O | BA14: 270
A15: =IF(B15="","",A14+1) -> 2017-09-02 | B15: 27.3 | C15: 13:44:11 | D15: 69 | E15: 00:00:00 | F15: 10 | G15: 07:54:11 | H15: 26 | I15: 14:54:11 | J15: 91 | K15: 00:00:00 | L15: 1023 | M15: 09:39:11 | N15: 0 | O15: 00:09:11 | P15: 9.7 | Q15: 14:04:11 | R15: 0 | S15: 02:29:11 | T15: 12.2 | U15: 12:24:11 | V15: 90 | W15: EST | X15: 00:44:11 | Y15: 0 | Z15: =IF(Y15="","",Y15+Z14) -> 0 | AA15: 112.2 | AB15: 783.37 | AC15: 3 | AE15: =IF(AC15="","",VLOOKUP(AC15,List!$B$2:$E$29,4,FALSE)) -> Rares éclaircies | AF15: =IF(AC15="","",) -> 0 | AG15: 6 | AH15: 12:24:11 | AJ15: MODEREE | AK15: 3 | AL15: à | AM15: 5 | AY15: 0 | AZ15: ONO | BA15: 293
A16: =IF(B16="","",A15+1) -> 2017-09-03 | B16: 23.9 | C16: 17:49:14 | D16: 69 | E16: 00:00:00 | F16: 12.6 | G16: 00:24:11 | H16: 16.8 | I16: 17:39:14 | J16: 99 | K16: 00:00:00 | L16: 1017.4 | M16: 00:09:11 | N16: 0 | O16: 00:09:11 | P16: 15.8 | Q16: 15:49:11 | R16: 0 | S16: 00:09:11 | T16: 23.4 | U16: 15:39:11 | V16: 90 | W16: EST | X16: 03:04:11 | Y16: 13.8 | Z16: 13.8 | AA16: 126 | AB16: 225.81 | AC16: 16 | AE16: =IF(AC16="","",VLOOKUP(AC16,List!$B$2:$E$29,4,FALSE)) -> Averses ou fortes pluies | AF16: Averses ou fortes pluies | AG16: 4 | AH16: 15:34:11 | AJ16: FORTE | AK16: 6 | AL16: à | AM16: 7 | AO16: Nuageux & Brumeux | AP16: C | AQ16: Brouillard dense | AR16: Brume ou Brouillard légé | AS16: Brume ou léger brouillard givrant | AT16: Nuageux | AU16: Couvert | AV16: Couvert rares averses | AY16: 5 | AZ16: NO | BA16: 315
A17: 2017-09-04 | B17: 23.7 | C17: 15:39:14 | D17: 71 | E17: 00:00:00 | F17: 15.5 | G17: 00:09:14 | H17: 23.9 | I17: 14:59:14 | J17: 89 | K17: 00:00:00 | L17: 1014.6 | M17: 23:49:15 | N17: 0 | O17: 00:19:14 | P17: 7.2 | Q17: 19:04:15 | R17: 0 | S17: 00:34:14 | T17: 9.7 | U17: 19:04:15 | V17: 0 | W17: N | X17: 19:04:15 | Y17: 0.3 | Z17: 14.1 | AA17: 126.3 | AB17: 353.98 | AC17: 12 | AE17: =IF(AC17="","",VLOOKUP(AC17,List!$B$2:$E$29,4,FALSE)) -> Couvert rares averses | AF17: Pluies et éclaircies | AG17: 5 | AH17: 14:39:14 | AJ17: TRES FORTE | AK17: 8 | AL17: à | AM17: 10 | AY17: 0 | AZ17: NNO | BA17: 338
A18: 2017-09-05 | B18: 26.1 | C18: 15:34:16 | D18: 71 | E18: 00:00:00 | F18: 15 | G18: 04:29:15 | H18: 23.9 | I18: 15:24:16 | J18: 80 | K18: 00:00:00 | L18: 1019.8 | M18: 23:59:16 | N18: 0 | O18: 04:24:15 | P18: 14.8 | Q18: 13:19:16 | R18: 1.1 | S18: 04:24:15 | T18: 22 | U18: 13:19:16 | V18: 90 | W18: EST | X18: 07:54:15 | Y18: 0 | Z18: 14.1 | AA18: 126.3 | AB18: 723.31 | AC18: 3 | AE18: =IF(AC18="","",VLOOKUP(AC18,List!$B$2:$E$29,4,FALSE)) -> Rares éclaircies | AF18: C | AG18: 6 | AH18: 15:14:16 | AJ18: EXTREME | AK18: 11+ | AO18: Pluvieux | AP18: Pluies et éclaircies | AQ18: Pluies éparses | AR18: Bruines | AS18: Averses ou fortes pluies | AT18: Pluies mélées de neige
A19: 2017-09-06 | B19: 24 | C19: 15:29:16 | D19: 69 | E19: 00:00:00 | F19: 10.2 | G19: 04:34:16 | H19: 24.9 | I19: 15:24:16 | J19: 93 | K19: 00:00:00 | L19: 1023.7 | M19: 10:49:16 | N19: 0 | O19: 01:44:16 | P19: 9.7 | Q19: 17:24:16 | R19: 0 | S19: 02:49:16 | T19: 12.2 | U19: 17:24:16 | V19: 45 | W19: NE | X19: 09:24:16 | Y19: 0 | Z19: 14.1 | AA19: 126.3 | AB19: 735.77 | AC19: 5 | AE19: =IF(AC19="","",VLOOKUP(AC19,List!$B$2:$E$29,4,FALSE)) -> Variable | AF19: C | AG19: 7 | AH19: 13:49:16
A20: 2017-09-07 | B20: 25.5 | C20: 14:14:14 | D20: 68 | E20: 00:00:00 | F20: 11.6 | G20: 00:09:16 | H20: 20.4 | I20: 14:09:14 | J20: 84 | K20: 00:00:00 | L20: 1020.5 | M20: 00:34:16 | N20: 0 | O20: 00:09:16 | P20: 7.2 | Q20: 11:19:16 | R20: 0 | S20: 00:09:16 | T20: 11.2 | U20: 14:14:14 | V20: 90 | W20: EST | X20: 04:04:16 | Y20: 0 | Z20: 14.1 | AA20: 126.3 | AB20: 573.41 | AC20: 5 | AE20: =IF(AC20="","",VLOOKUP(AC20,List!$B$2:$E$29,4,FALSE)) -> Variable | AF20: C | AG20: 6 | AH20: 14:04:14 | AO20: Orageux | AP20: Soleil orage | AQ20: Soleil averses orageuses | AR20: Pluies orageuses | AS20: Orage | AT20: Orage et grêles | AU20: Orage violent
A21: 2017-09-08 | B21: 22.1 | C21: 00:09:14 | D21: 71 | E21: 00:00:00 | F21: 13.7 | G21: 00:00:00 | H21: 18.6 | I21: 14:09:16 | J21: 90 | K21: 00:00:00 | L21: 1012 | M21: 00:14:14 | N21: 0 | O21: 22:24:16 | P21: 13.3 | Q21: 16:34:16 | R21: 0 | S21: 22:24:16 | T21: 19.4 | U21: 16:34:16 | V21: 90 | W21: EST | X21: 02:49:14 | Y21: 8.1 | Z21: 22.2 | AA21: 134.4 | AB21: 260.35 | AC21: 16 | AE21: =IF(AC21="","",VLOOKUP(AC21,List!$B$2:$E$29,4,FALSE)) -> Averses ou fortes pluies | AF21: Averses ou fortes pluies | AG21: 4 | AH21: 13:24:16
A22: 2017-09-09 | B22: 33.3 | C22: 16:29:18 | D22: 68 | E22: 00:00:00 | F22: 12 | G22: 05:29:16 | H22: 21.5 | I22: 16:14:18 | J22: 89 | K22: 00:00:00 | L22: 1002.9 | M22: 23:59:18 | N22: 0 | O22: 14:54:18 | P22: 11.2 | Q22: 14:29:18 | R22: 1.1 | S22: 11:39:18 | T22: 19.4 | U22: 14:29:18 | V22: 90 | W22: EST | X22: 02:34:16 | Y22: 3.3 | Z22: 25.5 | AA22: 137.7 | AB22: 686.34 | AC22: 13 | AE22: =IF(AC22="","",VLOOKUP(AC22,List!$B$2:$E$29,4,FALSE)) -> Pluies et éclaircies | AF22: Pluies et éclaircies | AG22: 6 | AH22: 14:14:18 | AO22: Grèle & Neige | AP22: Giboulées | AQ22: Grèles | AR22: Neiges | AS22: Fortes neiges | AT22: 0 | AU22: 0
A23: 2017-09-10 | B23: 23.7 | C23: 16:44:18 | D23: 68 | E23: 00:00:00 | F23: 11.6 | G23: 08:24:18 | H23: 19.7 | I23: 11:04:18 | J23: 77 | K23: 00:00:00 | L23: 1006.7 | M23: 10:59:18 | N23: 0 | O23: 03:44:18 | P23: 18.4 | Q23: 16:49:15 | R23: 0 | S23: 08:04:18 | T23: 24.5 | U23: 15:39:18 | V23: 90 | W23: EST | X23: 00:24:18 | Y23: 0.6 | Z23: 26.1 | AA23: 138.3 | AB23: 391.1 | AC23: 12 | AE23: =IF(AC23="","",VLOOKUP(AC23,List!$B$2:$E$29,4,FALSE)) -> Couvert rares averses | AF23: Pluies éparses | AG23: 5 | AH23: 13:19:18
A24: 2017-09-11 | B24: 32.2 | C24: 15:34:17 | D24: 71 | E24: 00:00:00 | F24: 11.9 | G24: 07:34:15 | H24: 20.1 | I24: 14:44:17 | J24: 86 | K24: 00:00:00 | L24: 1005.2 | M24: 23:49:17 | N24: 1.1 | O24: 18:24:17 | P24: 15.8 | Q24: 10:49:15 | R24: 2.5 | S24: 18:49:17 | T24: 19.4 | U24: 10:24:15 | V24: 90 | W24: EST | X24: 03:04:15 | Y24: 1.2 | Z24: 27.3 | AA24: 139.5 | AB24: 782.1 | AC24: 5 | AE24: =IF(AC24="","",VLOOKUP(AC24,List!$B$2:$E$29,4,FALSE)) -> Variable | AF24: Pluies et éclaircies | AG24: 7 | AH24: 13:19:17 | AO24: Temps de nuit | AP24: Ciel dégagé de nuit | AQ24: Ciel voilé de nuit | AR24: Brume ou brouillard léger de nuit | AS24: Brume ou léger brouillard givrant de nuit | AT24: Brouillard dense de nuit | AU24: Ciel nuageux avec éclaircies de nuit
A25: 2017-09-12 | B25: 27.6 | C25: 13:39:19 | D25: 59 | E25: 00:00:00 | F25: 10.8 | G25: 06:44:17 | H25: 21.5 | I25: 13:34:19 | J25: 95 | K25: 00:00:00 | L25: 1011.5 | M25: 10:59:17 | N25: 1.1 | O25: 00:19:17 | P25: 17.3 | Q25: 21:34:19 | R25: 2.5 | S25: 05:04:17 | T25: 28.1 | U25: 21:34:19 | V25: 90 | W25: EST | X25: 03:59:17 | Y25: 0 | Z25: 27.3 | AA25: 139.5 | AB25: 704.25 | AC25: 5 | AE25: =IF(AC25="","",VLOOKUP(AC25,List!$B$2:$E$29,4,FALSE)) -> Variable | AF25: C | AG25: 6 | AH25: 13:19:19
A26: 2017-09-13 | B26: 25.4 | C26: 20:59:19 | D26: 63 | E26: 00:00:00 | F26: 12.3 | G26: 23:59:19 | H26: 17.7 | I26: 01:19:19 | J26: 92 | K26: 00:00:00 | L26: 1009 | M26: 10:59:19 | N26: 0 | O26: 11:29:19 | P26: 13.3 | Q26: 02:24:19 | R26: 0 | S26: 11:59:19 | T26: 18.4 | U26: 02:24:19 | V26: 90 | W26: EST | X26: 11:39:19 | Y26: 8.4 | Z26: 35.7 | AA26: 147.9 | AB26: 162.85 | AC26: 16 | AE26: =IF(AC26="","",VLOOKUP(AC26,List!$B$2:$E$29,4,FALSE)) -> Averses ou fortes pluies | AG26: 3 | AH26: 11:14:19
A27: 2017-09-14 | B27: 37.3 | C27: 15:19:18 | D27: 57 | E27: 00:00:00 | F27: 9.4 | G27: 22:24:18 | H27: 23.2 | I27: 15:34:18 | J27: 92 | K27: 00:00:00 | L27: 1015.5 | M27: 22:04:18 | N27: 0 | O27: 19:19:18 | P27: 8.6 | Q27: 05:04:19 | R27: 0 | S27: 20:29:18 | T27: 13.3 | U27: 17:44:18 | V27: 90 | W27: EST | X27: 07:04:19 | Y27: 0 | Z27: 35.7 | AA27: 147.9 | AB27: 703.13 | AC27: 5 | AE27: =IF(AC27="","",VLOOKUP(AC27,List!$B$2:$E$29,4,FALSE)) -> Variable | AG27: 6 | AH27: 12:19:18
A28: 2017-09-15 | B28: 24.3 | C28: 00:09:18 | D28: 63 | E28: 00:00:00 | F28: 7.9 | G28: 08:39:18 | H28: 21.7 | I28: 12:09:18 | J28: 99 | K28: 00:00:00 | L28: 1015.1 | M28: 00:19:18 | N28: 0 | O28: 00:09:18 | P28: 15.8 | Q28: 12:59:18 | R28: 0 | S28: 00:09:18 | T28: 19.4 | U28: 12:59:18 | V28: 315 | W28: NO | X28: 00:39:18 | Y28: 12.9 | Z28: 48.6 | AA28: 160.8 | AB28: 801.33 | AC28: 16 | AE28: =IF(AC28="","",VLOOKUP(AC28,List!$B$2:$E$29,4,FALSE)) -> Averses ou fortes pluies | AG28: 7 | AH28: 13:34:18
A29: 2017-09-16 | B29: 31.7 | C29: 13:54:18 | D29: 62 | E29: 23:59:18 | F29: 9 | G29: 07:54:18 | H29: 23.3 | I29: 12:54:18 | J29: 95 | K29: 23:59:18 | L29: 1012 | M29: 10:34:18 | N29: 0 | O29: 00:04:18 | P29: 9.7 | Q29: 13:54:18 | R29: 0 | S29: 00:39:18 | T29: 12.2 | U29: 13:54:18 | V29: 315 | W29: NO | X29: 02:24:18 | Y29: 4.2 | Z29: 52.8 | AA29: 165 | AB29: 746.25 | AC29: 16 | AE29: =IF(AC29="","",VLOOKUP(AC29,List!$B$2:$E$29,4,FALSE)) -> Averses ou fortes pluies | AG29: 6 | AH29: 12:44:18
A30: 2017-09-17 | B30: 32.8 | C30: 14:04:19 | D30: 61 | E30: 23:59:19 | F30: 6.3 | G30: 23:54:19 | H30: 22.4 | I30: 13:24:19 | J30: 99 | K30: 23:59:19 | L30: 1014.3 | M30: 23:54:19 | N30: 0 | O30: 00:04:18 | P30: 11.2 | Q30: 15:09:19 | R30: 0 | S30: 00:04:18 | T30: 14.8 | U30: 15:09:19 | V30: 90 | W30: EST | X30: 09:39:19 | Y30: 0 | Z30: 52.8 | AA30: 165 | AB30: 737.74 | AC30: 3 | AE30: =IF(AC30="","",VLOOKUP(AC30,List!$B$2:$E$29,4,FALSE)) -> Rares éclaircies | AG30: 6 | AH30: 13:54:19
A31: 2017-09-18 | B31: 32.4 | C31: 14:34:19 | D31: 61 | E31: 23:59:19 | F31: 5.3 | G31: 07:54:19 | H31: 22.4 | I31: 13:54:19 | J31: 92 | K31: 23:59:19 | L31: 1019.2 | M31: 23:59:19 | N31: 0 | O31: 00:04:19 | P31: 14.8 | Q31: 17:49:19 | R31: 0 | S31: 00:09:19 | T31: 19.4 | U31: 17:44:19 | V31: 90 | W31: EST | X31: 10:34:19 | Y31: 0 | Z31: 52.8 | AA31: 165 | AB31: 628.6 | AC31: 5 | AE31: =IF(AC31="","",VLOOKUP(AC31,List!$B$2:$E$29,4,FALSE)) -> Variable | AG31: 6 | AH31: 13:49:19
A32: 2017-09-19 | B32: 34.1 | C32: 16:34:18 | D32: 61 | E32: 23:59:18 | F32: 10.8 | G32: 03:04:19 | H32: 24.9 | I32: 14:29:18 | J32: 91 | K32: 23:59:18 | L32: 1022.1 | M32: 12:19:18 | N32: 0 | O32: 00:49:19 | P32: 11.2 | Q32: 16:54:18 | R32: 0 | S32: 20:04:18 | T32: 13.3 | U32: 12:04:18 | V32: 315 | W32: NO | X32: 10:29:19 | Y32: 0 | Z32: 52.8 | AA32: 165 | AB32: 614.18 | AC32: 5 | AE32: =IF(AC32="","",VLOOKUP(AC32,List!$B$2:$E$29,4,FALSE)) -> Variable | AG32: 5 | AH32: 11:59:18
A33: 2017-09-20 | B33: 26.4 | C33: 12:04:18 | D33: 68 | E33: 23:59:18 | F33: 6.6 | G33: 02:59:18 | H33: 19.1 | I33: 11:39:18 | J33: 99 | K33: 02:04:18 | L33: 1021.4 | M33: 00:04:18 | N33: 0 | O33: 00:04:18 | P33: 9.7 | Q33: 12:04:18 | R33: 0 | S33: 00:04:18 | T33: 13.3 | U33: 11:59:18 | V33: 90 | W33: EST | X33: 07:19:18 | Y33: 0 | Z33: 52.8 | AA33: 165 | AB33: 488.6 | AC33: 11 | AE33: =IF(AC33="","",VLOOKUP(AC33,List!$B$2:$E$29,4,FALSE)) -> Couvert | AG33: 5 | AH33: 12:44:18
A34: 2017-09-21 | B34: 25.8 | C34: 19:34:18 | D34: 64 | E34: 23:59:18 | F34: 6.6 | G34: 02:59:18 | H34: 18.4 | I34: 10:14:18 | J34: 99 | K34: 23:59:18 | L34: 1018.1 | M34: 23:59:18 | N34: 0 | O34: 00:04:18 | P34: 9.7 | Q34: 12:09:18 | R34: 0 | S34: 00:04:18 | T34: 15.8 | U34: 12:09:18 | V34: 90 | W34: EST | X34: 10:24:18 | Y34: 7.8 | Z34: 60.6 | AA34: 172.8 | AB34: 293.57 | AC34: 16 | AE34: =IF(AC34="","",VLOOKUP(AC34,List!$B$2:$E$29,4,FALSE)) -> Averses ou fortes pluies | AG34: 3 | AH34: 10:09:18
A35: 2017-09-22 | B35: 41.2 | C35: 14:24:19 | D35: 62 | E35: 23:59:19 | F35: 3.3 | G35: 07:39:18 | H35: 23.5 | I35: 15:14:19 | J35: 98 | K35: 23:59:19 | L35: 1021.7 | M35: 10:59:19 | N35: 0 | O35: 00:04:18 | P35: 7.2 | Q35: 13:44:19 | R35: 0 | S35: 00:09:18 | T35: 9.7 | U35: 13:44:19 | V35: 90 | W35: EST | X35: 14:44:19 | Y35: 0 | Z35: 60.6 | AA35: 172.8 | AB35: 523.72 | AC35: 5 | AE35: =IF(AC35="","",VLOOKUP(AC35,List!$B$2:$E$29,4,FALSE)) -> Variable | AG35: 5 | AH35: 13:24:19
A36: 2017-09-23 | B36: 31.6 | C36: 16:39:19 | D36: 62 | E36: 23:59:19 | F36: 3.9 | G36: 08:04:19 | H36: 23.3 | I36: 14:44:19 | J36: 96 | K36: 23:59:19 | L36: 1020.3 | M36: 01:44:19 | N36: 0 | O36: 00:04:19 | P36: 11.2 | Q36: 12:49:19 | R36: 0 | S36: 00:04:19 | T36: 17.3 | U36: 13:14:19 | V36: 90 | W36: EST | X36: 10:09:19 | Y36: 0 | Z36: 60.6 | AA36: 172.8 | AB36: 511.57 | AC36: 11 | AE36: =IF(AC36="","",VLOOKUP(AC36,List!$B$2:$E$29,4,FALSE)) -> Couvert | AG36: 5 | AH36: 13:34:19
A37: 2017-09-24 | B37: 24.7 | C37: 14:39:20 | D37: 66 | E37: 23:59:20 | F37: 8.9 | G37: 04:44:19 | H37: 18.9 | I37: 15:14:20 | J37: 99 | K37: 23:59:20 | L37: 1016.6 | M37: 10:14:19 | N37: 0 | O37: 00:04:19 | P37: 6.1 | Q37: 13:59:20 | R37: 0 | S37: 00:19:19 | T37: 8.6 | U37: 13:59:20 | V37: 45 | W37: NE | X37: 06:04:19 | Y37: 4.8 | Z37: 65.4 | AA37: 177.6 | AB37: 186.67 | AC37: 16 | AE37: =IF(AC37="","",VLOOKUP(AC37,List!$B$2:$E$29,4,FALSE)) -> Averses ou fortes pluies | AG37: 3 | AH37: 10:49:19
A38: 2017-09-25 | B38: 26.4 | C38: 13:24:22 | D38: 65 | E38: 23:59:22 | F38: 12.3 | G38: 23:59:22 | H38: 19.9 | I38: 13:09:22 | J38: 96 | K38: 23:59:22 | L38: 1019.3 | M38: 22:29:22 | N38: 0 | O38: 00:04:20 | P38: 9.7 | Q38: 15:29:22 | R38: 0 | S38: 00:04:20 | T38: 15.8 | U38: 17:29:22 | V38: 315 | W38: NO | X38: 03:04:20 | Y38: 4.8 | Z38: 70.2 | AA38: 182.4 | AB38: 587.06 | AC38: 16 | AE38: =IF(AC38="","",VLOOKUP(AC38,List!$B$2:$E$29,4,FALSE)) -> Averses ou fortes pluies | AG38: 5 | AH38: 12:59:22
A39: 2017-09-26 | B39: 30 | C39: 16:29:22 | D39: 66 | E39: 23:59:22 | F39: 10.2 | G39: 23:59:22 | H39: 25.1 | I39: 15:04:22 | J39: 98 | K39: 23:59:22 | L39: 1021.1 | M39: 09:49:22 | N39: 0 | O39: 01:09:22 | P39: 6.1 | Q39: 11:29:22 | R39: 0 | S39: 01:09:22 | T39: 7.2 | U39: 11:29:22 | V39: 90 | W39: EST | X39: 09:49:22 | Y39: 0 | Z39: 70.2 | AA39: 182.4 | AB39: 604.35 | AC39: 5 | AE39: =IF(AC39="","",VLOOKUP(AC39,List!$B$2:$E$29,4,FALSE)) -> Variable | AG39: 6 | AH39: 14:44:22
A40: 2017-09-27 | B40: 30.2 | C40: 14:19:21 | D40: 63 | E40: 23:59:21 | F40: 9.2 | G40: 03:14:22 | H40: 21.3 | I40: 13:49:21 | J40: 97 | K40: 23:59:21 | L40: 1018.6 | M40: 00:14:22 | N40: 0 | O40: 00:04:22 | P40: 14.8 | Q40: 13:14:21 | R40: 0 | S40: 00:04:22 | T40: 20.9 | U40: 13:14:21 | V40: 315 | W40: NO | X40: 00:04:22 | Y40: 1.8 | Z40: 72 | AA40: 184.2 | AB40: 562 | AC40: 13 | AE40: =IF(AC40="","",VLOOKUP(AC40,List!$B$2:$E$29,4,FALSE)) -> Pluies et éclaircies | AG40: 5 | AH40: 12:14:21
A41: 2017-09-28 | B41: 36 | C41: 14:04:22 | D41: 66 | E41: 23:59:22 | F41: 14.6 | G41: 07:44:21 | H41: 23.3 | I41: 13:59:22 | J41: 96 | K41: 23:59:22 | L41: 1019.2 | M41: 10:24:21 | N41: 0 | O41: 04:19:21 | P41: 11.2 | Q41: 14:49:22 | R41: 0 | S41: 04:19:21 | T41: 13.3 | U41: 14:49:22 | V41: 135 | W41: SE | X41: 06:14:21 | Y41: 0.3 | Z41: 72.3 | AA41: 184.5 | AB41: 586.95 | AC41: 13 | AE41: =IF(AC41="","",VLOOKUP(AC41,List!$B$2:$E$29,4,FALSE)) -> Pluies et éclaircies | AG41: 5 | AH41: 13:24:22
A42: 2017-09-29 | B42: 30.8 | C42: 12:04:22 | D42: 73 | E42: 23:59:22 | F42: 12.8 | G42: 23:49:22 | H42: 22.4 | I42: 11:54:22 | J42: 88 | K42: 23:59:22 | L42: 1017.8 | M42: 23:54:22 | N42: 0 | O42: 01:49:22 | P42: 9.7 | Q42: 11:24:22 | R42: 0 | S42: 17:14:22 | T42: 14.8 | U42: 10:29:22 | V42: 135 | W42: SE | X42: 10:34:22 | Y42: 2.1 | Z42: 74.4 | AA42: 186.6 | AB42: 625.16 | AC42: 13 | AE42: =IF(AC42="","",VLOOKUP(AC42,List!$B$2:$E$29,4,FALSE)) -> Pluies et éclaircies | AG42: 5 | AH42: 11:54:22
A43: 2017-09-30 | B43: 37 | C43: 15:44:22 | D43: 66 | E43: 23:59:22 | F43: 9.2 | G43: 07:44:22 | H43: 20.6 | I43: 13:24:22 | J43: 85 | K43: 23:59:22 | L43: 1019.2 | M43: 10:14:22 | N43: 0 | O43: 00:04:22 | P43: 12.2 | Q43: 12:59:22 | R43: 0 | S43: 00:09:22 | T43: 18.4 | U43: 22:14:22 | V43: 90 | W43: EST | X43: 00:04:22 | Y43: 0.6 | Z43: 75 | AA43: 187.2 | AB43: 597.35 | AC43: 13 | AE43: =IF(AC43="","",VLOOKUP(AC43,List!$B$2:$E$29,4,FALSE)) -> Pluies et éclaircies | AG43: 5 | AH43: 13:19:22
AE44: =IF(AC44="","",VLOOKUP(AC44,List!$B$2:$E$29,4,FALSE)) -> 
AE45: =IF(AC45="","",VLOOKUP(AC45,List!$B$2:$E$29,4,FALSE)) -> 
AE46: =IF(AC46="","",VLOOKUP(AC46,List!$B$2:$E$29,4,FALSE)) -> 

Sheet Octobre 17 (hidden)
A1: Soleil | B1: C | C1: Ciel voilé | D1: Rares éclaircies | E1: Soleil Fortes averses | F1: Variable | J1: Orageux | K1: Soleil orage | L1: Soleil averses orageuses | M1: Pluies orageuses | N1: Orage | O1: Orage et grêles | P1: Orage violent | AQ1: 30 | AR1: 51 | AS1: 299 | AT1: 700
B2: 1 | C2: 2 | D2: 0.03 | E2: 4 | F2: 5 | K2: 18 | L2: 19 | M2: 20 | N2: 21 | O2: 22 | P2: 23 | AY2: =COUNTIF($W$14:$W$46,AZ2) -> 2 | AZ2: N | BA2: 0
A3: Nuageux & Brumeux | B3: C | C3: Brouillard dense | D3: Brume ou Brouillard légé | E3: Brume ou léger brouillard givrant | F3: Nuageux | G3: Couvert | H3: Couvert rares averses | J3: Grèle & Neige | K3: Giboulées | L3: Grèles | M3: Neiges | N3: Fortes neiges | AY3: =COUNTIF($W$14:$W$46,AZ3) -> 0 | AZ3: NNE | BA3: 23
B4: 6 | C4: 7 | D4: 0.08 | E4: 9 | F4: 10 | G4: 11 | H4: 12 | K4: 24 | L4: 25 | M4: 26 | N4: 27 | AY4: 1 | AZ4: NE | BA4: 45
A5: Pluvieux | B5: Pluies et éclaircies | C5: Pluies éparses | D5: Bruines | E5: Averses ou fortes pluies | F5: Pluies mélées de neige | AY5: 0 | AZ5: ENE | BA5: 68
B6: 13 | C6: 14 | D6: 0.15 | E6: 16 | F6: 17 | AY6: 18 | AZ6: EST | BA6: 90
F7: =IF(F14="","",MIN(F14:F46)) -> -0.3 | H7: =IF(H14="","",MIN(H14:H46)) -> 15.8 | J7: 0.76 | L7: 1006.3 | N7: 0 | P7: 3.6 | R7: 0 | T7: 5 | V7: =VLOOKUP(W7,$AZ$2:$BA$17,2,FALSE) -> 23 | W7: =W10 -> NNE | Y7: =MIN(Y14:Y46) -> 0 | AB7: 59.58 | AG7: 1 | AY7: 0 | AZ7: ESE | BA7: 113
F8: =IF(F15="","",MAX(F14:F46)) -> 14.4 | H8: =IF(H15="","",MAX(H14:H46)) -> 26 | J8: 0.99 | L8: 1032.8 | N8: 2.5 | P8: 19.4 | R8: 3.6 | T8: 27 | V8: =VLOOKUP(W8,$AZ$2:$BA$17,2,FALSE) -> 90 | W8: =W11 -> EST | Y8: =MAX(Y14:Y46) -> 10.8 | Z8: 22.2 | AA8: 210.3 | AB8: 603.15 | AG8: 5 | AY8: 4 | AZ8: SE | BA8: 135
AY9: 0 | AZ9: SSE | BA9: 158
V10: =SMALL($AY$2:$AY$17,1) -> 0 | W10: =VLOOKUP(V10,$AY$2:$AZ$17,2,FALSE) -> NNE | Z10: =MAX(Z14:Z46) -> 22.2 | AP10: 31 | AQ10: 99 | AR10: 300 | AY10: 1 | AZ10: S | BA10: 180
F11: =IF(F14="","",MIN(F14:F46)) -> -0.3 | G11: =VLOOKUP(F11,F14:G46,2,FALSE) -> 06:39:32 | H11: =IF(H14="","",MAX(H14:H46)) -> 26 | I11: =VLOOKUP(H11,H14:I46,2,FALSE) -> 12:54:33 | V11: =LARGE($AY$2:$AY$17,1) -> 18 | W11: =VLOOKUP(V11,$AY$2:$AZ$17,2,FALSE) -> EST | AP11: 49 | AQ11: 100 | AR11: 301 | AY11: 0 | AZ11: SSO | BA11: 203
A12: Moyenne Mensuelle | B12: =AVERAGE(B14:B46) -> 27.62580645 | D12: =AVERAGE(D14:D46) -> 62.90322581 | F12: =AVERAGE(F14:F46) -> 9.116129032 | H12: =AVERAGE(H14:H46) -> 20.45806452 | J12: =AVERAGE(J14:J46) -> 90.93548387 | L12: =AVERAGE(L14:L46) -> 1021.512903 | N12: =AVERAGE(N14:N46) -> 0.1161290323 | R12: =AVERAGE(R14:R46) -> 0.2225806452 | W12: SE | X12: 09:30:45 | Y12: =AVERAGE(Y14:Y44) -> 0.7451612903 | Z12: =AVERAGE(Z14:Z46) -> 10.95483871 | AB12: =AVERAGE(AB14:AB46) -> 379.2106452 | AG12: =AVERAGE(AG14:AG46) -> 3.580645161 | AP12: 50 | AQ12: 101 | AR12: 699 | AY12: 0 | AZ12: SO | BA12: 225
A13: Jour | B13: T° int. (°C) | C13: Heure | D13: Hum int. (%) | E13: Heure | F13: T° Mini ext. (°C) | G13: Heure | H13: T° Maxi ext. (°C) | I13: Heure | J13: Hum ext. (%) | K13: Heure | L13: Press. rel. (hpa) | M13: Heure | N13: Vit. du vent (km/h) | O13: Heure | P13: Vit. du vent (km/h) | Q13: Heure | R13: Rafale Min (km/h) | S13: Heure | T13: Rafale Max (km/h) | U13: Heure | V13: Direction du vent | W13: - | X13: Heure | Y13: Précipi. dern. 24 h (mm) | Z13: Précipi. Tot. mois (mm) | AA13: Précipi. Tot. An (mm) | AB13: Lumière (W/M2) | AG13: UVI | AH13: Heure | AJ13: Intensité des UV | AY13: 0 | AZ13: OSO | BA13: 248
A14: 2017-10-01 | B14: 22.5 | C14: 13:09:21 | D14: 74 | E14: 23:59:21 | F14: 14.4 | G14: 08:39:22 | H14: 19.3 | I14: 16:54:21 | J14: 92 | K14: 23:59:21 | L14: 1015 | M14: 10:34:22 | N14: 0 | O14: 06:44:22 | P14: 9.7 | Q14: 00:34:22 | R14: 0 | S14: 07:14:22 | T14: 12.2 | U14: 00:09:22 | V14: =IF(W14="N",0,IF(W14="NNE",23,IF(W14="NE",45,IF(W14="ENE",68,IF(W14="EST",90,IF(W14="ESE",113,IF(W14="SE",135,IF(W14="SSE",158,IF(W14="S",180,IF(W14="SSO",203,IF(W14="SO",225,IF(W14="OSO",248,IF(W14="O",270,IF(W14="ONO",293,IF(W14="NO",315,IF(W14="NNO",338,"")))))))))))))))) -> 90 | W14: EST | X14: 09:54:22 | Y14: 0.9 | Z14: 0 | AA14: 188.1 | AB14: 185.78 | AC14: 13 | AE14: =IF(AC14="","",VLOOKUP(AC14,List!$B$2:$E$29,4,FALSE)) -> Pluies et éclaircies | AG14: 3 | AH14: 12:49:21 | AJ14: FAIBLE | AK14: <2 | AO14: Soleil | AP14: C | AQ14: Ciel voilé | AR14: Rares éclaircies | AS14: Soleil Fortes averses | AT14: Variable | AU14: 0 | AV14: 0 | AY14: 0 | AZ14: O | BA14: 270
A15: =IF(B15="","",A14+1) -> 2017-10-02 | B15: 39.9 | C15: 15:09:21 | D15: 72 | E15: 23:59:21 | F15: 13.6 | G15: 04:14:21 | H15: 25.7 | I15: 14:59:21 | J15: 94 | K15: 23:59:21 | L15: 1018.6 | M15: 11:29:21 | N15: 0 | O15: 00:29:21 | P15: 19.4 | Q15: 23:09:21 | R15: 0 | S15: 00:39:21 | T15: 25.6 | U15: 23:09:21 | V15: 90 | W15: EST | X15: 22:24:21 | Y15: 0.6 | Z15: =IF(Y15="","",Y15+Z14) -> 0.6 | AA15: 188.7 | AB15: 576.35 | AC15: 13 | AE15: =IF(AC15="","",VLOOKUP(AC15,List!$B$2:$E$29,4,FALSE)) -> Pluies et éclaircies | AF15: =IF(AC15="","",) -> 0 | AG15: 5 | AH15: 12:34:21 | AJ15: MODEREE | AK15: 3 | AL15: à | AM15: 5 | AY15: 0 | AZ15: ONO | BA15: 293
A16: =IF(B16="","",A15+1) -> 2017-10-03 | B16: 37 | C16: 14:09:22 | D16: 69 | E16: 23:59:22 | F16: 6.2 | G16: 23:54:22 | H16: 22 | I16: 16:19:22 | J16: 99 | K16: 23:59:22 | L16: 1025 | M16: 23:04:22 | N16: 0 | O16: 00:54:21 | P16: 13.3 | Q16: 15:19:22 | R16: 0 | S16: 00:54:21 | T16: 15.8 | U16: 12:39:22 | V16: 315 | W16: NO | X16: 02:04:21 | Y16: 2.1 | Z16: 2.7 | AA16: 190.8 | AB16: 603.15 | AC16: 13 | AE16: =IF(AC16="","",VLOOKUP(AC16,List!$B$2:$E$29,4,FALSE)) -> Pluies et éclaircies | AF16: Averses ou fortes pluies | AG16: 5 | AH16: 12:34:22 | AJ16: FORTE | AK16: 6 | AL16: à | AM16: 7 | AO16: Nuageux & Brumeux | AP16: C | AQ16: Brouillard dense | AR16: Brume ou Brouillard légé | AS16: Brume ou léger brouillard givrant | AT16: Nuageux | AU16: Couvert | AV16: Couvert rares averses | AY16: 5 | AZ16: NO | BA16: 315
A17: 2017-10-04 | B17: 41.4 | C17: 15:29:23 | D17: 67 | E17: 23:59:23 | F17: 3.7 | G17: 08:14:22 | H17: 24.3 | I17: 15:34:23 | J17: 98 | K17: 23:59:23 | L17: 1025.9 | M17: 10:34:22 | N17: 0 | O17: 00:04:22 | P17: 5 | Q17: 12:54:23 | R17: 0 | S17: 00:04:22 | T17: 6.1 | U17: 12:54:23 | V17: 90 | W17: EST | X17: 15:19:23 | Y17: 0 | Z17: 2.7 | AA17: 190.8 | AB17: 533.58 | AC17: 1 | AE17: =IF(AC17="","",VLOOKUP(AC17,List!$B$2:$E$29,4,FALSE)) -> Ciel dégagé | AF17: Pluies et éclaircies | AG17: 5 | AH17: 12:44:23 | AJ17: TRES FORTE | AK17: 8 | AL17: à | AM17: 10 | AY17: 0 | AZ17: NNO | BA17: 338
A18: 2017-10-05 | B18: 25.5 | C18: 14:39:24 | D18: 65 | E18: 23:59:24 | F18: 3.6 | G18: 02:49:23 | H18: 18.9 | I18: 13:59:24 | J18: 98 | K18: 23:59:24 | L18: 1022.6 | M18: 23:59:24 | N18: 0 | O18: 00:04:23 | P18: 9.7 | Q18: 17:59:24 | R18: 0 | S18: 00:04:23 | T18: 15.8 | U18: 19:14:24 | V18: 90 | W18: EST | X18: 12:04:24 | Y18: 0 | Z18: 2.7 | AA18: 190.8 | AB18: 200.75 | AC18: 1 | AE18: =IF(AC18="","",VLOOKUP(AC18,List!$B$2:$E$29,4,FALSE)) -> Ciel dégagé | AF18: C | AG18: 3 | AH18: 11:54:24 | AJ18: EXTREME | AK18: 11+ | AO18: Pluvieux | AP18: Pluies et éclaircies | AQ18: Pluies éparses | AR18: Bruines | AS18: Averses ou fortes pluies | AT18: Pluies mélées de neige
A19: 2017-10-06 | B19: 34.2 | C19: 16:19:24 | D19: 61 | E19: 23:59:24 | F19: 5.9 | G19: 23:59:24 | H19: 21.5 | I19: 16:14:24 | J19: 98 | K19: 23:59:24 | L19: 1026.7 | M19: 11:09:24 | N19: 0 | O19: 00:04:24 | P19: 12.2 | Q19: 10:44:24 | R19: 0 | S19: 00:34:24 | T19: 18.4 | U19: 12:54:24 | V19: 0 | W19: N | X19: 02:29:24 | Y19: 0 | Z19: 2.7 | AA19: 190.8 | AB19: 520.93 | AC19: 1 | AE19: =IF(AC19="","",VLOOKUP(AC19,List!$B$2:$E$29,4,FALSE)) -> Ciel dégagé | AF19: C | AG19: 5 | AH19: 12:49:24
A20: 2017-10-07 | B20: 28.1 | C20: 16:49:24 | D20: 59 | E20: 23:59:24 | F20: 1.9 | G20: 07:04:24 | H20: 23.2 | I20: 15:49:24 | J20: 85 | K20: 23:59:24 | L20: 1026.3 | M20: 00:34:24 | N20: 0 | O20: 00:04:24 | P20: 12.2 | Q20: 12:44:24 | R20: 0 | S20: 00:04:24 | T20: 17.3 | U20: 12:44:24 | V20: 90 | W20: EST | X20: 23:49:24 | Y20: 0 | Z20: 2.7 | AA20: 190.8 | AB20: 524.06 | AC20: 1 | AE20: =IF(AC20="","",VLOOKUP(AC20,List!$B$2:$E$29,4,FALSE)) -> Ciel dégagé | AF20: C | AG20: 4 | AH20: 12:34:24 | AO20: Orageux | AP20: Soleil orage | AQ20: Soleil averses orageuses | AR20: Pluies orageuses | AS20: Orage | AT20: Orage et grêles | AU20: Orage violent
A21: 2017-10-08 | B21: 24.6 | C21: 11:44:27 | D21: 66 | E21: 23:59:27 | F21: 14 | G21: 01:09:24 | H21: 19.1 | I21: 15:54:27 | J21: 99 | K21: 23:59:27 | L21: 1020.5 | M21: 10:49:24 | N21: 0 | O21: 00:14:24 | P21: 7.2 | Q21: 17:19:27 | R21: 0 | S21: 03:29:24 | T21: 8.6 | U21: 15:09:27 | V21: 315 | W21: NO | X21: 00:54:24 | Y21: 0.3 | Z21: 3 | AA21: 191.1 | AB21: 186.9 | AC21: 13 | AE21: =IF(AC21="","",VLOOKUP(AC21,List!$B$2:$E$29,4,FALSE)) -> Pluies et éclaircies | AF21: Averses ou fortes pluies | AG21: 3 | AH21: 12:49:27
A22: 2017-10-09 | B22: 32.2 | C22: 15:44:24 | D22: 63 | E22: 23:59:24 | F22: 14.3 | G22: 00:04:27 | H22: 22.5 | I22: 15:29:24 | J22: 91 | K22: 23:59:24 | L22: 1021 | M22: 10:39:27 | N22: 0 | O22: 00:04:27 | P22: 7.2 | Q22: 16:34:24 | R22: 0 | S22: 00:04:27 | T22: 8.6 | U22: 16:34:24 | V22: 90 | W22: EST | X22: 10:49:27 | Y22: 0.3 | Z22: 3.3 | AA22: 191.4 | AB22: 535.28 | AC22: 13 | AE22: =IF(AC22="","",VLOOKUP(AC22,List!$B$2:$E$29,4,FALSE)) -> Pluies et éclaircies | AF22: Pluies et éclaircies | AG22: 4 | AH22: 12:09:24 | AO22: Grèle & Neige | AP22: Giboulées | AQ22: Grèles | AR22: Neiges | AS22: Fortes neiges | AT22: 0 | AU22: 0
A23: 2017-10-10 | B23: 25.4 | C23: 21:34:25 | D23: 63 | E23: 23:59:25 | F23: 13.7 | G23: 07:34:24 | H23: 16.8 | I23: 13:34:25 | J23: 85 | K23: 23:59:25 | L23: 1018.9 | M23: 10:29:25 | N23: 0 | O23: 01:39:24 | P23: 8.6 | Q23: 13:49:25 | R23: 0 | S23: 05:24:24 | T23: 12.2 | U23: 13:49:25 | V23: 90 | W23: EST | X23: 09:54:25 | Y23: 0 | Z23: 3.3 | AA23: 191.4 | AB23: 213.09 | AC23: 1 | AE23: =IF(AC23="","",VLOOKUP(AC23,List!$B$2:$E$29,4,FALSE)) -> Ciel dégagé | AF23: Pluies éparses | AG23: 2 | AH23: 10:49:25
A24: 2017-10-11 | B24: 41 | C24: 15:54:27 | D24: 60 | E24: 23:59:27 | F24: 13 | G24: 06:34:25 | H24: 21.2 | I24: 16:04:27 | J24: 90 | K24: 23:59:27 | L24: 1016.8 | M24: 00:04:25 | N24: 0 | O24: 00:14:25 | P24: 13.3 | Q24: 15:54:27 | R24: 0 | S24: 00:24:25 | T24: 19.4 | U24: 15:44:27 | V24: 135 | W24: SE | X24: 08:59:27 | Y24: 0.6 | Z24: 3.9 | AA24: 192 | AB24: 414.77 | AC24: 13 | AE24: =IF(AC24="","",VLOOKUP(AC24,List!$B$2:$E$29,4,FALSE)) -> Pluies et éclaircies | AF24: Pluies et éclaircies | AG24: 4 | AH24: 11:34:27 | AO24: Temps de nuit | AP24: Ciel dégagé de nuit | AQ24: Ciel voilé de nuit | AR24: Brume ou brouillard léger de nuit | AS24: Brume ou léger brouillard givrant de nuit | AT24: Brouillard dense de nuit | AU24: Ciel nuageux avec éclaircies de nuit
A25: 2017-10-12 | B25: 26.3 | C25: 21:19:26 | D25: 62 | E25: 23:59:26 | F25: 14.1 | G25: 08:39:27 | H25: 21.6 | I25: 13:09:26 | J25: 93 | K25: 23:59:26 | L25: 1022.1 | M25: 11:54:26 | N25: 0 | O25: 00:14:27 | P25: 8.6 | Q25: 12:34:26 | R25: 0 | S25: 08:39:27 | T25: 13.3 | U25: 15:29:26 | V25: 90 | W25: EST | X25: 08:34:27 | Y25: 0.6 | Z25: 4.5 | AA25: 192.6 | AB25: 556.47 | AC25: 16 | AE25: =IF(AC25="","",VLOOKUP(AC25,List!$B$2:$E$29,4,FALSE)) -> Averses ou fortes pluies | AF25: C | AG25: 5 | AH25: 13:09:26
A26: 2017-10-13 | B26: 26.3 | C26: 20:49:26 | D26: 62 | E26: 23:59:26 | F26: 8.8 | G26: 23:59:26 | H26: 21 | I26: 16:14:26 | J26: 97 | K26: 23:59:26 | L26: 1024.1 | M26: 10:39:26 | N26: 0 | O26: 02:49:26 | P26: 7.2 | Q26: 14:39:26 | R26: 0 | S26: 02:59:26 | T26: 12.2 | U26: 14:39:26 | V26: 90 | W26: EST | X26: 01:44:26 | Y26: 0.6 | Z26: 5.1 | AA26: 193.2 | AB26: 475.92 | AC26: 13 | AE26: =IF(AC26="","",VLOOKUP(AC26,List!$B$2:$E$29,4,FALSE)) -> Pluies et éclaircies | AG26: 4 | AH26: 14:34:26
A27: 2017-10-14 | B27: 25.8 | C27: 00:04:26 | D27: 64 | E27: 23:59:27 | F27: 6.5 | G27: 06:39:26 | H27: 25.4 | I27: 15:39:27 | J27: 96 | K27: 23:59:27 | L27: 1024.4 | M27: 10:19:26 | N27: 0 | O27: 00:04:26 | P27: 6.1 | Q27: 14:49:27 | R27: 0 | S27: 00:04:26 | T27: 8.6 | U27: 16:54:27 | V27: 90 | W27: EST | X27: 13:59:27 | Y27: 0.3 | Z27: 5.4 | AA27: 193.5 | AB27: 381.98 | AC27: 13 | AE27: =IF(AC27="","",VLOOKUP(AC27,List!$B$2:$E$29,4,FALSE)) -> Pluies et éclaircies | AG27: 4 | AH27: 13:34:27
A28: 2017-10-15 | B28: 25 | C28: 21:59:28 | D28: 64 | E28: 23:59:28 | F28: 9.4 | G28: 00:49:27 | H28: 23.5 | I28: 16:14:28 | J28: 76 | K28: 23:59:28 | L28: 1018.3 | M28: 00:39:27 | N28: 0 | O28: 00:04:27 | P28: 13.3 | Q28: 16:09:28 | R28: 0 | S28: 00:14:27 | T28: 19.4 | U28: 18:39:28 | V28: 135 | W28: SE | X28: 09:09:27 | Y28: 0 | Z28: 5.4 | AA28: 193.5 | AB28: 418.64 | AC28: 10 | AE28: =IF(AC28="","",VLOOKUP(AC28,List!$B$2:$E$29,4,FALSE)) -> Nuageux | AG28: 4 | AH28: 13:49:28
A29: 2017-10-16 | B29: 26.1 | C29: 21:29:29 | D29: 62 | E29: 23:59:29 | F29: 10.5 | G29: 22:59:29 | H29: 19.5 | I29: 11:29:29 | J29: 97 | K29: 23:59:29 | L29: 1020.2 | M29: 23:24:29 | N29: 0 | O29: 01:44:28 | P29: 14.8 | Q29: 11:09:28 | R29: 0 | S29: 01:44:28 | T29: 19.4 | U29: 11:09:28 | V29: 180 | W29: S | X29: 00:49:28 | Y29: 0 | Z29: 5.4 | AA29: 193.5 | AB29: 59.58 | AC29: 10 | AE29: =IF(AC29="","",VLOOKUP(AC29,List!$B$2:$E$29,4,FALSE)) -> Nuageux | AG29: 1 | AH29: 10:14:28
A30: 2017-10-17 | B30: 26.3 | C30: 21:19:29 | D30: 62 | E30: 23:59:29 | F30: 9.9 | G30: 00:49:29 | H30: 20.2 | I30: 14:19:29 | J30: 92 | K30: 23:59:29 | L30: 1020.5 | M30: 00:39:29 | N30: 0 | O30: 00:04:29 | P30: 12.2 | Q30: 16:34:29 | R30: 0 | S30: 00:04:29 | T30: 14.8 | U30: 16:14:29 | V30: 90 | W30: EST | X30: 10:54:29 | Y30: 0.3 | Z30: 5.7 | AA30: 193.8 | AB30: 421.42 | AC30: 13 | AE30: =IF(AC30="","",VLOOKUP(AC30,List!$B$2:$E$29,4,FALSE)) -> Pluies et éclaircies | AG30: 4 | AH30: 15:09:29
A31: 2017-10-18 | B31: 25.8 | C31: 00:04:29 | D31: 67 | E31: 23:59:30 | F31: 13.4 | G31: 02:19:29 | H31: 20.5 | I31: 15:04:30 | J31: 99 | K31: 23:59:30 | L31: 1009.7 | M31: 00:09:29 | N31: 0 | O31: 00:04:29 | P31: 6.1 | Q31: 19:39:30 | R31: 0 | S31: 00:04:29 | T31: 8.6 | U31: 19:39:30 | V31: 90 | W31: EST | X31: 15:29:30 | Y31: 0.6 | Z31: 6.3 | AA31: 194.4 | AB31: 312.71 | AC31: 13 | AE31: =IF(AC31="","",VLOOKUP(AC31,List!$B$2:$E$29,4,FALSE)) -> Pluies et éclaircies | AG31: 4 | AH31: 13:04:30
A32: 2017-10-19 | B32: 24.4 | C32: 21:54:29 | D32: 64 | E32: 23:59:29 | F32: 12.2 | G32: 23:34:29 | H32: 18.1 | I32: 12:59:29 | J32: 86 | K32: 23:59:29 | L32: 1006.3 | M32: 00:04:30 | N32: 0 | O32: 00:34:30 | P32: 17.3 | Q32: 17:34:29 | R32: 0 | S32: 01:29:30 | T32: 27 | U32: 17:34:29 | V32: 0 | W32: N | X32: 00:09:30 | Y32: 10.8 | Z32: 17.1 | AA32: 205.2 | AB32: 243.83 | AC32: 16 | AE32: =IF(AC32="","",VLOOKUP(AC32,List!$B$2:$E$29,4,FALSE)) -> Averses ou fortes pluies | AG32: 3 | AH32: 11:29:29
A33: 2017-10-20 | B33: 24.6 | C33: 21:49:30 | D33: 60 | E33: 23:59:30 | F33: 7.2 | G33: 09:04:29 | H33: 18.7 | I33: 16:09:30 | J33: 90 | K33: 23:59:30 | L33: 1012.1 | M33: 11:14:29 | N33: 0 | O33: 08:44:29 | P33: 15.8 | Q33: 22:14:30 | R33: 0 | S33: 08:49:29 | T33: 23.4 | U33: 14:54:30 | V33: 90 | W33: EST | X33: 21:59:30 | Y33: 0.3 | Z33: 17.4 | AA33: 205.5 | AB33: 453.83 | AC33: 13 | AE33: =IF(AC33="","",VLOOKUP(AC33,List!$B$2:$E$29,4,FALSE)) -> Pluies et éclaircies | AG33: 4 | AH33: 12:44:30
A34: 2017-10-21 | B34: 24.6 | C34: 22:44:31 | D34: 53 | E34: 23:59:31 | F34: 9.8 | G34: 23:49:31 | H34: 17.6 | I34: 00:04:30 | J34: 77 | K34: 23:59:31 | L34: 1014.7 | M34: 23:59:31 | N34: 2.5 | O34: 14:54:31 | P34: 19.4 | Q34: 16:04:31 | R34: 3.6 | S34: 14:59:31 | T34: 27 | U34: 11:39:31 | V34: 135 | W34: SE | X34: 12:24:31 | Y34: 3 | Z34: 20.4 | AA34: 208.5 | AB34: 382.21 | AC34: 13 | AE34: =IF(AC34="","",VLOOKUP(AC34,List!$B$2:$E$29,4,FALSE)) -> Pluies et éclaircies | AG34: 4 | AH34: 14:24:31
A35: 2017-10-22 | B35: 24.9 | C35: 22:39:31 | D35: 58 | E35: 23:59:31 | F35: 9 | G35: 07:09:31 | H35: 18.5 | I35: 15:04:31 | J35: 80 | K35: 23:59:31 | L35: 1021.4 | M35: 23:14:31 | N35: 1.1 | O35: 06:59:31 | P35: 11.2 | Q35: 00:14:31 | R35: 1.1 | S35: 23:34:31 | T35: 18.4 | U35: 13:19:31 | V35: 90 | W35: EST | X35: 05:49:31 | Y35: 0 | Z35: 20.4 | AA35: 208.5 | AB35: 464.55 | AC35: 1 | AE35: =IF(AC35="","",VLOOKUP(AC35,List!$B$2:$E$29,4,FALSE)) -> Ciel dégagé | AG35: 4 | AH35: 12:49:31
A36: 2017-10-23 | B36: 25.4 | C36: 21:34:32 | D36: 60 | E36: 23:59:32 | F36: 10.6 | G36: 03:04:31 | H36: 16.4 | I36: 17:39:32 | J36: 88 | K36: 23:59:32 | L36: 1021.5 | M36: 00:39:31 | N36: 0 | O36: 02:34:31 | P36: 15.8 | Q36: 12:19:32 | R36: 0 | S36: 02:34:31 | T36: 20.9 | U36: 12:19:32 | V36: 90 | W36: EST | X36: 15:44:32 | Y36: 1.5 | Z36: 21.9 | AA36: 210 | AB36: 184.97 | AC36: 13 | AE36: =IF(AC36="","",VLOOKUP(AC36,List!$B$2:$E$29,4,FALSE)) -> Pluies et éclaircies | AG36: 3 | AH36: 13:44:32
A37: 2017-10-24 | B37: 24.7 | C37: 21:14:33 | D37: 63 | E37: 23:59:33 | F37: 13.1 | G37: 23:49:33 | H37: 18.8 | I37: 15:29:33 | J37: 89 | K37: 23:59:33 | L37: 1022.2 | M37: 10:34:32 | N37: 0 | O37: 01:34:32 | P37: 11.2 | Q37: 15:54:33 | R37: 1.1 | S37: 01:34:32 | T37: 14.8 | U37: 13:39:33 | V37: 135 | W37: SE | X37: 01:34:32 | Y37: 0 | Z37: 21.9 | AA37: 210 | AB37: 407.11 | AC37: 1 | AE37: =IF(AC37="","",VLOOKUP(AC37,List!$B$2:$E$29,4,FALSE)) -> Ciel dégagé | AG37: 3 | AH37: 12:44:33
A38: 2017-10-25 | B38: 25.6 | C38: 12:04:33 | D38: 61 | E38: 23:59:33 | F38: 8.2 | G38: 08:14:33 | H38: 26 | I38: 12:54:33 | J38: 95 | K38: 23:59:33 | L38: 1021.5 | M38: 10:29:33 | N38: 0 | O38: 00:14:33 | P38: 9.7 | Q38: 00:49:33 | R38: 0 | S38: 00:14:33 | T38: 12.2 | U38: 00:49:33 | V38: 90 | W38: EST | X38: 07:29:33 | Y38: 0 | Z38: 21.9 | AA38: 210 | AB38: 493.86 | AC38: 1 | AE38: =IF(AC38="","",VLOOKUP(AC38,List!$B$2:$E$29,4,FALSE)) -> Ciel dégagé | AG38: 3 | AH38: 11:29:33
A39: 2017-10-26 | B39: 25.8 | C39: 21:19:33 | D39: 61 | E39: 23:59:33 | F39: 7.4 | G39: 08:44:33 | H39: 25.7 | I39: 15:54:33 | J39: 97 | K39: 23:59:33 | L39: 1024.3 | M39: 23:54:33 | N39: 0 | O39: 00:04:33 | P39: 3.6 | Q39: 13:54:33 | R39: 0 | S39: 00:04:33 | T39: 5 | U39: 13:54:33 | V39: 90 | W39: EST | X39: 11:24:33 | Y39: 0.3 | Z39: 22.2 | AA39: 210.3 | AB39: 431.17 | AC39: 13 | AE39: =IF(AC39="","",VLOOKUP(AC39,List!$B$2:$E$29,4,FALSE)) -> Pluies et éclaircies | AG39: 3 | AH39: 12:14:33
A40: 2017-10-27 | B40: 24.8 | C40: 14:09:33 | D40: 62 | E40: 23:59:33 | F40: 11.6 | G40: 23:59:33 | H40: 16.6 | I40: 13:34:33 | J40: 91 | K40: 23:59:33 | L40: 1032.8 | M40: 23:29:33 | N40: 0 | O40: 00:09:33 | P40: 8.6 | Q40: 15:19:33 | R40: 0 | S40: 02:49:33 | T40: 11.2 | U40: 15:19:33 | V40: 315 | W40: NO | X40: 01:19:33 | Y40: 0 | Z40: 22.2 | AA40: 210.3 | AB40: 102.44 | AC40: 10 | AE40: =IF(AC40="","",VLOOKUP(AC40,List!$B$2:$E$29,4,FALSE)) -> Nuageux | AG40: 2 | AH40: 11:39:33
A41: 2017-10-28 | B41: 24.6 | C41: 11:24:33 | D41: 62 | E41: 23:59:31 | F41: 3.7 | G41: 08:14:33 | H41: 21.8 | I41: 14:29:31 | J41: 82 | K41: 23:59:31 | L41: 1032.6 | M41: 00:09:33 | N41: 0 | O41: 00:04:33 | P41: 9.7 | Q41: 13:59:31 | R41: 0 | S41: 00:04:33 | T41: 12.2 | U41: 13:59:31 | V41: 45 | W41: NE | X41: 09:29:33 | Y41: 0 | Z41: 22.2 | AA41: 210.3 | AB41: 511.53 | AC41: 1 | AE41: =IF(AC41="","",VLOOKUP(AC41,List!$B$2:$E$29,4,FALSE)) -> Ciel dégagé | AG41: 4 | AH41: 13:29:31
A42: 2017-10-29 | B42: 25.2 | C42: 16:39:32 | D42: 65 | E42: 22:59:32 | F42: 11.8 | G42: 01:24:31 | H42: 15.8 | I42: 13:44:32 | J42: 85 | K42: 23:49:32 | L42: 1025 | M42: 00:04:31 | N42: 0 | O42: 02:39:31 | P42: 13.3 | Q42: 16:59:32 | R42: 1.1 | S42: 02:39:31 | T42: 18.4 | U42: 16:59:32 | V42: 315 | W42: NO | X42: 09:49:31 | Y42: 0 | Z42: 22.2 | AA42: 210.3 | AB42: 145.25 | AC42: 10 | AE42: =IF(AC42="","",VLOOKUP(AC42,List!$B$2:$E$29,4,FALSE)) -> Nuageux | AG42: 3 | AH42: 13:24:32
A43: 2017-10-30 | B43: 24.1 | C43: 21:54:32 | D43: 62 | E43: 23:59:32 | F43: 1.4 | G43: 23:54:32 | H43: 17.7 | I43: 12:39:32 | J43: 90 | K43: 23:59:32 | L43: 1028.3 | M43: 09:54:32 | N43: 0 | O43: 02:04:32 | P43: 13.3 | Q43: 13:49:32 | R43: 0 | S43: 03:04:32 | T43: 17.3 | U43: 14:09:32 | V43: 315 | W43: NO | X43: 00:44:32 | Y43: 0 | Z43: 22.2 | AA43: 210.3 | AB43: 458.94 | AC43: 1 | AE43: =IF(AC43="","",VLOOKUP(AC43,List!$B$2:$E$29,4,FALSE)) -> Ciel dégagé | AG43: 3 | AH43: 10:59:32
A44: 2017-10-31 | B44: 24.3 | C44: 20:14:33 | D44: 57 | E44: 23:59:33 | F44: -0.3 | G44: 06:39:32 | H44: 16.3 | I44: 14:19:33 | J44: 90 | K44: 23:59:33 | L44: 1027.6 | M44: 00:54:32 | N44: 0 | O44: 00:04:32 | P44: 6.1 | Q44: 11:49:33 | R44: 0 | S44: 00:04:32 | T44: 8.6 | U44: 12:19:33 | V44: 90 | W44: EST | X44: 15:34:33 | Y44: 0 | Z44: 22.2 | AA44: 210.3 | AB44: 354.48 | AC44: 1 | AE44: =IF(AC44="","",VLOOKUP(AC44,List!$B$2:$E$29,4,FALSE)) -> Ciel dégagé | AG44: 3 | AH44: 11:29:33
AE45: =IF(AC45="","",VLOOKUP(AC45,List!$B$2:$E$29,4,FALSE)) -> 
AE46: =IF(AC46="","",VLOOKUP(AC46,List!$B$2:$E$29,4,FALSE)) -> 

Sheet Novembre 17 (hidden)
A1: Soleil | B1: C | C1: Ciel voilé | D1: Rares éclaircies | E1: Soleil Fortes averses | F1: Variable | J1: Orageux | K1: Soleil orage | L1: Soleil averses orageuses | M1: Pluies orageuses | N1: Orage | O1: Orage et grêles | P1: Orage violent | AQ1: 30 | AR1: 51 | AS1: 299 | AT1: 700
B2: 1 | C2: 2 | D2: 0.03 | E2: 4 | F2: 5 | K2: 18 | L2: 19 | M2: 20 | N2: 21 | O2: 22 | P2: 23 | AY2: =COUNTIF($W$14:$W$46,AZ2) -> 2 | AZ2: N | BA2: 0
A3: Nuageux & Brumeux | B3: C | C3: Brouillard dense | D3: Brume ou Brouillard légé | E3: Brume ou léger brouillard givrant | F3: Nuageux | G3: Couvert | H3: Couvert rares averses | J3: Grèle & Neige | K3: Giboulées | L3: Grèles | M3: Neiges | N3: Fortes neiges | AY3: =COUNTIF($W$14:$W$46,AZ3) -> 0 | AZ3: NNE | BA3: 23
B4: 6 | C4: 7 | D4: 0.08 | E4: 9 | F4: 10 | G4: 11 | H4: 12 | K4: 24 | L4: 25 | M4: 26 | N4: 27 | AY4: 1 | AZ4: NE | BA4: 45
A5: Pluvieux | B5: Pluies et éclaircies | C5: Pluies éparses | D5: Bruines | E5: Averses ou fortes pluies | F5: Pluies mélées de neige | AY5: 0 | AZ5: ENE | BA5: 68
B6: 13 | C6: 14 | D6: 0.15 | E6: 16 | F6: 17 | AY6: 12 | AZ6: EST | BA6: 90
F7: =IF(F14="","",MIN(F14:F46)) -> 0.4 | H7: =IF(H14="","",MIN(H14:H46)) -> 9.6 | J7: 0.98 | L7: 1006 | N7: 0 | P7: 2.5 | R7: 0 | T7: 3.6 | V7: =VLOOKUP(W7,$AZ$2:$BA$17,2,FALSE) -> 23 | W7: =W10 -> NNE | Y7: =MIN(Y14:Y46) -> 0 | AB7: 138.72 | AG7: 2 | AY7: 0 | AZ7: ESE | BA7: 113
F8: =IF(F15="","",MAX(F14:F46)) -> 11.5 | H8: =IF(H15="","",MAX(H14:H46)) -> 20.4 | J8: 0.96 | L8: 1028.4 | N8: 1.1 | P8: 28.1 | R8: 3.6 | T8: 34.2 | V8: =VLOOKUP(W8,$AZ$2:$BA$17,2,FALSE) -> 315 | W8: =W11 -> NO | Y8: =MAX(Y14:Y46) -> 13.5 | Z8: 66.6 | AA8: 290.7 | AB8: 457.89 | AG8: 3 | AY8: 2 | AZ8: SE | BA8: 135
AY9: 0 | AZ9: SSE | BA9: 158
V10: =SMALL($AY$2:$AY$17,1) -> 0 | W10: =VLOOKUP(V10,$AY$2:$AZ$17,2,FALSE) -> NNE | Z10: =MAX(Z14:Z46) -> 66.6 | AP10: 31 | AQ10: 99 | AR10: 300 | AY10: 0 | AZ10: S | BA10: 180
F11: =IF(F14="","",MIN(F14:F46)) -> 0.4 | G11: =VLOOKUP(F11,F14:G46,2,FALSE) -> 08:19:45 | H11: =IF(H14="","",MAX(H14:H46)) -> 20.4 | I11: =VLOOKUP(H11,H14:I46,2,FALSE) -> 13:44:37 | V11: =LARGE($AY$2:$AY$17,1) -> 13 | W11: =VLOOKUP(V11,$AY$2:$AZ$17,2,FALSE) -> NO | AP11: 49 | AQ11: 100 | AR11: 301 | AY11: 0 | AZ11: SSO | BA11: 203
A12: Moyenne Mensuelle | B12: =AVERAGE(B14:B46) -> 22.93333333 | D12: =AVERAGE(D14:D46) -> 54.29 | F12: =AVERAGE(F14:F46) -> 4.196666667 | H12: =AVERAGE(H14:H46) -> 14.55 | J12: =AVERAGE(J14:J46) -> 82.19933333 | L12: =AVERAGE(L14:L46) -> 1020.11 | N12: =AVERAGE(N14:N46) -> 0.07333333333 | R12: =AVERAGE(R14:R46) -> 0.3133333333 | W12: SE | X12: 09:30:45 | Y12: =AVERAGE(Y14:Y44) -> 2.22 | Z12: =AVERAGE(Z14:Z46) -> 24.61 | AB12: =AVERAGE(AB14:AB46) -> 314.7146667 | AG12: =AVERAGE(AG14:AG46) -> 2.5 | AP12: 50 | AQ12: 101 | AR12: 699 | AY12: 0 | AZ12: SO | BA12: 225
A13: Jour | B13: T° int. (°C) | C13: Heure | D13: Hum int. (%) | E13: Heure | F13: T° Mini ext. (°C) | G13: Heure | H13: T° Maxi ext. (°C) | I13: Heure | J13: Hum ext. (%) | K13: Heure | L13: Press. rel. (hpa) | M13: Heure | N13: Vit. du vent (km/h) | O13: Heure | P13: Vit. du vent (km/h) | Q13: Heure | R13: Rafale Min (km/h) | S13: Heure | T13: Rafale Max (km/h) | U13: Heure | V13: Direction du vent | W13: - | X13: Heure | Y13: Précipi. dern. 24 h (mm) | Z13: Précipi. Tot. mois (mm) | AA13: Précipi. Tot. An (mm) | AB13: Lumière (W/M2) | AG13: UVI | AH13: Heure | AJ13: Intensité des UV | AY13: 0 | AZ13: OSO | BA13: 248
A14: 2017-11-01 | B14: 24 | C14: 14:49:34 | D14: 60 | E14: 23:59:34 | F14: 1.5 | G14: 03:39:33 | H14: 16.2 | I14: 14:39:34 | J14: 91 | K14: 23:59:34 | L14: 1020.2 | M14: 00:04:33 | N14: 0 | O14: 00:04:33 | P14: 6.1 | Q14: 10:09:33 | R14: 0 | S14: 00:04:33 | T14: 8.6 | U14: 10:09:33 | V14: =IF(W14="N",0,IF(W14="NNE",23,IF(W14="NE",45,IF(W14="ENE",68,IF(W14="EST",90,IF(W14="ESE",113,IF(W14="SE",135,IF(W14="SSE",158,IF(W14="S",180,IF(W14="SSO",203,IF(W14="SO",225,IF(W14="OSO",248,IF(W14="O",270,IF(W14="ONO",293,IF(W14="NO",315,IF(W14="NNO",338,"")))))))))))))))) -> 90 | W14: EST | X14: 07:44:33 | Y14: 0 | Z14: 0 | AA14: 210.3 | AB14: 313.72 | AC14: 1 | AE14: =IF(AC14="","",VLOOKUP(AC14,List!$B$2:$E$29,4,FALSE)) -> Ciel dégagé | AG14: 3 | AH14: 11:24:34 | AJ14: FAIBLE | AK14: <2 | AO14: Soleil | AP14: C | AQ14: Ciel voilé | AR14: Rares éclaircies | AS14: Soleil Fortes averses | AT14: Variable | AU14: 0 | AV14: 0 | AY14: 0 | AZ14: O | BA14: 270
A15: =IF(B15="","",A14+1) -> 2017-11-02 | B15: 26.3 | C15: 20:09:37 | D15: 59 | E15: 23:59:37 | F15: 3.6 | G15: 03:09:34 | H15: 20.4 | I15: 13:44:37 | J15: 96 | K15: 23:49:37 | L15: 1015.2 | M15: 10:09:37 | N15: 0 | O15: 00:04:34 | P15: 6.1 | Q15: 11:19:37 | R15: 0 | S15: 00:04:34 | T15: 8.6 | U15: 11:19:37 | V15: 90 | W15: EST | X15: 04:24:34 | Y15: 0 | Z15: =IF(Y15="","",Y15+Z14) -> 0 | AA15: 210.3 | AB15: 328.14 | AC15: 1 | AE15: =IF(AC15="","",VLOOKUP(AC15,List!$B$2:$E$29,4,FALSE)) -> Ciel dégagé | AF15: =IF(AC15="","",) -> 0 | AG15: 3 | AH15: 10:49:37 | AJ15: MODEREE | AK15: 3 | AL15: à | AM15: 5 | AY15: 0 | AZ15: ONO | BA15: 293
A16: =IF(B16="","",A15+1) -> 2017-11-03 | B16: 25.1 | C16: 21:39:36 | D16: 0.7 | E16: 14:29:35 | F16: 10.1 | G16: 03:54:37 | H16: 16 | I16: 13:59:35 | J16: 0.98 | K16: 10:54:35 | L16: 1013.1 | M16: 00:09:37 | N16: 0 | O16: 00:04:37 | P16: 6.1 | Q16: 11:04:35 | R16: 0 | S16: 00:34:37 | T16: 9.7 | U16: 15:24:35 | V16: 90 | W16: EST | X16: 02:04:37 | Y16: 3 | Z16: 3 | AA16: 213.3 | AB16: 201.95 | AC16: 13 | AE16: =IF(AC16="","",VLOOKUP(AC16,List!$B$2:$E$29,4,FALSE)) -> Pluies et éclaircies | AF16: Averses ou fortes pluies | AG16: 2 | AH16: 10:49:35 | AJ16: FORTE | AK16: 6 | AL16: à | AM16: 7 | AO16: Nuageux & Brumeux | AP16: C | AQ16: Brouillard dense | AR16: Brume ou Brouillard légé | AS16: Brume ou léger brouillard givrant | AT16: Nuageux | AU16: Couvert | AV16: Couvert rares averses | AY16: 13 | AZ16: NO | BA16: 315
A17: 2017-11-04 | B17: 23.8 | C17: 00:04:36 | D17: 61 | E17: 23:59:37 | F17: 6.9 | G17: 23:34:37 | H17: 15.6 | I17: 13:19:37 | J17: 87 | K17: 23:59:37 | L17: 1011.7 | M17: 23:59:37 | N17: 0 | O17: 02:14:36 | P17: 8.6 | Q17: 15:44:37 | R17: 0 | S17: 02:29:36 | T17: 9.7 | U17: 11:49:37 | V17: 315 | W17: NO | X17: 10:24:37 | Y17: 3.6 | Z17: 6.6 | AA17: 216.9 | AB17: 164.43 | AC17: 13 | AE17: =IF(AC17="","",VLOOKUP(AC17,List!$B$2:$E$29,4,FALSE)) -> Pluies et éclaircies | AF17: Pluies et éclaircies | AG17: 3 | AH17: 12:14:37 | AJ17: TRES FORTE | AK17: 8 | AL17: à | AM17: 10 | AY17: 0 | AZ17: NNO | BA17: 338
A18: 2017-11-05 | B18: 20 | C18: 00:09:37 | D18: 60 | E18: 23:59:37 | F18: 6 | G18: 23:29:37 | H18: 12.6 | I18: 14:29:37 | J18: 87 | K18: 23:59:37 | L18: 1021.7 | M18: 23:44:37 | N18: 0 | O18: 09:49:37 | P18: 13.3 | Q18: 18:29:37 | R18: 0 | S18: 15:09:37 | T18: 15.8 | U18: 07:19:37 | V18: 315 | W18: NO | X18: 01:54:37 | Y18: 0 | Z18: 6.6 | AA18: 0 | AB18: 407.69 | AC18: 1 | AE18: =IF(AC18="","",VLOOKUP(AC18,List!$B$2:$E$29,4,FALSE)) -> Ciel dégagé | AF18: C | AG18: 3 | AH18: 14:19:37 | AJ18: EXTREME | AK18: 11+ | AO18: Pluvieux | AP18: Pluies et éclaircies | AQ18: Pluies éparses | AR18: Bruines | AS18: Averses ou fortes pluies | AT18: Pluies mélées de neige
A19: 2017-11-06 | B19: 17.5 | C19: 00:04:37 | D19: 61 | E19: 23:59:37 | F19: 1.6 | G19: 23:44:37 | H19: 18.6 | I19: 14:59:37 | J19: 90 | K19: 23:59:37 | L19: 1025.4 | M19: 09:24:37 | N19: 0 | O19: 00:09:37 | P19: 5 | Q19: 14:54:37 | R19: 0 | S19: 03:29:37 | T19: 6.1 | U19: 10:14:37 | V19: 315 | W19: NO | X19: 05:44:37 | Y19: 0.9 | Z19: 7.5 | AA19: 231.6 | AB19: 416.59 | AC19: 13 | AE19: =IF(AC19="","",VLOOKUP(AC19,List!$B$2:$E$29,4,FALSE)) -> Pluies et éclaircies | AF19: C | AG19: 3 | AH19: 12:09:37
A20: 2017-11-07 | B20: 16.7 | C20: 00:04:37 | D20: 62 | E20: 23:59:37 | F20: 1.8 | G20: 00:14:37 | H20: 12.6 | I20: 12:24:37 | J20: 75 | K20: 23:59:37 | L20: 1021.4 | M20: 00:14:37 | N20: 0 | O20: 00:14:37 | P20: 13.3 | Q20: 11:09:37 | R20: 0 | S20: 00:14:37 | T20: 19.4 | U20: 10:54:37 | V20: 90 | W20: EST | X20: 19:09:37 | Y20: 7.8 | Z20: 15.3 | AA20: 239.4 | AB20: 372.73 | AC20: 16 | AE20: =IF(AC20="","",VLOOKUP(AC20,List!$B$2:$E$29,4,FALSE)) -> Averses ou fortes pluies | AF20: C | AG20: 3 | AH20: 11:54:37 | AO20: Orageux | AP20: Soleil orage | AQ20: Soleil averses orageuses | AR20: Pluies orageuses | AS20: Orage | AT20: Orage et grêles | AU20: Orage violent
A21: 2017-11-08 | B21: 16.2 | C21: 12:29:37 | D21: 62 | E21: 23:59:37 | F21: 1.4 | G21: 21:29:37 | H21: 14.7 | I21: 13:39:37 | J21: 90 | K21: 23:59:37 | L21: 1024.2 | M21: 23:24:37 | N21: 0 | O21: 02:49:37 | P21: 18.4 | Q21: 13:44:37 | R21: 0 | S21: 03:04:37 | T21: 24.5 | U21: 13:44:37 | V21: 315 | W21: NO | X21: 03:59:37 | Y21: 2.7 | Z21: 18 | AA21: 242.1 | AB21: 457.89 | AC21: 13 | AE21: =IF(AC21="","",VLOOKUP(AC21,List!$B$2:$E$29,4,FALSE)) -> Pluies et éclaircies | AF21: Averses ou fortes pluies | AG21: 3 | AH21: 12:09:37
A22: 2017-11-09 | B22: 15.9 | C22: 00:04:37 | D22: 64 | E22: 23:59:37 | F22: 1 | G22: 07:34:37 | H22: 12.5 | I22: 15:59:37 | J22: 91 | K22: 23:59:37 | L22: 1025.3 | M22: 09:54:37 | N22: 0 | O22: 00:04:37 | P22: 7.2 | Q22: 12:19:37 | R22: 0 | S22: 00:04:37 | T22: 9.7 | U22: 12:29:37 | V22: 90 | W22: EST | X22: 10:19:37 | Y22: 0.6 | Z22: 18.6 | AA22: 242.7 | AB22: 220.09 | AC22: 13 | AE22: =IF(AC22="","",VLOOKUP(AC22,List!$B$2:$E$29,4,FALSE)) -> Pluies et éclaircies | AF22: Pluies et éclaircies | AG22: 3 | AH22: 11:34:37 | AO22: Grèle & Neige | AP22: Giboulées | AQ22: Grèles | AR22: Neiges | AS22: Fortes neiges | AT22: 0 | AU22: 0
A23: 2017-11-10 | B23: 16 | C23: 22:29:37 | D23: 65 | E23: 23:59:37 | F23: 8.6 | G23: 00:34:37 | H23: 15.3 | I23: 14:34:37 | J23: 82 | K23: 23:59:37 | L23: 1024.3 | M23: 01:04:37 | N23: 0 | O23: 00:04:37 | P23: 8.6 | Q23: 14:49:37 | R23: 0 | S23: 00:04:37 | T23: 12.2 | U23: 23:24:37 | V23: 315 | W23: NO | X23: 09:39:37 | Y23: 0.3 | Z23: 18.9 | AA23: 243 | AB23: 319.56 | AC23: 13 | AE23: =IF(AC23="","",VLOOKUP(AC23,List!$B$2:$E$29,4,FALSE)) -> Pluies et éclaircies | AF23: Pluies éparses | AG23: 3 | AH23: 12:59:37
A24: 2017-11-11 | B24: 16.7 | C24: 19:44:37 | D24: 68 | E24: 23:59:37 | F24: 11 | G24: 00:04:37 | H24: 14.9 | I24: 14:14:37 | J24: 83 | K24: 23:59:37 | L24: 1022.3 | M24: 00:04:37 | N24: 1.1 | O24: 00:29:37 | P24: 12.2 | Q24: 11:59:37 | R24: 2.5 | S24: 00:29:37 | T24: 18.4 | U24: 11:59:37 | V24: 90 | W24: EST | X24: 04:04:37 | Y24: 0.3 | Z24: 19.2 | AA24: 243.3 | AB24: 144.13 | AC24: 4 | AE24: =IF(AC24="","",VLOOKUP(AC24,List!$B$2:$E$29,4,FALSE)) -> Soleil nuageux et averses | AF24: Pluies et éclaircies | AG24: 2 | AH24: 11:39:37 | AO24: Temps de nuit | AP24: Ciel dégagé de nuit | AQ24: Ciel voilé de nuit | AR24: Brume ou brouillard léger de nuit | AS24: Brume ou léger brouillard givrant de nuit | AT24: Brouillard dense de nuit | AU24: Ciel nuageux avec éclaircies de nuit
A25: 2017-11-12 | B25: 17.2 | C25: 13:09:37 | D25: 65 | E25: 23:59:37 | F25: 7.4 | G25: 21:29:37 | H25: 14.1 | I25: 12:59:37 | J25: 62 | K25: 23:59:37 | L25: 1020.3 | M25: 23:54:37 | N25: 1.1 | O25: 05:49:37 | P25: 23.4 | Q25: 16:54:37 | R25: 3.6 | S25: 00:59:37 | T25: 31.7 | U25: 13:29:37 | V25: 90 | W25: EST | X25: 07:04:37 | Y25: 1.2 | Z25: 20.4 | AA25: 244.5 | AB25: 380.43 | AC25: 13 | AE25: =IF(AC25="","",VLOOKUP(AC25,List!$B$2:$E$29,4,FALSE)) -> Pluies et éclaircies | AF25: C | AG25: 3 | AH25: 11:59:37
A26: 2017-11-13 | B26: 20.9 | C26: 21:04:45 | D26: 61 | E26: 23:59:45 | F26: 2.2 | G26: 07:34:37 | H26: 15.2 | I26: 13:29:37 | J26: 85 | K26: 23:59:45 | L26: 1025.6 | M26: 22:54:45 | N26: 0 | O26: 01:44:37 | P26: 13.3 | Q26: 14:19:37 | R26: 0 | S26: 01:54:37 | T26: 18.4 | U26: 14:24:37 | V26: 0 | W26: N | X26: 00:04:37 | Y26: 0 | Z26: 20.4 | AA26: 244.5 | AB26: 452.83 | AC26: 1 | AE26: =IF(AC26="","",VLOOKUP(AC26,List!$B$2:$E$29,4,FALSE)) -> Ciel dégagé | AG26: 3 | AH26: 11:49:37
A27: 2017-11-14 | B27: 25.1 | C27: 21:54:45 | D27: 55 | E27: 23:59:45 | F27: 0.4 | G27: 08:19:45 | H27: 16.8 | I27: 13:09:45 | J27: 88 | K27: 23:59:45 | L27: 1026.5 | M27: 10:39:45 | N27: 0 | O27: 00:04:45 | P27: 6.1 | Q27: 14:34:45 | R27: 0 | S27: 00:09:45 | T27: 9.7 | U27: 14:44:45 | V27: 90 | W27: EST | X27: 11:19:45 | Y27: 0 | Z27: 20.4 | AA27: 244.5 | AB27: 392.19 | AC27: 1 | AE27: =IF(AC27="","",VLOOKUP(AC27,List!$B$2:$E$29,4,FALSE)) -> Ciel dégagé | AG27: 3 | AH27: 12:14:45
A28: 2017-11-15 | B28: 25.8 | C28: 16:14:46 | D28: 56 | E28: 23:59:41 | F28: 2.1 | G28: 00:44:45 | H28: 18.1 | I28: 14:14:46 | J28: 91 | K28: 23:59:41 | L28: 1025.2 | M28: 09:34:45 | N28: 0 | O28: 00:04:45 | P28: 6.1 | Q28: 12:34:45 | R28: 0 | S28: 00:04:45 | T28: 8.6 | U28: 12:44:45 | V28: 45 | W28: NE | X28: 02:19:45 | Y28: 0 | Z28: 20.4 | AA28: 244.5 | AB28: 391.49 | AC28: 1 | AE28: =IF(AC28="","",VLOOKUP(AC28,List!$B$2:$E$29,4,FALSE)) -> Ciel dégagé | AG28: 3 | AH28: 11:59:45
A29: 2017-11-16 | B29: 26.3 | C29: 20:49:41 | D29: 53 | E29: 23:59:41 | F29: 2.4 | G29: 23:59:41 | H29: 12.8 | I29: 13:29:41 | J29: 90 | K29: 23:59:41 | L29: 1023.6 | M29: 23:44:41 | N29: 0 | O29: 00:09:41 | P29: 2.5 | Q29: 12:39:41 | R29: 0 | S29: 00:09:41 | T29: 3.6 | U29: 05:19:41 | V29: 90 | W29: EST | X29: 01:59:41 | Y29: 0 | Z29: 20.4 | AA29: 244.5 | AB29: 264.6 | AC29: 1 | AE29: =IF(AC29="","",VLOOKUP(AC29,List!$B$2:$E$29,4,FALSE)) -> Ciel dégagé | AG29: 2 | AH29: 10:34:41
A30: 2017-11-17 | B30: 25.1 | C30: 19:19:43 | D30: 53 | E30: 23:59:43 | F30: 0.6 | G30: 02:49:41 | H30: 13.2 | I30: 12:14:41 | J30: 92 | K30: 23:59:43 | L30: 1026.4 | M30: 10:09:41 | N30: 0 | O30: 00:04:41 | P30: 6.1 | Q30: 12:24:41 | R30: 0 | S30: 00:09:41 | T30: 7.2 | U30: 12:24:41 | V30: 90 | W30: EST | X30: 05:04:41 | Y30: 0 | Z30: 20.4 | AA30: 244.5 | AB30: 288.62 | AC30: 1 | AE30: =IF(AC30="","",VLOOKUP(AC30,List!$B$2:$E$29,4,FALSE)) -> Ciel dégagé | AG30: 3 | AH30: 12:04:41
A31: 2017-11-18 | B31: 24.8 | C31: 19:24:43 | D31: 54 | E31: 23:59:43 | F31: 1.7 | G31: 02:49:43 | H31: 14.8 | I31: 12:54:43 | J31: 86 | K31: 23:59:43 | L31: 1026.1 | M31: 11:44:43 | N31: 0 | O31: 00:04:43 | P31: 3.6 | Q31: 14:14:43 | R31: 0 | S31: 00:09:43 | T31: 6.1 | U31: 14:14:43 | V31: 315 | W31: NO | X31: 02:39:43 | Y31: 0.3 | Z31: 20.7 | AA31: 244.8 | AB31: 263.29 | AC31: 13 | AE31: =IF(AC31="","",VLOOKUP(AC31,List!$B$2:$E$29,4,FALSE)) -> Pluies et éclaircies | AG31: 2 | AH31: 10:39:43
A32: 2017-11-19 | B32: 24.8 | C32: 16:29:44 | D32: 56 | E32: 23:59:44 | F32: 7.4 | G32: 03:19:43 | H32: 13.7 | I32: 13:29:44 | J32: 91 | K32: 23:59:44 | L32: 1022.7 | M32: 20:29:44 | N32: 0 | O32: 00:14:43 | P32: 5 | Q32: 05:49:43 | R32: 0 | S32: 00:49:43 | T32: 6.1 | U32: 05:49:43 | V32: 315 | W32: NO | X32: 04:34:43 | Y32: 1.2 | Z32: 21.9 | AA32: 246 | AB32: 138.72 | AC32: 13 | AE32: =IF(AC32="","",VLOOKUP(AC32,List!$B$2:$E$29,4,FALSE)) -> Pluies et éclaircies | AG32: 2 | AH32: 11:54:44
A33: 2017-11-20 | B33: 26.2 | C33: 18:59:44 | D33: 53 | E33: 23:59:44 | F33: 2.3 | G33: 06:14:44 | H33: 14.4 | I33: 13:44:44 | J33: 80 | K33: 23:59:44 | L33: 1022.5 | M33: 00:09:44 | N33: 0 | O33: 00:04:44 | P33: 11.2 | Q33: 11:24:44 | R33: 0 | S33: 00:14:44 | T33: 19.4 | U33: 11:24:44 | V33: 0 | W33: N | X33: 08:59:44 | Y33: 0 | Z33: 21.9 | AA33: 246 | AB33: 313.21 | AC33: 1 | AE33: =IF(AC33="","",VLOOKUP(AC33,List!$B$2:$E$29,4,FALSE)) -> Ciel dégagé | AG33: 2 | AH33: 10:29:44
A34: 2017-11-21 | B34: 26.1 | C34: 19:09:44 | D34: 56 | E34: 23:59:44 | F34: 11.5 | G34: 20:59:44 | H34: 15.2 | I34: 14:44:44 | J34: 79 | K34: 23:59:44 | L34: 1016.2 | M34: 01:19:44 | N34: 0 | O34: 05:09:44 | P34: 11.2 | Q34: 14:34:44 | R34: 0 | S34: 09:14:44 | T34: 15.8 | U34: 14:34:44 | V34: 90 | W34: EST | X34: 17:54:44 | Y34: 0 | Z34: 21.9 | AA34: 246 | AB34: 166.91 | AC34: 1 | AE34: =IF(AC34="","",VLOOKUP(AC34,List!$B$2:$E$29,4,FALSE)) -> Ciel dégagé | AG34: 2 | AH34: 12:09:44
A35: 2017-11-22 | B35: 26.1 | C35: 21:24:44 | D35: 52 | E35: 23:59:44 | F35: 9.3 | G35: 05:49:44 | H35: 16.5 | I35: 14:44:44 | J35: 70 | K35: 23:59:44 | L35: 1008.8 | M35: 00:04:44 | N35: 0 | O35: 07:14:44 | P35: 20.9 | Q35: 23:44:44 | R35: 1.1 | S35: 07:14:44 | T35: 30.6 | U35: 17:14:44 | V35: 135 | W35: SE | X35: 00:19:44 | Y35: 2.7 | Z35: 24.6 | AA35: 248.7 | AB35: 320.06 | AC35: 13 | AE35: =IF(AC35="","",VLOOKUP(AC35,List!$B$2:$E$29,4,FALSE)) -> Pluies et éclaircies | AG35: 2 | AH35: 10:49:44
A36: 2017-11-23 | B36: 24.9 | C36: 14:09:42 | D36: 55 | E36: 23:59:42 | F36: 10.4 | G36: 23:59:42 | H36: 15.7 | I36: 14:24:42 | J36: 86 | K36: 23:59:42 | L36: 1006 | M36: 18:39:42 | N36: 0 | O36: 21:04:42 | P36: 28.1 | Q36: 00:44:44 | R36: 1.1 | S36: 21:04:42 | T36: 34.2 | U36: 00:34:44 | V36: 135 | W36: SE | X36: 10:29:42 | Y36: 13.5 | Z36: 38.1 | AA36: 262.2 | AB36: 312.79 | AC36: 16 | AE36: =IF(AC36="","",VLOOKUP(AC36,List!$B$2:$E$29,4,FALSE)) -> Averses ou fortes pluies | AG36: 2 | AH36: 10:34:42
A37: 2017-11-24 | B37: 24.9 | C37: 13:54:43 | D37: 53 | E37: 23:59:43 | F37: 2.6 | G37: 23:49:43 | H37: 15.4 | I37: 13:29:43 | J37: 90 | K37: 23:59:43 | L37: 1011.6 | M37: 10:44:43 | N37: 0 | O37: 00:49:42 | P37: 13.3 | Q37: 00:04:42 | R37: 0 | S37: 00:49:42 | T37: 17.3 | U37: 00:04:42 | V37: 315 | W37: NO | X37: 00:14:42 | Y37: 0.3 | Z37: 38.4 | AA37: 262.5 | AB37: 398.84 | AC37: 1 | AE37: =IF(AC37="","",VLOOKUP(AC37,List!$B$2:$E$29,4,FALSE)) -> Ciel dégagé | AG37: 3 | AH37: 11:49:43
A38: 2017-11-25 | B38: 25.7 | C38: 18:54:44 | D38: 49 | E38: 23:59:44 | F38: 1.8 | G38: 23:04:44 | H38: 13 | I38: 13:59:44 | J38: 82 | K38: 23:59:44 | L38: 1023.8 | M38: 23:54:44 | N38: 0 | O38: 00:04:43 | P38: 11.2 | Q38: 07:59:43 | R38: 0 | S38: 00:04:43 | T38: 17.3 | U38: 15:24:44 | V38: 315 | W38: NO | X38: 01:59:43 | Y38: 2.7 | Z38: 41.1 | AA38: 265.2 | AB38: 371.11 | AC38: 13 | AE38: =IF(AC38="","",VLOOKUP(AC38,List!$B$2:$E$29,4,FALSE)) -> Pluies et éclaircies | AG38: 2 | AH38: 11:04:44
A39: 2017-11-26 | B39: 25.7 | C39: 21:59:44 | D39: 47 | E39: 23:59:44 | F39: 0.9 | G39: 00:54:44 | H39: 9.6 | I39: 13:54:44 | J39: 84 | K39: 23:59:44 | L39: 1028.4 | M39: 10:54:44 | N39: 0 | O39: 00:49:44 | P39: 12.2 | Q39: 12:54:44 | R39: 0 | S39: 02:04:44 | T39: 17.3 | U39: 12:54:44 | V39: 315 | W39: NO | X39: 00:29:44 | Y39: 0 | Z39: 41.1 | AA39: 265.2 | AB39: 206.24 | AC39: 1 | AE39: =IF(AC39="","",VLOOKUP(AC39,List!$B$2:$E$29,4,FALSE)) -> Ciel dégagé | AG39: 2 | AH39: 10:49:44
A40: 2017-11-27 | B40: 25.5 | C40: 20:54:45 | D40: 45 | E40: 23:59:45 | F40: 5.5 | G40: 07:19:44 | H40: 12.6 | I40: 14:19:45 | J40: 87 | K40: 23:59:45 | L40: 1027 | M40: 00:19:44 | N40: 0 | O40: 06:39:44 | P40: 15.8 | Q40: 12:29:45 | R40: 1.1 | S40: 06:39:44 | T40: 23.4 | U40: 13:39:45 | V40: 90 | W40: EST | X40: 23:49:45 | Y40: 8.1 | Z40: 49.2 | AA40: 273.3 | AB40: 286.26 | AC40: 16 | AE40: =IF(AC40="","",VLOOKUP(AC40,List!$B$2:$E$29,4,FALSE)) -> Averses ou fortes pluies | AG40: 2 | AH40: 11:34:45
A41: 2017-11-28 | B41: 25.5 | C41: 20:54:45 | D41: 48 | E41: 23:59:45 | F41: 2.3 | G41: 23:29:45 | H41: 13 | I41: 12:24:45 | J41: 88 | K41: 23:59:45 | L41: 1012 | M41: 00:44:45 | N41: 0 | O41: 05:14:45 | P41: 9.7 | Q41: 16:19:45 | R41: 0 | S41: 17:39:45 | T41: 14.8 | U41: 14:14:45 | V41: 315 | W41: NO | X41: 00:34:45 | Y41: 6.3 | Z41: 55.5 | AA41: 279.6 | AB41: 415 | AC41: 16 | AE41: =IF(AC41="","",VLOOKUP(AC41,List!$B$2:$E$29,4,FALSE)) -> Averses ou fortes pluies | AG41: 2 | AH41: 10:49:45
A42: 2017-11-29 | B42: 24.9 | C42: 21:14:46 | D42: 47 | E42: 23:59:46 | F42: 1.1 | G42: 09:09:45 | H42: 11.2 | I42: 14:19:45 | J42: 90 | K42: 23:59:46 | L42: 1012.3 | M42: 23:54:46 | N42: 0 | O42: 00:14:45 | P42: 19.4 | Q42: 14:59:45 | R42: 0 | S42: 00:29:45 | T42: 30.6 | U42: 14:59:45 | V42: 315 | W42: NO | X42: 01:19:45 | Y42: 5.7 | Z42: 61.2 | AA42: 285.3 | AB42: 355.14 | AC42: 16 | AE42: =IF(AC42="","",VLOOKUP(AC42,List!$B$2:$E$29,4,FALSE)) -> Averses ou fortes pluies | AG42: 2 | AH42: 11:04:45
A43: 2017-11-30 | B43: 24.3 | C43: 20:49:47 | D43: 48 | E43: 23:59:47 | F43: 0.5 | G43: 01:34:46 | H43: 11.8 | I43: 14:14:47 | J43: 72 | K43: 23:59:47 | L43: 1013.5 | M43: 09:59:46 | N43: 0 | O43: 00:19:46 | P43: 19.4 | Q43: 14:54:47 | R43: 0 | S43: 00:24:46 | T43: 24.5 | U43: 14:54:47 | V43: 315 | W43: NO | X43: 03:54:46 | Y43: 5.4 | Z43: 66.6 | AA43: 290.7 | AB43: 376.79 | AC43: 16 | AE43: =IF(AC43="","",VLOOKUP(AC43,List!$B$2:$E$29,4,FALSE)) -> Averses ou fortes pluies | AG43: 2 | AH43: 10:49:47
AE44: =IF(AC44="","",VLOOKUP(AC44,List!$B$2:$E$29,4,FALSE)) -> 
AE45: =IF(AC45="","",VLOOKUP(AC45,List!$B$2:$E$29,4,FALSE)) -> 
AE46: =IF(AC46="","",VLOOKUP(AC46,List!$B$2:$E$29,4,FALSE)) -> 

Sheet Décembre 17 (hidden)
A1: Soleil | B1: C | C1: Ciel voilé | D1: Rares éclaircies | E1: Soleil Fortes averses | F1: Variable | J1: Orageux | K1: Soleil orage | L1: Soleil averses orageuses | M1: Pluies orageuses | N1: Orage | O1: Orage et grêles | P1: Orage violent | AQ1: 30 | AR1: 51 | AS1: 299 | AT1: 700
B2: 1 | C2: 2 | D2: 3 | E2: 4 | F2: 5 | K2: 18 | L2: 19 | M2: 20 | N2: 21 | O2: 22 | P2: 23 | AY2: =COUNTIF($W$14:$W$46,AZ2) -> 5 | AZ2: N | BA2: 0
A3: Nuageux & Brumeux | B3: C | C3: Brouillard dense | D3: Brume ou Brouillard légé | E3: Brume ou léger brouillard givrant | F3: Nuageux | G3: Couvert | H3: Couvert rares averses | J3: Grèle & Neige | K3: Giboulées | L3: Grèles | M3: Neiges | N3: Fortes neiges | AY3: =COUNTIF($W$14:$W$46,AZ3) -> 1 | AZ3: NNE | BA3: 23
B4: 6 | C4: 7 | D4: 8 | E4: 9 | F4: 10 | G4: 11 | H4: 12 | K4: 24 | L4: 25 | M4: 26 | N4: 27 | AY4: 2 | AZ4: NE | BA4: 45
A5: Pluvieux | B5: Pluies et éclaircies | C5: Pluies éparses | D5: Bruines | E5: Averses ou fortes pluies | F5: Pluies mélées de neige | AY5: 0 | AZ5: ENE | BA5: 68
B6: 13 | C6: 14 | D6: 15 | E6: 16 | F6: 17 | AY6: 8 | AZ6: EST | BA6: 90
F7: =IF(F14="","",MIN(F14:F46)) -> -2.2 | H7: =IF(H14="","",MIN(H14:H46)) -> 6.9 | J7: 0.63 | L7: 999.6 | N7: 0 | P7: 2.5 | R7: 0 | T7: 3.6 | V7: =VLOOKUP(W7,$AZ$2:$BA$17,2,FALSE) -> 68 | W7: =W10 -> ENE | Y7: =MIN(Y14:Y46) -> 0 | AB7: 62.38 | AG7: 1 | AY7: 0 | AZ7: ESE | BA7: 113
F8: =IF(F15="","",MAX(F14:F46)) -> 10.8 | H8: =IF(H15="","",MAX(H14:H46)) -> 17.6 | J8: 0.91 | L8: 1038.5 | N8: 6.1 | P8: 33.1 | R8: 9.7 | T8: 45.4 | V8: =VLOOKUP(W8,$AZ$2:$BA$17,2,FALSE) -> 90 | W8: =W11 -> EST | Y8: =MAX(Y14:Y46) -> 29.4 | Z8: 128.1 | AA8: 418.8 | AB8: 378.84 | AG8: 3 | AY8: 6 | AZ8: SE | BA8: 135
AY9: 0 | AZ9: SSE | BA9: 158
V10: =SMALL($AY$2:$AY$17,1) -> 0 | W10: =VLOOKUP(V10,$AY$2:$AZ$17,2,FALSE) -> ENE | Z10: =MAX(Z14:Z46) -> 128.1 | AP10: 31 | AQ10: 99 | AR10: 300 | AY10: 1 | AZ10: S | BA10: 180
F11: =IF(F14="","",MIN(F14:F46)) -> -2.2 | G11: =VLOOKUP(F11,F14:G46,2,FALSE) -> 08:39:55 | H11: =IF(H14="","",MAX(H14:H46)) -> 17.6 | I11: =VLOOKUP(H11,H14:I46,2,FALSE) -> 13:49:48 | V11: =LARGE($AY$2:$AY$17,1) -> 8 | W11: =VLOOKUP(V11,$AY$2:$AZ$17,2,FALSE) -> EST | AP11: 49 | AQ11: 100 | AR11: 301 | AY11: 0 | AZ11: SSO | BA11: 203
A12: Moyenne Mensuelle | B12: =AVERAGE(B14:B46) -> 24.19354839 | D12: =AVERAGE(D14:D46) -> 49.09677419 | F12: =AVERAGE(F14:F46) -> 4.151612903 | H12: =AVERAGE(H14:H46) -> 11.50322581 | J12: =AVERAGE(J14:J46) -> 82.64516129 | L12: =AVERAGE(L14:L46) -> 1020.358065 | N12: =AVERAGE(N14:N46) -> 0.5096774194 | R12: =AVERAGE(R14:R46) -> 0.9193548387 | W12: SE | X12: 09:30:45 | Y12: 3.3 | Z12: =AVERAGE(Z14:Z46) -> 58.8483871 | AB12: =AVERAGE(AB14:AB46) -> 203.6748387 | AG12: =AVERAGE(AG14:AG46) -> 1.935483871 | AP12: 50 | AQ12: 101 | AR12: 699 | AY12: 0 | AZ12: SO | BA12: 225
A13: Jour | B13: T° int. (°C) | C13: Heure | D13: Hum int. (%) | E13: Heure | F13: T° Mini ext. (°C) | G13: Heure | H13: T° Maxi ext. (°C) | I13: Heure | J13: Hum ext. (%) | K13: Heure | L13: Press. rel. (hpa) | M13: Heure | N13: Vit. du vent (km/h) | O13: Heure | P13: Vit. du vent (km/h) | Q13: Heure | R13: Rafale Min (km/h) | S13: Heure | T13: Rafale Max (km/h) | U13: Heure | V13: Direction du vent | W13: - | X13: Heure | Y13: Précipi. dern. 24 h (mm) | Z13: Précipi. Tot. mois (mm) | AA13: Précipi. Tot. An (mm) | AB13: Lumière (W/M2) | AG13: UVI | AH13: Heure | AJ13: Intensité des UV | AY13: 0 | AZ13: OSO | BA13: 248
A14: 2017-12-01 | B14: 23.8 | C14: 19:49:47 | D14: 49 | E14: 23:59:47 | F14: 2.2 | G14: 01:19:47 | H14: 9.3 | I14: 12:44:47 | J14: 81 | K14: 23:59:47 | L14: 1022.9 | M14: 23:29:47 | N14: 0 | O14: 01:04:47 | P14: 23.4 | Q14: 10:04:47 | R14: 1.1 | S14: 01:04:47 | T14: 28.1 | U14: 10:04:47 | V14: =IF(W14="N",0,IF(W14="NNE",23,IF(W14="NE",45,IF(W14="ENE",68,IF(W14="EST",90,IF(W14="ESE",113,IF(W14="SE",135,IF(W14="SSE",158,IF(W14="S",180,IF(W14="SSO",203,IF(W14="SO",225,IF(W14="OSO",248,IF(W14="O",270,IF(W14="ONO",293,IF(W14="NO",315,IF(W14="NNO",338,"")))))))))))))))) -> 315 | W14: NO | X14: 01:09:47 | Y14: 6 | Z14: =Y14 -> 6 | AA14: 296.7 | AB14: 309.73 | AC14: 16 | AE14: =IF(AC14="","",VLOOKUP(AC14,List!$B$2:$E$29,4,FALSE)) -> Averses ou fortes pluies | AG14: 2 | AH14: 11:24:47 | AJ14: FAIBLE | AK14: <2 | AO14: Soleil | AP14: C | AQ14: Ciel voilé | AR14: Rares éclaircies | AS14: Soleil Fortes averses | AT14: Variable | AU14: 0 | AV14: 0 | AY14: 0 | AZ14: O | BA14: 270
A15: =IF(B15="","",A14+1) -> 2017-12-02 | B15: 24.5 | C15: 18:24:48 | D15: 51 | E15: 23:59:48 | F15: 0 | G15: 08:24:47 | H15: 12.1 | I15: 12:49:48 | J15: 87 | K15: 23:59:48 | L15: 1026.4 | M15: 10:34:48 | N15: 0 | O15: 00:34:47 | P15: 13.3 | Q15: 05:09:47 | R15: 0 | S15: 00:34:47 | T15: 17.3 | U15: 05:09:47 | V15: 0 | W15: N | X15: 01:29:47 | Y15: 0.3 | Z15: =IF(Y15="","",Y15+Z14) -> 6.3 | AA15: 297 | AB15: 332.9 | AC15: 13 | AE15: =IF(AC15="","",VLOOKUP(AC15,List!$B$2:$E$29,4,FALSE)) -> Pluies et éclaircies | AF15: =IF(AC15="","",) -> 0 | AG15: 2 | AH15: 10:44:48 | AJ15: MODEREE | AK15: 3 | AL15: à | AM15: 5 | AY15: 0 | AZ15: ONO | BA15: 293
A16: =IF(B16="","",A15+1) -> 2017-12-03 | B16: 24.3 | C16: 19:14:49 | D16: 50 | E16: 23:59:49 | F16: 5.1 | G16: 00:14:48 | H16: 11.5 | I16: 14:39:49 | J16: 91 | K16: 23:59:49 | L16: 1029.2 | M16: 23:54:49 | N16: 0 | O16: 00:04:48 | P16: 7.2 | Q16: 15:44:49 | R16: 0 | S16: 00:09:48 | T16: 8.6 | U16: 15:44:49 | V16: 90 | W16: EST | X16: 10:29:49 | Y16: 3.3 | Z16: 9.6 | AA16: 300.3 | AB16: 111.53 | AC16: 14 | AE16: =IF(AC16="","",VLOOKUP(AC16,List!$B$2:$E$29,4,FALSE)) -> Pluies éparses | AF16: Averses ou fortes pluies | AG16: 2 | AH16: 11:09:49 | AJ16: FORTE | AK16: 6 | AL16: à | AM16: 7 | AO16: Nuageux & Brumeux | AP16: C | AQ16: Brouillard dense | AR16: Brume ou Brouillard légé | AS16: Brume ou léger brouillard givrant | AT16: Nuageux | AU16: Couvert | AV16: Couvert rares averses | AY16: 8 | AZ16: NO | BA16: 315
A17: 2017-12-04 | B17: 24.6 | C17: 21:24:48 | D17: 52 | E17: 23:59:48 | F17: 3.8 | G17: 09:09:49 | H17: 17.6 | I17: 13:49:48 | J17: 88 | K17: 23:59:48 | L17: 1034.9 | M17: 21:09:48 | N17: 0 | O17: 00:09:49 | P17: 8.6 | Q17: 13:59:48 | R17: 0 | S17: 00:09:49 | T17: 11.2 | U17: 13:59:48 | V17: 315 | W17: NO | X17: 02:19:49 | Y17: 0.3 | Z17: 9.9 | AA17: 300.6 | AB17: 378.84 | AC17: 13 | AE17: =IF(AC17="","",VLOOKUP(AC17,List!$B$2:$E$29,4,FALSE)) -> Pluies et éclaircies | AF17: Pluies et éclaircies | AG17: 2 | AH17: 11:14:48 | AJ17: TRES FORTE | AK17: 8 | AL17: à | AM17: 10 | AY17: 0 | AZ17: NNO | BA17: 338
A18: 2017-12-05 | B18: 24.4 | C18: 18:59:49 | D18: 52 | E18: 23:59:49 | F18: 7.1 | G18: 08:44:48 | H18: 11.1 | I18: 15:09:49 | J18: 83 | K18: 23:59:49 | L18: 1036.5 | M18: 11:34:49 | N18: 0 | O18: 00:09:48 | P18: 6.1 | Q18: 14:39:49 | R18: 0 | S18: 00:09:48 | T18: 9.7 | U18: 14:39:49 | V18: 45 | W18: NE | X18: 00:04:48 | Y18: 0.3 | Z18: 10.2 | AA18: 300.9 | AB18: 63.41 | AC18: 14 | AE18: =IF(AC18="","",VLOOKUP(AC18,List!$B$2:$E$29,4,FALSE)) -> Pluies éparses | AF18: C | AG18: 1 | AH18: 09:44:48 | AJ18: EXTREME | AK18: 11+ | AO18: Pluvieux | AP18: Pluies et éclaircies | AQ18: Pluies éparses | AR18: Bruines | AS18: Averses ou fortes pluies | AT18: Pluies mélées de neige
A19: 2017-12-06 | B19: 24.4 | C19: 16:44:50 | D19: 53 | E19: 23:59:50 | F19: 6.4 | G19: 22:09:50 | H19: 8.9 | I19: 12:29:50 | J19: 81 | K19: 23:59:50 | L19: 1033.3 | M19: 00:04:49 | N19: 0 | O19: 00:04:49 | P19: 12.2 | Q19: 22:59:50 | R19: 0 | S19: 00:04:49 | T19: 14.8 | U19: 22:49:50 | V19: 135 | W19: SE | X19: 00:04:49 | Y19: 0 | Z19: 10.2 | AA19: 300.9 | AB19: 62.38 | AC19: 10 | AE19: =IF(AC19="","",VLOOKUP(AC19,List!$B$2:$E$29,4,FALSE)) -> Nuageux | AF19: C | AG19: 1 | AH19: 09:44:49
A20: 2017-12-07 | B20: 24.7 | C20: 19:29:51 | D20: 53 | E20: 23:59:51 | F20: 6.5 | G20: 23:49:51 | H20: 14.7 | I20: 13:34:51 | J20: 80 | K20: 23:59:51 | L20: 1021.1 | M20: 00:04:50 | N20: 0 | O20: 21:14:51 | P20: 14.8 | Q20: 06:44:50 | R20: 1.1 | S20: 21:14:51 | T20: 23.4 | U20: 11:29:51 | V20: 135 | W20: SE | X20: 14:09:51 | Y20: 3.3 | Z20: 13.5 | AA20: 304.2 | AB20: 156.47 | AC20: 14 | AE20: =IF(AC20="","",VLOOKUP(AC20,List!$B$2:$E$29,4,FALSE)) -> Pluies éparses | AF20: C | AG20: 2 | AH20: 12:59:51 | AO20: Orageux | AP20: Soleil orage | AQ20: Soleil averses orageuses | AR20: Pluies orageuses | AS20: Orage | AT20: Orage et grêles | AU20: Orage violent
A21: 2017-12-08 | B21: 23.6 | C21: 14:59:52 | D21: 48 | E21: 23:59:52 | F21: 3.2 | G21: 23:29:52 | H21: 10.6 | I21: 14:14:52 | J21: 78 | K21: 23:59:52 | L21: 1022 | M21: 19:04:52 | N21: 0 | O21: 00:29:51 | P21: 13.3 | Q21: 19:04:52 | R21: 1.1 | S21: 00:29:51 | T21: 19.4 | U21: 19:04:52 | V21: 315 | W21: NO | X21: 01:24:51 | Y21: 1.5 | Z21: 15 | AA21: 305.7 | AB21: 324.74 | AC21: 14 | AE21: =IF(AC21="","",VLOOKUP(AC21,List!$B$2:$E$29,4,FALSE)) -> Pluies éparses | AF21: Averses ou fortes pluies | AG21: 2 | AH21: 11:19:52
A22: 2017-12-09 | B22: 24.1 | C22: 18:29:52 | D22: 50 | E22: 23:59:52 | F22: 2.2 | G22: 00:54:52 | H22: 7.1 | I22: 12:34:52 | J22: 91 | K22: 23:59:52 | L22: 1021.4 | M22: 00:44:52 | N22: 0 | O22: 00:34:52 | P22: 11.2 | Q22: 23:04:52 | R22: 0 | S22: 05:19:52 | T22: 15.8 | U22: 23:14:52 | V22: 315 | W22: NO | X22: 00:49:52 | Y22: 8.7 | Z22: 23.7 | AA22: 314.4 | AB22: 132.26 | AC22: 16 | AE22: =IF(AC22="","",VLOOKUP(AC22,List!$B$2:$E$29,4,FALSE)) -> Averses ou fortes pluies | AF22: Pluies et éclaircies | AG22: 2 | AH22: 11:39:52 | AO22: Grèle & Neige | AP22: Giboulées | AQ22: Grèles | AR22: Neiges | AS22: Fortes neiges | AT22: 0 | AU22: 0
A23: 2017-12-10 | B23: 23.9 | C23: 22:09:52 | D23: 50 | E23: 23:59:52 | F23: 5.6 | G23: 00:04:52 | H23: 13.7 | I23: 06:14:52 | J23: 89 | K23: 23:59:52 | L23: 1000.3 | M23: 00:04:52 | N23: 0 | O23: 03:44:52 | P23: 19.4 | Q23: 06:09:52 | R23: 0 | S23: 04:04:52 | T23: 24.5 | U23: 06:04:52 | V23: 135 | W23: SE | X23: 17:09:52 | Y23: 7.8 | Z23: 31.5 | AA23: 322.2 | AB23: 238.07 | AC23: 16 | AE23: =IF(AC23="","",VLOOKUP(AC23,List!$B$2:$E$29,4,FALSE)) -> Averses ou fortes pluies | AF23: Pluies éparses | AG23: 2 | AH23: 11:34:52
A24: 2017-12-11 | B24: 23.7 | C24: 16:24:52 | D24: 48 | E24: 23:59:53 | F24: 0.4 | G24: 23:59:53 | H24: 6.9 | I24: 01:44:52 | J24: 82 | K24: 23:59:53 | L24: 999.6 | M24: 23:54:53 | N24: 0 | O24: 00:09:52 | P24: 33.1 | Q24: 05:59:52 | R24: 0 | S24: 00:09:52 | T24: 45.4 | U24: 05:59:52 | V24: 315 | W24: NO | X24: 02:34:52 | Y24: 29.4 | Z24: 60.9 | AA24: 351.6 | AB24: 75.23 | AC24: 16 | AE24: =IF(AC24="","",VLOOKUP(AC24,List!$B$2:$E$29,4,FALSE)) -> Averses ou fortes pluies | AF24: Pluies et éclaircies | AG24: 2 | AH24: 12:19:52 | AO24: Temps de nuit | AP24: Ciel dégagé de nuit | AQ24: Ciel voilé de nuit | AR24: Brume ou brouillard léger de nuit | AS24: Brume ou léger brouillard givrant de nuit | AT24: Brouillard dense de nuit | AU24: Ciel nuageux avec éclaircies de nuit
A25: 2017-12-12 | B25: 24.4 | C25: 19:24:54 | D25: 49 | E25: 23:59:54 | F25: -0.3 | G25: 00:39:53 | H25: 12 | I25: 13:04:54 | J25: 74 | K25: 23:59:54 | L25: 1011.5 | M25: 19:24:54 | N25: 0 | O25: 00:04:53 | P25: 14.8 | Q25: 23:34:54 | R25: 0 | S25: 00:09:53 | T25: 20.9 | U25: 23:34:54 | V25: 90 | W25: EST | X25: 01:44:53 | Y25: 0 | Z25: 60.9 | AA25: 351.6 | AB25: 306.52 | AC25: 1 | AE25: =IF(AC25="","",VLOOKUP(AC25,List!$B$2:$E$29,4,FALSE)) -> Ciel dégagé | AF25: C | AG25: 2 | AH25: 11:04:54
A26: 2017-12-13 | B26: 24.9 | C26: 18:59:54 | D26: 43 | E26: 23:59:54 | F26: 8 | G26: 23:59:54 | H26: 10.9 | I26: 14:29:54 | J26: 63 | K26: 23:59:54 | L26: 1007.7 | M26: 00:04:54 | N26: 0 | O26: 15:24:54 | P26: 19.4 | Q26: 01:04:54 | R26: 0 | S26: 15:24:54 | T26: 25.6 | U26: 11:04:54 | V26: 135 | W26: SE | X26: 05:24:54 | Y26: 0 | Z26: 60.9 | AA26: 351.6 | AB26: 115.98 | AC26: 3 | AE26: =IF(AC26="","",VLOOKUP(AC26,List!$B$2:$E$29,4,FALSE)) -> Rares éclaircies | AG26: 2 | AH26: 11:49:54
A27: 2017-12-14 | B27: 24.4 | C27: 20:59:55 | D27: 40 | E27: 23:59:55 | F27: 4.8 | G27: 15:44:55 | H27: 10.6 | I27: 12:39:55 | J27: 80 | K27: 23:59:55 | L27: 1003.7 | M27: 03:14:54 | N27: 2.5 | O27: 01:19:54 | P27: 22 | Q27: 21:49:55 | R27: 3.6 | S27: 01:19:54 | T27: 27 | U27: 21:49:55 | V27: 90 | W27: EST | X27: 00:19:54 | Y27: 1.2 | Z27: 62.1 | AA27: 352.8 | AB27: 356.41 | AC27: 14 | AE27: =IF(AC27="","",VLOOKUP(AC27,List!$B$2:$E$29,4,FALSE)) -> Pluies éparses | AG27: 3 | AH27: 12:29:55
A28: 2017-12-15 | B28: 24.4 | C28: 22:34:56 | D28: 44 | E28: 23:59:56 | F28: 0.7 | G28: 23:04:56 | H28: 11.8 | I28: 13:54:56 | J28: 90 | K28: 23:59:56 | L28: 1009.7 | M28: 23:44:56 | N28: 0 | O28: 20:24:56 | P28: 24.5 | Q28: 12:29:55 | R28: 0 | S28: 20:24:56 | T28: 35.6 | U28: 12:29:55 | V28: 90 | W28: EST | X28: 01:29:55 | Y28: 1.8 | Z28: 63.9 | AA28: 354.6 | AB28: 296.62 | AC28: 13 | AE28: =IF(AC28="","",VLOOKUP(AC28,List!$B$2:$E$29,4,FALSE)) -> Pluies et éclaircies | AG28: 2 | AH28: 11:49:55
A29: 2017-12-16 | B29: 24.9 | C29: 19:04:53 | D29: 46 | E29: 23:59:53 | F29: 0.6 | G29: 08:09:56 | H29: 12.1 | I29: 13:09:53 | J29: 82 | K29: 23:59:53 | L29: 1022.6 | M29: 23:49:53 | N29: 0 | O29: 03:14:56 | P29: 13.3 | Q29: 01:59:56 | R29: 0 | S29: 03:34:56 | T29: 18.4 | U29: 01:59:56 | V29: 315 | W29: NO | X29: 00:29:56 | Y29: 1.2 | Z29: 65.1 | AA29: 355.8 | AB29: 292.14 | AC29: 14 | AE29: =IF(AC29="","",VLOOKUP(AC29,List!$B$2:$E$29,4,FALSE)) -> Pluies éparses | AG29: 2 | AH29: 11:29:53
A30: 2017-12-17 | B30: 24.4 | C30: 16:44:54 | D30: 48 | E30: 23:59:54 | F30: 6.6 | G30: 00:29:53 | H30: 11.9 | I30: 12:34:54 | J30: 82 | K30: 23:59:54 | L30: 1026.4 | M30: 11:04:54 | N30: 0 | O30: 03:34:53 | P30: 7.2 | Q30: 20:29:54 | R30: 0 | S30: 03:59:53 | T30: 9.7 | U30: 20:29:54 | V30: 315 | W30: NO | X30: 00:54:53 | Y30: 9 | Z30: 74.1 | AA30: 364.8 | AB30: 297.94 | AC30: 16 | AE30: =IF(AC30="","",VLOOKUP(AC30,List!$B$2:$E$29,4,FALSE)) -> Averses ou fortes pluies | AG30: 2 | AH30: 11:24:54
A31: 2017-12-18 | B31: 24.7 | C31: 17:09:55 | D31: 47 | E31: 23:59:55 | F31: -0.2 | G31: 23:54:55 | H31: 13.1 | I31: 14:49:55 | J31: 87 | K31: 23:59:55 | L31: 1031.2 | M31: 23:54:55 | N31: 0 | O31: 17:44:55 | P31: 13.3 | Q31: 01:14:54 | R31: 0 | S31: 17:49:55 | T31: 17.3 | U31: 01:14:54 | V31: 315 | W31: NO | X31: 07:34:54 | Y31: 0 | Z31: 74.1 | AA31: 364.8 | AB31: 283.82 | AC31: 3 | AE31: =IF(AC31="","",VLOOKUP(AC31,List!$B$2:$E$29,4,FALSE)) -> Rares éclaircies | AG31: 2 | AH31: 11:19:55
A32: 2017-12-19 | B32: 23.5 | C32: 21:49:56 | D32: 46 | E32: 23:59:56 | F32: -2.2 | G32: 08:39:55 | H32: 11.2 | I32: 13:54:56 | J32: 86 | K32: 23:59:56 | L32: 1036.7 | M32: 11:24:56 | N32: 0 | O32: 00:04:55 | P32: 5 | Q32: 14:09:56 | R32: 0 | S32: 00:04:55 | T32: 7.2 | U32: 14:19:56 | V32: 0 | W32: N | X32: 00:19:55 | Y32: 0.3 | Z32: 74.4 | AA32: 365.1 | AB32: 294.61 | AC32: 14 | AE32: =IF(AC32="","",VLOOKUP(AC32,List!$B$2:$E$29,4,FALSE)) -> Pluies éparses | AG32: 2 | AH32: 11:39:56
A33: 2017-12-20 | B33: 24.6 | C33: 22:49:56 | D33: 50 | E33: 23:59:56 | F33: -1.1 | G33: 02:24:56 | H33: 10.9 | I33: 15:24:56 | J33: 90 | K33: 23:59:56 | L33: 1036.4 | M33: 11:14:56 | N33: 0 | O33: 00:04:56 | P33: 2.5 | Q33: 00:14:56 | R33: 0 | S33: 00:04:56 | T33: 3.6 | U33: 00:14:56 | V33: 0 | W33: N | X33: 03:39:56 | Y33: 0.3 | Z33: 74.7 | AA33: 365.4 | AB33: 69.43 | AC33: 14 | AE33: =IF(AC33="","",VLOOKUP(AC33,List!$B$2:$E$29,4,FALSE)) -> Pluies éparses | AG33: 1 | AH33: 09:29:56
A34: 2017-12-21 | B34: 25 | C34: 21:24:57 | D34: 51 | E34: 23:59:57 | F34: 8.9 | G34: 00:04:56 | H34: 11.7 | I34: 12:59:57 | J34: 82 | K34: 23:59:57 | L34: 1038.5 | M34: 11:49:57 | N34: 0 | O34: 00:04:56 | P34: 3.6 | Q34: 09:24:56 | R34: 0 | S34: 00:09:56 | T34: 6.1 | U34: 14:54:57 | V34: 45 | W34: NE | X34: 13:29:57 | Y34: 0 | Z34: 74.7 | AA34: 365.4 | AB34: 86.89 | AC34: 10 | AE34: =IF(AC34="","",VLOOKUP(AC34,List!$B$2:$E$29,4,FALSE)) -> Nuageux | AG34: 2 | AH34: 12:19:57
A35: 2017-12-22 | B35: 25.4 | C35: 18:44:57 | D35: 50 | E35: 23:59:57 | F35: 7.9 | G35: 03:49:57 | H35: 11.4 | I35: 13:24:57 | J35: 91 | K35: 23:59:57 | L35: 1036.8 | M35: 00:19:57 | N35: 0 | O35: 01:24:57 | P35: 6.1 | Q35: 12:24:57 | R35: 0 | S35: 03:04:57 | T35: 7.2 | U35: 12:24:57 | V35: 90 | W35: EST | X35: 00:29:57 | Y35: 1.2 | Z35: 75.9 | AA35: 366.6 | AB35: 122.82 | AC35: 14 | AE35: =IF(AC35="","",VLOOKUP(AC35,List!$B$2:$E$29,4,FALSE)) -> Pluies éparses | AG35: 2 | AH35: 11:19:57
A36: 2017-12-23 | B36: 25.7 | C36: 19:19:57 | D36: 51 | E36: 23:59:57 | F36: 8.4 | G36: 00:34:57 | H36: 11.7 | I36: 12:49:57 | J36: 86 | K36: 23:59:57 | L36: 1036.1 | M36: 11:04:57 | N36: 0 | O36: 00:04:57 | P36: 6.1 | Q36: 12:54:57 | R36: 0 | S36: 00:09:57 | T36: 8.6 | U36: 12:54:57 | V36: 23 | W36: NNE | X36: 04:39:57 | Y36: 0 | Z36: 75.9 | AA36: 366.6 | AB36: 106.81 | AC36: 10 | AE36: =IF(AC36="","",VLOOKUP(AC36,List!$B$2:$E$29,4,FALSE)) -> Nuageux | AG36: 2 | AH36: 11:24:57
A37: 2017-12-24 | B37: 25.8 | C37: 21:54:58 | D37: 51 | E37: 23:59:58 | F37: 9 | G37: 22:39:58 | H37: 11.1 | I37: 12:09:57 | J37: 81 | K37: 23:59:58 | L37: 1031.8 | M37: 00:04:57 | N37: 0 | O37: 04:54:57 | P37: 9.7 | Q37: 01:24:57 | R37: 1.1 | S37: 03:54:57 | T37: 14.8 | U37: 13:59:58 | V37: 90 | W37: EST | X37: 14:49:58 | Y37: 0.3 | Z37: 76.2 | AA37: 366.9 | AB37: 102.56 | AC37: 13 | AE37: =IF(AC37="","",VLOOKUP(AC37,List!$B$2:$E$29,4,FALSE)) -> Pluies et éclaircies | AG37: 2 | AH37: 11:54:57
A38: 2017-12-25 | B38: 25.7 | C38: 00:04:58 | D38: 50 | E38: 23:59:58 | F38: 5.1 | G38: 22:54:58 | H38: 12.3 | I38: 14:14:58 | J38: 91 | K38: 23:59:58 | L38: 1021 | M38: 00:04:58 | N38: 1.1 | O38: 04:34:58 | P38: 24.5 | Q38: 20:49:58 | R38: 2.5 | S38: 04:34:58 | T38: 31.7 | U38: 19:29:58 | V38: 135 | W38: SE | X38: 22:29:58 | Y38: 12 | Z38: 88.2 | AA38: 378.9 | AB38: 145.87 | AC38: 16 | AE38: =IF(AC38="","",VLOOKUP(AC38,List!$B$2:$E$29,4,FALSE)) -> Averses ou fortes pluies | AG38: 2 | AH38: 12:14:58
A39: 2017-12-26 | B39: 25.3 | C39: 21:19:58 | D39: 47 | E39: 23:59:58 | F39: 4.7 | G39: 06:54:58 | H39: 9.5 | I39: 13:59:58 | J39: 81 | K39: 23:59:58 | L39: 1004.6 | M39: 10:34:58 | N39: 0 | O39: 00:19:58 | P39: 23.4 | Q39: 18:14:58 | R39: 0 | S39: 00:34:58 | T39: 35.6 | U39: 18:04:58 | V39: 0 | W39: N | X39: 00:04:58 | Y39: 5.7 | Z39: 93.9 | AA39: 384.6 | AB39: 224.46 | AC39: 16 | AE39: =IF(AC39="","",VLOOKUP(AC39,List!$B$2:$E$29,4,FALSE)) -> Averses ou fortes pluies | AG39: 2 | AH39: 11:19:58
A40: 2017-12-27 | B40: 25 | C40: 17:59:56 | D40: 45 | E40: 23:59:56 | F40: 1.6 | G40: 23:59:56 | H40: 9.6 | I40: 14:19:56 | J40: 81 | K40: 23:59:56 | L40: 1002.4 | M40: 22:24:56 | N40: 0 | O40: 23:09:56 | P40: 30.6 | Q40: 06:59:58 | R40: 0 | S40: 23:14:56 | T40: 42.8 | U40: 06:59:58 | V40: 90 | W40: EST | X40: 03:49:58 | Y40: 4.2 | Z40: 98.1 | AA40: 388.8 | AB40: 300.41 | AC40: 16 | AE40: =IF(AC40="","",VLOOKUP(AC40,List!$B$2:$E$29,4,FALSE)) -> Averses ou fortes pluies | AG40: 2 | AH40: 11:24:56
A41: 2017-12-28 | B41: 24.3 | C41: 19:49:56 | D41: 45 | E41: 23:59:56 | F41: 0.2 | G41: 03:34:56 | H41: 9.2 | I41: 14:09:56 | J41: 81 | K41: 23:59:56 | L41: 1006.7 | M41: 22:04:56 | N41: 0 | O41: 00:04:56 | P41: 9.7 | Q41: 23:14:56 | R41: 0 | S41: 00:04:56 | T41: 14.8 | U41: 23:29:56 | V41: 0 | W41: N | X41: 01:59:56 | Y41: 0 | Z41: 98.1 | AA41: 388.8 | AB41: 312.09 | AC41: 1 | AE41: =IF(AC41="","",VLOOKUP(AC41,List!$B$2:$E$29,4,FALSE)) -> Ciel dégagé | AG41: 2 | AH41: 11:24:56
A42: 2017-12-29 | B42: 23.4 | C42: 00:04:56 | D42: 54 | E42: 23:59:56 | F42: 5.1 | G42: 00:54:56 | H42: 12.8 | I42: 11:49:56 | J42: 82 | K42: 23:59:56 | L42: 1006 | M42: 00:14:56 | N42: 0 | O42: 05:24:56 | P42: 22 | Q42: 23:29:56 | R42: 1.1 | S42: 05:24:56 | T42: 29.5 | U42: 23:19:56 | V42: 180 | W42: S | X42: 05:24:56 | Y42: 3.6 | Z42: 101.7 | AA42: 392.4 | AB42: 221.56 | AC42: 13 | AE42: =IF(AC42="","",VLOOKUP(AC42,List!$B$2:$E$29,4,FALSE)) -> Pluies et éclaircies | AG42: 2 | AH42: 11:39:56
A43: 2017-12-30 | B43: 19.1 | C43: 18:39:58 | D43: 59 | E43: 23:59:58 | F43: 10.8 | G43: 00:44:56 | H43: 15 | I43: 09:04:56 | J43: 73 | K43: 23:59:58 | L43: 1007.4 | M43: 19:19:58 | N43: 6.1 | O43: 08:19:56 | P43: 23.4 | Q43: 21:49:58 | R43: 9.7 | S43: 05:44:56 | T43: 30.6 | U43: 23:54:58 | V43: 90 | W43: EST | X43: 07:19:56 | Y43: 4.8 | Z43: 106.5 | AA43: 397.2 | AB43: 108.78 | AC43: 16 | AE43: =IF(AC43="","",VLOOKUP(AC43,List!$B$2:$E$29,4,FALSE)) -> Averses ou fortes pluies | AG43: 2 | AH43: 11:34:56
A44: 2017-12-31 | B44: 19.1 | C44: 02:24:58 | D44: 50 | E44: 23:59:59 | F44: 7.6 | G44: 20:24:59 | H44: 14.3 | I44: 00:39:58 | J44: 68 | K44: 23:59:59 | L44: 1006.3 | M44: 00:19:58 | N44: 6.1 | O44: 13:19:59 | P44: 33.1 | Q44: 07:19:58 | R44: 7.2 | S44: 20:14:59 | T44: 43.9 | U44: 06:39:58 | V44: 135 | W44: SE | X44: 05:54:58 | Y44: 21.6 | Z44: 128.1 | AA44: 418.8 | AB44: 82.64 | AC44: 16 | AE44: =IF(AC44="","",VLOOKUP(AC44,List!$B$2:$E$29,4,FALSE)) -> Averses ou fortes pluies | AG44: 2 | AH44: 13:19:59
AE45: =IF(AC45="","",VLOOKUP(AC45,List!$B$2:$E$29,4,FALSE)) -> 
AE46: =IF(AC46="","",VLOOKUP(AC46,List!$B$2:$E$29,4,FALSE)) -> 

Sheet Janvier 18 (hidden)
A1: Soleil | B1: C | C1: Ciel voilé | D1: Rares éclaircies | E1: Soleil Fortes averses | F1: Variable | J1: Orageux | K1: Soleil orage | L1: Soleil averses orageuses | M1: Pluies orageuses | N1: Orage | O1: Orage et grêles | P1: Orage violent | AQ1: 30 | AR1: 51 | AS1: 299 | AT1: 700
B2: 1 | C2: 2 | D2: 3 | E2: 4 | F2: 5 | K2: 18 | L2: 19 | M2: 20 | N2: 21 | O2: 22 | P2: 23 | AY2: =COUNTIF($W$14:$W$46,AZ2) -> 0 | AZ2: N | BA2: 0
A3: Nuageux & Brumeux | B3: C | C3: Brouillard dense | D3: Brume ou Brouillard légé | E3: Brume ou léger brouillard givrant | F3: Nuageux | G3: Couvert | H3: Couvert rares averses | J3: Grèle & Neige | K3: Giboulées | L3: Grèles | M3: Neiges | N3: Fortes neiges | AY3: =COUNTIF($W$14:$W$46,AZ3) -> 0 | AZ3: NNE | BA3: 23
B4: 6 | C4: 7 | D4: 8 | E4: 9 | F4: 10 | G4: 11 | H4: 12 | K4: 24 | L4: 25 | M4: 26 | N4: 27 | AY4: 5 | AZ4: NE | BA4: 45
A5: Pluvieux | B5: Pluies et éclaircies | C5: Pluies éparses | D5: Bruines | E5: Averses ou fortes pluies | F5: Pluies mélées de neige | AY5: 0 | AZ5: ENE | BA5: 68
B6: 13 | C6: 14 | D6: 15 | E6: 16 | F6: 17 | AY6: 10 | AZ6: EST | BA6: 90
F7: =IF(F14="","",MIN(F14:F46)) -> -1.3 | H7: =IF(H14="","",MIN(H14:H46)) -> 6.5 | J7: 0.86 | L7: 999.4 | N7: 0 | P7: 7.2 | R7: 0 | T7: 9.7 | V7: =VLOOKUP(W7,$AZ$2:$BA$17,2,FALSE) -> 0 | W7: =W10 -> N | Y7: =MIN(Y14:Y46) -> 0 | AB7: 28.29 | AG7: 1 | AY7: 0 | AZ7: ESE | BA7: 113
F8: =IF(F15="","",MAX(F14:F46)) -> 10.8 | H8: =IF(H15="","",MAX(H14:H46)) -> 15.3 | J8: 0.89 | L8: 1036.2 | N8: 5 | P8: 30.6 | R8: 7.2 | T8: 36.7 | V8: =VLOOKUP(W8,$AZ$2:$BA$17,2,FALSE) -> 90 | W8: =W11 -> EST | Y8: =MAX(Y14:Y46) -> 21 | Z8: 70.2 | AA8: 70.2 | AB8: 435.46 | AG8: 3 | AY8: 7 | AZ8: SE | BA8: 135
AY9: 0 | AZ9: SSE | BA9: 158
V10: =SMALL($AY$2:$AY$17,1) -> 0 | W10: =VLOOKUP(V10,$AY$2:$AZ$17,2,FALSE) -> N | Z10: =MAX(Z14:Z46) -> 70.2 | AP10: 31 | AQ10: 99 | AR10: 300 | AY10: 1 | AZ10: S | BA10: 180
F11: =IF(F14="","",MIN(F14:F46)) -> -1.3 | G11: =VLOOKUP(F11,F14:G46,2,FALSE) -> 09:00:03 | H11: =IF(H14="","",MAX(H14:H46)) -> 15.3 | I11: =VLOOKUP(H11,H14:I46,2,FALSE) -> 14:25:05 | V11: =LARGE($AY$2:$AY$17,1) -> 10 | W11: =VLOOKUP(V11,$AY$2:$AZ$17,2,FALSE) -> EST | AP11: 49 | AQ11: 100 | AR11: 301 | AY11: 0 | AZ11: SSO | BA11: 203
A12: Moyenne Mensuelle | B12: =AVERAGE(B14:B46) -> 24.33225806 | D12: =AVERAGE(D14:D46) -> 44.06935484 | F12: =AVERAGE(F14:F46) -> 5.332258065 | H12: =AVERAGE(H14:H46) -> 12.37741935 | J12: =AVERAGE(J14:J46) -> 77.15387097 | L12: =AVERAGE(L14:L46) -> 1016.796774 | N12: =AVERAGE(N14:N46) -> 0.5806451613 | R12: =AVERAGE(R14:R46) -> 1.232258065 | W12: SE | X12: 09:30:45 | Y12: =AVERAGE(Y14:Y44) -> 2.264516129 | Z12: =AVERAGE(Z14:Z46) -> 47.86451613 | AB12: =AVERAGE(AB14:AB46) -> 236.1393548 | AG12: =AVERAGE(AG14:AG46) -> 2.032258065 | AP12: 50 | AQ12: 101 | AR12: 699 | AY12: 0 | AZ12: SO | BA12: 225
A13: Jour | B13: T° int. (°C) | C13: Heure | D13: Hum int. (%) | E13: Heure | F13: T° Mini ext. (°C) | G13: Heure | H13: T° Maxi ext. (°C) | I13: Heure | J13: Hum ext. (%) | K13: Heure | L13: Press. rel. (hpa) | M13: Heure | N13: Vit. du vent (km/h) | O13: Heure | P13: Vit. du vent (km/h) | Q13: Heure | R13: Rafale Min (km/h) | S13: Heure | T13: Rafale Max (km/h) | U13: Heure | V13: Direction du vent | W13: - | X13: Heure | Y13: Précipi. dern. 24 h (mm) | Z13: Précipi. Tot. mois (mm) | AA13: Précipi. Tot. An (mm) | AB13: Lumière (W/M2) | AG13: UVI | AH13: Heure | AJ13: Intensité des UV | AY13: 0 | AZ13: OSO | BA13: 248
A14: 2018-01-01 | B14: 17.9 | C14: 00:04:59 | D14: 0.52 | E14: 07:59:59 | F14: 7.1 | G14: 09:04:59 | H14: 11.8 | I14: 14:05:00 | J14: 0.91 | K14: 09:14:59 | L14: 1014.5 | M14: 23:50:00 | N14: 0 | O14: 06:34:59 | P14: 24.5 | Q14: 07:19:59 | R14: 1.1 | S14: 06:34:59 | T14: 34.2 | U14: 12:24:59 | V14: =IF(W14="N",0,IF(W14="NNE",23,IF(W14="NE",45,IF(W14="ENE",68,IF(W14="EST",90,IF(W14="ESE",113,IF(W14="SE",135,IF(W14="SSE",158,IF(W14="S",180,IF(W14="SSO",203,IF(W14="SO",225,IF(W14="OSO",248,IF(W14="O",270,IF(W14="ONO",293,IF(W14="NO",315,IF(W14="NNO",338,"")))))))))))))))) -> 90 | W14: EST | X14: 12:14:59 | Y14: 21 | Z14: =Y14 -> 21 | AA14: 21 | AB14: 314.3 | AC14: 16 | AE14: =IF(AC14="","",VLOOKUP(AC14,List!$B$2:$E$29,4,FALSE)) -> Averses ou fortes pluies | AG14: 2 | AH14: 11:49:59 | AJ14: FAIBLE | AK14: <2 | AO14: Soleil | AP14: C | AQ14: Ciel voilé | AR14: Rares éclaircies | AS14: Soleil Fortes averses | AT14: Variable | AU14: 0 | AV14: 0 | AY14: 0 | AZ14: O | BA14: 270
A15: =IF(B15="","",A14+1) -> 2018-01-02 | B15: 17.6 | C15: 23:15:01 | D15: 0.63 | E15: 23:50:01 | F15: 5.7 | G15: 01:55:00 | H15: 14.6 | I15: 23:30:01 | J15: 0.86 | K15: 07:30:00 | L15: 1015.2 | M15: 01:35:00 | N15: 0 | O15: 01:50:00 | P15: 23.4 | Q15: 22:00:01 | R15: 1.1 | S15: 01:50:00 | T15: 33.1 | U15: 22:05:01 | V15: 135 | W15: SE | X15: 07:15:00 | Y15: 0.3 | Z15: =IF(Y15="","",Y15+Z14) -> 21.3 | AA15: 21.3 | AB15: 112.69 | AC15: 14 | AE15: =IF(AC15="","",VLOOKUP(AC15,List!$B$2:$E$29,4,FALSE)) -> Pluies éparses | AF15: =IF(AC15="","",) -> 0 | AG15: 2 | AH15: 12:25:01 | AJ15: MODEREE | AK15: 3 | AL15: à | AM15: 5 | AY15: 0 | AZ15: ONO | BA15: 293
A16: =IF(B16="","",A15+1) -> 2018-01-03 | B16: 17.8 | C16: 02:10:01 | D16: 57 | E16: 23:55:02 | F16: 8.2 | G16: 08:40:01 | H16: 14.7 | I16: 00:55:01 | J16: 89 | K16: 23:55:02 | L16: 1011.2 | M16: 12:35:02 | N16: 0 | O16: 21:40:02 | P16: 25.6 | Q16: 00:30:01 | R16: 0 | S16: 22:55:02 | T16: 31.7 | U16: 00:30:01 | V16: 45 | W16: NE | X16: 06:05:01 | Y16: 9 | Z16: 30.3 | AA16: 30.3 | AB16: 193.25 | AC16: 16 | AE16: =IF(AC16="","",VLOOKUP(AC16,List!$B$2:$E$29,4,FALSE)) -> Averses ou fortes pluies | AF16: Averses ou fortes pluies | AG16: 2 | AH16: 11:25:02 | AJ16: FORTE | AK16: 6 | AL16: à | AM16: 7 | AO16: Nuageux & Brumeux | AP16: C | AQ16: Brouillard dense | AR16: Brume ou Brouillard légé | AS16: Brume ou léger brouillard givrant | AT16: Nuageux | AU16: Couvert | AV16: Couvert rares averses | AY16: 8 | AZ16: NO | BA16: 315
A17: 2018-01-04 | B17: 22.9 | C17: 23:15:01 | D17: 53 | E17: 23:55:01 | F17: 10.8 | G17: 23:50:01 | H17: 14.7 | I17: 03:55:02 | J17: 84 | K17: 23:55:01 | L17: 1003.9 | M17: 00:40:02 | N17: 5 | O17: 14:45:02 | P17: 19.4 | Q17: 03:40:02 | R17: 7.2 | S17: 18:10:02 | T17: 31.7 | U17: 03:25:02 | V17: 90 | W17: EST | X17: 00:15:02 | Y17: 3.3 | Z17: 33.6 | AA17: 33.6 | AB17: 100.08 | AC17: 16 | AE17: =IF(AC17="","",VLOOKUP(AC17,List!$B$2:$E$29,4,FALSE)) -> Averses ou fortes pluies | AF17: Pluies et éclaircies | AG17: 2 | AH17: 13:00:02 | AJ17: TRES FORTE | AK17: 8 | AL17: à | AM17: 10 | AY17: 0 | AZ17: NNO | BA17: 338
A18: 2018-01-05 | B18: 24.8 | C18: 18:30:01 | D18: 50 | E18: 23:55:01 | F18: 3.4 | G18: 23:05:01 | H18: 12.3 | I18: 14:05:01 | J18: 88 | K18: 23:55:01 | L18: 999.4 | M18: 00:20:01 | N18: 0 | O18: 18:45:01 | P18: 17.3 | Q18: 14:20:01 | R18: 0 | S18: 19:15:01 | T18: 23.4 | U18: 15:00:01 | V18: 90 | W18: EST | X18: 11:40:01 | Y18: 0.3 | Z18: 33.9 | AA18: 33.9 | AB18: 294.07 | AC18: 14 | AE18: =IF(AC18="","",VLOOKUP(AC18,List!$B$2:$E$29,4,FALSE)) -> Pluies éparses | AF18: C | AG18: 2 | AH18: 12:30:01 | AJ18: EXTREME | AK18: 11+ | AO18: Pluvieux | AP18: Pluies et éclaircies | AQ18: Pluies éparses | AR18: Bruines | AS18: Averses ou fortes pluies | AT18: Pluies mélées de neige
A19: 2018-01-06 | B19: 24.9 | C19: 18:20:01 | D19: 52 | E19: 23:55:01 | F19: -0.1 | G19: 08:15:01 | H19: 11.7 | I19: 14:05:01 | J19: 86 | K19: 23:55:01 | L19: 1009.4 | M19: 23:30:01 | N19: 0 | O19: 00:00:01 | P19: 8.6 | Q19: 21:10:01 | R19: 0 | S19: 00:00:01 | T19: 11.2 | U19: 21:10:01 | V19: 315 | W19: NO | X19: 00:25:01 | Y19: 0.3 | Z19: 34.2 | AA19: 34.2 | AB19: 186.94 | AC19: 14 | AE19: =IF(AC19="","",VLOOKUP(AC19,List!$B$2:$E$29,4,FALSE)) -> Pluies éparses | AF19: C | AG19: 2 | AH19: 11:20:01
A20: 2018-01-07 | B20: 23.6 | C20: 22:15:02 | D20: 51 | E20: 23:55:02 | F20: 2.4 | G20: 00:00:01 | H20: 7.1 | I20: 06:20:01 | J20: 84 | K20: 23:55:02 | L20: 1014.5 | M20: 21:10:02 | N20: 2.5 | O20: 00:00:01 | P20: 25.6 | Q20: 06:35:01 | R20: 3.6 | S20: 00:05:01 | T20: 29.5 | U20: 06:35:01 | V20: 315 | W20: NO | X20: 00:45:01 | Y20: 1.8 | Z20: 36 | AA20: 36 | AB20: 28.29 | AC20: 14 | AE20: =IF(AC20="","",VLOOKUP(AC20,List!$B$2:$E$29,4,FALSE)) -> Pluies éparses | AF20: C | AG20: 1 | AH20: 10:35:02 | AO20: Orageux | AP20: Soleil orage | AQ20: Soleil averses orageuses | AR20: Pluies orageuses | AS20: Orage | AT20: Orage et grêles | AU20: Orage violent
A21: 2018-01-08 | B21: 23.6 | C21: 19:20:02 | D21: 50 | E21: 23:55:02 | F21: 5.3 | G21: 23:00:02 | H21: 6.5 | I21: 14:50:02 | J21: 89 | K21: 23:55:02 | L21: 1014.6 | M21: 10:30:02 | N21: 0 | O21: 17:50:02 | P21: 9.7 | Q21: 02:50:02 | R21: 1.1 | S21: 17:40:02 | T21: 12.2 | U21: 02:50:02 | V21: 315 | W21: NO | X21: 02:30:02 | Y21: 0 | Z21: 36 | AA21: 36 | AB21: 80.78 | AC21: 3 | AE21: =IF(AC21="","",VLOOKUP(AC21,List!$B$2:$E$29,4,FALSE)) -> Rares éclaircies | AF21: Averses ou fortes pluies | AG21: 1 | AH21: 10:35:02
A22: 2018-01-09 | B22: 25 | C22: 21:20:02 | D22: 49 | E22: 23:55:02 | F22: 5.4 | G22: 00:00:02 | H22: 10.4 | I22: 18:45:02 | J22: 84 | K22: 23:55:02 | L22: 1008.7 | M22: 00:00:02 | N22: 0 | O22: 00:55:02 | P22: 12.2 | Q22: 20:45:02 | R22: 1.1 | S22: 00:55:02 | T22: 17.3 | U22: 20:45:02 | V22: 180 | W22: S | X22: 11:10:02 | Y22: 0.9 | Z22: 36.9 | AA22: 36.9 | AB22: 76.1 | AC22: 15 | AE22: =IF(AC22="","",VLOOKUP(AC22,List!$B$2:$E$29,4,FALSE)) -> Bruines | AF22: Pluies et éclaircies | AG22: 1 | AH22: 10:00:02 | AO22: Grèle & Neige | AP22: Giboulées | AQ22: Grèles | AR22: Neiges | AS22: Fortes neiges | AT22: 0 | AU22: 0
A23: 2018-01-10 | B23: 25.5 | C23: 21:35:02 | D23: 48 | E23: 23:55:02 | F23: 1.6 | G23: 07:05:02 | H23: 13.9 | I23: 13:00:02 | J23: 80 | K23: 23:55:02 | L23: 1006.4 | M23: 10:30:02 | N23: 0 | O23: 00:35:02 | P23: 9.7 | Q23: 14:15:02 | R23: 0 | S23: 01:50:02 | T23: 14.8 | U23: 22:15:02 | V23: 90 | W23: EST | X23: 04:35:02 | Y23: 0 | Z23: 36.9 | AA23: 36.9 | AB23: 366.39 | AC23: 1 | AE23: =IF(AC23="","",VLOOKUP(AC23,List!$B$2:$E$29,4,FALSE)) -> Ciel dégagé | AF23: Pluies éparses | AG23: 2 | AH23: 11:25:02
A24: 2018-01-11 | B24: 25.8 | C24: 21:05:03 | D24: 50 | E24: 23:55:03 | F24: 4.3 | G24: 18:30:03 | H24: 13 | I24: 14:20:03 | J24: 87 | K24: 23:55:03 | L24: 1022.1 | M24: 23:45:03 | N24: 0 | O24: 00:05:02 | P24: 14.8 | Q24: 14:00:03 | R24: 0 | S24: 17:10:03 | T24: 18.4 | U24: 14:00:03 | V24: 315 | W24: NO | X24: 02:35:02 | Y24: 0.6 | Z24: 37.5 | AA24: 37.5 | AB24: 278.48 | AC24: 14 | AE24: =IF(AC24="","",VLOOKUP(AC24,List!$B$2:$E$29,4,FALSE)) -> Pluies éparses | AF24: Pluies et éclaircies | AG24: 2 | AH24: 11:40:03 | AO24: Temps de nuit | AP24: Ciel dégagé de nuit | AQ24: Ciel voilé de nuit | AR24: Brume ou brouillard léger de nuit | AS24: Brume ou léger brouillard givrant de nuit | AT24: Brouillard dense de nuit | AU24: Ciel nuageux avec éclaircies de nuit
A25: 2018-01-12 | B25: 24.8 | C25: 19:10:04 | D25: 44 | E25: 23:55:04 | F25: -1.3 | G25: 09:00:03 | H25: 8.6 | I25: 13:25:04 | J25: 81 | K25: 23:55:04 | L25: 1024.5 | M25: 10:55:04 | N25: 0 | O25: 00:05:03 | P25: 12.2 | Q25: 19:35:04 | R25: 0 | S25: 00:20:03 | T25: 15.8 | U25: 19:35:04 | V25: 90 | W25: EST | X25: 00:10:03 | Y25: 0.3 | Z25: 37.8 | AA25: 37.8 | AB25: 305.13 | AC25: 13 | AE25: =IF(AC25="","",VLOOKUP(AC25,List!$B$2:$E$29,4,FALSE)) -> Pluies et éclaircies | AF25: C | AG25: 2 | AH25: 11:20:04
A26: 2018-01-13 | B26: 23.7 | C26: 15:00:04 | D26: 45 | E26: 23:55:04 | F26: 4.6 | G26: 08:05:04 | H26: 7.1 | I26: 13:20:04 | J26: 83 | K26: 23:55:04 | L26: 1018.3 | M26: 00:15:04 | N26: 1.1 | O26: 06:20:04 | P26: 9.7 | Q26: 11:25:04 | R26: 2.5 | S26: 06:20:04 | T26: 13.3 | U26: 21:40:04 | V26: 315 | W26: NO | X26: 01:00:04 | Y26: 0 | Z26: 37.8 | AA26: 37.8 | AB26: 136.94 | AC26: 3 | AE26: =IF(AC26="","",VLOOKUP(AC26,List!$B$2:$E$29,4,FALSE)) -> Rares éclaircies | AG26: 2 | AH26: 12:35:04
A27: 2018-01-14 | B27: 24.9 | C27: 21:35:05 | D27: 48 | E27: 23:55:05 | F27: 4.2 | G27: 09:05:04 | H27: 9 | I27: 14:45:05 | J27: 85 | K27: 23:55:05 | L27: 1016.7 | M27: 21:15:05 | N27: 0 | O27: 00:10:04 | P27: 7.2 | Q27: 11:10:05 | R27: 0 | S27: 00:20:04 | T27: 9.7 | U27: 11:10:05 | V27: 315 | W27: NO | X27: 02:40:04 | Y27: 0 | Z27: 37.8 | AA27: 37.8 | AB27: 161.77 | AC27: 3 | AE27: =IF(AC27="","",VLOOKUP(AC27,List!$B$2:$E$29,4,FALSE)) -> Rares éclaircies | AG27: 2 | AH27: 11:55:05
A28: 2018-01-15 | B28: 25.4 | C28: 22:10:05 | D28: 43 | E28: 23:55:05 | F28: 3.5 | G28: 00:15:05 | H28: 15.3 | I28: 14:25:05 | J28: 73 | K28: 23:55:05 | L28: 1015.9 | M28: 00:00:05 | N28: 0 | O28: 00:00:05 | P28: 24.5 | Q28: 10:25:05 | R28: 0 | S28: 00:05:05 | T28: 30.6 | U28: 09:30:05 | V28: 135 | W28: SE | X28: 15:20:05 | Y28: 2.1 | Z28: 39.9 | AA28: 39.9 | AB28: 379.08 | AC28: 13 | AE28: =IF(AC28="","",VLOOKUP(AC28,List!$B$2:$E$29,4,FALSE)) -> Pluies et éclaircies | AG28: 3 | AH28: 14:15:05
A29: 2018-01-16 | B29: 25.1 | C29: 21:25:04 | D29: 40 | E29: 23:55:04 | F29: 5.4 | G29: 23:55:04 | H29: 14.2 | I29: 14:20:04 | J29: 79 | K29: 23:55:04 | L29: 1006.3 | M29: 11:40:04 | N29: 3.6 | O29: 04:25:05 | P29: 15.8 | Q29: 23:30:04 | R29: 5 | S29: 04:25:05 | T29: 25.6 | U29: 17:45:04 | V29: 45 | W29: NE | X29: 04:25:05 | Y29: 1.8 | Z29: 41.7 | AA29: 41.7 | AB29: 364.11 | AC29: 13 | AE29: =IF(AC29="","",VLOOKUP(AC29,List!$B$2:$E$29,4,FALSE)) -> Pluies et éclaircies | AG29: 2 | AH29: 11:15:04
A30: 2018-01-17 | B30: 25 | C30: 21:40:04 | D30: 39 | E30: 23:55:04 | F30: 4.2 | G30: 06:45:04 | H30: 11.5 | I30: 14:15:04 | J30: 77 | K30: 23:55:04 | L30: 1016.8 | M30: 11:40:04 | N30: 1.1 | O30: 03:40:04 | P30: 19.4 | Q30: 23:20:04 | R30: 2.5 | S30: 03:40:04 | T30: 27 | U30: 23:20:04 | V30: 315 | W30: NO | X30: 01:30:04 | Y30: 3.9 | Z30: 45.6 | AA30: 45.6 | AB30: 341.99 | AC30: 13 | AE30: =IF(AC30="","",VLOOKUP(AC30,List!$B$2:$E$29,4,FALSE)) -> Pluies et éclaircies | AG30: 2 | AH30: 11:10:04
A31: 2018-01-18 | B31: 25.5 | C31: 21:05:05 | D31: 43 | E31: 23:55:05 | F31: 6.3 | G31: 23:55:05 | H31: 15.2 | I31: 12:10:05 | J31: 81 | K31: 23:55:05 | L31: 1011.1 | M31: 23:35:05 | N31: 1.1 | O31: 23:50:05 | P31: 20.9 | Q31: 03:00:04 | R31: 3.6 | S31: 23:00:05 | T31: 27 | U31: 01:25:04 | V31: 45 | W31: NE | X31: 04:30:04 | Y31: 3.3 | Z31: 48.9 | AA31: 48.9 | AB31: 352.43 | AC31: 13 | AE31: =IF(AC31="","",VLOOKUP(AC31,List!$B$2:$E$29,4,FALSE)) -> Pluies et éclaircies | AG31: 2 | AH31: 11:05:05
A32: 2018-01-19 | B32: 25.3 | C32: 21:25:06 | D32: 40 | E32: 23:55:06 | F32: 4.8 | G32: 05:00:05 | H32: 13.2 | I32: 14:10:06 | J32: 81 | K32: 23:55:06 | L32: 1014.7 | M32: 12:10:06 | N32: 0 | O32: 04:50:05 | P32: 11.2 | Q32: 19:55:06 | R32: 1.1 | S32: 04:50:05 | T32: 14.8 | U32: 19:55:06 | V32: 90 | W32: EST | X32: 03:35:05 | Y32: 1.2 | Z32: 50.1 | AA32: 50.1 | AB32: 335.18 | AC32: 4 | AE32: =IF(AC32="","",VLOOKUP(AC32,List!$B$2:$E$29,4,FALSE)) -> Soleil nuageux et averses | AG32: 2 | AH32: 11:20:06
A33: 2018-01-20 | B33: 25.3 | C33: 18:10:06 | D33: 45 | E33: 23:55:06 | F33: 6.9 | G33: 00:00:06 | H33: 13.7 | I33: 13:25:06 | J33: 76 | K33: 23:55:06 | L33: 1012.5 | M33: 00:00:06 | N33: 2.5 | O33: 03:00:06 | P33: 15.8 | Q33: 05:55:06 | R33: 3.6 | S33: 03:15:06 | T33: 19.4 | U33: 05:25:06 | V33: 135 | W33: SE | X33: 17:00:06 | Y33: 8.7 | Z33: 58.8 | AA33: 58.8 | AB33: 121.24 | AC33: 16 | AE33: =IF(AC33="","",VLOOKUP(AC33,List!$B$2:$E$29,4,FALSE)) -> Averses ou fortes pluies | AG33: 2 | AH33: 12:00:06
A34: 2018-01-21 | B34: 24.2 | C34: 21:25:06 | D34: 48 | E34: 23:55:06 | F34: 9.3 | G34: 05:55:06 | H34: 14.7 | I34: 14:00:06 | J34: 79 | K34: 23:55:06 | L34: 1015.4 | M34: 11:25:06 | N34: 0 | O34: 04:50:06 | P34: 14.8 | Q34: 14:30:06 | R34: 0 | S34: 05:05:06 | T34: 20.9 | U34: 20:55:06 | V34: 315 | W34: NO | X34: 00:40:06 | Y34: 2.1 | Z34: 60.9 | AA34: 60.9 | AB34: 253 | AC34: 4 | AE34: =IF(AC34="","",VLOOKUP(AC34,List!$B$2:$E$29,4,FALSE)) -> Soleil nuageux et averses | AG34: 2 | AH34: 11:10:06
A35: 2018-01-22 | B35: 26.2 | C35: 20:30:06 | D35: 47 | E35: 23:55:06 | F35: 6.4 | G35: 23:55:06 | H35: 14.2 | I35: 15:35:06 | J35: 83 | K35: 23:55:06 | L35: 1021.1 | M35: 21:05:06 | N35: 0 | O35: 18:10:06 | P35: 30.6 | Q35: 10:55:06 | R35: 0 | S35: 18:30:06 | T35: 36.7 | U35: 10:55:06 | V35: 90 | W35: EST | X35: 08:55:06 | Y35: 0.3 | Z35: 61.2 | AA35: 61.2 | AB35: 406.03 | AC35: 13 | AE35: =IF(AC35="","",VLOOKUP(AC35,List!$B$2:$E$29,4,FALSE)) -> Pluies et éclaircies | AG35: 2 | AH35: 11:15:06
A36: 2018-01-23 | B36: 26 | C36: 21:25:06 | D36: 49 | E36: 23:55:06 | F36: 5.7 | G36: 00:20:06 | H36: 15.1 | I36: 12:55:06 | J36: 83 | K36: 23:55:06 | L36: 1020.9 | M36: 00:00:06 | N36: 0 | O36: 00:00:06 | P36: 17.3 | Q36: 13:00:06 | R36: 0 | S36: 00:05:06 | T36: 23.4 | U36: 13:15:06 | V36: 135 | W36: SE | X36: 00:15:06 | Y36: 1.2 | Z36: 62.4 | AA36: 62.4 | AB36: 435.46 | AC36: 13 | AE36: =IF(AC36="","",VLOOKUP(AC36,List!$B$2:$E$29,4,FALSE)) -> Pluies et éclaircies | AG36: 3 | AH36: 12:50:06
A37: 2018-01-24 | B37: 25.8 | C37: 21:20:06 | D37: 47 | E37: 23:55:06 | F37: 8.7 | G37: 23:40:06 | H37: 13.6 | I37: 05:25:06 | J37: 82 | K37: 23:55:06 | L37: 1017.3 | M37: 00:00:06 | N37: 0 | O37: 18:35:06 | P37: 23.4 | Q37: 15:10:06 | R37: 1.1 | S37: 18:35:06 | T37: 33.1 | U37: 17:20:06 | V37: 135 | W37: SE | X37: 18:35:06 | Y37: 4.2 | Z37: 66.6 | AA37: 66.6 | AB37: 103.41 | AC37: 16 | AE37: =IF(AC37="","",VLOOKUP(AC37,List!$B$2:$E$29,4,FALSE)) -> Averses ou fortes pluies | AG37: 2 | AH37: 10:55:06
A38: 2018-01-25 | B38: 25.5 | C38: 21:10:06 | D38: 45 | E38: 23:55:06 | F38: 5.7 | G38: 07:40:06 | H38: 12.9 | I38: 14:50:06 | J38: 81 | K38: 23:55:06 | L38: 1011.3 | M38: 01:45:06 | N38: 0 | O38: 04:10:06 | P38: 12.2 | Q38: 02:00:06 | R38: 0 | S38: 04:20:06 | T38: 18.4 | U38: 02:00:06 | V38: 135 | W38: SE | X38: 04:15:06 | Y38: 0.3 | Z38: 66.9 | AA38: 66.9 | AB38: 326.6 | AC38: 4 | AE38: =IF(AC38="","",VLOOKUP(AC38,List!$B$2:$E$29,4,FALSE)) -> Soleil nuageux et averses | AG38: 2 | AH38: 11:15:06
A39: 2018-01-26 | B39: 25.1 | C39: 21:20:10 | D39: 48 | E39: 23:55:10 | F39: 4.2 | G39: 05:45:06 | H39: 12.2 | I39: 15:05:10 | J39: 85 | K39: 23:55:10 | L39: 1026.1 | M39: 23:45:10 | N39: 0 | O39: 05:30:06 | P39: 15.8 | Q39: 13:55:10 | R39: 0 | S39: 20:20:10 | T39: 23.4 | U39: 14:45:10 | V39: 45 | W39: NE | X39: 00:25:06 | Y39: 0.6 | Z39: 67.5 | AA39: 67.5 | AB39: 430.82 | AC39: 4 | AE39: =IF(AC39="","",VLOOKUP(AC39,List!$B$2:$E$29,4,FALSE)) -> Soleil nuageux et averses | AG39: 3 | AH39: 12:40:10
A40: 2018-01-27 | B40: 24.9 | C40: 18:00:10 | D40: 45 | E40: 23:55:10 | F40: -0.8 | G40: 07:25:10 | H40: 11.6 | I40: 23:50:10 | J40: 89 | K40: 23:55:10 | L40: 1030.6 | M40: 23:40:10 | N40: 0 | O40: 00:00:10 | P40: 13.3 | Q40: 13:00:10 | R40: 0 | S40: 00:10:10 | T40: 19.4 | U40: 20:20:10 | V40: 90 | W40: EST | X40: 00:15:10 | Y40: 0.3 | Z40: 67.8 | AA40: 67.8 | AB40: 166.14 | AC40: 4 | AE40: =IF(AC40="","",VLOOKUP(AC40,List!$B$2:$E$29,4,FALSE)) -> Soleil nuageux et averses | AG40: 2 | AH40: 11:20:10
A41: 2018-01-28 | B41: 25.8 | C41: 21:15:06 | D41: 49 | E41: 23:55:06 | F41: 9.3 | G41: 07:30:10 | H41: 13.6 | I41: 13:30:06 | J41: 81 | K41: 23:55:06 | L41: 1036.2 | M41: 11:15:06 | N41: 0 | O41: 01:00:10 | P41: 7.2 | Q41: 13:50:06 | R41: 0 | S41: 06:45:10 | T41: 11.2 | U41: 14:30:06 | V41: 90 | W41: EST | X41: 17:10:06 | Y41: 0.3 | Z41: 68.1 | AA41: 68.1 | AB41: 153.34 | AC41: 13 | AE41: =IF(AC41="","",VLOOKUP(AC41,List!$B$2:$E$29,4,FALSE)) -> Pluies et éclaircies | AG41: 2 | AH41: 10:40:06
A42: 2018-01-29 | B42: 26.1 | C42: 21:10:06 | D42: 47 | E42: 23:55:06 | F42: 9.5 | G42: 06:55:06 | H42: 12.6 | I42: 15:15:06 | J42: 81 | K42: 23:55:06 | L42: 1034.2 | M42: 00:10:06 | N42: 0 | O42: 00:30:06 | P42: 8.6 | Q42: 12:55:06 | R42: 0 | S42: 06:25:06 | T42: 11.2 | U42: 02:00:06 | V42: 45 | W42: NE | X42: 04:10:06 | Y42: 0 | Z42: 68.1 | AA42: 68.1 | AB42: 142.12 | AC42: 1 | AE42: =IF(AC42="","",VLOOKUP(AC42,List!$B$2:$E$29,4,FALSE)) -> Ciel dégagé | AG42: 2 | AH42: 12:20:06
A43: 2018-01-30 | B43: 25.1 | C43: 21:10:06 | D43: 48 | E43: 23:55:06 | F43: 9.6 | G43: 03:15:06 | H43: 12.6 | I43: 14:10:06 | J43: 82 | K43: 23:55:06 | L43: 1030.4 | M43: 00:40:06 | N43: 0 | O43: 04:25:06 | P43: 14.8 | Q43: 14:00:06 | R43: 1.1 | S43: 04:25:06 | T43: 19.4 | U43: 14:00:06 | V43: 90 | W43: EST | X43: 01:00:06 | Y43: 0 | Z43: 68.1 | AA43: 68.1 | AB43: 265.45 | AC43: 1 | AE43: =IF(AC43="","",VLOOKUP(AC43,List!$B$2:$E$29,4,FALSE)) -> Ciel dégagé | AG43: 3 | AH43: 14:00:06
A44: 2018-01-31 | B44: 25.2 | C44: 21:25:06 | D44: 45 | E44: 23:55:06 | F44: 5 | G44: 23:00:06 | H44: 12.1 | I44: 11:40:06 | J44: 77 | K44: 23:55:06 | L44: 1020.5 | M44: 00:00:06 | N44: 1.1 | O44: 17:45:06 | P44: 19.4 | Q44: 05:30:06 | R44: 2.5 | S44: 17:55:06 | T44: 25.6 | U44: 05:30:06 | V44: 135 | W44: SE | X44: 06:50:06 | Y44: 2.1 | Z44: 70.2 | AA44: 70.2 | AB44: 108.71 | AC44: 13 | AE44: =IF(AC44="","",VLOOKUP(AC44,List!$B$2:$E$29,4,FALSE)) -> Pluies et éclaircies | AG44: 2 | AH44: 11:40:06
AE45: =IF(AC45="","",VLOOKUP(AC45,List!$B$2:$E$29,4,FALSE)) -> 
AE46: =IF(AC46="","",VLOOKUP(AC46,List!$B$2:$E$29,4,FALSE)) -> 

Sheet Février 18 (hidden)
A1: Soleil | B1: C | C1: Ciel voilé | D1: Rares éclaircies | E1: Soleil Fortes averses | F1: Variable | J1: Orageux | K1: Soleil orage | L1: Soleil averses orageuses | M1: Pluies orageuses | N1: Orage | O1: Orage et grêles | P1: Orage violent | AQ1: 30 | AR1: 51 | AS1: 299 | AT1: 700
B2: 1 | C2: 2 | D2: 3 | E2: 4 | F2: 5 | K2: 18 | L2: 19 | M2: 20 | N2: 21 | O2: 22 | P2: 23 | AY2: =COUNTIF($W$14:$W$46,AZ2) -> 4 | AZ2: N | BA2: 0
A3: Nuageux & Brumeux | B3: C | C3: Brouillard dense | D3: Brume ou Brouillard légé | E3: Brume ou léger brouillard givrant | F3: Nuageux | G3: Couvert | H3: Couvert rares averses | J3: Grèle & Neige | K3: Giboulées | L3: Grèles | M3: Neiges | N3: Fortes neiges | AY3: =COUNTIF($W$14:$W$46,AZ3) -> 0 | AZ3: NNE | BA3: 23
B4: 6 | C4: 7 | D4: 8 | E4: 9 | F4: 10 | G4: 11 | H4: 12 | K4: 24 | L4: 25 | M4: 26 | N4: 27 | AY4: 1 | AZ4: NE | BA4: 45
A5: Pluvieux | B5: Pluies et éclaircies | C5: Pluies éparses | D5: Bruines | E5: Averses ou fortes pluies | F5: Pluies mélées de neige | AY5: 0 | AZ5: ENE | BA5: 68
B6: 13 | C6: 14 | D6: 15 | E6: 16 | F6: 17 | AY6: 4 | AZ6: EST | BA6: 90
F7: =IF(F14="","",MIN(F14:F46)) -> -7.6 | H7: =IF(H14="","",MIN(H14:H46)) -> 3.4 | J7: 42 | L7: 1007.8 | N7: 0 | P7: 8.6 | R7: 0 | T7: 11.2 | V7: =VLOOKUP(W7,$AZ$2:$BA$17,2,FALSE) -> 23 | W7: =W10 -> NNE | Y7: =MIN(Y14:Y46) -> 0 | AB7: 66.85 | AG7: 1 | AY7: 0 | AZ7: ESE | BA7: 113
F8: =IF(F15="","",MAX(F14:F46)) -> 9.3 | H8: =IF(H15="","",MAX(H14:H46)) -> 15 | J8: 90 | L8: 1025.3 | N8: 3.6 | P8: 24.5 | R8: 5 | T8: 86 | V8: =VLOOKUP(W8,$AZ$2:$BA$17,2,FALSE) -> 315 | W8: =W11 -> NO | Y8: =MAX(Y14:Y46) -> 15 | Z8: 76.8 | AA8: 147 | AB8: 434.42 | AG8: 4 | AY8: 3 | AZ8: SE | BA8: 135
AY9: 0 | AZ9: SSE | BA9: 158
V10: =SMALL($AY$2:$AY$17,1) -> 0 | W10: =VLOOKUP(V10,$AY$2:$AZ$17,2,FALSE) -> NNE | Z10: =MAX(Z14:Z46) -> 76.8 | AP10: 31 | AQ10: 99 | AR10: 300 | AY10: 0 | AZ10: S | BA10: 180
F11: =IF(F14="","",MIN(F14:F46)) -> -7.6 | G11: =VLOOKUP(F11,F14:G46,2,FALSE) -> 06:35:21 | H11: =IF(H14="","",MAX(H14:H46)) -> 15 | I11: =VLOOKUP(H11,H14:I46,2,FALSE) -> 13:00:14 | V11: =LARGE($AY$2:$AY$17,1) -> 16 | W11: =VLOOKUP(V11,$AY$2:$AZ$17,2,FALSE) -> NO | AP11: 49 | AQ11: 100 | AR11: 301 | AY11: 0 | AZ11: SSO | BA11: 203
A12: Moyenne Mensuelle | B12: =AVERAGE(B14:B46) -> 24.5 | D12: =AVERAGE(D14:D46) -> 44.64285714 | F12: =AVERAGE(F14:F46) -> -0.125 | H12: =AVERAGE(H14:H46) -> 9.857142857 | J12: =AVERAGE(J14:J46) -> 76.17857143 | L12: =AVERAGE(L14:L46) -> 1017.846429 | N12: =AVERAGE(N14:N46) -> 0.1678571429 | R12: =AVERAGE(R14:R46) -> 0.3357142857 | W12: SE | X12: 09:30:45 | Y12: =AVERAGE(Y14:Y44) -> 2.742857143 | Z12: =AVERAGE(Z14:Z46) -> 53.65714286 | AB12: =AVERAGE(AB14:AB46) -> 311.2925 | AG12: =AVERAGE(AG14:AG46) -> 3.214285714 | AP12: 50 | AQ12: 101 | AR12: 699 | AY12: 0 | AZ12: SO | BA12: 225
A13: Jour | B13: T° int. (°C) | C13: Heure | D13: Hum int. (%) | E13: Heure | F13: T° Mini ext. (°C) | G13: Heure | H13: T° Maxi ext. (°C) | I13: Heure | J13: Hum ext. (%) | K13: Heure | L13: Press. rel. (hpa) | M13: Heure | N13: Vit. du vent (km/h) | O13: Heure | P13: Vit. du vent (km/h) | Q13: Heure | R13: Rafale Min (km/h) | S13: Heure | T13: Rafale Max (km/h) | U13: Heure | V13: Direction du vent | W13: - | X13: Heure | Y13: Précipi. dern. 24 h (mm) | Z13: Précipi. Tot. mois (mm) | AA13: Précipi. Tot. An (mm) | AB13: Lumière (W/M2) | AG13: UVI | AH13: Heure | AJ13: Intensité des UV | AY13: 0 | AZ13: OSO | BA13: 248
A14: 2018-02-01 | B14: 23.9 | C14: 21:00:06 | D14: 49 | E14: 23:55:06 | F14: 4 | G14: 10:15:06 | H14: 9.9 | I14: 14:15:06 | J14: 80 | K14: 23:55:06 | L14: 1009.3 | M14: 23:50:06 | N14: 0 | O14: 06:35:06 | P14: 15.8 | Q14: 02:15:06 | R14: 1.1 | S14: 19:20:06 | T14: 27 | U14: 14:25:06 | V14: =IF(W14="N",0,IF(W14="NNE",23,IF(W14="NE",45,IF(W14="ENE",68,IF(W14="EST",90,IF(W14="ESE",113,IF(W14="SE",135,IF(W14="SSE",158,IF(W14="S",180,IF(W14="SSO",203,IF(W14="SO",225,IF(W14="OSO",248,IF(W14="O",270,IF(W14="ONO",293,IF(W14="NO",315,IF(W14="NNO",338,"")))))))))))))))) -> 45 | W14: NE | X14: 10:10:06 | Y14: 14.4 | Z14: =Y14 -> 14.4 | AA14: 84.6 | AB14: 273.65 | AC14: 16 | AE14: =IF(AC14="","",VLOOKUP(AC14,List!$B$2:$E$29,4,FALSE)) -> Averses ou fortes pluies | AG14: 3 | AH14: 13:45:06 | AJ14: FAIBLE | AK14: <2 | AO14: Soleil | AP14: C | AQ14: Ciel voilé | AR14: Rares éclaircies | AS14: Soleil Fortes averses | AT14: Variable | AU14: 0 | AV14: 0 | AY14: 0 | AZ14: O | BA14: 270
A15: =IF(B15="","",A14+1) -> 2018-02-02 | B15: 24.2 | C15: 21:05:07 | D15: 48 | E15: 23:55:07 | F15: 2.8 | G15: 03:50:06 | H15: 12.3 | I15: 14:10:07 | J15: 84 | K15: 23:55:07 | L15: 1013.2 | M15: 10:40:07 | N15: 0 | O15: 00:20:06 | P15: 18.4 | Q15: 04:15:06 | R15: 0 | S15: 00:20:06 | T15: 25.6 | U15: 16:15:07 | V15: 315 | W15: NO | X15: 02:40:06 | Y15: 3.6 | Z15: =IF(Y15="","",Y15+Z14) -> 18 | AA15: 88.2 | AB15: 414.23 | AC15: 14 | AE15: =IF(AC15="","",VLOOKUP(AC15,List!$B$2:$E$29,4,FALSE)) -> Pluies éparses | AF15: =IF(AC15="","",) -> 0 | AG15: 3 | AH15: 11:40:07 | AJ15: MODEREE | AK15: 3 | AL15: à | AM15: 5 | AY15: 0 | AZ15: ONO | BA15: 293
A16: =IF(B16="","",A15+1) -> 2018-02-03 | B16: 23.8 | C16: 18:45:08 | D16: 48 | E16: 23:55:08 | F16: 4.6 | G16: 02:45:07 | H16: 10.8 | I16: 14:35:08 | J16: 87 | K16: 23:55:08 | L16: 1011.8 | M16: 00:05:07 | N16: 0 | O16: 00:00:07 | P16: 18.4 | Q16: 15:50:08 | R16: 0 | S16: 00:00:07 | T16: 23.4 | U16: 12:20:08 | V16: 315 | W16: NO | X16: 00:50:07 | Y16: 7.8 | Z16: 25.8 | AA16: 96 | AB16: 363.92 | AC16: 16 | AE16: =IF(AC16="","",VLOOKUP(AC16,List!$B$2:$E$29,4,FALSE)) -> Averses ou fortes pluies | AF16: Averses ou fortes pluies | AG16: 3 | AH16: 12:50:08 | AJ16: FORTE | AK16: 6 | AL16: à | AM16: 7 | AO16: Nuageux & Brumeux | AP16: C | AQ16: Brouillard dense | AR16: Brume ou Brouillard légé | AS16: Brume ou léger brouillard givrant | AT16: Nuageux | AU16: Couvert | AV16: Couvert rares averses | AY16: 16 | AZ16: NO | BA16: 315
A17: 2018-02-04 | B17: 24.2 | C17: 19:30:09 | D17: 48 | E17: 23:55:09 | F17: 2.4 | G17: 20:35:09 | H17: 7.8 | I17: 13:45:09 | J17: 80 | K17: 23:55:09 | L17: 1021.3 | M17: 23:35:09 | N17: 0 | O17: 20:05:09 | P17: 23.4 | Q17: 14:10:09 | R17: 1.1 | S17: 20:05:09 | T17: 30.6 | U17: 14:30:09 | V17: 315 | W17: NO | X17: 01:55:08 | Y17: 2.1 | Z17: 27.9 | AA17: 98.1 | AB17: 381.74 | AC17: 14 | AE17: =IF(AC17="","",VLOOKUP(AC17,List!$B$2:$E$29,4,FALSE)) -> Pluies éparses | AF17: Pluies et éclaircies | AG17: 3 | AH17: 11:40:09 | AJ17: TRES FORTE | AK17: 8 | AL17: à | AM17: 10 | AY17: 0 | AZ17: NNO | BA17: 338
A18: 2018-02-05 | B18: 22.4 | C18: 13:55:09 | D18: 51 | E18: 23:55:09 | F18: -1.1 | G18: 08:10:09 | H18: 7.7 | I18: 14:55:09 | J18: 80 | K18: 23:55:09 | L18: 1021.6 | M18: 10:05:09 | N18: 0 | O18: 05:45:09 | P18: 24.5 | Q18: 16:05:09 | R18: 0 | S18: 19:25:09 | T18: 31.7 | U18: 16:05:09 | V18: 0 | W18: N | X18: 00:05:09 | Y18: 0 | Z18: 27.9 | AA18: 98.1 | AB18: 355.21 | AC18: 1 | AE18: =IF(AC18="","",VLOOKUP(AC18,List!$B$2:$E$29,4,FALSE)) -> Ciel dégagé | AF18: C | AG18: 3 | AH18: 11:30:09 | AJ18: EXTREME | AK18: 11+ | AO18: Pluvieux | AP18: Pluies et éclaircies | AQ18: Pluies éparses | AR18: Bruines | AS18: Averses ou fortes pluies | AT18: Pluies mélées de neige
A19: 2018-02-06 | B19: 23 | C19: 19:05:10 | D19: 48 | E19: 23:55:10 | F19: -1.7 | G19: 03:45:09 | H19: 4.3 | I19: 13:45:10 | J19: 72 | K19: 23:55:10 | L19: 1015.2 | M19: 00:05:09 | N19: 0 | O19: 00:05:09 | P19: 17.3 | Q19: 08:15:09 | R19: 0 | S19: 00:05:09 | T19: 23.4 | U19: 08:15:09 | V19: 315 | W19: NO | X19: 07:10:09 | Y19: 6.6 | Z19: 34.5 | AA19: 104.7 | AB19: 69.43 | AC19: 26 | AE19: =IF(AC19="","",VLOOKUP(AC19,List!$B$2:$E$29,4,FALSE)) -> Neiges | AF19: C | AG19: 2 | AH19: 11:20:10
A20: 2018-02-07 | B20: 23.2 | C20: 19:55:11 | D20: 49 | E20: 23:55:11 | F20: -0.4 | G20: 23:15:11 | H20: 8.1 | I20: 13:00:11 | J20: 81 | K20: 23:55:11 | L20: 1019.7 | M20: 23:05:11 | N20: 0 | O20: 03:10:10 | P20: 24.5 | Q20: 13:10:11 | R20: 0 | S20: 03:10:10 | T20: 30.6 | U20: 11:40:11 | V20: 0 | W20: N | X20: 00:45:10 | Y20: 2.7 | Z20: 37.2 | AA20: 107.4 | AB20: 384.41 | AC20: 13 | AE20: =IF(AC20="","",VLOOKUP(AC20,List!$B$2:$E$29,4,FALSE)) -> Pluies et éclaircies | AF20: C | AG20: 4 | AH20: 13:05:11 | AO20: Orageux | AP20: Soleil orage | AQ20: Soleil averses orageuses | AR20: Pluies orageuses | AS20: Orage | AT20: Orage et grêles | AU20: Orage violent
A21: 2018-02-08 | B21: 24.6 | C21: 21:20:14 | D21: 42 | E21: 23:55:14 | F21: -3.5 | G21: 08:20:11 | H21: 9.5 | I21: 15:25:14 | J21: 71 | K21: 23:55:14 | L21: 1020.6 | M21: 09:55:11 | N21: 0 | O21: 00:00:11 | P21: 11.2 | Q21: 21:10:14 | R21: 0 | S21: 00:00:11 | T21: 18.4 | U21: 22:50:14 | V21: 90 | W21: EST | X21: 10:10:11 | Y21: 0 | Z21: 37.2 | AA21: 107.4 | AB21: 337.77 | AC21: 1 | AE21: =IF(AC21="","",VLOOKUP(AC21,List!$B$2:$E$29,4,FALSE)) -> Ciel dégagé | AF21: Averses ou fortes pluies | AG21: 3 | AH21: 11:25:14
A22: 2018-02-09 | B22: 23.7 | C22: 22:00:14 | D22: 44 | E22: 23:55:14 | F22: 2.4 | G22: 23:55:14 | H22: 10.8 | I22: 15:20:14 | J22: 72 | K22: 23:55:14 | L22: 1019.2 | M22: 23:30:14 | N22: 0 | O22: 06:45:14 | P22: 20.9 | Q22: 17:25:14 | R22: 0 | S22: 06:50:14 | T22: 28.1 | U22: 15:10:14 | V22: 135 | W22: SE | X22: 09:15:14 | Y22: 1.2 | Z22: 38.4 | AA22: 108.6 | AB22: 422.97 | AC22: 13 | AE22: =IF(AC22="","",VLOOKUP(AC22,List!$B$2:$E$29,4,FALSE)) -> Pluies et éclaircies | AF22: Pluies et éclaircies | AG22: 4 | AH22: 13:20:14 | AO22: Grèle & Neige | AP22: Giboulées | AQ22: Grèles | AR22: Neiges | AS22: Fortes neiges | AT22: 0 | AU22: 0
A23: 2018-02-10 | B23: 23.5 | C23: 21:20:12 | D23: 43 | E23: 23:55:12 | F23: -1.2 | G23: 06:55:14 | H23: 11.4 | I23: 23:55:12 | J23: 85 | K23: 23:55:12 | L23: 1019.5 | M23: 01:50:14 | N23: 0 | O23: 00:05:14 | P23: 17.3 | Q23: 18:05:12 | R23: 0 | S23: 00:10:14 | T23: 24.5 | U23: 19:40:12 | V23: 90 | W23: EST | X23: 00:00:14 | Y23: 0 | Z23: 38.4 | AA23: 108.6 | AB23: 270.21 | AC23: 1 | AE23: =IF(AC23="","",VLOOKUP(AC23,List!$B$2:$E$29,4,FALSE)) -> Ciel dégagé | AF23: Pluies éparses | AG23: 3 | AH23: 12:35:12
A24: 2018-02-11 | B24: 24.7 | C24: 16:05:12 | D24: 49 | E24: 23:55:12 | F24: 1.3 | G24: 23:50:12 | H24: 11.7 | I24: 15:15:12 | J24: 78 | K24: 23:55:12 | L24: 1014.6 | M24: 23:45:12 | N24: 0 | O24: 06:30:12 | P24: 12.2 | Q24: 03:00:12 | R24: 0 | S24: 20:30:12 | T24: 15.8 | U24: 14:20:12 | V24: 315 | W24: NO | X24: 07:55:12 | Y24: 0.9 | Z24: 39.3 | AA24: 109.5 | AB24: 411.99 | AC24: 13 | AE24: =IF(AC24="","",VLOOKUP(AC24,List!$B$2:$E$29,4,FALSE)) -> Pluies et éclaircies | AF24: Pluies et éclaircies | AG24: 3 | AH24: 11:55:12 | AO24: Temps de nuit | AP24: Ciel dégagé de nuit | AQ24: Ciel voilé de nuit | AR24: Brume ou brouillard léger de nuit | AS24: Brume ou léger brouillard givrant de nuit | AT24: Brouillard dense de nuit | AU24: Ciel nuageux avec éclaircies de nuit
A25: 2018-02-12 | B25: 25.1 | C25: 21:40:17 | D25: 42 | E25: 23:55:17 | F25: -0.7 | G25: 08:50:12 | H25: 12.2 | I25: 14:35:17 | J25: 79 | K25: 23:55:17 | L25: 1019.1 | M25: 10:05:12 | N25: 0 | O25: 00:00:12 | P25: 11.2 | Q25: 16:30:17 | R25: 0 | S25: 03:45:12 | T25: 13.3 | U25: 16:25:17 | V25: 315 | W25: NO | X25: 11:55:17 | Y25: 0 | Z25: 39.3 | AA25: 109.5 | AB25: 409.78 | AC25: 1 | AE25: =IF(AC25="","",VLOOKUP(AC25,List!$B$2:$E$29,4,FALSE)) -> Ciel dégagé | AF25: C | AG25: 3 | AH25: 11:20:17
A26: 2018-02-13 | B26: 25 | C26: 21:10:13 | D26: 42 | E26: 23:55:13 | F26: 1.1 | G26: 23:55:13 | H26: 11.3 | I26: 14:45:13 | J26: 80 | K26: 23:55:13 | L26: 1010.7 | M26: 00:00:17 | N26: 0 | O26: 20:30:13 | P26: 24.5 | Q26: 07:10:17 | R26: 1.1 | S26: 20:30:13 | T26: 35.6 | U26: 07:40:17 | V26: 135 | W26: SE | X26: 18:35:13 | Y26: 15 | Z26: 54.3 | AA26: 124.5 | AB26: 387.97 | AC26: 24 | AE26: =IF(AC26="","",VLOOKUP(AC26,List!$B$2:$E$29,4,FALSE)) -> Giboulées | AG26: 3 | AH26: 13:10:13
A27: 2018-02-14 | B27: 24.7 | C27: 21:05:14 | D27: 46 | E27: 23:55:14 | F27: -1.1 | G27: 01:35:13 | H27: 12.3 | I27: 22:15:14 | J27: 88 | K27: 23:55:14 | L27: 1007.8 | M27: 02:55:13 | N27: 0 | O27: 00:00:13 | P27: 18.4 | Q27: 09:40:13 | R27: 0 | S27: 00:00:13 | T27: 23.4 | U27: 08:20:13 | V27: 90 | W27: EST | X27: 01:05:13 | Y27: 5.1 | Z27: 59.4 | AA27: 129.6 | AB27: 66.85 | AC27: 14 | AE27: =IF(AC27="","",VLOOKUP(AC27,List!$B$2:$E$29,4,FALSE)) -> Pluies éparses | AG27: 1 | AH27: 09:25:13
A28: 2018-02-15 | B28: 25.5 | C28: 18:40:13 | D28: 47 | E28: 23:55:13 | F28: 0.5 | G28: 23:05:13 | H28: 12.5 | I28: 11:55:13 | J28: 87 | K28: 23:55:13 | L28: 1020.7 | M28: 23:40:13 | N28: 0 | O28: 07:10:14 | P28: 12.2 | Q28: 12:20:13 | R28: 0 | S28: 08:20:14 | T28: 15.8 | U28: 01:30:14 | V28: 90 | W28: EST | X28: 04:25:14 | Y28: 2.1 | Z28: 61.5 | AA28: 131.7 | AB28: 168.73 | AC28: 4 | AE28: =IF(AC28="","",VLOOKUP(AC28,List!$B$2:$E$29,4,FALSE)) -> Soleil nuageux et averses | AG28: 3 | AH28: 11:40:13
A29: 2018-02-16 | B29: 25.1 | C29: 19:00:14 | D29: 45 | E29: 23:55:14 | F29: -2.4 | G29: 07:35:13 | H29: 12.1 | I29: 15:05:14 | J29: 82 | K29: 23:55:14 | L29: 1025.3 | M29: 10:30:14 | N29: 0 | O29: 00:00:13 | P29: 11.2 | Q29: 13:40:14 | R29: 0 | S29: 00:00:13 | T29: 14.8 | U29: 13:40:14 | V29: 0 | W29: N | X29: 11:10:14 | Y29: 0 | Z29: 61.5 | AA29: 131.7 | AB29: 373.24 | AC29: 1 | AE29: =IF(AC29="","",VLOOKUP(AC29,List!$B$2:$E$29,4,FALSE)) -> Ciel dégagé | AG29: 3 | AH29: 10:50:14
A30: 2018-02-17 | B30: 25.6 | C30: 19:15:15 | D30: 44 | E30: 23:55:15 | F30: 2.5 | G30: 08:45:14 | H30: 15 | I30: 13:00:14 | J30: 86 | K30: 23:55:15 | L30: 1021.8 | M30: 23:10:15 | N30: 0 | O30: 00:00:14 | P30: 11.2 | Q30: 13:40:14 | R30: 0 | S30: 00:00:14 | T30: 13.3 | U30: 13:40:14 | V30: 315 | W30: NO | X30: 12:00:14 | Y30: 0.9 | Z30: 62.4 | AA30: 132.6 | AB30: 434.42 | AC30: 1 | AE30: =IF(AC30="","",VLOOKUP(AC30,List!$B$2:$E$29,4,FALSE)) -> Ciel dégagé | AG30: 4 | AH30: 13:35:14
A31: 2018-02-18 | B31: 26.2 | C31: 21:05:16 | D31: 46 | E31: 23:55:16 | F31: 6.4 | G31: 00:45:15 | H31: 11.1 | I31: 15:25:16 | J31: 90 | K31: 23:55:16 | L31: 1021.6 | M31: 00:00:15 | N31: 0 | O31: 06:35:15 | P31: 8.6 | Q31: 01:20:15 | R31: 0 | S31: 16:55:16 | T31: 11.2 | U31: 01:20:15 | V31: 135 | W31: SE | X31: 04:05:15 | Y31: 9 | Z31: 71.4 | AA31: 141.6 | AB31: 114.12 | AC31: 16 | AE31: =IF(AC31="","",VLOOKUP(AC31,List!$B$2:$E$29,4,FALSE)) -> Averses ou fortes pluies | AG31: 2 | AH31: 10:45:16
A32: 2018-02-19 | B32: 25.8 | C32: 21:00:17 | D32: 49 | E32: 23:55:17 | F32: 9.3 | G32: 00:00:16 | H32: 12 | I32: 15:40:17 | J32: 84 | K32: 23:55:17 | L32: 1017.5 | M32: 10:50:17 | N32: 0 | O32: 00:00:16 | P32: 12.2 | Q32: 22:25:17 | R32: 0 | S32: 00:00:16 | T32: 86 | U32: 18:20:17 | V32: 315 | W32: NO | X32: 03:25:16 | Y32: 1.8 | Z32: 73.2 | AA32: 143.4 | AB32: 121.85 | AC32: 4 | AE32: =IF(AC32="","",VLOOKUP(AC32,List!$B$2:$E$29,4,FALSE)) -> Soleil nuageux et averses | AG32: 2 | AH32: 10:50:17
A33: 2018-02-20 | B33: 25.4 | C33: 21:00:19 | D33: 47 | E33: 23:55:19 | F33: 5.8 | G33: 22:05:19 | H33: 10.4 | I33: 10:50:19 | J33: 76 | K33: 23:55:19 | L33: 1020.1 | M33: 20:35:19 | N33: 3.6 | O33: 21:00:19 | P33: 22 | Q33: 14:30:19 | R33: 5 | S33: 21:00:19 | T33: 29.5 | U33: 14:30:19 | V33: 315 | W33: NO | X33: 00:10:17 | Y33: 0 | Z33: 73.2 | AA33: 143.4 | AB33: 171.32 | AC33: 1 | AE33: =IF(AC33="","",VLOOKUP(AC33,List!$B$2:$E$29,4,FALSE)) -> Ciel dégagé | AG33: 3 | AH33: 00:55:17
A34: 2018-02-21 | B34: 25.7 | C34: 14:15:19 | D34: 45 | E34: 23:55:19 | F34: 2.3 | G34: 21:50:19 | H34: 11.5 | I34: 14:35:19 | J34: 79 | K34: 23:55:19 | L34: 1022.7 | M34: 10:15:19 | N34: 1.1 | O34: 19:45:19 | P34: 20.9 | Q34: 15:50:19 | R34: 1.1 | S34: 20:10:19 | T34: 24.5 | U34: 15:35:19 | V34: 315 | W34: NO | X34: 02:50:19 | Y34: 0 | Z34: 73.2 | AA34: 143.4 | AB34: 345.66 | AC34: 1 | AE34: =IF(AC34="","",VLOOKUP(AC34,List!$B$2:$E$29,4,FALSE)) -> Ciel dégagé | AG34: 4 | AH34: 12:30:19
A35: 2018-02-22 | B35: 25.1 | C35: 16:10:19 | D35: 43 | E35: 23:55:19 | F35: -3.3 | G35: 08:00:19 | H35: 10.2 | I35: 14:55:19 | J35: 78 | K35: 23:55:19 | L35: 1019 | M35: 01:50:19 | N35: 0 | O35: 01:25:19 | P35: 17.3 | Q35: 15:45:19 | R35: 0 | S35: 01:25:19 | T35: 22 | U35: 15:45:19 | V35: 315 | W35: NO | X35: 00:05:19 | Y35: 0 | Z35: 73.2 | AA35: 143.4 | AB35: 344.66 | AC35: 1 | AE35: =IF(AC35="","",VLOOKUP(AC35,List!$B$2:$E$29,4,FALSE)) -> Ciel dégagé | AG35: 4 | AH35: 12:25:19
A36: 2018-02-23 | B36: 25.1 | C36: 18:30:19 | D36: 41 | E36: 23:55:19 | F36: -5.5 | G36: 07:35:19 | H36: 9.1 | I36: 14:10:19 | J36: 73 | K36: 23:55:19 | L36: 1015.5 | M36: 00:10:19 | N36: 0 | O36: 00:05:19 | P36: 13.3 | Q36: 14:55:19 | R36: 0 | S36: 00:30:19 | T36: 18.4 | U36: 14:55:19 | V36: 315 | W36: NO | X36: 10:40:19 | Y36: 3.6 | Z36: 76.8 | AA36: 147 | AB36: 338.35 | AC36: 1 | AE36: =IF(AC36="","",VLOOKUP(AC36,List!$B$2:$E$29,4,FALSE)) -> Ciel dégagé | AG36: 4 | AH36: 11:50:19
A37: 2018-02-24 | B37: 24.6 | C37: 18:10:19 | D37: 40 | E37: 23:55:19 | F37: -5.5 | G37: 07:45:19 | H37: 9.3 | I37: 14:35:19 | J37: 75 | K37: 23:55:19 | L37: 1014.4 | M37: 23:50:19 | N37: 0 | O37: 00:00:19 | P37: 14.8 | Q37: 15:15:19 | R37: 0 | S37: 00:00:19 | T37: 18.4 | U37: 15:35:19 | V37: 315 | W37: NO | X37: 14:50:19 | Y37: 0 | Z37: 76.8 | AA37: 147 | AB37: 334.6 | AC37: 1 | AE37: =IF(AC37="","",VLOOKUP(AC37,List!$B$2:$E$29,4,FALSE)) -> Ciel dégagé | AG37: 4 | AH37: 12:10:19
A38: 2018-02-25 | B38: 24.4 | C38: 19:35:19 | D38: 42 | E38: 23:55:19 | F38: -5.3 | G38: 07:05:19 | H38: 9.3 | I38: 15:10:19 | J38: 65 | K38: 23:55:19 | L38: 1020.3 | M38: 23:40:19 | N38: 0 | O38: 00:00:19 | P38: 17.3 | Q38: 16:25:19 | R38: 0 | S38: 00:00:19 | T38: 22 | U38: 13:40:19 | V38: 0 | W38: N | X38: 11:25:19 | Y38: 0 | Z38: 76.8 | AA38: 147 | AB38: 347.17 | AC38: 1 | AE38: =IF(AC38="","",VLOOKUP(AC38,List!$B$2:$E$29,4,FALSE)) -> Ciel dégagé | AG38: 4 | AH38: 12:05:19
A39: 2018-02-26 | B39: 24.1 | C39: 00:00:19 | D39: 38 | E39: 23:55:20 | F39: -3 | G39: 03:40:19 | H39: 5.3 | I39: 14:45:20 | J39: 52 | K39: 23:55:20 | L39: 1023.3 | M39: 11:00:20 | N39: 0 | O39: 02:25:19 | P39: 20.9 | Q39: 17:30:20 | R39: 0 | S39: 02:25:19 | T39: 29.5 | U39: 17:30:20 | V39: 315 | W39: NO | X39: 05:20:19 | Y39: 0 | Z39: 76.8 | AA39: 147 | AB39: 333.67 | AC39: 1 | AE39: =IF(AC39="","",VLOOKUP(AC39,List!$B$2:$E$29,4,FALSE)) -> Ciel dégagé | AG39: 4 | AH39: 12:05:20
A40: 2018-02-27 | B40: 24 | C40: 18:50:21 | D40: 39 | E40: 23:55:21 | F40: -6.6 | G40: 03:50:20 | H40: 4.7 | I40: 12:55:21 | J40: 47 | K40: 23:55:21 | L40: 1021.4 | M40: 00:40:20 | N40: 0 | O40: 02:00:20 | P40: 18.4 | Q40: 16:05:21 | R40: 0 | S40: 02:10:20 | T40: 22 | U40: 16:05:21 | V40: 315 | W40: NO | X40: 04:20:20 | Y40: 0 | Z40: 76.8 | AA40: 147 | AB40: 337.46 | AC40: 1 | AE40: =IF(AC40="","",VLOOKUP(AC40,List!$B$2:$E$29,4,FALSE)) -> Ciel dégagé | AG40: 4 | AH40: 12:05:21
A41: 2018-02-28 | B41: 23.4 | C41: 15:50:21 | D41: 35 | E41: 23:55:21 | F41: -7.6 | G41: 06:35:21 | H41: 3.4 | I41: 14:55:21 | J41: 42 | K41: 23:55:21 | L41: 1012.5 | M41: 00:10:21 | N41: 0 | O41: 00:30:21 | P41: 14.8 | Q41: 15:20:21 | R41: 0 | S41: 03:20:21 | T41: 20.9 | U41: 11:45:21 | V41: 315 | W41: NO | X41: 00:25:21 | Y41: 0 | Z41: 76.8 | AA41: 147 | AB41: 400.81 | AC41: 1 | AE41: =IF(AC41="","",VLOOKUP(AC41,List!$B$2:$E$29,4,FALSE)) -> Ciel dégagé | AG41: 4 | AH41: 11:35:21
AE42: =IF(AC42="","",VLOOKUP(AC42,List!$B$2:$E$29,4,FALSE)) -> 
AE43: =IF(AC43="","",VLOOKUP(AC43,List!$B$2:$E$29,4,FALSE)) -> 
AE44: =IF(AC44="","",VLOOKUP(AC44,List!$B$2:$E$29,4,FALSE)) -> 
AE45: =IF(AC45="","",VLOOKUP(AC45,List!$B$2:$E$29,4,FALSE)) -> 
AE46: =IF(AC46="","",VLOOKUP(AC46,List!$B$2:$E$29,4,FALSE)) -> 

Sheet Mars 18 (hidden)
A1: Soleil | B1: C | C1: Ciel voilé | D1: Rares éclaircies | E1: Soleil Fortes averses | F1: Variable | J1: Orageux | K1: Soleil orage | L1: Soleil averses orageuses | M1: Pluies orageuses | N1: Orage | O1: Orage et grêles | P1: Orage violent | AQ1: 30 | AR1: 51 | AS1: 299 | AT1: 700
B2: 1 | C2: 2 | D2: 3 | E2: 4 | F2: 5 | K2: 18 | L2: 19 | M2: 20 | N2: 21 | O2: 22 | P2: 23 | AY2: =COUNTIF($W$14:$W$46,AZ2) -> 1 | AZ2: N | BA2: 0
A3: Nuageux & Brumeux | B3: C | C3: Brouillard dense | D3: Brume ou Brouillard légé | E3: Brume ou léger brouillard givrant | F3: Nuageux | G3: Couvert | H3: Couvert rares averses | J3: Grèle & Neige | K3: Giboulées | L3: Grèles | M3: Neiges | N3: Fortes neiges | AY3: =COUNTIF($W$14:$W$46,AZ3) -> 0 | AZ3: NNE | BA3: 23
B4: 6 | C4: 7 | D4: 8 | E4: 9 | F4: 10 | G4: 11 | H4: 12 | K4: 24 | L4: 25 | M4: 26 | N4: 27 | AY4: 0 | AZ4: NE | BA4: 45
A5: Pluvieux | B5: Pluies et éclaircies | C5: Pluies éparses | D5: Bruines | E5: Averses ou fortes pluies | F5: Pluies mélées de neige | AY5: 0 | AZ5: ENE | BA5: 68
B6: 13 | C6: 14 | D6: 15 | E6: 16 | F6: 17 | AY6: 7 | AZ6: EST | BA6: 90
F7: =IF(F14="","",MIN(F14:F46)) -> -3.2 | H7: =IF(H14="","",MIN(H14:H46)) -> 4.1 | J7: 0.92 | L7: 985.1 | N7: 0 | P7: 6.1 | R7: 0 | T7: 8.6 | V7: =VLOOKUP(W7,$AZ$2:$BA$17,2,FALSE) -> 23 | W7: =W10 -> NNE | Y7: =MIN(Y14:Y46) -> 0 | AB7: 71.55 | AG7: 1 | AY7: 0 | AZ7: ESE | BA7: 113
F8: =IF(F15="","",MAX(F14:F46)) -> 10.6 | H8: =IF(H15="","",MAX(H14:H46)) -> 18.8 | J8: 89 | L8: 1031.4 | N8: 2.5 | P8: 28.1 | R8: 2.5 | T8: 39.2 | V8: =VLOOKUP(W8,$AZ$2:$BA$17,2,FALSE) -> 315 | W8: =W11 -> NO | Y8: =MAX(Y14:Y46) -> 11.4 | Z8: 86.7 | AA8: 245.1 | AB8: 684.52 | AG8: 7 | AY8: 10 | AZ8: SE | BA8: 135
AY9: 0 | AZ9: SSE | BA9: 158
V10: =SMALL($AY$2:$AY$17,1) -> 0 | W10: =VLOOKUP(V10,$AY$2:$AZ$17,2,FALSE) -> NNE | Z10: =MAX(Z14:Z46) -> 86.7 | AP10: 31 | AQ10: 99 | AR10: 300 | AY10: 0 | AZ10: S | BA10: 180
F11: =IF(F14="","",MIN(F14:F46)) -> -3.2 | G11: =VLOOKUP(F11,F14:G46,2,FALSE) -> 06:15:26 | H11: =IF(H14="","",MAX(H14:H46)) -> 18.8 | I11: =VLOOKUP(H11,H14:I46,2,FALSE) -> 15:40:23 | V11: =LARGE($AY$2:$AY$17,1) -> 13 | W11: =VLOOKUP(V11,$AY$2:$AZ$17,2,FALSE) -> NO | AP11: 49 | AQ11: 100 | AR11: 301 | AY11: 0 | AZ11: SSO | BA11: 203
A12: Moyenne Mensuelle | B12: =AVERAGE(B14:B46) -> 22.26451613 | D12: =AVERAGE(D14:D46) -> 46.11580645 | F12: =AVERAGE(F14:F46) -> 3.4 | H12: =AVERAGE(H14:H46) -> 12.71612903 | J12: =AVERAGE(J14:J46) -> 78.25548387 | L12: =AVERAGE(L14:L46) -> 1003.612903 | N12: =AVERAGE(N14:N46) -> 0.1870967742 | R12: =AVERAGE(R14:R46) -> 0.3935483871 | W12: SE | X12: 09:30:45 | Y12: =AVERAGE(Y14:Y44) -> 3.164516129 | Z12: =AVERAGE(Z14:Z46) -> 41.1 | AB12: =AVERAGE(AB14:AB46) -> 469.6509677 | AG12: =AVERAGE(AG14:AG46) -> 5.225806452 | AP12: 50 | AQ12: 101 | AR12: 699 | AY12: 0 | AZ12: SO | BA12: 225
A13: Jour | B13: T° int. (°C) | C13: Heure | D13: Hum int. (%) | E13: Heure | F13: T° Mini ext. (°C) | G13: Heure | H13: T° Maxi ext. (°C) | I13: Heure | J13: Hum ext. (%) | K13: Heure | L13: Press. rel. (hpa) | M13: Heure | N13: Vit. du vent (km/h) | O13: Heure | P13: Vit. du vent (km/h) | Q13: Heure | R13: Rafale Min (km/h) | S13: Heure | T13: Rafale Max (km/h) | U13: Heure | V13: Direction du vent | W13: - | X13: Heure | Y13: Précipi. dern. 24 h (mm) | Z13: Précipi. Tot. mois (mm) | AA13: Précipi. Tot. An (mm) | AB13: Lumière (W/M2) | AG13: UVI | AH13: Heure | AJ13: Intensité des UV | AY13: 0 | AZ13: OSO | BA13: 248
A14: 2018-03-01 | B14: 22.5 | C14: 00:00:21 | D14: 40 | E14: 23:55:24 | F14: -2.9 | G14: 02:55:21 | H14: 4.2 | I14: 23:50:24 | J14: 89 | K14: 23:55:24 | L14: 996 | M14: 00:05:21 | N14: 1.1 | O14: 14:20:24 | P14: 13.3 | Q14: 03:00:21 | R14: 2.5 | S14: 14:20:24 | T14: 18.4 | U14: 03:00:21 | V14: =IF(W14="N",0,IF(W14="NNE",23,IF(W14="NE",45,IF(W14="ENE",68,IF(W14="EST",90,IF(W14="ESE",113,IF(W14="SE",135,IF(W14="SSE",158,IF(W14="S",180,IF(W14="SSO",203,IF(W14="SO",225,IF(W14="OSO",248,IF(W14="O",270,IF(W14="ONO",293,IF(W14="NO",315,IF(W14="NNO",338,"")))))))))))))))) -> 315 | W14: NO | X14: 01:05:21 | Y14: 11.4 | Z14: 0 | AA14: 158.4 | AB14: 71.55 | AC14: 16 | AE14: =IF(AC14="","",VLOOKUP(AC14,List!$B$2:$E$29,4,FALSE)) -> Averses ou fortes pluies | AG14: 1 | AH14: 08:55:21 | AJ14: FAIBLE | AK14: <2 | AO14: Soleil | AP14: C | AQ14: Ciel voilé | AR14: Rares éclaircies | AS14: Soleil Fortes averses | AT14: Variable | AU14: 0 | AV14: 0 | AY14: 0 | AZ14: O | BA14: 270
A15: =IF(B15="","",A14+1) -> 2018-03-02 | B15: 22.8 | C15: 21:20:19 | D15: 38 | E15: 23:55:19 | F15: 4.2 | G15: 00:00:24 | H15: 9.1 | I15: 13:25:19 | J15: 75 | K15: 23:55:19 | L15: 985.1 | M15: 21:10:19 | N15: 1.1 | O15: 01:25:24 | P15: 28.1 | Q15: 14:40:19 | R15: 2.5 | S15: 01:25:24 | T15: 39.2 | U15: 14:40:19 | V15: 90 | W15: EST | X15: 02:05:24 | Y15: 6 | Z15: =IF(Y15="","",Y15+Z14) -> 6 | AA15: 164.4 | AB15: 486.86 | AC15: 16 | AE15: =IF(AC15="","",VLOOKUP(AC15,List!$B$2:$E$29,4,FALSE)) -> Averses ou fortes pluies | AF15: =IF(AC15="","",) -> 0 | AG15: 5 | AH15: 13:20:19 | AJ15: MODEREE | AK15: 3 | AL15: à | AM15: 5 | AY15: 0 | AZ15: ONO | BA15: 293
A16: =IF(B16="","",A15+1) -> 2018-03-03 | B16: 23.8 | C16: 18:50:20 | D16: 42 | E16: 23:55:20 | F16: 3.9 | G16: 03:40:19 | H16: 12.9 | I16: 14:55:20 | J16: 81 | K16: 23:55:20 | L16: 987.9 | M16: 23:45:20 | N16: 0 | O16: 00:00:19 | P16: 22 | Q16: 14:45:20 | R16: 0 | S16: 00:00:19 | T16: 28.1 | U16: 13:05:20 | V16: 90 | W16: EST | X16: 02:15:19 | Y16: 3.6 | Z16: 9.6 | AA16: 168 | AB16: 503.06 | AC16: 4 | AE16: =IF(AC16="","",VLOOKUP(AC16,List!$B$2:$E$29,4,FALSE)) -> Soleil nuageux et averses | AF16: Averses ou fortes pluies | AG16: 5 | AH16: 13:25:20 | AJ16: FORTE | AK16: 6 | AL16: à | AM16: 7 | AO16: Nuageux & Brumeux | AP16: C | AQ16: Brouillard dense | AR16: Brume ou Brouillard légé | AS16: Brume ou léger brouillard givrant | AT16: Nuageux | AU16: Couvert | AV16: Couvert rares averses | AY16: 13 | AZ16: NO | BA16: 315
A17: 2018-03-04 | B17: 25.1 | C17: 19:20:21 | D17: 40 | E17: 23:55:21 | F17: 3.7 | G17: 23:55:21 | H17: 13.3 | I17: 14:30:21 | J17: 81 | K17: 23:55:21 | L17: 989.1 | M17: 22:40:21 | N17: 0 | O17: 03:00:20 | P17: 17.3 | Q17: 11:40:21 | R17: 0 | S17: 03:35:20 | T17: 24.5 | U17: 11:40:21 | V17: 135 | W17: SE | X17: 09:30:20 | Y17: 0.6 | Z17: 10.2 | AA17: 168.6 | AB17: 521.16 | AC17: 5 | AE17: =IF(AC17="","",VLOOKUP(AC17,List!$B$2:$E$29,4,FALSE)) -> Variable | AF17: Pluies et éclaircies | AG17: 6 | AH17: 12:40:21 | AJ17: TRES FORTE | AK17: 8 | AL17: à | AM17: 10 | AY17: 0 | AZ17: NNO | BA17: 338
A18: 2018-03-05 | B18: 25 | C18: 15:50:21 | D18: 42 | E18: 23:55:21 | F18: 2 | G18: 02:05:21 | H18: 13.7 | I18: 14:30:21 | J18: 84 | K18: 23:55:21 | L18: 988.9 | M18: 00:05:21 | N18: 0 | O18: 00:00:21 | P18: 20.9 | Q18: 15:00:21 | R18: 0 | S18: 00:00:21 | T18: 24.5 | U18: 15:00:21 | V18: 315 | W18: NO | X18: 06:30:21 | Y18: 2.4 | Z18: 12.6 | AA18: 171 | AB18: 462.19 | AC18: 4 | AE18: =IF(AC18="","",VLOOKUP(AC18,List!$B$2:$E$29,4,FALSE)) -> Soleil nuageux et averses | AF18: C | AG18: 5 | AH18: 12:40:21 | AJ18: EXTREME | AK18: 11+ | AO18: Pluvieux | AP18: Pluies et éclaircies | AQ18: Pluies éparses | AR18: Bruines | AS18: Averses ou fortes pluies | AT18: Pluies mélées de neige
A19: 2018-03-06 | B19: 24.7 | C19: 19:10:22 | D19: 45 | E19: 23:55:22 | F19: 1.6 | G19: 06:40:21 | H19: 9.8 | I19: 12:40:22 | J19: 87 | K19: 23:55:22 | L19: 988.4 | M19: 23:40:22 | N19: 0 | O19: 00:00:21 | P19: 6.1 | Q19: 01:00:21 | R19: 0 | S19: 00:00:21 | T19: 8.6 | U19: 12:50:22 | V19: 315 | W19: NO | X19: 09:50:21 | Y19: 5.4 | Z19: 18 | AA19: 176.4 | AB19: 252.61 | AC19: 16 | AE19: =IF(AC19="","",VLOOKUP(AC19,List!$B$2:$E$29,4,FALSE)) -> Averses ou fortes pluies | AF19: C | AG19: 4 | AH19: 11:15:21
A20: 2018-03-07 | B20: 24.6 | C20: 21:05:22 | D20: 42 | E20: 23:55:22 | F20: 0.9 | G20: 04:05:22 | H20: 14 | I20: 14:30:22 | J20: 84 | K20: 23:55:22 | L20: 998.7 | M20: 20:55:22 | N20: 0 | O20: 00:00:22 | P20: 18.4 | Q20: 17:30:22 | R20: 0 | S20: 00:00:22 | T20: 22 | U20: 17:30:22 | V20: 90 | W20: EST | X20: 15:15:22 | Y20: 1.2 | Z20: 19.2 | AA20: 177.6 | AB20: 522.79 | AC20: 4 | AE20: =IF(AC20="","",VLOOKUP(AC20,List!$B$2:$E$29,4,FALSE)) -> Soleil nuageux et averses | AF20: C | AG20: 5 | AH20: 11:50:22 | AO20: Orageux | AP20: Soleil orage | AQ20: Soleil averses orageuses | AR20: Pluies orageuses | AS20: Orage | AT20: Orage et grêles | AU20: Orage violent
A21: 2018-03-08 | B21: 24.6 | C21: 21:20:22 | D21: 44 | E21: 23:55:22 | F21: 5.7 | G21: 00:00:22 | H21: 10.2 | I21: 12:20:22 | J21: 86 | K21: 23:55:22 | L21: 1001.6 | M21: 23:30:22 | N21: 0 | O21: 17:45:22 | P21: 15.8 | Q21: 06:30:22 | R21: 0 | S21: 17:45:22 | T21: 20.9 | U21: 04:30:22 | V21: 135 | W21: SE | X21: 14:55:22 | Y21: 4.5 | Z21: 23.7 | AA21: 182.1 | AB21: 236.87 | AC21: 16 | AE21: =IF(AC21="","",VLOOKUP(AC21,List!$B$2:$E$29,4,FALSE)) -> Averses ou fortes pluies | AF21: Averses ou fortes pluies | AG21: 4 | AH21: 11:50:22
A22: 2018-03-09 | B22: 25.1 | C22: 21:20:22 | D22: 48 | E22: 23:55:22 | F22: 8 | G22: 00:05:22 | H22: 14.9 | I22: 15:00:22 | J22: 82 | K22: 23:55:22 | L22: 1001.4 | M22: 00:00:22 | N22: 0 | O22: 00:00:22 | P22: 17.3 | Q22: 15:05:22 | R22: 0 | S22: 00:10:22 | T22: 22 | U22: 14:50:22 | V22: 135 | W22: SE | X22: 06:05:22 | Y22: 0.9 | Z22: 24.6 | AA22: 183 | AB22: 406.07 | AC22: 4 | AE22: =IF(AC22="","",VLOOKUP(AC22,List!$B$2:$E$29,4,FALSE)) -> Soleil nuageux et averses | AF22: Pluies et éclaircies | AG22: 5 | AH22: 14:40:22 | AO22: Grèle & Neige | AP22: Giboulées | AQ22: Grèles | AR22: Neiges | AS22: Fortes neiges | AT22: 0 | AU22: 0
A23: 2018-03-10 | B23: 25 | C23: 21:35:23 | D23: 47 | E23: 23:55:23 | F23: 10.6 | G23: 22:30:23 | H23: 18.8 | I23: 15:40:23 | J23: 80 | K23: 23:55:23 | L23: 994.4 | M23: 12:55:23 | N23: 0 | O23: 00:05:22 | P23: 17.3 | Q23: 12:55:23 | R23: 0 | S23: 02:30:22 | T23: 25.6 | U23: 12:55:23 | V23: 135 | W23: SE | X23: 00:10:22 | Y23: 0.6 | Z23: 25.2 | AA23: 183.6 | AB23: 577.74 | AC23: 5 | AE23: =IF(AC23="","",VLOOKUP(AC23,List!$B$2:$E$29,4,FALSE)) -> Variable | AF23: Pluies éparses | AG23: 6 | AH23: 13:30:23
A24: 2018-03-11 | B24: 24.1 | C24: 00:00:23 | D24: 48 | E24: 23:55:23 | F24: 6 | G24: 03:05:23 | H24: 14.4 | I24: 11:05:23 | J24: 78 | K24: 23:55:23 | L24: 991.7 | M24: 00:00:23 | N24: 0 | O24: 00:20:23 | P24: 24.5 | Q24: 14:50:23 | R24: 0 | S24: 02:20:23 | T24: 39.2 | U24: 14:50:23 | V24: 315 | W24: NO | X24: 07:05:23 | Y24: 3.3 | Z24: 28.5 | AA24: 186.9 | AB24: 461.37 | AC24: 5 | AE24: =IF(AC24="","",VLOOKUP(AC24,List!$B$2:$E$29,4,FALSE)) -> Variable | AF24: Pluies et éclaircies | AG24: 5 | AH24: 14:25:23 | AO24: Temps de nuit | AP24: Ciel dégagé de nuit | AQ24: Ciel voilé de nuit | AR24: Brume ou brouillard léger de nuit | AS24: Brume ou léger brouillard givrant de nuit | AT24: Brouillard dense de nuit | AU24: Ciel nuageux avec éclaircies de nuit
A25: 2018-03-12 | B25: 24.9 | C25: 18:40:23 | D25: 45 | E25: 23:55:25 | F25: 9 | G25: 23:30:25 | H25: 13.6 | I25: 14:20:23 | J25: 84 | K25: 23:55:25 | L25: 1002.2 | M25: 23:50:25 | N25: 2.5 | O25: 20:00:23 | P25: 19.4 | Q25: 15:15:23 | R25: 2.5 | S25: 22:55:25 | T25: 25.6 | U25: 15:15:23 | V25: 90 | W25: EST | X25: 08:05:23 | Y25: 3 | Z25: 31.5 | AA25: 189.9 | AB25: 472.32 | AC25: 5 | AE25: =IF(AC25="","",VLOOKUP(AC25,List!$B$2:$E$29,4,FALSE)) -> Variable | AF25: C | AG25: 5 | AH25: 14:15:23
A26: 2018-03-13 | B26: 24.6 | C26: 21:15:25 | D26: 47 | E26: 23:55:25 | F26: 4.5 | G26: 21:20:25 | H26: 16 | I26: 13:15:25 | J26: 84 | K26: 23:55:25 | L26: 1010 | M26: 12:10:25 | N26: 0 | O26: 04:35:25 | P26: 12.2 | Q26: 15:00:25 | R26: 0 | S26: 07:20:25 | T26: 17.3 | U26: 16:55:25 | V26: 0 | W26: N | X26: 04:45:25 | Y26: 2.1 | Z26: 33.6 | AA26: 192 | AB26: 604.39 | AC26: 5 | AE26: =IF(AC26="","",VLOOKUP(AC26,List!$B$2:$E$29,4,FALSE)) -> Variable | AG26: 6 | AH26: 13:20:25
A27: 2018-03-14 | B27: 24.8 | C27: 17:20:23 | D27: 50 | E27: 23:55:23 | F27: 6.1 | G27: 00:25:25 | H27: 14.8 | I27: 15:05:23 | J27: 85 | K27: 23:55:23 | L27: 1007.6 | M27: 00:05:25 | N27: 0 | O27: 01:05:25 | P27: 24.5 | Q27: 16:20:23 | R27: 1.1 | S27: 01:05:25 | T27: 31.7 | U27: 16:20:23 | V27: 135 | W27: SE | X27: 09:55:25 | Y27: 7.5 | Z27: 41.1 | AA27: 199.5 | AB27: 437.86 | AC27: 16 | AE27: =IF(AC27="","",VLOOKUP(AC27,List!$B$2:$E$29,4,FALSE)) -> Averses ou fortes pluies | AG27: 5 | AH27: 13:20:23
A28: 2018-03-15 | B28: 23.7 | C28: 20:35:24 | D28: 48 | E28: 23:55:24 | F28: 6.7 | G28: 21:40:24 | H28: 13.5 | I28: 14:30:23 | J28: 80 | K28: 23:55:24 | L28: 991.8 | M28: 23:40:24 | N28: 0 | O28: 21:20:24 | P28: 22 | Q28: 13:40:23 | R28: 0 | S28: 21:25:24 | T28: 27 | U28: 13:40:23 | V28: 135 | W28: SE | X28: 19:20:24 | Y28: 2.7 | Z28: 43.8 | AA28: 202.2 | AB28: 468.3 | AC28: 4 | AE28: =IF(AC28="","",VLOOKUP(AC28,List!$B$2:$E$29,4,FALSE)) -> Soleil nuageux et averses | AG28: 5 | AH28: 12:05:23
A29: 2018-03-16 | B29: 22.3 | C29: 00:00:24 | D29: 52 | E29: 23:55:24 | F29: 2.3 | G29: 06:40:24 | H29: 13 | I29: 15:00:24 | J29: 84 | K29: 23:55:24 | L29: 997.3 | M29: 23:15:24 | N29: 0 | O29: 02:15:24 | P29: 19.4 | Q29: 16:25:24 | R29: 0 | S29: 02:15:24 | T29: 24.5 | U29: 16:25:24 | V29: 315 | W29: NO | X29: 02:20:24 | Y29: 0.3 | Z29: 44.1 | AA29: 202.5 | AB29: 547.11 | AC29: 4 | AE29: =IF(AC29="","",VLOOKUP(AC29,List!$B$2:$E$29,4,FALSE)) -> Soleil nuageux et averses | AG29: 6 | AH29: 11:35:24
A30: 2018-03-17 | B30: 19.8 | C30: 00:00:24 | D30: 52 | E30: 23:55:26 | F30: 0.5 | G30: 02:35:24 | H30: 13.3 | I30: 12:35:24 | J30: 80 | K30: 23:55:26 | L30: 997.7 | M30: 02:45:24 | N30: 0 | O30: 00:00:24 | P30: 19.4 | Q30: 16:05:24 | R30: 0 | S30: 00:00:24 | T30: 27 | U30: 16:05:24 | V30: 315 | W30: NO | X30: 09:00:24 | Y30: 0 | Z30: 44.1 | AA30: 202.5 | AB30: 495.76 | AC30: 5 | AE30: =IF(AC30="","",VLOOKUP(AC30,List!$B$2:$E$29,4,FALSE)) -> Variable | AG30: 6 | AH30: 12:25:24
A31: 2018-03-18 | B31: 17.9 | C31: 00:00:26 | D31: 50 | E31: 23:55:26 | F31: -0.6 | G31: 23:45:26 | H31: 11.6 | I31: 13:35:26 | J31: 80 | K31: 23:55:26 | L31: 1002.8 | M31: 22:50:26 | N31: 0 | O31: 06:15:26 | P31: 12.2 | Q31: 00:25:26 | R31: 0 | S31: 06:55:26 | T31: 15.8 | U31: 12:35:26 | V31: 315 | W31: NO | X31: 01:40:26 | Y31: 0 | Z31: 44.1 | AA31: 202.5 | AB31: 607.02 | AC31: 1 | AE31: =IF(AC31="","",VLOOKUP(AC31,List!$B$2:$E$29,4,FALSE)) -> Ciel dégagé | AG31: 6 | AH31: 12:25:26
A32: 2018-03-19 | B32: 16.8 | C32: 00:00:26 | D32: 52 | E32: 23:55:28 | F32: -3.2 | G32: 06:15:26 | H32: 4.1 | I32: 11:20:26 | J32: 70 | K32: 23:55:28 | L32: 1013.8 | M32: 23:55:28 | N32: 0 | O32: 00:00:26 | P32: 19.4 | Q32: 19:10:26 | R32: 0 | S32: 00:00:26 | T32: 25.6 | U32: 19:10:26 | V32: 90 | W32: EST | X32: 00:55:26 | Y32: 0.9 | Z32: 45 | AA32: 203.4 | AB32: 177 | AC32: 5 | AE32: =IF(AC32="","",VLOOKUP(AC32,List!$B$2:$E$29,4,FALSE)) -> Variable | AG32: 3 | AH32: 11:10:26
A33: 2018-03-20 | B33: 15 | C33: 00:00:28 | D33: 53 | E33: 23:55:28 | F33: 0.1 | G33: 23:35:28 | H33: 9.3 | I33: 13:05:28 | J33: 78 | K33: 23:55:28 | L33: 1029.4 | M33: 23:50:28 | N33: 0 | O33: 22:00:28 | P33: 28.1 | Q33: 14:10:28 | R33: 0 | S33: 22:40:28 | T33: 34.2 | U33: 14:10:28 | V33: 315 | W33: NO | X33: 00:10:28 | Y33: 0.3 | Z33: 45.3 | AA33: 203.7 | AB33: 596.73 | AC33: 4 | AE33: =IF(AC33="","",VLOOKUP(AC33,List!$B$2:$E$29,4,FALSE)) -> Soleil nuageux et averses | AG33: 6 | AH33: 11:40:28
A34: 2018-03-21 | B34: 15.7 | C34: 15:45:29 | D34: 52 | E34: 23:55:29 | F34: -1.5 | G34: 03:25:28 | H34: 14.2 | I34: 15:40:29 | J34: 82 | K34: 23:55:29 | L34: 1031.4 | M34: 09:40:28 | N34: 0 | O34: 00:00:28 | P34: 18.4 | Q34: 11:15:28 | R34: 0 | S34: 00:10:28 | T34: 23.4 | U34: 11:15:28 | V34: 315 | W34: NO | X34: 07:10:28 | Y34: 0 | Z34: 45.3 | AA34: 203.7 | AB34: 575.27 | AC34: 1 | AE34: =IF(AC34="","",VLOOKUP(AC34,List!$B$2:$E$29,4,FALSE)) -> Ciel dégagé | AG34: 6 | AH34: 12:00:29
A35: 2018-03-22 | B35: 15.2 | C35: 00:00:29 | D35: 50 | E35: 23:55:30 | F35: 0.9 | G35: 00:00:29 | H35: 9.9 | I35: 13:25:30 | J35: 64 | K35: 23:55:30 | L35: 1027.4 | M35: 00:05:29 | N35: 0 | O35: 00:00:29 | P35: 12.2 | Q35: 17:10:30 | R35: 0 | S35: 00:10:29 | T35: 15.8 | U35: 17:10:30 | V35: 315 | W35: NO | X35: 12:35:30 | Y35: 0 | Z35: 45.3 | AA35: 203.7 | AB35: 225.27 | AC35: 5 | AE35: =IF(AC35="","",VLOOKUP(AC35,List!$B$2:$E$29,4,FALSE)) -> Variable | AG35: 4 | AH35: 11:55:30
A36: 2018-03-23 | B36: 15.7 | C36: 13:55:30 | D36: 55 | E36: 23:55:30 | F36: 6 | G36: 01:30:30 | H36: 12.6 | I36: 11:15:30 | J36: 83 | K36: 23:55:30 | L36: 1011.5 | M36: 00:00:30 | N36: 1.1 | O36: 00:40:30 | P36: 19.4 | Q36: 05:55:30 | R36: 2.5 | S36: 01:10:30 | T36: 23.4 | U36: 05:55:30 | V36: 135 | W36: SE | X36: 08:00:30 | Y36: 9 | Z36: 54.3 | AA36: 212.7 | AB36: 337.46 | AC36: 16 | AE36: =IF(AC36="","",VLOOKUP(AC36,List!$B$2:$E$29,4,FALSE)) -> Averses ou fortes pluies | AG36: 4 | AH36: 10:25:30
A37: 2018-03-24 | B37: 16.3 | C37: 22:05:31 | D37: 55 | E37: 23:55:31 | F37: 2 | G37: 06:50:30 | H37: 13.2 | I37: 13:00:31 | J37: 86 | K37: 23:55:31 | L37: 999.8 | M37: 23:10:31 | N37: 0 | O37: 03:15:30 | P37: 14.8 | Q37: 00:50:30 | R37: 0 | S37: 03:55:30 | T37: 19.4 | U37: 00:50:30 | V37: 90 | W37: EST | X37: 11:30:31 | Y37: 4.2 | Z37: 58.5 | AA37: 216.9 | AB37: 318.55 | AC37: 16 | AE37: =IF(AC37="","",VLOOKUP(AC37,List!$B$2:$E$29,4,FALSE)) -> Averses ou fortes pluies | AG37: 5 | AH37: 12:45:31
A38: 2018-03-25 | B38: 20.1 | C38: 21:05:32 | D38: 0.59 | E38: 18:50:32 | F38: 7.4 | G38: 07:35:31 | H38: 11.5 | I38: 15:25:32 | J38: 0.92 | K38: 07:35:31 | L38: 1013.3 | M38: 23:55:32 | N38: 0 | O38: 01:35:31 | P38: 14.8 | Q38: 06:15:31 | R38: 0 | S38: 01:35:31 | T38: 18.4 | U38: 14:10:32 | V38: 315 | W38: NO | X38: 01:15:31 | Y38: 7.2 | Z38: 65.7 | AA38: 224.1 | AB38: 283.24 | AC38: 16 | AE38: =IF(AC38="","",VLOOKUP(AC38,List!$B$2:$E$29,4,FALSE)) -> Averses ou fortes pluies | AG38: 5 | AH38: 12:40:32
A39: 2018-03-26 | B39: 24 | C39: 21:25:30 | D39: 50 | E39: 23:55:30 | F39: 5 | G39: 08:35:32 | H39: 17.2 | I39: 13:35:30 | J39: 78 | K39: 23:55:30 | L39: 1019 | M39: 12:00:32 | N39: 0 | O39: 02:20:32 | P39: 12.2 | Q39: 11:15:32 | R39: 0 | S39: 02:20:32 | T39: 15.8 | U39: 11:15:32 | V39: 315 | W39: NO | X39: 03:35:32 | Y39: 0.3 | Z39: 66 | AA39: 224.4 | AB39: 611.58 | AC39: 4 | AE39: =IF(AC39="","",VLOOKUP(AC39,List!$B$2:$E$29,4,FALSE)) -> Soleil nuageux et averses | AG39: 6 | AH39: 13:30:30
A40: 2018-03-27 | B40: 24.7 | C40: 21:25:31 | D40: 52 | E40: 23:55:31 | F40: 7.7 | G40: 01:25:30 | H40: 17.2 | I40: 15:05:31 | J40: 76 | K40: 23:55:31 | L40: 1014.2 | M40: 00:00:30 | N40: 0 | O40: 21:25:31 | P40: 11.2 | Q40: 00:25:30 | R40: 1.1 | S40: 21:25:31 | T40: 15.8 | U40: 02:50:30 | V40: 135 | W40: SE | X40: 02:35:30 | Y40: 2.1 | Z40: 68.1 | AA40: 226.5 | AB40: 684.52 | AC40: 4 | AE40: =IF(AC40="","",VLOOKUP(AC40,List!$B$2:$E$29,4,FALSE)) -> Soleil nuageux et averses | AG40: 6 | AH40: 14:55:31
A41: 2018-03-28 | B41: 26.1 | C41: 17:15:32 | D41: 52 | E41: 23:55:32 | F41: 1.7 | G41: 23:50:32 | H41: 14.9 | I41: 14:00:32 | J41: 81 | K41: 23:55:32 | L41: 1009.8 | M41: 00:00:31 | N41: 0 | O41: 21:15:32 | P41: 19.4 | Q41: 11:05:31 | R41: 0 | S41: 21:45:32 | T41: 34.2 | U41: 11:05:31 | V41: 135 | W41: SE | X41: 16:00:32 | Y41: 0.6 | Z41: 68.7 | AA41: 227.1 | AB41: 668.32 | AC41: 4 | AE41: =IF(AC41="","",VLOOKUP(AC41,List!$B$2:$E$29,4,FALSE)) -> Soleil nuageux et averses | AG41: 7 | AH41: 13:25:32
A42: 2018-03-29 | B42: 25.3 | C42: 15:40:32 | D42: 47 | E42: 23:55:32 | F42: 1.1 | G42: 03:45:32 | H42: 12.8 | I42: 16:05:32 | J42: 81 | K42: 23:55:32 | L42: 1006.4 | M42: 00:20:32 | N42: 0 | O42: 00:00:32 | P42: 22 | Q42: 16:35:32 | R42: 0 | S42: 00:00:32 | T42: 30.6 | U42: 17:20:32 | V42: 135 | W42: SE | X42: 04:15:32 | Y42: 11.4 | Z42: 80.1 | AA42: 238.5 | AB42: 620.52 | AC42: 16 | AE42: =IF(AC42="","",VLOOKUP(AC42,List!$B$2:$E$29,4,FALSE)) -> Averses ou fortes pluies | AG42: 6 | AH42: 13:05:32
A43: 2018-03-30 | B43: 25.3 | C43: 18:50:32 | D43: 47 | E43: 23:55:32 | F43: 5.1 | G43: 00:55:32 | H43: 14.8 | I43: 16:20:32 | J43: 82 | K43: 23:55:32 | L43: 995.9 | M43: 00:00:32 | N43: 0 | O43: 00:15:32 | P43: 14.8 | Q43: 14:25:32 | R43: 0 | S43: 00:15:32 | T43: 19.4 | U43: 14:25:32 | V43: 90 | W43: EST | X43: 12:00:32 | Y43: 5.1 | Z43: 85.2 | AA43: 243.6 | AB43: 684.06 | AC43: 16 | AE43: =IF(AC43="","",VLOOKUP(AC43,List!$B$2:$E$29,4,FALSE)) -> Averses ou fortes pluies | AG43: 7 | AH43: 14:00:32
A44: 2018-03-31 | B44: 24.7 | C44: 22:00:33 | D44: 44 | E44: 23:55:33 | F44: 0.9 | G44: 04:40:32 | H44: 11.4 | I44: 13:55:33 | J44: 80 | K44: 23:55:30 | L44: 1007.5 | M44: 23:45:33 | N44: 0 | O44: 00:00:32 | P44: 15.8 | Q44: 15:30:33 | R44: 0 | S44: 00:05:32 | T44: 22 | U44: 15:30:33 | V44: 315 | W44: NO | X44: 11:20:32 | Y44: 1.5 | Z44: 86.7 | AA44: 245.1 | AB44: 641.63 | AC44: 4 | AE44: =IF(AC44="","",VLOOKUP(AC44,List!$B$2:$E$29,4,FALSE)) -> Soleil nuageux et averses | AG44: 7 | AH44: 13:50:33
AE45: =IF(AC45="","",VLOOKUP(AC45,List!$B$2:$E$29,4,FALSE)) -> 
AE46: =IF(AC46="","",VLOOKUP(AC46,List!$B$2:$E$29,4,FALSE)) -> 
